Workbook

Sheet Dashboard
A1: DASHBOARD
A3: Organisation
A4: Statement of Applicability
A8: Report Date | B8: Baseline | C8: Target | D8: Advanced | F8: CE | G8: PSAP | H8: PSN - ITHC | I8: PCI-DSS | J8: 10 Steps | K8: GDPR | L8: HMG SPF | M8: ISO 27001 | N8: NIS - CAF
A10: =INDIRECT($E10& "!$D$2") -> 2019-06-07 | B10: =INDIRECT($E10& "!R$5") ->  | C10: =INDIRECT($E10& "!U$5") ->  | D10: =ragAdvanced($E10,INDIRECT($E10& "!X$5")) ->  | E10: R01 | F10: =INDIRECT("'" & $E10 & "'!Z$6") ->  | G10: =INDIRECT("'" & $E10 & "'!AA$6") ->  | H10: =INDIRECT("'" & $E10 & "'!AB$6") ->  | I10: =INDIRECT("'" & $E10 & "'!AC$6") ->  | J10: =INDIRECT("'" & $E10 & "'!AD$6") ->  | K10: =INDIRECT("'" & $E10 & "'!AE$6") ->  | L10: =INDIRECT("'" & $E10 & "'!AF$6") ->  | M10: =INDIRECT("'" & $E10 & "'!AG$6") ->  | N10: =INDIRECT("'" & $E10 & "'!AH$6") -> 
A11: =INDIRECT($E11& "!$D$2") -> 2019-06-12 | B11: =INDIRECT($E11& "!R$5") ->  | C11: =INDIRECT($E11& "!U$5") ->  | D11: =ragAdvanced($E11,INDIRECT($E11& "!X$5")) ->  | E11: R02
A12: =INDIRECT($E12& "!$D$2") -> 2019-06-21 | B12: =INDIRECT($E12& "!R$5") ->  | C12: =INDIRECT($E12& "!U$5") ->  | E12: R03
A13: 2019-06-26 | E13: R04 | I13: =INDIRECT("'" & $E13 & "'!AC$6") -> 
A14: 2019-07-03 | E14: R05
A15: 2019-07-11 | E15: R06
G50: =IF(INDEX(Breakdown!$Q:$Q,ROW())>0,"P","") -> 

Sheet Domain Progress
A2: Select Chart Date: | C2: 07/06/2019
B4: Report | C4: Date | D4: Stage | E4: ='Base-Lookup'!A2 -> MANAGE | F4: ='Base-Lookup'!A3 -> PROTECT | G4: ='Base-Lookup'!A4 -> DETECT | H4: ='Base-Lookup'!A5 -> RESPOND & RECOVER | J4: =E4 -> MANAGE | K4: =F4 -> PROTECT | L4: DETECT | M4: RESPOND & RECOVER
B5: R01 | C5: =INDIRECT(B5 & "!$D$2") -> 2019-06-07 | D5: Baseline | E5: =StageTotal($B5,E$4,$D5) ->  | F5: =StageTotal($B5,F$4,$D5) ->  | G5: =StageTotal($B5,G$4,$D5) ->  | H5: =StageTotal($B5,H$4,$D5) ->  | J5: =SUM(E5:E7)/3 ->  | K5: =SUM(F5:F7)/3 -> 
D6: Target | E6: =StageTotal($B5,E$4,$D6) ->  | F6: =StageTotal($B5,F$4,$D6) ->  | G6: =StageTotal($B5,G$4,$D6) ->  | H6: =StageTotal($B5,H$4,$D6) -> 
D7: Advanced | E7: =StageTotal($B5,E$4,$D7) ->  | F7: =StageTotal($B5,F$4,$D7) ->  | G7: =StageTotal($B5,G$4,$D7) ->  | H7: =StageTotal($B5,H$4,$D7) -> 
B8: R02 | C8: =INDIRECT(B8 & "!$D$2") -> 2019-06-12 | D8: Baseline | E8: =StageTotal(B$8,E$4,$D8) ->  | F8: =StageTotal($B$8,F$4,$D8) ->  | G8: =StageTotal($B$8,G$4,$D8) ->  | H8: =StageTotal($B$8,H$4,$D8) ->  | J8: =SUM(E8:E10)/3 ->  | K8: =SUM(F8:F10)/3 ->  | L8: =SUM(G8:G10)/3 ->  | M8: =SUM(H8:H10)/3 -> 
D9: Target | E9: =StageTotal(B$8,E$4,$D9) ->  | F9: =StageTotal($B$8,F$4,$D9) -> 
D10: Advanced | E10: =StageTotal(B$8,E$4,$D10) -> 
B11: R03 | C11: =INDIRECT(B11 & "!$D$2") -> 2019-06-21 | D11: Baseline | E11: =StageTotal(B$11,E$4,$D11) ->  | F11: =StageTotal($B11,F$4,$D11) ->  | G11: =StageTotal($B11,G$4,$D11) ->  | H11: =StageTotal($B11,H$4,$D11) ->  | J11: =SUM(E11:E13)/3 ->  | K11: =SUM(F11:F13)/3 ->  | M11: =SUM(H11:H13)/3 -> 
D12: Target | E12: =StageTotal(B$11,E$4,$D12) ->  | F12: =StageTotal($B$11,F$4,$D12) ->  | G12: =StageTotal($B$11,G$4,$D12) -> 
D13: Advanced | E13: =StageTotal(B$11,E$4,$D13) ->  | F13: =StageTotal($B$11,F$4,$D13) -> 
B14: R04 | C14: =INDIRECT(B14 & "!$D$2") -> 2019-06-26 | D14: Baseline | E14: =StageTotal(B$14,E$4,$D14) ->  | F14: =StageTotal($B$14,F$4,$D14) ->  | G14: =StageTotal($B$14,G$4,$D14) ->  | H14: =StageTotal($B$14,H$4,$D14) ->  | J14: =SUM(E14:E16)/3 ->  | K14: =SUM(F14:F16)/3 ->  | M14: =SUM(H14:H16)/3 -> 
D15: Target | E15: =StageTotal(B$14,E$4,$D15) ->  | F15: =StageTotal($B$14,F$4,$D15) -> 
D16: Advanced | E16: =StageTotal(B$14,E$4,$D16) -> 
B17: R05 | C17: =INDIRECT(B17 & "!$D$2") -> 2019-07-03 | D17: Baseline | E17: =StageTotal(B$17,E$4,$D17) ->  | F17: =StageTotal($B$17,F$4,$D17) ->  | G17: =StageTotal($B$17,G$4,$D17) ->  | H17: =StageTotal($B$17,H$4,$D17) ->  | J17: =SUM(E17:E19)/3 ->  | K17: =SUM(F17:F19)/3 ->  | M17: =SUM(H17:H19)/3 -> 
D18: Target | E18: =StageTotal(B$17,E$4,$D18) ->  | F18: =StageTotal($B$17,F$4,$D18) -> 
D19: Advanced | E19: =StageTotal(B$17,E$4,$D19) -> 
B20: R06 | C20: =INDIRECT(B20 & "!$D$2") -> 2019-07-11 | D20: Baseline | E20: =StageTotal(B$20,E$4,$D20) ->  | F20: =StageTotal($B$20,F$4,$D20) ->  | G20: =StageTotal($B$20,G$4,$D20) ->  | H20: =StageTotal($B$20,H$4,$D20) ->  | J20: =SUM(E20:E22)/3 ->  | K20: =SUM(F20:F22)/3 ->  | M20: =SUM(H20:H22)/3 -> 
D21: Target | E21: =StageTotal(B$20,E$4,$D21) ->  | F21: =StageTotal($B$20,F$4,$D21) -> 
D22: Advanced | E22: =StageTotal(B$20,E$4,$D22) -> 
B24: Date | C24: =E4 -> MANAGE | D24: =F4 -> PROTECT | E24: DETECT | F24: RESPOND & RECOVER | H24: Baseline | I24: Baseline | J24: Target | K24: Advanced
B25: =C2 -> 07/06/2019 | C25: =INDIRECT(ADDRESS(2+3*MATCH(TEXT($C$2,"dd/mm/yyyy"),Lookup!$D$104:$D$109,0),10)) ->  | D25: =INDIRECT(ADDRESS(2+3*MATCH(TEXT($C$2,"dd/mm/yyyy"),Lookup!$D$104:$D$109,0),11)) ->  | E25: =INDIRECT(ADDRESS(2+3*MATCH(TEXT($C$2,"dd/mm/yyyy"),Lookup!$D$104:$D$109,0),12)) ->  | F25: =INDIRECT(ADDRESS(2+3*MATCH(TEXT($C$2,"dd/mm/yyyy"),Lookup!$D$104:$D$109,0),13)) ->  | J25: =1/3 -> 0.3333333333 | K25: =2/3 -> 0.6666666667

Sheet R01
C1: Report 1
C2: Report Date: | D2: 2019-06-07
C3: Assessor: | R3: RAG Status
M5: 5 | O5: PSAP | R5: =myStageTotal(ROW(),COLUMN()) ->  | U5: =myStageTotal(ROW(),COLUMN()) ->  | X5: =myStageTotal(ROW(),COLUMN()) -> 
Z6: =SummaryOfMyColumn(COLUMN()) -> 
A8: MANAGE | C8: ORGANISATIONAL GOVERNANCE | F8: N/A | G8: 0 | H8: 1 | I8: 2 | J8: 3 | K8: 4 | L8: 5 | M8: Scored | O8: COMMENTS | Q8: Baseline | T8: Target | W8: Advanced | Y8: Scores | Z8: =Lookup!X$6 -> CE | AA8: =Lookup!Y$6 -> PSAP | AB8: =Lookup!Z$6 -> PSN - ITHC | AC8: =Lookup!AA$6 -> PCI-DSS | AD8: =Lookup!AB$6 -> 10 Steps | AE8: =Lookup!AC$6 -> GDPR | AF8: =Lookup!AD$6 -> HMG SPF | AG8: =Lookup!AE$6 -> ISO 27001 | AH8: =Lookup!AF$6 -> NIS - CAF | AI8: =Lookup!V6 -> totals
B9: =INDEX(Lookup!$B$9:$B$100,MATCH(CELL("contents",$C9),Lookup!$E$9:$E$100,0)) -> 1 | C9: Governance framework | D9: =Lookup!F9 -> 2a | F9: ™ | G9: ™ | H9: ™ | I9: ™ | J9: ™ | K9: ™ | L9: ™ | M9: 0 | Q9: P | R9: =IF($Q9<>"P",0,mySWITCH(INT($M9),0,0,0,1,1,2,2,3,2,4,2,5,2,6,2)) -> 0 | T9: P | U9: =IF($T9<>"P",0,pcOfTargetAchieved(ROW(),$M9)) -> 0 | W9: P | X9: =IF($W9<>"P",0,pcOfAdvancedAchieved(ROW(),$M9)) -> 0 | Z9: 0 | AA9: 0 | AB9: 0 | AC9: 0 | AD9: 0 | AE9: 0 | AF9: 0 | AG9: 0 | AH9: 0 | AI9: 0
B10: =INDEX(Lookup!$B$9:$B$100,MATCH(CELL("contents",$C10),Lookup!$E$9:$E$100,0)) -> 1 | C10: Leadership & responsibility | D10: =Lookup!F10 -> 2b | F10: ™ | G10: ™ | H10: ™ | I10: ™ | J10: ™ | K10: ™ | L10: ™ | M10: 0 | Q10: P | R10: =IF($Q10<>"P",0,mySWITCH(INT($M10),0,0,0,1,1,2,2,3,2,4,2,5,2,6,2)) -> 0 | T10: P | U10: =IF($T10<>"P",0,pcOfTargetAchieved(ROW(),$M10)) -> 0 | W10: P | X10: =IF($W10<>"P",0,pcOfAdvancedAchieved(ROW(),$M10)) -> 0 | Z10: 0 | AA10: 0 | AB10: 0 | AC10: 0 | AD10: 0 | AE10: 0 | AF10: 0 | AG10: 0 | AH10: 0 | AI10: 0
B11: =INDEX(Lookup!$B$9:$B$100,MATCH(CELL("contents",$C11),Lookup!$E$9:$E$100,0)) -> 1 | C11: Adoption of assurance standards | D11: =Lookup!F11 -> 2e | F11: ™ | G11: ™ | H11: ™ | I11: ™ | J11: ™ | K11: ™ | L11: ™ | M11: 0 | Q11: P | R11: =IF($Q11<>"P",0,mySWITCH(INT($M11),0,0,0,1,1,2,2,3,2,4,2,5,2,6,2)) -> 0 | T11: P | U11: =IF($T11<>"P",0,pcOfTargetAchieved(ROW(),$M11)) -> 0 | W11: P | X11: =IF($W11<>"P",0,pcOfAdvancedAchieved(ROW(),$M11)) -> 0 | Z11: 0 | AA11: 0 | AB11: 0 | AC11: 0 | AD11: 0 | AE11: 0 | AF11: 0 | AG11: 0 | AH11: 0 | AI11: 0
B12: =INDEX(Lookup!$B$9:$B$100,MATCH(CELL("contents",$C12),Lookup!$E$9:$E$100,0)) -> 1 | C12: Information Asset Register | D12: =Lookup!F12 -> 2f | F12: ™ | G12: ™ | H12: ™ | I12: ™ | J12: ™ | K12: ™ | L12: ™ | M12: 0 | Q12: P | R12: =IF($Q12<>"P",0,mySWITCH(INT($M12),0,0,0,1,1,2,2,3,2,4,2,5,2,6,2)) -> 0 | T12: P | U12: =IF($T12<>"P",0,pcOfTargetAchieved(ROW(),$M12)) -> 0 | W12: P | X12: =IF($W12<>"P",0,pcOfAdvancedAchieved(ROW(),$M12)) -> 0 | Z12: 0 | AA12: 0 | AB12: 0 | AC12: 0 | AD12: 0 | AE12: 0 | AF12: 0 | AG12: 0 | AH12: 0 | AI12: 0
B13: =INDEX(Lookup!$B$9:$B$100,MATCH(CELL("contents",$C13),Lookup!$E$9:$E$100,0)) -> 1 | C13: Audit/assurance compliance | D13: =Lookup!F13 -> 2g | F13: ™ | G13: ™ | H13: ™ | I13: ™ | J13: ™ | K13: ™ | L13: ™ | M13: 0 | Q13: P | R13: =IF($Q13<>"P",0,mySWITCH(INT($M13),0,0,0,1,1,2,2,3,2,4,2,5,2,6,2)) -> 0 | T13: P | U13: =IF($T13<>"P",0,pcOfTargetAchieved(ROW(),$M13)) -> 0 | W13: P | X13: =IF($W13<>"P",0,pcOfAdvancedAchieved(ROW(),$M13)) -> 0 | Z13: 0 | AA13: 0 | AB13: 0 | AC13: 0 | AD13: 0 | AE13: 0 | AF13: 0 | AG13: 0 | AH13: 0 | AI13: 0
C14: RISK MANAGEMENT | G14: 0 | H14: 1 | I14: 2 | J14: 3 | K14: 4 | L14: 5 | O14: COMMENTS | Q14: Baseline | T14: Target | W14: Advanced | Y14: Scores | Z14: =Lookup!X$6 -> CE | AA14: =Lookup!Y$6 -> PSAP | AB14: =Lookup!Z$6 -> PSN - ITHC | AC14: =Lookup!AA$6 -> PCI-DSS | AD14: =Lookup!AB$6 -> 10 Steps | AE14: =Lookup!AC$6 -> GDPR | AF14: =Lookup!AD$6 -> HMG SPF | AG14: =Lookup!AE$6 -> ISO 27001 | AH14: =Lookup!AF$6 -> NIS - CAF | AI14: =Lookup!V6 -> totals
B15: =INDEX(Lookup!$B$9:$B$100,MATCH(CELL("contents",$C15),Lookup!$E$9:$E$100,0)) -> 1 | C15: Risk management policy & process | D15: 11a | F15: ™ | G15: ™ | H15: ™ | I15: ™ | J15: ™ | K15: ™ | L15: ™ | M15: 0 | Q15: P | R15: =IF($Q15<>"P",0,mySWITCH(INT($M15),0,0,0,1,1,2,2,3,2,4,2,5,2,6,2)) -> 0 | T15: P | U15: =IF($T15<>"P",0,pcOfTargetAchieved(ROW(),$M15)) -> 0 | W15: P | X15: =IF($W15<>"P",0,pcOfAdvancedAchieved(ROW(),$M15)) -> 0 | Z15: 0 | AA15: 0 | AB15: 0 | AC15: 0 | AD15: 0 | AE15: 0 | AF15: 0 | AG15: 0 | AH15: 0 | AI15: 0
B16: =INDEX(Lookup!$B$9:$B$100,MATCH(CELL("contents",$C16),Lookup!$E$9:$E$100,0)) -> 1 | C16: Cyber / Information Risk Assessment | D16: 11b | F16: ™ | G16: ™ | H16: ™ | I16: ™ | J16: ™ | K16: ™ | L16: ™ | M16: 0 | Q16: P | R16: =IF($Q16<>"P",0,mySWITCH(INT($M16),0,0,0,1,1,2,2,3,2,4,2,5,2,6,2)) -> 0 | T16: P | U16: =IF($T16<>"P",0,pcOfTargetAchieved(ROW(),$M16)) -> 0 | W16: P | X16: =IF($W16<>"P",0,pcOfAdvancedAchieved(ROW(),$M16)) -> 0 | Z16: 0 | AA16: 0 | AB16: 0 | AC16: 0 | AD16: 0 | AE16: 0 | AF16: 0 | AG16: 0 | AH16: 0 | AI16: 0
B17: =INDEX(Lookup!$B$9:$B$100,MATCH(CELL("contents",$C17),Lookup!$E$9:$E$100,0)) -> 1 | C17: Risk treatment & tolerance | D17: 11c | F17: ™ | G17: ™ | H17: ™ | I17: ™ | J17: ™ | K17: ™ | L17: ™ | M17: 0 | Q17: P | R17: =IF($Q17<>"P",0,mySWITCH(INT($M17),0,0,0,1,1,2,2,3,2,4,2,5,2,6,2)) -> 0 | T17: P | U17: =IF($T17<>"P",0,pcOfTargetAchieved(ROW(),$M17)) -> 0 | W17: P | X17: =IF($W17<>"P",0,pcOfAdvancedAchieved(ROW(),$M17)) -> 0 | Z17: 0 | AA17: 0 | AB17: 0 | AC17: 0 | AD17: 0 | AE17: 0 | AF17: 0 | AG17: 0 | AH17: 0 | AI17: 0
B18: =INDEX(Lookup!$B$9:$B$100,MATCH(CELL("contents",$C18),Lookup!$E$9:$E$100,0)) -> 1 | C18: Risk governance | D18: 11d | F18: ™ | G18: ™ | H18: ™ | I18: ™ | J18: ™ | K18: ™ | L18: ™ | M18: 0 | Q18: P | R18: =IF($Q18<>"P",0,mySWITCH(INT($M18),0,0,0,1,1,2,2,3,2,4,2,5,2,6,2)) -> 0 | T18: P | U18: =IF($T18<>"P",0,pcOfTargetAchieved(ROW(),$M18)) -> 0 | W18: P | X18: =IF($W18<>"P",0,pcOfAdvancedAchieved(ROW(),$M18)) -> 0 | Z18: 0 | AA18: 0 | AB18: 0 | AC18: 0 | AD18: 0 | AE18: 0 | AF18: 0 | AG18: 0 | AH18: 0 | AI18: 0
C19: SUPPLIER MANAGEMENT | G19: 0 | H19: 1 | I19: 2 | J19: 3 | K19: 4 | L19: 5 | M19: ™ | O19: COMMENTS | Q19: Baseline | T19: Target | W19: Advanced | Y19: Scores | Z19: =Lookup!X$6 -> CE | AA19: =Lookup!Y$6 -> PSAP | AB19: =Lookup!Z$6 -> PSN - ITHC | AC19: =Lookup!AA$6 -> PCI-DSS | AD19: =Lookup!AB$6 -> 10 Steps | AE19: =Lookup!AC$6 -> GDPR | AF19: =Lookup!AD$6 -> HMG SPF | AG19: =Lookup!AE$6 -> ISO 27001 | AH19: =Lookup!AF$6 -> NIS - CAF | AI19: =Lookup!V6 -> totals
B20: =INDEX(Lookup!$B$9:$B$100,MATCH(CELL("contents",$C20),Lookup!$E$9:$E$100,0)) -> 1 | C20: Supply chain security assurance & management | D20: 9a | F20: ™ | G20: ™ | H20: ™ | I20: ™ | J20: ™ | K20: ™ | L20: ™ | M20: 0 | R20: =IF($Q20<>"P",0,mySWITCH(INT($M20),0,0,0,1,1,2,2,3,2,4,2,5,2,6,2)) -> 0 | T20: P | U20: =IF($T20<>"P",0,pcOfTargetAchieved(ROW(),$M20)) -> 0 | X20: =IF($W20<>"P",0,pcOfAdvancedAchieved(ROW(),$M20)) -> 0 | Z20: 0 | AA20: 0 | AB20: 0 | AC20: 0 | AD20: 0 | AE20: 0 | AF20: 0 | AG20: 0 | AH20: 0 | AI20: 0
B21: =INDEX(Lookup!$B$9:$B$100,MATCH(CELL("contents",$C21),Lookup!$E$9:$E$100,0)) -> 1 | C21: Roles & responsibilities defined | D21: 9b | F21: ™ | G21: ™ | H21: ™ | I21: ™ | J21: ™ | K21: ™ | L21: ™ | M21: 0 | R21: =IF($Q21<>"P",0,mySWITCH(INT($M21),0,0,0,1,1,2,2,3,2,4,2,5,2,6,2)) -> 0 | T21: P | U21: =IF($T21<>"P",0,pcOfTargetAchieved(ROW(),$M21)) -> 0 | W21: P | X21: =IF($W21<>"P",0,pcOfAdvancedAchieved(ROW(),$M21)) -> 0 | Z21: 0 | AA21: 0 | AB21: 0 | AC21: 0 | AD21: 0 | AE21: 0 | AF21: 0 | AG21: 0 | AH21: 0 | AI21: 0
B22: =INDEX(Lookup!$B$9:$B$100,MATCH(CELL("contents",$C22),Lookup!$E$9:$E$100,0)) -> 1 | C22: Access control | D22: 9c | F22: ™ | G22: ™ | H22: ™ | I22: ™ | J22: ™ | K22: ™ | L22: ™ | M22: 0 | R22: =IF($Q22<>"P",0,mySWITCH(INT($M22),0,0,0,1,1,2,2,3,2,4,2,5,2,6,2)) -> 0 | U22: =IF($T22<>"P",0,pcOfTargetAchieved(ROW(),$M22)) -> 0 | W22: P | X22: =IF($W22<>"P",0,pcOfAdvancedAchieved(ROW(),$M22)) -> 0 | Z22: 0 | AA22: 0 | AB22: 0 | AC22: 0 | AD22: 0 | AE22: 0 | AF22: 0 | AG22: 0 | AH22: 0 | AI22: 0
B23: =INDEX(Lookup!$B$9:$B$100,MATCH(CELL("contents",$C23),Lookup!$E$9:$E$100,0)) -> 1 | C23: Security in system procurements | D23: 9d | F23: ™ | G23: ™ | H23: ™ | I23: ™ | J23: ™ | K23: ™ | L23: ™ | M23: 0 | R23: =IF($Q23<>"P",0,mySWITCH(INT($M23),0,0,0,1,1,2,2,3,2,4,2,5,2,6,2)) -> 0 | T23: P | U23: =IF($T23<>"P",0,pcOfTargetAchieved(ROW(),$M23)) -> 0 | W23: P | X23: =IF($W23<>"P",0,pcOfAdvancedAchieved(ROW(),$M23)) -> 0 | Z23: 0 | AA23: 0 | AB23: 0 | AC23: 0 | AD23: 0 | AE23: 0 | AF23: 0 | AG23: 0 | AH23: 0 | AI23: 0
C24: ASSET MANAGEMENT | G24: 0 | H24: 1 | I24: 2 | J24: 3 | K24: 4 | L24: 5 | M24: ™ | O24: COMMENTS | Q24: Baseline | T24: Target | W24: Advanced | Y24: Scores | Z24: =Lookup!X$6 -> CE | AA24: =Lookup!Y$6 -> PSAP | AB24: =Lookup!Z$6 -> PSN - ITHC | AC24: =Lookup!AA$6 -> PCI-DSS | AD24: =Lookup!AB$6 -> 10 Steps | AE24: =Lookup!AC$6 -> GDPR | AF24: =Lookup!AD$6 -> HMG SPF | AG24: =Lookup!AE$6 -> ISO 27001 | AH24: =Lookup!AF$6 -> NIS - CAF | AI24: =Lookup!V6 -> totals
B25: =INDEX(Lookup!$B$9:$B$100,MATCH(CELL("contents",$C25),Lookup!$E$9:$E$100,0)) -> 1 | C25: Hardware assets register & management | D25: =Lookup!$F25 -> 4a | F25: ™ | G25: ™ | H25: ™ | I25: ™ | J25: ™ | K25: ™ | L25: ™ | M25: 0 | R25: =IF($Q25<>"P",0,mySWITCH(INT($M25),0,0,0,1,1,2,2,3,2,4,2,5,2,6,2)) -> 0 | T25: P | U25: =IF($T25<>"P",0,pcOfTargetAchieved(ROW(),$M25)) -> 0 | W25: P | X25: =IF($W25<>"P",0,pcOfAdvancedAchieved(ROW(),$M25)) -> 0 | Z25: 0 | AA25: 0 | AB25: 0 | AC25: 0 | AD25: 0 | AE25: 0 | AF25: 0 | AG25: 0 | AH25: 0 | AI25: 0
B26: =INDEX(Lookup!$B$9:$B$100,MATCH(CELL("contents",$C26),Lookup!$E$9:$E$100,0)) -> 1 | C26: Software assets register & management | D26: =Lookup!$F26 -> 4b | F26: ™ | G26: ™ | H26: ™ | I26: ™ | J26: ™ | K26: ™ | L26: ™ | M26: 0 | Q26: P | R26: =IF($Q26<>"P",0,mySWITCH(INT($M26),0,0,0,1,1,2,2,3,2,4,2,5,2,6,2)) -> 0 | T26: P | U26: =IF($T26<>"P",0,pcOfTargetAchieved(ROW(),$M26)) -> 0 | W26: P | X26: =IF($W26<>"P",0,pcOfAdvancedAchieved(ROW(),$M26)) -> 0 | Z26: 0 | AA26: 0 | AB26: 0 | AC26: 0 | AD26: 0 | AE26: 0 | AF26: 0 | AG26: 0 | AH26: 0 | AI26: 0
B27: =INDEX(Lookup!$B$9:$B$100,MATCH(CELL("contents",$C27),Lookup!$E$9:$E$100,0)) -> 1 | C27: Infrastructure management | D27: =Lookup!$F27 -> 4c | F27: ™ | G27: ™ | H27: ™ | I27: ™ | J27: ™ | K27: ™ | L27: ™ | M27: 0 | R27: =IF($Q27<>"P",0,mySWITCH(INT($M27),0,0,0,1,1,2,2,3,2,4,2,5,2,6,2)) -> 0 | T27: P | U27: =IF($T27<>"P",0,pcOfTargetAchieved(ROW(),$M27)) -> 0 | W27: P | X27: =IF($W27<>"P",0,pcOfAdvancedAchieved(ROW(),$M27)) -> 0 | Z27: 0 | AA27: 0 | AB27: 0 | AC27: 0 | AD27: 0 | AE27: 0 | AF27: 0 | AG27: 0 | AH27: 0 | AI27: 0
A28: PROTECT | C28: INFORMATION SECURITY MANAGEMENT | G28: 0 | H28: 1 | I28: 2 | J28: 3 | K28: 4 | L28: 5 | M28: ™ | O28: COMMENTS | Q28: Baseline | T28: Target | W28: Advanced | Y28: Scores | Z28: =Lookup!X$6 -> CE | AA28: =Lookup!Y$6 -> PSAP | AB28: =Lookup!Z$6 -> PSN - ITHC | AC28: =Lookup!AA$6 -> PCI-DSS | AD28: =Lookup!AB$6 -> 10 Steps | AE28: =Lookup!AC$6 -> GDPR | AF28: =Lookup!AD$6 -> HMG SPF | AG28: =Lookup!AE$6 -> ISO 27001 | AH28: =Lookup!AF$6 -> NIS - CAF | AI28: =Lookup!V6 -> totals
B29: =INDEX(Lookup!$B$9:$B$100,MATCH(CELL("contents",$C29),Lookup!$E$9:$E$100,0)) -> 2 | C29: Security policy & processes | D29: 1a | F29: ™ | G29: ™ | H29: ™ | I29: ™ | J29: ™ | K29: ™ | L29: ™ | M29: 0 | R29: =IF($Q29<>"P",0,mySWITCH(INT($M29),0,0,0,1,1,2,2,3,2,4,2,5,2,6,2)) -> 0 | T29: P | U29: =IF($T29<>"P",0,pcOfTargetAchieved(ROW(),$M29)) -> 0 | W29: P | X29: =IF($W29<>"P",0,pcOfAdvancedAchieved(ROW(),$M29)) -> 0 | Z29: 0 | AA29: 0 | AB29: 0 | AC29: 0 | AD29: 0 | AE29: 0 | AF29: 0 | AG29: 0 | AH29: 0 | AI29: 0
B30: =INDEX(Lookup!$B$9:$B$100,MATCH(CELL("contents",$C30),Lookup!$E$9:$E$100,0)) -> 2 | C30: Lifecycle management | D30: 1b | F30: ™ | G30: ™ | H30: ™ | I30: ™ | J30: ™ | K30: ™ | L30: ™ | M30: 0 | R30: =IF($Q30<>"P",0,mySWITCH(INT($M30),0,0,0,1,1,2,2,3,2,4,2,5,2,6,2)) -> 0 | T30: P | U30: =IF($T30<>"P",0,pcOfTargetAchieved(ROW(),$M30)) -> 0 | W30: P | X30: =IF($W30<>"P",0,pcOfAdvancedAchieved(ROW(),$M30)) -> 0 | Z30: 0 | AA30: 0 | AB30: 0 | AC30: 0 | AD30: 0 | AE30: 0 | AF30: 0 | AG30: 0 | AH30: 0 | AI30: 0
C31: Storage | D31: 1c | F31: ™ | G31: ™ | H31: ™ | I31: ™ | J31: ™ | K31: ™ | L31: ™ | M31: 0 | R31: =IF($Q31<>"P",0,mySWITCH(INT($M31),0,0,0,1,1,2,2,3,2,4,2,5,2,6,2)) -> 0 | T31: P | U31: =IF($T31<>"P",0,pcOfTargetAchieved(ROW(),$M31)) -> 0 | W31: P | X31: =IF($W31<>"P",0,pcOfAdvancedAchieved(ROW(),$M31)) -> 0 | Z31: 0 | AA31: 0 | AB31: 0 | AC31: 0 | AD31: 0 | AE31: 0 | AF31: 0 | AG31: 0 | AH31: 0
C32: Information/data classification | D32: 1f | F32: ™ | G32: ™ | H32: ™ | I32: ™ | J32: ™ | K32: ™ | L32: ™ | M32: 0 | R32: =IF($Q32<>"P",0,mySWITCH(INT($M32),0,0,0,1,1,2,2,3,2,4,2,5,2,6,2)) -> 0 | T32: P | U32: =IF($T32<>"P",0,pcOfTargetAchieved(ROW(),$M32)) -> 0 | W32: P | X32: =IF($W32<>"P",0,pcOfAdvancedAchieved(ROW(),$M32)) -> 0 | Z32: 0 | AA32: 0 | AB32: 0 | AC32: 0 | AD32: 0 | AE32: 0 | AF32: 0 | AG32: 0 | AH32: 0 | AI32: 0
C33: Information assets register | D33: 1g | F33: ™ | G33: ™ | H33: ™ | I33: ™ | J33: ™ | K33: ™ | L33: ™ | M33: 0 | R33: =IF($Q33<>"P",0,mySWITCH(INT($M33),0,0,0,1,1,2,2,3,2,4,2,5,2,6,2)) -> 0 | T33: P | U33: =IF($T33<>"P",0,pcOfTargetAchieved(ROW(),$M33)) -> 0 | W33: P | X33: =IF($W33<>"P",0,pcOfAdvancedAchieved(ROW(),$M33)) -> 0 | Z33: 0 | AA33: 0 | AB33: 0 | AC33: 0 | AD33: 0 | AE33: 0 | AF33: 0 | AG33: 0 | AH33: 0
C34: Information/data transfer controls | D34: 1h | F34: ™ | G34: ™ | H34: ™ | I34: ™ | J34: ™ | K34: ™ | L34: ™ | M34: 0 | R34: =IF($Q34<>"P",0,mySWITCH(INT($M34),0,0,0,1,1,2,2,3,2,4,2,5,2,6,2)) -> 0 | T34: P | U34: =IF($T34<>"P",0,pcOfTargetAchieved(ROW(),$M34)) -> 0 | W34: P | X34: =IF($W34<>"P",0,pcOfAdvancedAchieved(ROW(),$M34)) -> 0 | Z34: 0 | AA34: 0 | AB34: 0 | AC34: 0 | AD34: 0 | AE34: 0 | AF34: 0 | AG34: 0 | AH34: 0
C35: PEOPLE | G35: 0 | H35: 1 | I35: 2 | J35: 3 | K35: 4 | L35: 5 | M35: ™ | O35: COMMENTS | Q35: Baseline | T35: Target | W35: Advanced | Y35: Scores | Z35: =Lookup!X$6 -> CE | AA35: =Lookup!Y$6 -> PSAP | AB35: =Lookup!Z$6 -> PSN - ITHC | AC35: =Lookup!AA$6 -> PCI-DSS | AD35: =Lookup!AB$6 -> 10 Steps | AE35: =Lookup!AC$6 -> GDPR | AF35: =Lookup!AD$6 -> HMG SPF | AG35: =Lookup!AE$6 -> ISO 27001 | AH35: =Lookup!AF$6 -> NIS - CAF | AI35: =Lookup!V6 -> totals
C36: Prior to employment | D36: 13a | F36: ™ | G36: ™ | H36: ™ | I36: ™ | J36: ™ | K36: ™ | L36: ™ | M36: 0 | R36: =IF($Q36<>"P",0,mySWITCH(INT($M36),0,0,0,1,1,2,2,3,2,4,2,5,2,6,2)) -> 0 | T36: P | U36: =IF($T36<>"P",0,pcOfTargetAchieved(ROW(),$M36)) -> 0 | W36: P | X36: =IF($W36<>"P",0,pcOfAdvancedAchieved(ROW(),$M36)) -> 0 | Z36: 0 | AA36: 0 | AB36: 0 | AC36: 0 | AD36: 0 | AE36: 0 | AF36: 0 | AG36: 0 | AH36: 0
B37: =INDEX(Lookup!$B$9:$B$100,MATCH(CELL("contents",$C37),Lookup!$E$9:$E$100,0)) -> 2 | C37: During employment | D37: 13d | F37: ™ | G37: ™ | H37: ™ | I37: ™ | J37: ™ | K37: ™ | L37: ™ | M37: 0 | R37: =IF($Q37<>"P",0,mySWITCH(INT($M37),0,0,0,1,1,2,2,3,2,4,2,5,2,6,2)) -> 0 | T37: P | U37: =IF($T37<>"P",0,pcOfTargetAchieved(ROW(),$M37)) -> 0 | W37: P | X37: =IF($W37<>"P",0,pcOfAdvancedAchieved(ROW(),$M37)) -> 0 | Z37: 0 | AA37: 0 | AB37: 0 | AC37: 0 | AD37: 0 | AE37: 0 | AF37: 0 | AG37: 0 | AH37: 0
C38: Staff training & awareness culture | D38: 13i | F38: ™ | G38: ™ | H38: ™ | I38: ™ | J38: ™ | K38: ™ | L38: ™ | M38: 0 | Q38: P | R38: =IF($Q38<>"P",0,mySWITCH(INT($M38),0,0,0,1,1,2,2,3,2,4,2,5,2,6,2)) -> 0 | T38: P | U38: =IF($T38<>"P",0,pcOfTargetAchieved(ROW(),$M38)) -> 0 | W38: P | X38: =IF($W38<>"P",0,pcOfAdvancedAchieved(ROW(),$M38)) -> 0 | Z38: 0 | AA38: 0 | AB38: 0 | AC38: 0 | AD38: 0 | AE38: 0 | AF38: 0 | AG38: 0 | AH38: 0
C39: Staff skills assessment | D39: 13j | F39: ™ | G39: ™ | H39: ™ | I39: ™ | J39: ™ | K39: ™ | L39: ™ | M39: 0 | R39: =IF($Q39<>"P",0,mySWITCH(INT($M39),0,0,0,1,1,2,2,3,2,4,2,5,2,6,2)) -> 0 | T39: P | U39: =IF($T39<>"P",0,pcOfTargetAchieved(ROW(),$M39)) -> 0 | W39: P | X39: =IF($W39<>"P",0,pcOfAdvancedAchieved(ROW(),$M39)) -> 0 | Z39: 0 | AA39: 0 | AB39: 0 | AC39: 0 | AD39: 0 | AE39: 0 | AF39: 0 | AG39: 0 | AH39: 0
C40: Mobile/remote working policy | D40: 13o | F40: ™ | G40: ™ | H40: ™ | I40: ™ | J40: ™ | K40: ™ | L40: ™ | M40: 0 | R40: =IF($Q40<>"P",0,mySWITCH(INT($M40),0,0,0,1,1,2,2,3,2,4,2,5,2,6,2)) -> 0 | T40: P | U40: =IF($T40<>"P",0,pcOfTargetAchieved(ROW(),$M40)) -> 0 | W40: P | X40: =IF($W40<>"P",0,pcOfAdvancedAchieved(ROW(),$M40)) -> 0 | Z40: 0 | AA40: 0 | AB40: 0 | AC40: 0 | AD40: 0 | AE40: 0 | AF40: 0 | AG40: 0 | AH40: 0
B41: =INDEX(Lookup!$B$9:$B$100,MATCH(CELL("contents",$C41),Lookup!$D$9:$D$100,0)) -> 0 | C41: SERVICES RESILIENCE | G41: 0 | H41: 1 | I41: 2 | J41: 3 | K41: 4 | L41: 5 | M41: ™ | O41: COMMENTS | Q41: Baseline | T41: Target | W41: Advanced | Y41: Scores | Z41: =Lookup!X$6 -> CE | AA41: =Lookup!Y$6 -> PSAP | AB41: =Lookup!Z$6 -> PSN - ITHC | AC41: =Lookup!AA$6 -> PCI-DSS | AD41: =Lookup!AB$6 -> 10 Steps | AE41: =Lookup!AC$6 -> GDPR | AF41: =Lookup!AD$6 -> HMG SPF | AG41: =Lookup!AE$6 -> ISO 27001 | AH41: =Lookup!AF$6 -> NIS - CAF | AI41: =Lookup!V6 -> totals
C42: Services Resilience | D42: 17a | F42: ™ | G42: ™ | H42: ™ | I42: ™ | J42: ™ | K42: ™ | L42: ™ | M42: 0 | R42: =IF($Q42<>"P",0,mySWITCH(INT($M42),0,0,0,1,1,2,2,3,2,4,2,5,2,6,2)) -> 0 | T42: P | U42: =IF($T42<>"P",0,pcOfTargetAchieved(ROW(),$M42)) -> 0 | W42: P | X42: =IF($W42<>"P",0,pcOfAdvancedAchieved(ROW(),$M42)) -> 0 | Z42: 0 | AA42: 0 | AB42: 0 | AC42: 0 | AD42: 0 | AE42: 0 | AF42: 0 | AG42: 0 | AH42: 0
B43: =INDEX(Lookup!$B$9:$B$100,MATCH(CELL("contents",$C43),Lookup!$D$9:$D$100,0)) -> 0 | C43: ACCESS CONTROL | G43: 0 | H43: 1 | I43: 2 | J43: 3 | K43: 4 | L43: 5 | M43: ™ | O43: COMMENTS | Q43: Baseline | T43: Target | W43: Advanced | Y43: Scores | Z43: =Lookup!X$6 -> CE | AA43: =Lookup!Y$6 -> PSAP | AB43: =Lookup!Z$6 -> PSN - ITHC | AC43: =Lookup!AA$6 -> PCI-DSS | AD43: =Lookup!AB$6 -> 10 Steps | AE43: =Lookup!AC$6 -> GDPR | AF43: =Lookup!AD$6 -> HMG SPF | AG43: =Lookup!AE$6 -> ISO 27001 | AH43: =Lookup!AF$6 -> NIS - CAF | AI43: =Lookup!V6 -> totals
C44: Account management | D44: 3a | F44: ™ | G44: ™ | H44: ™ | I44: ™ | J44: ™ | K44: ™ | L44: ™ | M44: 0 | Q44: P | R44: =IF($Q44<>"P",0,mySWITCH(INT($M44),0,0,0,1,1,2,2,3,2,4,2,5,2,6,2)) -> 0 | T44: P | U44: =IF($T44<>"P",0,pcOfTargetAchieved(ROW(),$M44)) -> 0 | X44: =IF($W44<>"P",0,pcOfAdvancedAchieved(ROW(),$M44)) -> 0 | Z44: 0 | AA44: 0 | AB44: 0 | AC44: 0 | AD44: 0 | AE44: 0 | AF44: 0 | AG44: 0 | AH44: 0
B45: =INDEX(Lookup!$B$9:$B$100,MATCH(CELL("contents",$C45),Lookup!$E$9:$E$100,0)) -> 2 | C45: Identity authentication | D45: 3b | F45: ™ | G45: ™ | H45: ™ | I45: ™ | J45: ™ | K45: ™ | L45: ™ | M45: 0 | Q45: P | R45: =IF($Q45<>"P",0,mySWITCH(INT($M45),0,0,0,1,1,2,2,3,2,4,2,5,2,6,2)) -> 0 | T45: P | U45: =IF($T45<>"P",0,pcOfTargetAchieved(ROW(),$M45)) -> 0 | W45: P | X45: =IF($W45<>"P",0,pcOfAdvancedAchieved(ROW(),$M45)) -> 0 | Z45: 0 | AA45: 0 | AB45: 0 | AC45: 0 | AD45: 0 | AE45: 0 | AF45: 0 | AG45: 0 | AH45: 0
B46: =INDEX(Lookup!$B$9:$B$100,MATCH(CELL("contents",$C46),Lookup!$E$9:$E$100,0)) -> 2 | C46: Privilege management | D46: 3e | F46: ™ | G46: ™ | H46: ™ | I46: ™ | J46: ™ | K46: ™ | L46: ™ | M46: 0 | Q46: P | R46: =IF($Q46<>"P",0,mySWITCH(INT($M46),0,0,0,1,1,2,2,3,2,4,2,5,2,6,2)) -> 0 | T46: P | U46: =IF($T46<>"P",0,pcOfTargetAchieved(ROW(),$M46)) -> 0 | W46: P | X46: =IF($W46<>"P",0,pcOfAdvancedAchieved(ROW(),$M46)) -> 0 | Z46: 0 | AA46: 0 | AB46: 0 | AC46: 0 | AD46: 0 | AE46: 0 | AF46: 0 | AG46: 0 | AH46: 0
B47: =INDEX(Lookup!$B$9:$B$100,MATCH(CELL("contents",$C47),Lookup!$E$9:$E$100,0)) -> 2 | C47: Administrator account management | D47: 3f | F47: ™ | G47: ™ | H47: ™ | I47: ™ | J47: ™ | K47: ™ | L47: ™ | M47: 0 | Q47: P | R47: =IF($Q47<>"P",0,mySWITCH(INT($M47),0,0,0,1,1,2,2,3,2,4,2,5,2,6,2)) -> 0 | T47: P | U47: =IF($T47<>"P",0,pcOfTargetAchieved(ROW(),$M47)) -> 0 | W47: P | X47: =IF($W47<>"P",0,pcOfAdvancedAchieved(ROW(),$M47)) -> 0 | Z47: 0 | AA47: 0 | AB47: 0 | AC47: 0 | AD47: 0 | AE47: 0 | AF47: 0 | AG47: 0 | AH47: 0
C48: MEDIA MANAGEMENT | G48: 0 | H48: 1 | I48: 2 | J48: 3 | K48: 4 | L48: 5 | M48: ™ | O48: COMMENTS | Q48: Baseline | T48: Target | W48: Advanced | Y48: Scores | Z48: =Lookup!X$6 -> CE | AA48: =Lookup!Y$6 -> PSAP | AB48: =Lookup!Z$6 -> PSN - ITHC | AC48: =Lookup!AA$6 -> PCI-DSS | AD48: =Lookup!AB$6 -> 10 Steps | AE48: =Lookup!AC$6 -> GDPR | AF48: =Lookup!AD$6 -> HMG SPF | AG48: =Lookup!AE$6 -> ISO 27001 | AH48: =Lookup!AF$6 -> NIS - CAF | AI48: =Lookup!V6 -> totals
C49: Storage media management | D49: 14a | F49: ™ | G49: ™ | H49: ™ | I49: ™ | J49: ™ | K49: ™ | L49: ™ | M49: 0 | R49: =IF($Q49<>"P",0,mySWITCH(INT($M49),0,0,0,1,1,2,2,3,2,4,2,5,2,6,2)) -> 0 | T49: P | U49: =IF($T49<>"P",0,pcOfTargetAchieved(ROW(),$M49)) -> 0 | W49: P | X49: =IF($W49<>"P",0,pcOfAdvancedAchieved(ROW(),$M49)) -> 0 | Z49: 0 | AA49: 0 | AB49: 0 | AC49: 0 | AD49: 0 | AE49: 0 | AF49: 0 | AG49: 0 | AH49: 0
B50: =INDEX(Lookup!$B$9:$B$100,MATCH(CELL("contents",$C50),Lookup!$E$9:$E$100,0)) -> 2 | C50: Mobile media/devices | D50: 14b | F50: ™ | G50: ™ | H50: ™ | I50: ™ | J50: ™ | K50: ™ | L50: ™ | M50: 0 | R50: =IF($Q50<>"P",0,mySWITCH(INT($M50),0,0,0,1,1,2,2,3,2,4,2,5,2,6,2)) -> 0 | T50: P | U50: =IF($T50<>"P",0,pcOfTargetAchieved(ROW(),$M50)) -> 0 | W50: P | X50: =IF($W50<>"P",0,pcOfAdvancedAchieved(ROW(),$M50)) -> 0 | Z50: 0 | AA50: 0 | AB50: 0 | AC50: 0 | AD50: 0 | AE50: 0 | AF50: 0 | AG50: 0 | AH50: 0
B51: =INDEX(Lookup!$B$9:$B$100,MATCH(CELL("contents",$C51),Lookup!$E$9:$E$100,0)) -> 2 | C51: Cryptography | D51: 14c | F51: ™ | G51: ™ | H51: ™ | I51: ™ | J51: ™ | K51: ™ | L51: ™ | M51: 0 | R51: =IF($Q51<>"P",0,mySWITCH(INT($M51),0,0,0,1,1,2,2,3,2,4,2,5,2,6,2)) -> 0 | T51: P | U51: =IF($T51<>"P",0,pcOfTargetAchieved(ROW(),$M51)) -> 0 | W51: P | X51: =IF($W51<>"P",0,pcOfAdvancedAchieved(ROW(),$M51)) -> 0 | Z51: 0 | AA51: 0 | AB51: 0 | AC51: 0 | AD51: 0 | AE51: 0 | AF51: 0 | AG51: 0 | AH51: 0
B52: =INDEX(Lookup!$B$9:$B$100,MATCH(CELL("contents",$C52),Lookup!$E$9:$E$100,0)) -> 2 | C52: Remote wipe capability | D52: 14d | F52: ™ | G52: ™ | H52: ™ | I52: ™ | J52: ™ | K52: ™ | L52: ™ | M52: 0 | R52: =IF($Q52<>"P",0,mySWITCH(INT($M52),0,0,0,1,1,2,2,3,2,4,2,5,2,6,2)) -> 0 | T52: P | U52: =IF($T52<>"P",0,pcOfTargetAchieved(ROW(),$M52)) -> 0 | X52: =IF($W52<>"P",0,pcOfAdvancedAchieved(ROW(),$M52)) -> 0 | Z52: 0 | AA52: 0 | AB52: 0 | AC52: 0 | AD52: 0 | AE52: 0 | AF52: 0 | AG52: 0 | AH52: 0
C53: ENVIRONMENTAL SECURITY | G53: 0 | H53: 1 | I53: 2 | J53: 3 | K53: 4 | L53: 5 | M53: ™ | O53: COMMENTS | Q53: Baseline | T53: Target | W53: Advanced | Y53: Scores | Z53: =Lookup!X$6 -> CE | AA53: =Lookup!Y$6 -> PSAP | AB53: =Lookup!Z$6 -> PSN - ITHC | AC53: =Lookup!AA$6 -> PCI-DSS | AD53: =Lookup!AB$6 -> 10 Steps | AE53: =Lookup!AC$6 -> GDPR | AF53: =Lookup!AD$6 -> HMG SPF | AG53: =Lookup!AE$6 -> ISO 27001 | AH53: =Lookup!AF$6 -> NIS - CAF | AI53: =Lookup!V6 -> totals
C54: Equipment location | D54: 15a | F54: ™ | G54: ™ | H54: ™ | I54: ™ | J54: ™ | K54: ™ | L54: ™ | M54: 0 | R54: =IF($Q54<>"P",0,mySWITCH(INT($M54),0,0,0,1,1,2,2,3,2,4,2,5,2,6,2)) -> 0 | U54: =IF($T54<>"P",0,pcOfTargetAchieved(ROW(),$M54)) -> 0 | W54: P | X54: =IF($W54<>"P",0,pcOfAdvancedAchieved(ROW(),$M54)) -> 0 | Z54: 0 | AA54: 0 | AB54: 0 | AC54: 0 | AD54: 0 | AE54: 0 | AF54: 0 | AG54: 0 | AH54: 0
B55: =INDEX(Lookup!$B$9:$B$100,MATCH(CELL("contents",$C55),Lookup!$E$9:$E$100,0)) -> 2 | C55: Power resilience | D55: 15b | F55: ™ | G55: ™ | H55: ™ | I55: ™ | J55: ™ | K55: ™ | L55: ™ | M55: 0 | R55: =IF($Q55<>"P",0,mySWITCH(INT($M55),0,0,0,1,1,2,2,3,2,4,2,5,2,6,2)) -> 0 | U55: =IF($T55<>"P",0,pcOfTargetAchieved(ROW(),$M55)) -> 0 | W55: P | X55: =IF($W55<>"P",0,pcOfAdvancedAchieved(ROW(),$M55)) -> 0 | Z55: 0 | AA55: 0 | AB55: 0 | AC55: 0 | AD55: 0 | AE55: 0 | AF55: 0 | AG55: 0 | AH55: 0
C56: PHYSICAL/BUILDING SECURITY | G56: 0 | H56: 1 | I56: 2 | J56: 3 | K56: 4 | L56: 5 | M56: ™ | O56: COMMENTS | Q56: Baseline | T56: Target | W56: Advanced | Y56: Scores | Z56: =Lookup!X$6 -> CE | AA56: =Lookup!Y$6 -> PSAP | AB56: =Lookup!Z$6 -> PSN - ITHC | AC56: =Lookup!AA$6 -> PCI-DSS | AD56: =Lookup!AB$6 -> 10 Steps | AE56: =Lookup!AC$6 -> GDPR | AF56: =Lookup!AD$6 -> HMG SPF | AG56: =Lookup!AE$6 -> ISO 27001 | AH56: =Lookup!AF$6 -> NIS - CAF | AI56: =Lookup!V6 -> totals
C57: Access control | D57: 5a | F57: ™ | G57: ™ | H57: ™ | I57: ™ | J57: ™ | K57: ™ | L57: ™ | M57: 0 | R57: =IF($Q57<>"P",0,mySWITCH(INT($M57),0,0,0,1,1,2,2,3,2,4,2,5,2,6,2)) -> 0 | T57: P | U57: =IF($T57<>"P",0,pcOfTargetAchieved(ROW(),$M57)) -> 0 | W57: P | X57: =IF($W57<>"P",0,pcOfAdvancedAchieved(ROW(),$M57)) -> 0 | Z57: 0 | AA57: 0 | AB57: 0 | AC57: 0 | AD57: 0 | AE57: 0 | AF57: 0 | AG57: 0 | AH57: 0
B58: =INDEX(Lookup!$B$9:$B$100,MATCH(CELL("contents",$C58),Lookup!$E$9:$E$100,0)) -> 2 | C58: Internal security | D58: 5b | F58: ™ | G58: ™ | H58: ™ | I58: ™ | J58: ™ | K58: ™ | L58: ™ | M58: 0 | R58: =IF($Q58<>"P",0,mySWITCH(INT($M58),0,0,0,1,1,2,2,3,2,4,2,5,2,6,2)) -> 0 | T58: P | U58: =IF($T58<>"P",0,pcOfTargetAchieved(ROW(),$M58)) -> 0 | W58: P | X58: =IF($W58<>"P",0,pcOfAdvancedAchieved(ROW(),$M58)) -> 0 | Z58: 0 | AA58: 0 | AB58: 0 | AC58: 0 | AD58: 0 | AE58: 0 | AF58: 0 | AG58: 0 | AH58: 0
C59: SYSTEM MANAGEMENT | G59: 0 | H59: 1 | I59: 2 | J59: 3 | K59: 4 | L59: 5 | M59: ™ | O59: COMMENTS | Q59: Baseline | T59: Target | W59: Advanced | Y59: Scores | Z59: =Lookup!X$6 -> CE | AA59: =Lookup!Y$6 -> PSAP | AB59: =Lookup!Z$6 -> PSN - ITHC | AC59: =Lookup!AA$6 -> PCI-DSS | AD59: =Lookup!AB$6 -> 10 Steps | AE59: =Lookup!AC$6 -> GDPR | AF59: =Lookup!AD$6 -> HMG SPF | AG59: =Lookup!AE$6 -> ISO 27001 | AH59: =Lookup!AF$6 -> NIS - CAF | AI59: =Lookup!V6 -> totals
C60: Secure configuration | D60: 6c | F60: ™ | G60: ™ | H60: ™ | I60: ™ | J60: ™ | K60: ™ | L60: ™ | M60: 0 | Q60: P | R60: =IF($Q60<>"P",0,mySWITCH(INT($M60),0,0,0,1,1,2,2,3,2,4,2,5,2,6,2)) -> 0 | T60: P | U60: =IF($T60<>"P",0,pcOfTargetAchieved(ROW(),$M60)) -> 0 | W60: P | X60: =IF($W60<>"P",0,pcOfAdvancedAchieved(ROW(),$M60)) -> 0 | Z60: 0 | AA60: 0 | AB60: 0 | AC60: 0 | AD60: 0 | AE60: 0 | AF60: 0 | AG60: 0 | AH60: 0
B61: =INDEX(Lookup!$B$9:$B$100,MATCH(CELL("contents",$C61),Lookup!$E$9:$E$100,0)) -> 2 | C61: Secure design/development | D61: 6d | F61: ™ | G61: ™ | H61: ™ | I61: ™ | J61: ™ | K61: ™ | L61: ™ | M61: 0 | R61: =IF($Q61<>"P",0,mySWITCH(INT($M61),0,0,0,1,1,2,2,3,2,4,2,5,2,6,2)) -> 0 | T61: P | U61: =IF($T61<>"P",0,pcOfTargetAchieved(ROW(),$M61)) -> 0 | W61: P | X61: =IF($W61<>"P",0,pcOfAdvancedAchieved(ROW(),$M61)) -> 0 | Z61: 0 | AA61: 0 | AB61: 0 | AC61: 0 | AD61: 0 | AE61: 0 | AF61: 0 | AG61: 0 | AH61: 0 | AI61: 0
B62: =INDEX(Lookup!$B$9:$B$100,MATCH(CELL("contents",$C62),Lookup!$E$9:$E$100,0)) -> 2 | C62: Change control procedures | D62: 6e | F62: ™ | G62: ™ | H62: ™ | I62: ™ | J62: ™ | K62: ™ | L62: ™ | M62: 0 | R62: =IF($Q62<>"P",0,mySWITCH(INT($M62),0,0,0,1,1,2,2,3,2,4,2,5,2,6,2)) -> 0 | T62: P | U62: =IF($T62<>"P",0,pcOfTargetAchieved(ROW(),$M62)) -> 0 | W62: P | X62: =IF($W62<>"P",0,pcOfAdvancedAchieved(ROW(),$M62)) -> 0 | Z62: 0 | AA62: 0 | AB62: 0 | AC62: 0 | AD62: 0 | AE62: 0 | AF62: 0 | AG62: 0 | AH62: 0
B63: =INDEX(Lookup!$B$9:$B$100,MATCH(CELL("contents",$C63),Lookup!$E$9:$E$100,0)) -> 2 | C63: System Testing | D63: 6f | F63: ™ | G63: ™ | H63: ™ | I63: ™ | J63: ™ | K63: ™ | L63: ™ | M63: 0 | R63: =IF($Q63<>"P",0,mySWITCH(INT($M63),0,0,0,1,1,2,2,3,2,4,2,5,2,6,2)) -> 0 | T63: P | U63: =IF($T63<>"P",0,pcOfTargetAchieved(ROW(),$M63)) -> 0 | W63: P | X63: =IF($W63<>"P",0,pcOfAdvancedAchieved(ROW(),$M63)) -> 0 | Z63: 0 | AA63: 0 | AB63: 0 | AC63: 0 | AD63: 0 | AE63: 0 | AF63: 0 | AG63: 0 | AH63: 0
C64: OPERATIONAL SECURITY | G64: 0 | H64: 1 | I64: 2 | J64: 3 | K64: 4 | L64: 5 | M64: ™ | O64: COMMENTS | Q64: Baseline | T64: Target | W64: Advanced | Z64: =Lookup!X$6 -> CE | AA64: =Lookup!Y$6 -> PSAP | AB64: =Lookup!Z$6 -> PSN - ITHC | AC64: =Lookup!AA$6 -> PCI-DSS | AD64: =Lookup!AB$6 -> 10 Steps | AE64: =Lookup!AC$6 -> GDPR | AF64: =Lookup!AD$6 -> HMG SPF | AG64: =Lookup!AE$6 -> ISO 27001 | AH64: =Lookup!AF$6 -> NIS - CAF | AI64: =Lookup!V6 -> totals
C65: Malware policies & protection | D65: 7a | F65: ™ | G65: ™ | H65: ™ | I65: ™ | J65: ™ | K65: ™ | L65: ™ | M65: 0 | Q65: P | R65: =IF($Q65<>"P",0,mySWITCH(INT($M65),0,0,0,1,1,2,2,3,2,4,2,5,2,6,2)) -> 0 | T65: P | U65: =IF($T65<>"P",0,pcOfTargetAchieved(ROW(),$M65)) -> 0 | X65: =IF($W65<>"P",0,pcOfAdvancedAchieved(ROW(),$M65)) -> 0 | Z65: 0 | AA65: 0 | AB65: 0 | AC65: 0 | AD65: 0 | AE65: 0 | AF65: 0 | AG65: 0 | AH65: 0
B66: =INDEX(Lookup!$B$9:$B$100,MATCH(CELL("contents",$C66),Lookup!$E$9:$E$100,0)) -> 2 | C66: Email security | D66: 7e | F66: ™ | G66: ™ | H66: ™ | I66: ™ | J66: ™ | K66: ™ | L66: ™ | M66: 0 | Q66: P | R66: =IF($Q66<>"P",0,mySWITCH(INT($M66),0,0,0,1,1,2,2,3,2,4,2,5,2,6,2)) -> 0 | T66: P | U66: =IF($T66<>"P",0,pcOfTargetAchieved(ROW(),$M66)) -> 0 | X66: =IF($W66<>"P",0,pcOfAdvancedAchieved(ROW(),$M66)) -> 0 | Z66: 0 | AA66: 0 | AB66: 0 | AC66: 0 | AD66: 0 | AE66: 0 | AF66: 0 | AG66: 0 | AH66: 0
B67: =INDEX(Lookup!$B$9:$B$100,MATCH(CELL("contents",$C67),Lookup!$E$9:$E$100,0)) -> 2 | C67: Application security | D67: 7f | F67: ™ | G67: ™ | H67: ™ | I67: ™ | J67: ™ | K67: ™ | L67: ™ | M67: 0 | Q67: P | R67: =IF($Q67<>"P",0,mySWITCH(INT($M67),0,0,0,1,1,2,2,3,2,4,2,5,2,6,2)) -> 0 | T67: P | U67: =IF($T67<>"P",0,pcOfTargetAchieved(ROW(),$M67)) -> 0 | X67: =IF($W67<>"P",0,pcOfAdvancedAchieved(ROW(),$M67)) -> 0 | Z67: 0 | AA67: 0 | AB67: 0 | AC67: 0 | AD67: 0 | AE67: 0 | AF67: 0 | AG67: 0 | AH67: 0
B68: =INDEX(Lookup!$B$9:$B$100,MATCH(CELL("contents",$C68),Lookup!$E$9:$E$100,0)) -> 2 | C68: Vulnerability management & scanning | D68: 7h | F68: ™ | G68: ™ | H68: ™ | I68: ™ | J68: ™ | K68: ™ | L68: ™ | M68: 0 | Q68: P | R68: =IF($Q68<>"P",0,mySWITCH(INT($M68),0,0,0,1,1,2,2,3,2,4,2,5,2,6,2)) -> 0 | T68: P | U68: =IF($T68<>"P",0,pcOfTargetAchieved(ROW(),$M68)) -> 0 | W68: P | X68: =IF($W68<>"P",0,pcOfAdvancedAchieved(ROW(),$M68)) -> 0 | Z68: 0 | AA68: 0 | AB68: 0 | AC68: 0 | AD68: 0 | AE68: 0 | AF68: 0 | AG68: 0 | AH68: 0
B69: =INDEX(Lookup!$B$9:$B$100,MATCH(CELL("contents",$C69),Lookup!$E$9:$E$100,0)) -> 2 | C69: Data exfiltration monitoring | D69: 7k | F69: ™ | G69: ™ | H69: ™ | I69: ™ | J69: ™ | K69: ™ | L69: ™ | M69: 0 | R69: =IF($Q69<>"P",0,mySWITCH(INT($M69),0,0,0,1,1,2,2,3,2,4,2,5,2,6,2)) -> 0 | T69: P | U69: =IF($T69<>"P",0,pcOfTargetAchieved(ROW(),$M69)) -> 0 | X69: =IF($W69<>"P",0,pcOfAdvancedAchieved(ROW(),$M69)) -> 0 | Z69: 0 | AA69: 0 | AB69: 0 | AC69: 0 | AD69: 0 | AE69: 0 | AF69: 0 | AG69: 0 | AH69: 0 | AI69: 0
B70: =INDEX(Lookup!$B$9:$B$100,MATCH(CELL("contents",$C70),Lookup!$E$9:$E$100,0)) -> 2 | C70: Software supported & updated | D70: 7l | F70: ™ | G70: ™ | H70: ™ | I70: ™ | J70: ™ | K70: ™ | L70: ™ | M70: 0 | Q70: P | R70: =IF($Q70<>"P",0,mySWITCH(INT($M70),0,0,0,1,1,2,2,3,2,4,2,5,2,6,2)) -> 0 | T70: P | U70: =IF($T70<>"P",0,pcOfTargetAchieved(ROW(),$M70)) -> 0 | W70: P | X70: =IF($W70<>"P",0,pcOfAdvancedAchieved(ROW(),$M70)) -> 0 | Z70: 0 | AA70: 0 | AB70: 0 | AC70: 0 | AD70: 0 | AE70: 0 | AF70: 0 | AG70: 0 | AH70: 0
B71: =INDEX(Lookup!$B$9:$B$100,MATCH(CELL("contents",$C71),Lookup!$E$9:$E$100,0)) -> 2 | C71: Web site screening | D71: 7m | F71: ™ | G71: ™ | H71: ™ | I71: ™ | J71: ™ | K71: ™ | L71: ™ | M71: 0 | Q71: P | R71: =IF($Q71<>"P",0,mySWITCH(INT($M71),0,0,0,1,1,2,2,3,2,4,2,5,2,6,2)) -> 0 | T71: P | U71: =IF($T71<>"P",0,pcOfTargetAchieved(ROW(),$M71)) -> 0 | X71: =IF($W71<>"P",0,pcOfAdvancedAchieved(ROW(),$M71)) -> 0 | Z71: 0 | AA71: 0 | AB71: 0 | AC71: 0 | AD71: 0 | AE71: 0 | AF71: 0 | AG71: 0 | AH71: 0
B72: =INDEX(Lookup!$B$9:$B$100,MATCH(CELL("contents",$C72),Lookup!$E$9:$E$100,0)) -> 2 | C72: Browser management | D72: 7n | F72: ™ | G72: ™ | H72: ™ | I72: ™ | J72: ™ | K72: ™ | L72: ™ | M72: 0 | R72: =IF($Q72<>"P",0,mySWITCH(INT($M72),0,0,0,1,1,2,2,3,2,4,2,5,2,6,2)) -> 0 | T72: P | U72: =IF($T72<>"P",0,pcOfTargetAchieved(ROW(),$M72)) -> 0 | X72: =IF($W72<>"P",0,pcOfAdvancedAchieved(ROW(),$M72)) -> 0 | Z72: 0 | AA72: 0 | AB72: 0 | AC72: 0 | AD72: 0 | AE72: 0 | AF72: 0 | AG72: 0 | AH72: 0
B73: =INDEX(Lookup!$B$9:$B$100,MATCH(CELL("contents",$C73),Lookup!$E$9:$E$100,0)) -> 2 | C73: Monitor/audit user activity | D73: 7o | F73: ™ | G73: ™ | H73: ™ | I73: ™ | J73: ™ | K73: ™ | L73: ™ | M73: 0 | R73: =IF($Q73<>"P",0,mySWITCH(INT($M73),0,0,0,1,1,2,2,3,2,4,2,5,2,6,2)) -> 0 | T73: P | U73: =IF($T73<>"P",0,pcOfTargetAchieved(ROW(),$M73)) -> 0 | W73: P | X73: =IF($W73<>"P",0,pcOfAdvancedAchieved(ROW(),$M73)) -> 0 | Z73: 0 | AA73: 0 | AB73: 0 | AC73: 0 | AD73: 0 | AE73: 0 | AF73: 0 | AG73: 0 | AH73: 0
B74: =INDEX(Lookup!$B$9:$B$100,MATCH(CELL("contents",$C74),Lookup!$E$9:$E$100,0)) -> 2 | C74: Disabled auto-run | D74: 7p | F74: ™ | G74: ™ | H74: ™ | I74: ™ | J74: ™ | K74: ™ | L74: ™ | M74: 0 | Q74: P | R74: =IF($Q74<>"P",0,mySWITCH(INT($M74),0,0,0,1,1,2,2,3,2,4,2,5,2,6,2)) -> 0 | T74: P | U74: =IF($T74<>"P",0,pcOfTargetAchieved(ROW(),$M74)) -> 0 | X74: =IF($W74<>"P",0,pcOfAdvancedAchieved(ROW(),$M74)) -> 0 | Z74: 0 | AA74: 0 | AB74: 0 | AC74: 0 | AD74: 0 | AE74: 0 | AF74: 0 | AG74: 0 | AH74: 0
C75: NETWORK SECURITY | G75: 0 | H75: 1 | I75: 2 | J75: 3 | K75: 4 | L75: 5 | M75: ™ | O75: COMMENTS | Q75: Baseline | T75: Target | W75: Advanced | Z75: =Lookup!X$6 -> CE | AA75: =Lookup!Y$6 -> PSAP | AB75: =Lookup!Z$6 -> PSN - ITHC | AC75: =Lookup!AA$6 -> PCI-DSS | AD75: =Lookup!AB$6 -> 10 Steps | AE75: =Lookup!AC$6 -> GDPR | AF75: =Lookup!AD$6 -> HMG SPF | AG75: =Lookup!AE$6 -> ISO 27001 | AH75: =Lookup!AF$6 -> NIS - CAF | AI75: =Lookup!V6 -> totals
C76: Patch management | D76: 8a | F76: ™ | G76: ™ | H76: ™ | I76: ™ | J76: ™ | K76: ™ | L76: ™ | M76: 0 | Q76: P | R76: =IF($Q76<>"P",0,mySWITCH(INT($M76),0,0,0,1,1,2,2,3,2,4,2,5,2,6,2)) -> 0 | T76: P | U76: =IF($T76<>"P",0,pcOfTargetAchieved(ROW(),$M76)) -> 0 | X76: =IF($W76<>"P",0,pcOfAdvancedAchieved(ROW(),$M76)) -> 0 | Z76: 0 | AA76: 0 | AB76: 0 | AC76: 0 | AD76: 0 | AE76: 0 | AF76: 0 | AG76: 0 | AH76: 0
C77: Device management | D77: 8b | F77: ™ | G77: ™ | H77: ™ | I77: ™ | J77: ™ | K77: ™ | L77: ™ | M77: 0 | R77: =IF($Q77<>"P",0,mySWITCH(INT($M77),0,0,0,1,1,2,2,3,2,4,2,5,2,6,2)) -> 0 | T77: P | U77: =IF($T77<>"P",0,pcOfTargetAchieved(ROW(),$M77)) -> 0 | W77: P | X77: =IF($W77<>"P",0,pcOfAdvancedAchieved(ROW(),$M77)) -> 0 | Z77: 0 | AA77: 0 | AB77: 0 | AC77: 0 | AD77: 0 | AE77: 0 | AF77: 0 | AG77: 0 | AH77: 0
C78: Content screening | D78: 8c | F78: ™ | G78: ™ | H78: ™ | I78: ™ | J78: ™ | K78: ™ | L78: ™ | M78: 0 | R78: =IF($Q78<>"P",0,mySWITCH(INT($M78),0,0,0,1,1,2,2,3,2,4,2,5,2,6,2)) -> 0 | T78: P | U78: =IF($T78<>"P",0,pcOfTargetAchieved(ROW(),$M78)) -> 0 | X78: =IF($W78<>"P",0,pcOfAdvancedAchieved(ROW(),$M78)) -> 0 | Z78: 0 | AA78: 0 | AB78: 0 | AC78: 0 | AD78: 0 | AE78: 0 | AF78: 0 | AG78: 0 | AH78: 0 | AI78: 0
C79: Internal segregation | D79: 8d | F79: ™ | G79: ™ | H79: ™ | I79: ™ | J79: ™ | K79: ™ | L79: ™ | M79: 0 | R79: =IF($Q79<>"P",0,mySWITCH(INT($M79),0,0,0,1,1,2,2,3,2,4,2,5,2,6,2)) -> 0 | T79: P | U79: =IF($T79<>"P",0,pcOfTargetAchieved(ROW(),$M79)) -> 0 | W79: P | X79: =IF($W79<>"P",0,pcOfAdvancedAchieved(ROW(),$M79)) -> 0 | Z79: 0 | AA79: 0 | AB79: 0 | AC79: 0 | AD79: 0 | AE79: 0 | AF79: 0 | AG79: 0 | AH79: 0
C80: Wireless security | D80: 8e | F80: ™ | G80: ™ | H80: ™ | I80: ™ | J80: ™ | K80: ™ | L80: ™ | M80: 0 | Q80: P | R80: =IF($Q80<>"P",0,mySWITCH(INT($M80),0,0,0,1,1,2,2,3,2,4,2,5,2,6,2)) -> 0 | T80: P | U80: =IF($T80<>"P",0,pcOfTargetAchieved(ROW(),$M80)) -> 0 | X80: =IF($W80<>"P",0,pcOfAdvancedAchieved(ROW(),$M80)) -> 0 | Z80: 0 | AA80: 0 | AB80: 0 | AC80: 0 | AD80: 0 | AE80: 0 | AF80: 0 | AG80: 0 | AH80: 0
C81: Boundary/Firewall management | D81: 8f | F81: ™ | G81: ™ | H81: ™ | I81: ™ | J81: ™ | K81: ™ | L81: ™ | M81: 0 | Q81: P | R81: =IF($Q81<>"P",0,mySWITCH(INT($M81),0,0,0,1,1,2,2,3,2,4,2,5,2,6,2)) -> 0 | T81: P | U81: =IF($T81<>"P",0,pcOfTargetAchieved(ROW(),$M81)) -> 0 | W81: P | X81: =IF($W81<>"P",0,pcOfAdvancedAchieved(ROW(),$M81)) -> 0 | Z81: 0 | AA81: 0 | AB81: 0 | AC81: 0 | AD81: 0 | AE81: 0 | AF81: 0 | AG81: 0 | AH81: 0
C82: Administrator control | D82: 8g | F82: ™ | G82: ™ | H82: ™ | I82: ™ | J82: ™ | K82: ™ | L82: ™ | M82: 0 | R82: =IF($Q82<>"P",0,mySWITCH(INT($M82),0,0,0,1,1,2,2,3,2,4,2,5,2,6,2)) -> 0 | T82: P | U82: =IF($T82<>"P",0,pcOfTargetAchieved(ROW(),$M82)) -> 0 | W82: P | X82: =IF($W82<>"P",0,pcOfAdvancedAchieved(ROW(),$M82)) -> 0 | Z82: 0 | AA82: 0 | AB82: 0 | AC82: 0 | AD82: 0 | AE82: 0 | AF82: 0 | AG82: 0 | AH82: 0
C83: Error message management | D83: 8h | F83: ™ | G83: ™ | H83: ™ | I83: ™ | J83: ™ | K83: ™ | L83: ™ | M83: 0 | R83: =IF($Q83<>"P",0,mySWITCH(INT($M83),0,0,0,1,1,2,2,3,2,4,2,5,2,6,2)) -> 0 | T83: P | U83: =IF($T83<>"P",0,pcOfTargetAchieved(ROW(),$M83)) -> 0 | X83: =IF($W83<>"P",0,pcOfAdvancedAchieved(ROW(),$M83)) -> 0 | Z83: 0 | AA83: 0 | AB83: 0 | AC83: 0 | AD83: 0 | AE83: 0 | AF83: 0 | AG83: 0 | AH83: 0
C84: Penetration testing | D84: 8i | F84: ™ | G84: ™ | H84: ™ | I84: ™ | J84: ™ | K84: ™ | L84: ™ | M84: 0 | R84: =IF($Q84<>"P",0,mySWITCH(INT($M84),0,0,0,1,1,2,2,3,2,4,2,5,2,6,2)) -> 0 | T84: P | U84: =IF($T84<>"P",0,pcOfTargetAchieved(ROW(),$M84)) -> 0 | X84: =IF($W84<>"P",0,pcOfAdvancedAchieved(ROW(),$M84)) -> 0 | Z84: 0 | AA84: 0 | AB84: 0 | AC84: 0 | AD84: 0 | AE84: 0 | AF84: 0 | AG84: 0 | AH84: 0
C85: IP & DNS management | D85: 8j | F85: ™ | G85: ™ | H85: ™ | I85: ™ | J85: ™ | K85: ™ | L85: ™ | M85: 0 | Q85: P | R85: =IF($Q85<>"P",0,mySWITCH(INT($M85),0,0,0,1,1,2,2,3,2,4,2,5,2,6,2)) -> 0 | T85: P | U85: =IF($T85<>"P",0,pcOfTargetAchieved(ROW(),$M85)) -> 0 | W85: P | X85: =IF($W85<>"P",0,pcOfAdvancedAchieved(ROW(),$M85)) -> 0 | Z85: 0 | AA85: 0 | AB85: 0 | AC85: 0 | AD85: 0 | AE85: 0 | AF85: 0 | AG85: 0 | AH85: 0 | AI85: 0
A86: DETECT | C86: INCIDENT DETECTION | G86: 0 | H86: 1 | I86: 2 | J86: 3 | K86: 4 | L86: 5 | M86: ™ | O86: COMMENTS | Q86: Baseline | T86: Target | W86: Advanced | Z86: =Lookup!X$6 -> CE | AA86: =Lookup!Y$6 -> PSAP | AB86: =Lookup!Z$6 -> PSN - ITHC | AC86: =Lookup!AA$6 -> PCI-DSS | AD86: =Lookup!AB$6 -> 10 Steps | AE86: =Lookup!AC$6 -> GDPR | AF86: =Lookup!AD$6 -> HMG SPF | AG86: =Lookup!AE$6 -> ISO 27001 | AH86: =Lookup!AF$6 -> NIS - CAF | AI86: =Lookup!V6 -> totals
C87: Detection capability | D87: 16a | F87: ™ | G87: ™ | H87: ™ | I87: ™ | J87: ™ | K87: ™ | L87: ™ | M87: 0 | R87: =IF($Q87<>"P",0,mySWITCH(INT($M87),0,0,0,1,1,2,2,3,2,4,2,5,2,6,2)) -> 0 | T87: P | U87: =IF($T87<>"P",0,pcOfTargetAchieved(ROW(),$M87)) -> 0 | W87: P | X87: =IF($W87<>"P",0,pcOfAdvancedAchieved(ROW(),$M87)) -> 0 | Z87: 0 | AA87: 0 | AB87: 0 | AC87: 0 | AD87: 0 | AE87: 0 | AF87: 0 | AG87: 0 | AH87: 0 | AI87: 0
C88: Security Monitoring | D88: 16b | F88: ™ | G88: ™ | H88: ™ | I88: ™ | J88: ™ | K88: ™ | L88: ™ | M88: 0 | R88: =IF($Q88<>"P",0,mySWITCH(INT($M88),0,0,0,1,1,2,2,3,2,4,2,5,2,6,2)) -> 0 | T88: P | U88: =IF($T88<>"P",0,pcOfTargetAchieved(ROW(),$M88)) -> 0 | W88: P | X88: =IF($W88<>"P",0,pcOfAdvancedAchieved(ROW(),$M88)) -> 0 | Z88: 0 | AA88: 0 | AB88: 0 | AC88: 0 | AD88: 0 | AE88: 0 | AF88: 0 | AG88: 0 | AH88: 0
A89: RESPOND & RECOVER | C89: INCIDENT MANAGEMENT | G89: 0 | H89: 1 | I89: 2 | J89: 3 | K89: 4 | L89: 5 | M89: ™ | O89: COMMENTS | Q89: Baseline | T89: Target | W89: Advanced | Z89: =Lookup!X$6 -> CE | AA89: =Lookup!Y$6 -> PSAP | AB89: =Lookup!Z$6 -> PSN - ITHC | AC89: =Lookup!AA$6 -> PCI-DSS | AD89: =Lookup!AB$6 -> 10 Steps | AE89: =Lookup!AC$6 -> GDPR | AF89: =Lookup!AD$6 -> HMG SPF | AG89: =Lookup!AE$6 -> ISO 27001 | AH89: =Lookup!AF$6 -> NIS - CAF | AI89: =Lookup!V6 -> totals
C90: Incident response protocol | D90: 10b | F90: ™ | G90: ™ | H90: ™ | I90: ™ | J90: ™ | K90: ™ | L90: ™ | M90: 0 | Q90: P | R90: =IF($Q90<>"P",0,mySWITCH(INT($M90),0,0,0,1,1,2,2,3,2,4,2,5,2,6,2)) -> 0 | T90: P | U90: =IF($T90<>"P",0,pcOfTargetAchieved(ROW(),$M90)) -> 0 | W90: P | X90: =IF($W90<>"P",0,pcOfAdvancedAchieved(ROW(),$M90)) -> 0 | Z90: 0 | AA90: 0 | AB90: 0 | AC90: 0 | AD90: 0 | AE90: 0 | AF90: 0 | AG90: 0 | AH90: 0
C91: Incident reporting procedure | D91: 10c | F91: ™ | G91: ™ | H91: ™ | I91: ™ | J91: ™ | K91: ™ | L91: ™ | M91: 0 | Q91: P | R91: =IF($Q91<>"P",0,mySWITCH(INT($M91),0,0,0,1,1,2,2,3,2,4,2,5,2,6,2)) -> 0 | T91: P | U91: =IF($T91<>"P",0,pcOfTargetAchieved(ROW(),$M91)) -> 0 | X91: =IF($W91<>"P",0,pcOfAdvancedAchieved(ROW(),$M91)) -> 0 | Z91: 0 | AA91: 0 | AB91: 0 | AC91: 0 | AD91: 0 | AE91: 0 | AF91: 0 | AG91: 0 | AH91: 0
C92: Staff training & testing | D92: 10d | F92: ™ | G92: ™ | H92: ™ | I92: ™ | J92: ™ | K92: ™ | L92: ™ | M92: 0 | R92: =IF($Q92<>"P",0,mySWITCH(INT($M92),0,0,0,1,1,2,2,3,2,4,2,5,2,6,2)) -> 0 | T92: P | U92: =IF($T92<>"P",0,pcOfTargetAchieved(ROW(),$M92)) -> 0 | X92: =IF($W92<>"P",0,pcOfAdvancedAchieved(ROW(),$M92)) -> 0 | Z92: 0 | AA92: 0 | AB92: 0 | AC92: 0 | AD92: 0 | AE92: 0 | AF92: 0 | AG92: 0 | AH92: 0 | AI92: 0
C93: Post-incident review & learning | D93: 10e | F93: ™ | G93: ™ | H93: ™ | I93: ™ | J93: ™ | K93: ™ | L93: ™ | M93: 0 | Q93: P | R93: =IF($Q93<>"P",0,mySWITCH(INT($M93),0,0,0,1,1,2,2,3,2,4,2,5,2,6,2)) -> 0 | T93: P | U93: =IF($T93<>"P",0,pcOfTargetAchieved(ROW(),$M93)) -> 0 | W93: P | X93: =IF($W93<>"P",0,pcOfAdvancedAchieved(ROW(),$M93)) -> 0 | Z93: 0 | AA93: 0 | AB93: 0 | AC93: 0 | AD93: 0 | AE93: 0 | AF93: 0 | AG93: 0 | AH93: 0
C94: BUSINESS CONTINUITY | G94: 0 | H94: 1 | I94: 2 | J94: 3 | K94: 4 | L94: 5 | M94: ™ | O94: COMMENTS | Q94: Baseline | T94: Target | W94: Advanced | Z94: =Lookup!X$6 -> CE | AA94: =Lookup!Y$6 -> PSAP | AB94: =Lookup!Z$6 -> PSN - ITHC | AC94: =Lookup!AA$6 -> PCI-DSS | AD94: =Lookup!AB$6 -> 10 Steps | AE94: =Lookup!AC$6 -> GDPR | AF94: =Lookup!AD$6 -> HMG SPF | AG94: =Lookup!AE$6 -> ISO 27001 | AH94: =Lookup!AF$6 -> NIS - CAF | AI94: =Lookup!V6 -> totals
C95: Data recover capability | D95: 12a | F95: ™ | G95: ™ | H95: ™ | I95: ™ | J95: ™ | K95: ™ | L95: ™ | M95: 0 | R95: =IF($Q95<>"P",0,mySWITCH(INT($M95),0,0,0,1,1,2,2,3,2,4,2,5,2,6,2)) -> 0 | T95: P | U95: =IF($T95<>"P",0,pcOfTargetAchieved(ROW(),$M95)) -> 0 | W95: P | X95: =IF($W95<>"P",0,pcOfAdvancedAchieved(ROW(),$M95)) -> 0 | Z95: 0 | AA95: 0 | AB95: 0 | AC95: 0 | AD95: 0 | AE95: 0 | AF95: 0 | AG95: 0 | AH95: 0
C96: Back up policies & procedures | D96: 12b | F96: ™ | G96: ™ | H96: ™ | I96: ™ | J96: ™ | K96: ™ | L96: ™ | M96: 0 | R96: =IF($Q96<>"P",0,mySWITCH(INT($M96),0,0,0,1,1,2,2,3,2,4,2,5,2,6,2)) -> 0 | T96: P | U96: =IF($T96<>"P",0,pcOfTargetAchieved(ROW(),$M96)) -> 0 | W96: P | X96: =IF($W96<>"P",0,pcOfAdvancedAchieved(ROW(),$M96)) -> 0 | Z96: 0 | AA96: 0 | AB96: 0 | AC96: 0 | AD96: 0 | AE96: 0 | AF96: 0 | AG96: 0 | AH96: 0
C97: Disaster recovery policies & procedures | D97: 12c | F97: ™ | G97: ™ | H97: ™ | I97: ™ | J97: ™ | K97: ™ | L97: ™ | M97: 0 | R97: =IF($Q97<>"P",0,mySWITCH(INT($M97),0,0,0,1,1,2,2,3,2,4,2,5,2,6,2)) -> 0 | T97: P | U97: =IF($T97<>"P",0,pcOfTargetAchieved(ROW(),$M97)) -> 0 | W97: P | X97: =IF($W97<>"P",0,pcOfAdvancedAchieved(ROW(),$M97)) -> 0 | Z97: 0 | AA97: 0 | AB97: 0 | AC97: 0 | AD97: 0 | AE97: 0 | AF97: 0 | AG97: 0 | AH97: 0
C98: BC/DR testing policies & procedures | D98: 12d | F98: ™ | G98: ™ | H98: ™ | I98: ™ | J98: ™ | K98: ™ | L98: ™ | M98: 0 | R98: =IF($Q98<>"P",0,mySWITCH(INT($M98),0,0,0,1,1,2,2,3,2,4,2,5,2,6,2)) -> 0 | T98: P | U98: =IF($T98<>"P",0,pcOfTargetAchieved(ROW(),$M98)) -> 0 | W98: P | X98: =IF($W98<>"P",0,pcOfAdvancedAchieved(ROW(),$M98)) -> 0 | Z98: 0 | AA98: 0 | AB98: 0 | AC98: 0 | AD98: 0 | AE98: 0 | AF98: 0 | AG98: 0 | AH98: 0 | AI98: 0
C99: Data Loss impact assessments | D99: 12e | F99: ™ | G99: ™ | H99: ™ | I99: ™ | J99: ™ | K99: ™ | L99: ™ | M99: 0 | R99: =IF($Q99<>"P",0,mySWITCH(INT($M99),0,0,0,1,1,2,2,3,2,4,2,5,2,6,2)) -> 0 | T99: P | U99: =IF($T99<>"P",0,pcOfTargetAchieved(ROW(),$M99)) -> 0 | W99: P | X99: =IF($W99<>"P",0,pcOfAdvancedAchieved(ROW(),$M99)) -> 0 | Z99: 0 | AA99: 0 | AB99: 0 | AC99: 0 | AD99: 0 | AE99: 0 | AF99: 0 | AG99: 0 | AH99: 0
C100: BC contingency plan | D100: 12f | F100: ™ | G100: ™ | H100: ™ | I100: ™ | J100: ™ | K100: ™ | L100: ™ | M100: 0 | R100: =IF($Q100<>"P",0,mySWITCH(INT($M100),0,0,0,1,1,2,2,3,2,4,2,5,2,6,2)) -> 0 | T100: P | U100: =IF($T100<>"P",0,pcOfTargetAchieved(ROW(),$M100)) -> 0 | W100: P | X100: =IF($W100<>"P",0,pcOfAdvancedAchieved(ROW(),$M100)) -> 0 | Z100: 0 | AA100: 0 | AB100: 0 | AC100: 0 | AD100: 0 | AE100: 0 | AF100: 0 | AG100: 0 | AH100: 0
N101: OVERALL TOTALS

Sheet R02
C1: Report 2
C2: Report Date: | D2: 2019-06-12
C3: Assessor: | R3: RAG Status
M5: 5 | O5: ISO 27001 | R5: =myStageTotal(ROW(),COLUMN()) ->  | U5: =myStageTotal(ROW(),COLUMN()) ->  | X5: =myStageTotal(ROW(),COLUMN()) -> 
Z6: =SummaryOfMyColumn(COLUMN()) ->  | AA6: =SummaryOfMyColumn(COLUMN()) -> 
A8: MANAGE | C8: ORGANISATIONAL GOVERNANCE | F8: N/A | G8: 0 | H8: 1 | I8: 2 | J8: 3 | K8: 4 | L8: 5 | M8: Scored | O8: COMMENTS | Q8: Baseline | T8: Target | W8: Advanced | Y8: Scores | Z8: =Lookup!X$6 -> CE | AA8: =Lookup!Y$6 -> PSAP | AB8: =Lookup!Z$6 -> PSN - ITHC | AC8: =Lookup!AA$6 -> PCI-DSS | AD8: =Lookup!AB$6 -> 10 Steps | AE8: =Lookup!AC$6 -> GDPR | AF8: =Lookup!AD$6 -> HMG SPF | AG8: =Lookup!AE$6 -> ISO 27001 | AH8: =Lookup!AF$6 -> NIS - CAF | AI8: =Lookup!V6 -> totals
B9: =INDEX(Lookup!$B$9:$B$100,MATCH(CELL("contents",$C9),Lookup!$E$9:$E$100,0)) -> 1 | C9: Governance framework | D9: =Lookup!F9 -> 2a | E9: 0 | F9: ™ | G9: ™ | H9: ™ | I9: ™ | J9: ™ | K9: ™ | L9: ™ | M9: 0 | Q9: P | R9: =IF($Q9<>"P",0,mySWITCH(INT($M9),0,0,0,1,1,2,2,3,2,4,2,5,2,6,2)) -> 0 | T9: P | U9: =IF($T9<>"P",0,pcOfTargetAchieved(ROW(),$M9)) -> 0 | W9: P | X9: =IF($T9<>"P",0,pcOfTargetAchieved(ROW(),$M9)) -> 0 | Z9: 0 | AA9: 0 | AB9: 0 | AC9: 0 | AD9: 0 | AE9: 0 | AF9: 0 | AG9: 0 | AH9: 0 | AI9: 0
B10: =INDEX(Lookup!$B$9:$B$100,MATCH(CELL("contents",$C10),Lookup!$E$9:$E$100,0)) -> 1 | C10: Leadership & responsibility | D10: =Lookup!F10 -> 2b | E10: 0 | F10: ™ | G10: ™ | H10: ™ | I10: ™ | J10: ™ | K10: ™ | L10: ™ | M10: 0 | Q10: P | R10: =IF($Q10<>"P",0,mySWITCH(INT($M10),0,0,0,1,1,2,2,3,2,4,2,5,2,6,2)) -> 0 | T10: P | U10: =IF($T10<>"P",0,pcOfTargetAchieved(ROW(),$M10)) -> 0 | W10: P | X10: =IF($W10<>"P",0,pcOfAdvancedAchieved(ROW(),$M10)) -> 0 | Z10: 0 | AA10: 0 | AB10: 0 | AC10: 0 | AD10: 0 | AE10: 0 | AF10: 0 | AG10: 0 | AH10: 0 | AI10: 0
B11: =INDEX(Lookup!$B$9:$B$100,MATCH(CELL("contents",$C11),Lookup!$E$9:$E$100,0)) -> 1 | C11: Adoption of assurance standards | D11: =Lookup!F11 -> 2e | E11: 0 | F11: ™ | G11: ™ | H11: ™ | I11: ™ | J11: ™ | K11: ™ | L11: ™ | M11: 0 | Q11: P | R11: =IF($Q11<>"P",0,mySWITCH(INT($M11),0,0,0,1,1,2,2,3,2,4,2,5,2,6,2)) -> 0 | T11: P | U11: =IF($T11<>"P",0,pcOfTargetAchieved(ROW(),$M11)) -> 0 | W11: P | X11: =IF($W11<>"P",0,pcOfAdvancedAchieved(ROW(),$M11)) -> 0 | Z11: 0 | AA11: 0 | AB11: 0 | AC11: 0 | AD11: 0 | AE11: 0 | AF11: 0 | AG11: 0 | AH11: 0 | AI11: 0
B12: =INDEX(Lookup!$B$9:$B$100,MATCH(CELL("contents",$C12),Lookup!$E$9:$E$100,0)) -> 1 | C12: Information Asset Register | D12: =Lookup!F12 -> 2f | E12: 0 | F12: ™ | G12: ™ | H12: ™ | I12: ™ | J12: ™ | K12: ™ | L12: ™ | M12: 0 | Q12: P | R12: =IF($Q12<>"P",0,mySWITCH(INT($M12),0,0,0,1,1,2,2,3,2,4,2,5,2,6,2)) -> 0 | T12: P | U12: =IF($T12<>"P",0,pcOfTargetAchieved(ROW(),$M12)) -> 0 | W12: P | X12: =IF($W12<>"P",0,pcOfAdvancedAchieved(ROW(),$M12)) -> 0 | Z12: 0 | AA12: 0 | AB12: 0 | AC12: 0 | AD12: 0 | AE12: 0 | AF12: 0 | AG12: 0 | AH12: 0 | AI12: 0
B13: =INDEX(Lookup!$B$9:$B$100,MATCH(CELL("contents",$C13),Lookup!$E$9:$E$100,0)) -> 1 | C13: Audit/assurance compliance | D13: =Lookup!F13 -> 2g | E13: 0 | F13: ™ | G13: ™ | H13: ™ | I13: ™ | J13: ™ | K13: ™ | L13: ™ | M13: 0 | Q13: P | R13: =IF($Q13<>"P",0,mySWITCH(INT($M13),0,0,0,1,1,2,2,3,2,4,2,5,2,6,2)) -> 0 | T13: P | U13: =IF($T13<>"P",0,pcOfTargetAchieved(ROW(),$M13)) -> 0 | W13: P | X13: =IF($W13<>"P",0,pcOfAdvancedAchieved(ROW(),$M13)) -> 0 | Z13: 0 | AA13: 0 | AB13: 0 | AC13: 0 | AD13: 0 | AE13: 0 | AF13: 0 | AG13: 0 | AH13: 0 | AI13: 0
C14: RISK MANAGEMENT | G14: 0 | H14: 1 | I14: 2 | J14: 3 | K14: 4 | L14: 5 | O14: COMMENTS | Q14: Baseline | T14: Target | W14: Advanced | Y14: Scores | Z14: =Lookup!X$6 -> CE | AA14: =Lookup!Y$6 -> PSAP | AB14: =Lookup!Z$6 -> PSN - ITHC | AC14: =Lookup!AA$6 -> PCI-DSS | AD14: =Lookup!AB$6 -> 10 Steps | AE14: =Lookup!AC$6 -> GDPR | AF14: =Lookup!AD$6 -> HMG SPF | AG14: =Lookup!AE$6 -> ISO 27001 | AH14: =Lookup!AF$6 -> NIS - CAF | AI14: =Lookup!V6 -> totals
B15: =INDEX(Lookup!$B$9:$B$100,MATCH(CELL("contents",$C15),Lookup!$E$9:$E$100,0)) -> 1 | C15: Risk management policy & process | D15: 11a | E15: 0 | F15: ™ | G15: ™ | H15: ™ | I15: ™ | J15: ™ | K15: ™ | L15: ™ | M15: 0 | Q15: P | R15: =IF($Q15<>"P",0,mySWITCH(INT($M15),0,0,0,1,1,2,2,3,2,4,2,5,2,6,2)) -> 0 | T15: P | U15: =IF($T15<>"P",0,pcOfTargetAchieved(ROW(),$M15)) -> 0 | W15: P | X15: =IF($W15<>"P",0,pcOfAdvancedAchieved(ROW(),$M15)) -> 0 | Z15: 0 | AA15: 0 | AB15: 0 | AC15: 0 | AD15: 0 | AE15: 0 | AF15: 0 | AG15: 0 | AH15: 0 | AI15: 0
B16: =INDEX(Lookup!$B$9:$B$100,MATCH(CELL("contents",$C16),Lookup!$E$9:$E$100,0)) -> 1 | C16: Cyber / Information Risk Assessment | D16: 11b | E16: 0 | F16: ™ | G16: ™ | H16: ™ | I16: ™ | J16: ™ | K16: ™ | L16: ™ | M16: 0 | Q16: P | R16: =IF($Q16<>"P",0,mySWITCH(INT($M16),0,0,0,1,1,2,2,3,2,4,2,5,2,6,2)) -> 0 | T16: P | U16: =IF($T16<>"P",0,pcOfTargetAchieved(ROW(),$M16)) -> 0 | W16: P | X16: =IF($W16<>"P",0,pcOfAdvancedAchieved(ROW(),$M16)) -> 0 | Z16: 0 | AA16: 0 | AB16: 0 | AC16: 0 | AD16: 0 | AE16: 0 | AF16: 0 | AG16: 0 | AH16: 0 | AI16: 0
B17: =INDEX(Lookup!$B$9:$B$100,MATCH(CELL("contents",$C17),Lookup!$E$9:$E$100,0)) -> 1 | C17: Risk treatment & tolerance | D17: 11c | E17: 0 | F17: ™ | G17: ™ | H17: ™ | I17: ™ | J17: ™ | K17: ™ | L17: ™ | M17: 0 | Q17: P | R17: =IF($Q17<>"P",0,mySWITCH(INT($M17),0,0,0,1,1,2,2,3,2,4,2,5,2,6,2)) -> 0 | T17: P | U17: =IF($T17<>"P",0,pcOfTargetAchieved(ROW(),$M17)) -> 0 | W17: P | X17: =IF($W17<>"P",0,pcOfAdvancedAchieved(ROW(),$M17)) -> 0 | Z17: 0 | AA17: 0 | AB17: 0 | AC17: 0 | AD17: 0 | AE17: 0 | AF17: 0 | AG17: 0 | AH17: 0 | AI17: 0
B18: =INDEX(Lookup!$B$9:$B$100,MATCH(CELL("contents",$C18),Lookup!$E$9:$E$100,0)) -> 1 | C18: Risk governance | D18: 11d | E18: 0 | F18: ™ | G18: ™ | H18: ™ | I18: ™ | J18: ™ | K18: ™ | L18: ™ | M18: 0 | Q18: P | R18: =IF($Q18<>"P",0,mySWITCH(INT($M18),0,0,0,1,1,2,2,3,2,4,2,5,2,6,2)) -> 0 | T18: P | U18: =IF($T18<>"P",0,pcOfTargetAchieved(ROW(),$M18)) -> 0 | W18: P | X18: =IF($W18<>"P",0,pcOfAdvancedAchieved(ROW(),$M18)) -> 0 | Z18: 0 | AA18: 0 | AB18: 0 | AC18: 0 | AD18: 0 | AE18: 0 | AF18: 0 | AG18: 0 | AH18: 0 | AI18: 0
C19: SUPPLIER MANAGEMENT | G19: 0 | H19: 1 | I19: 2 | J19: 3 | K19: 4 | L19: 5 | M19: ™ | O19: COMMENTS | Q19: Baseline | T19: Target | W19: Advanced | Y19: Scores | Z19: =Lookup!X$6 -> CE | AA19: =Lookup!Y$6 -> PSAP | AB19: =Lookup!Z$6 -> PSN - ITHC | AC19: =Lookup!AA$6 -> PCI-DSS | AD19: =Lookup!AB$6 -> 10 Steps | AE19: =Lookup!AC$6 -> GDPR | AF19: =Lookup!AD$6 -> HMG SPF | AG19: =Lookup!AE$6 -> ISO 27001 | AH19: =Lookup!AF$6 -> NIS - CAF | AI19: =Lookup!V6 -> totals
B20: =INDEX(Lookup!$B$9:$B$100,MATCH(CELL("contents",$C20),Lookup!$E$9:$E$100,0)) -> 1 | C20: Supply chain security assurance & management | D20: 9a | E20: 0 | F20: ™ | G20: ™ | H20: ™ | I20: ™ | J20: ™ | K20: ™ | L20: ™ | M20: 0 | R20: =IF($Q20<>"P",0,mySWITCH(INT($M20),0,0,0,1,1,2,2,3,2,4,2,5,2,6,2)) -> 0 | T20: P | U20: =IF($T20<>"P",0,pcOfTargetAchieved(ROW(),$M20)) -> 0 | X20: =IF($W20<>"P",0,pcOfAdvancedAchieved(ROW(),$M20)) -> 0 | Z20: 0 | AA20: 0 | AB20: 0 | AC20: 0 | AD20: 0 | AE20: 0 | AF20: 0 | AG20: 0 | AH20: 0 | AI20: 0
B21: =INDEX(Lookup!$B$9:$B$100,MATCH(CELL("contents",$C21),Lookup!$E$9:$E$100,0)) -> 1 | C21: Roles & responsibilities defined | D21: 9b | E21: 0 | F21: ™ | G21: ™ | H21: ™ | I21: ™ | J21: ™ | K21: ™ | L21: ™ | M21: 0 | R21: =IF($Q21<>"P",0,mySWITCH(INT($M21),0,0,0,1,1,2,2,3,2,4,2,5,2,6,2)) -> 0 | T21: P | U21: =IF($T21<>"P",0,pcOfTargetAchieved(ROW(),$M21)) -> 0 | W21: P | X21: =IF($W21<>"P",0,pcOfAdvancedAchieved(ROW(),$M21)) -> 0 | Z21: 0 | AA21: 0 | AB21: 0 | AC21: 0 | AD21: 0 | AE21: 0 | AF21: 0 | AG21: 0 | AH21: 0 | AI21: 0
B22: =INDEX(Lookup!$B$9:$B$100,MATCH(CELL("contents",$C22),Lookup!$E$9:$E$100,0)) -> 1 | C22: Access control | D22: 9c | E22: 0 | F22: ™ | G22: ™ | H22: ™ | I22: ™ | J22: ™ | K22: ™ | L22: ™ | M22: 0 | R22: =IF($Q22<>"P",0,mySWITCH(INT($M22),0,0,0,1,1,2,2,3,2,4,2,5,2,6,2)) -> 0 | U22: =IF($T22<>"P",0,pcOfTargetAchieved(ROW(),$M22)) -> 0 | W22: P | X22: =IF($W22<>"P",0,pcOfAdvancedAchieved(ROW(),$M22)) -> 0 | Z22: 0 | AA22: 0 | AB22: 0 | AC22: 0 | AD22: 0 | AE22: 0 | AF22: 0 | AG22: 0 | AH22: 0 | AI22: 0
B23: =INDEX(Lookup!$B$9:$B$100,MATCH(CELL("contents",$C23),Lookup!$E$9:$E$100,0)) -> 1 | C23: Security in system procurements | D23: 9d | E23: 0 | F23: ™ | G23: ™ | H23: ™ | I23: ™ | J23: ™ | K23: ™ | L23: ™ | M23: 0 | R23: =IF($Q23<>"P",0,mySWITCH(INT($M23),0,0,0,1,1,2,2,3,2,4,2,5,2,6,2)) -> 0 | T23: P | U23: =IF($T23<>"P",0,pcOfTargetAchieved(ROW(),$M23)) -> 0 | W23: P | X23: =IF($W23<>"P",0,pcOfAdvancedAchieved(ROW(),$M23)) -> 0 | Z23: 0 | AA23: 0 | AB23: 0 | AC23: 0 | AD23: 0 | AE23: 0 | AF23: 0 | AG23: 0 | AH23: 0 | AI23: 0
C24: ASSET MANAGEMENT | G24: 0 | H24: 1 | I24: 2 | J24: 3 | K24: 4 | L24: 5 | M24: ™ | O24: COMMENTS | Q24: Baseline | T24: Target | W24: Advanced | Y24: Scores | Z24: =Lookup!X$6 -> CE | AA24: =Lookup!Y$6 -> PSAP | AB24: =Lookup!Z$6 -> PSN - ITHC | AC24: =Lookup!AA$6 -> PCI-DSS | AD24: =Lookup!AB$6 -> 10 Steps | AE24: =Lookup!AC$6 -> GDPR | AF24: =Lookup!AD$6 -> HMG SPF | AG24: =Lookup!AE$6 -> ISO 27001 | AH24: =Lookup!AF$6 -> NIS - CAF | AI24: =Lookup!V6 -> totals
B25: =INDEX(Lookup!$B$9:$B$100,MATCH(CELL("contents",$C25),Lookup!$E$9:$E$100,0)) -> 1 | C25: Hardware assets register & management | D25: =Lookup!$F25 -> 4a | E25: 0 | F25: ™ | G25: ™ | H25: ™ | I25: ™ | J25: ™ | K25: ™ | L25: ™ | M25: 0 | R25: =IF($Q25<>"P",0,mySWITCH(INT($M25),0,0,0,1,1,2,2,3,2,4,2,5,2,6,2)) -> 0 | T25: P | U25: =IF($T25<>"P",0,pcOfTargetAchieved(ROW(),$M25)) -> 0 | W25: P | X25: =IF($W25<>"P",0,pcOfAdvancedAchieved(ROW(),$M25)) -> 0 | Z25: 0 | AA25: 0 | AB25: 0 | AC25: 0 | AD25: 0 | AE25: 0 | AF25: 0 | AG25: 0 | AH25: 0 | AI25: 0
B26: =INDEX(Lookup!$B$9:$B$100,MATCH(CELL("contents",$C26),Lookup!$E$9:$E$100,0)) -> 1 | C26: Software assets register & management | D26: =Lookup!$F26 -> 4b | E26: 0 | F26: ™ | G26: ™ | H26: ™ | I26: ™ | J26: ™ | K26: ™ | L26: ™ | M26: 0 | Q26: P | R26: =IF($Q26<>"P",0,mySWITCH(INT($M26),0,0,0,1,1,2,2,3,2,4,2,5,2,6,2)) -> 0 | T26: P | U26: =IF($T26<>"P",0,pcOfTargetAchieved(ROW(),$M26)) -> 0 | W26: P | X26: =IF($W26<>"P",0,pcOfAdvancedAchieved(ROW(),$M26)) -> 0 | Z26: 0 | AA26: 0 | AB26: 0 | AC26: 0 | AD26: 0 | AE26: 0 | AF26: 0 | AG26: 0 | AH26: 0 | AI26: 0
B27: =INDEX(Lookup!$B$9:$B$100,MATCH(CELL("contents",$C27),Lookup!$E$9:$E$100,0)) -> 1 | C27: Infrastructure management | D27: =Lookup!$F27 -> 4c | E27: 0 | F27: ™ | G27: ™ | H27: ™ | I27: ™ | J27: ™ | K27: ™ | L27: ™ | M27: 0 | R27: =IF($Q27<>"P",0,mySWITCH(INT($M27),0,0,0,1,1,2,2,3,2,4,2,5,2,6,2)) -> 0 | T27: P | U27: =IF($T27<>"P",0,pcOfTargetAchieved(ROW(),$M27)) -> 0 | W27: P | X27: =IF($W27<>"P",0,pcOfAdvancedAchieved(ROW(),$M27)) -> 0 | Z27: 0 | AA27: 0 | AB27: 0 | AC27: 0 | AD27: 0 | AE27: 0 | AF27: 0 | AG27: 0 | AH27: 0 | AI27: 0
A28: PROTECT | C28: INFORMATION SECURITY MANAGEMENT | G28: 0 | H28: 1 | I28: 2 | J28: 3 | K28: 4 | L28: 5 | M28: ™ | O28: COMMENTS | Q28: Baseline | T28: Target | W28: Advanced | Y28: Scores | Z28: =Lookup!X$6 -> CE | AA28: =Lookup!Y$6 -> PSAP | AB28: =Lookup!Z$6 -> PSN - ITHC | AC28: =Lookup!AA$6 -> PCI-DSS | AD28: =Lookup!AB$6 -> 10 Steps | AE28: =Lookup!AC$6 -> GDPR | AF28: =Lookup!AD$6 -> HMG SPF | AG28: =Lookup!AE$6 -> ISO 27001 | AH28: =Lookup!AF$6 -> NIS - CAF | AI28: =Lookup!V6 -> totals
B29: =INDEX(Lookup!$B$9:$B$100,MATCH(CELL("contents",$C29),Lookup!$E$9:$E$100,0)) -> 2 | C29: Security policy & processes | D29: 1a | E29: 0 | F29: ™ | G29: ™ | H29: ™ | I29: ™ | J29: ™ | K29: ™ | L29: ™ | M29: 0 | R29: =IF($Q29<>"P",0,mySWITCH(INT($M29),0,0,0,1,1,2,2,3,2,4,2,5,2,6,2)) -> 0 | T29: P | U29: =IF($T29<>"P",0,pcOfTargetAchieved(ROW(),$M29)) -> 0 | W29: P | X29: =IF($W29<>"P",0,pcOfAdvancedAchieved(ROW(),$M29)) -> 0 | Z29: 0 | AA29: 0 | AB29: 0 | AC29: 0 | AD29: 0 | AE29: 0 | AF29: 0 | AG29: 0 | AH29: 0 | AI29: 0
B30: =INDEX(Lookup!$B$9:$B$100,MATCH(CELL("contents",$C30),Lookup!$E$9:$E$100,0)) -> 2 | C30: Lifecycle management | D30: 1b | E30: 0 | F30: ™ | G30: ™ | H30: ™ | I30: ™ | J30: ™ | K30: ™ | L30: ™ | M30: 0 | R30: =IF($Q30<>"P",0,mySWITCH(INT($M30),0,0,0,1,1,2,2,3,2,4,2,5,2,6,2)) -> 0 | T30: P | U30: =IF($T30<>"P",0,pcOfTargetAchieved(ROW(),$M30)) -> 0 | W30: P | X30: =IF($W30<>"P",0,pcOfAdvancedAchieved(ROW(),$M30)) -> 0 | Z30: 0 | AA30: 0 | AB30: 0 | AC30: 0 | AD30: 0 | AE30: 0 | AF30: 0 | AG30: 0 | AH30: 0 | AI30: 0
C31: Storage | D31: 1c | E31: 0 | F31: ™ | G31: ™ | H31: ™ | I31: ™ | J31: ™ | K31: ™ | L31: ™ | M31: 0 | R31: =IF($Q31<>"P",0,mySWITCH(INT($M31),0,0,0,1,1,2,2,3,2,4,2,5,2,6,2)) -> 0 | T31: P | U31: =IF($T31<>"P",0,pcOfTargetAchieved(ROW(),$M31)) -> 0 | W31: P | X31: =IF($W31<>"P",0,pcOfAdvancedAchieved(ROW(),$M31)) -> 0 | Z31: 0 | AA31: 0 | AB31: 0 | AC31: 0 | AD31: 0 | AE31: 0 | AF31: 0 | AG31: 0 | AH31: 0
C32: Information/data classification | D32: 1f | E32: 0 | F32: ™ | G32: ™ | H32: ™ | I32: ™ | J32: ™ | K32: ™ | L32: ™ | M32: 0 | R32: =IF($Q32<>"P",0,mySWITCH(INT($M32),0,0,0,1,1,2,2,3,2,4,2,5,2,6,2)) -> 0 | T32: P | U32: =IF($T32<>"P",0,pcOfTargetAchieved(ROW(),$M32)) -> 0 | W32: P | X32: =IF($W32<>"P",0,pcOfAdvancedAchieved(ROW(),$M32)) -> 0 | Z32: 0 | AA32: 0 | AB32: 0 | AC32: 0 | AD32: 0 | AE32: 0 | AF32: 0 | AG32: 0 | AH32: 0 | AI32: 0
C33: Information assets register | D33: 1g | E33: 0 | F33: ™ | G33: ™ | H33: ™ | I33: ™ | J33: ™ | K33: ™ | L33: ™ | M33: 0 | R33: =IF($Q33<>"P",0,mySWITCH(INT($M33),0,0,0,1,1,2,2,3,2,4,2,5,2,6,2)) -> 0 | T33: P | U33: =IF($T33<>"P",0,pcOfTargetAchieved(ROW(),$M33)) -> 0 | W33: P | X33: =IF($W33<>"P",0,pcOfAdvancedAchieved(ROW(),$M33)) -> 0 | Z33: 0 | AA33: 0 | AB33: 0 | AC33: 0 | AD33: 0 | AE33: 0 | AF33: 0 | AG33: 0 | AH33: 0
C34: Information/data transfer controls | D34: 1h | E34: 0 | F34: ™ | G34: ™ | H34: ™ | I34: ™ | J34: ™ | K34: ™ | L34: ™ | M34: 0 | R34: =IF($Q34<>"P",0,mySWITCH(INT($M34),0,0,0,1,1,2,2,3,2,4,2,5,2,6,2)) -> 0 | T34: P | U34: =IF($T34<>"P",0,pcOfTargetAchieved(ROW(),$M34)) -> 0 | W34: P | X34: =IF($W34<>"P",0,pcOfAdvancedAchieved(ROW(),$M34)) -> 0 | Z34: 0 | AA34: 0 | AB34: 0 | AC34: 0 | AD34: 0 | AE34: 0 | AF34: 0 | AG34: 0 | AH34: 0
C35: PEOPLE | G35: 0 | H35: 1 | I35: 2 | J35: 3 | K35: 4 | L35: 5 | M35: ™ | O35: COMMENTS | Q35: Baseline | T35: Target | W35: Advanced | Y35: Scores | Z35: =Lookup!X$6 -> CE | AA35: =Lookup!Y$6 -> PSAP | AB35: =Lookup!Z$6 -> PSN - ITHC | AC35: =Lookup!AA$6 -> PCI-DSS | AD35: =Lookup!AB$6 -> 10 Steps | AE35: =Lookup!AC$6 -> GDPR | AF35: =Lookup!AD$6 -> HMG SPF | AG35: =Lookup!AE$6 -> ISO 27001 | AH35: =Lookup!AF$6 -> NIS - CAF | AI35: =Lookup!V6 -> totals
C36: Prior to employment | D36: 13a | E36: 0 | F36: ™ | G36: ™ | H36: ™ | I36: ™ | J36: ™ | K36: ™ | L36: ™ | M36: 0 | R36: =IF($Q36<>"P",0,mySWITCH(INT($M36),0,0,0,1,1,2,2,3,2,4,2,5,2,6,2)) -> 0 | T36: P | U36: =IF($T36<>"P",0,pcOfTargetAchieved(ROW(),$M36)) -> 0 | W36: P | X36: =IF($W36<>"P",0,pcOfAdvancedAchieved(ROW(),$M36)) -> 0 | Z36: 0 | AA36: 0 | AB36: 0 | AC36: 0 | AD36: 0 | AE36: 0 | AF36: 0 | AG36: 0 | AH36: 0
B37: =INDEX(Lookup!$B$9:$B$100,MATCH(CELL("contents",$C37),Lookup!$E$9:$E$100,0)) -> 2 | C37: During employment | D37: 13d | E37: 0 | F37: ™ | G37: ™ | H37: ™ | I37: ™ | J37: ™ | K37: ™ | L37: ™ | M37: 0 | R37: =IF($Q37<>"P",0,mySWITCH(INT($M37),0,0,0,1,1,2,2,3,2,4,2,5,2,6,2)) -> 0 | T37: P | U37: =IF($T37<>"P",0,pcOfTargetAchieved(ROW(),$M37)) -> 0 | W37: P | X37: =IF($W37<>"P",0,pcOfAdvancedAchieved(ROW(),$M37)) -> 0 | Z37: 0 | AA37: 0 | AB37: 0 | AC37: 0 | AD37: 0 | AE37: 0 | AF37: 0 | AG37: 0 | AH37: 0
C38: Staff training & awareness culture | D38: 13i | E38: 0 | F38: ™ | G38: ™ | H38: ™ | I38: ™ | J38: ™ | K38: ™ | L38: ™ | M38: 0 | Q38: P | R38: =IF($Q38<>"P",0,mySWITCH(INT($M38),0,0,0,1,1,2,2,3,2,4,2,5,2,6,2)) -> 0 | T38: P | U38: =IF($T38<>"P",0,pcOfTargetAchieved(ROW(),$M38)) -> 0 | W38: P | X38: =IF($W38<>"P",0,pcOfAdvancedAchieved(ROW(),$M38)) -> 0 | Z38: 0 | AA38: 0 | AB38: 0 | AC38: 0 | AD38: 0 | AE38: 0 | AF38: 0 | AG38: 0 | AH38: 0
C39: Staff skills assessment | D39: 13j | E39: 0 | F39: ™ | G39: ™ | H39: ™ | I39: ™ | J39: ™ | K39: ™ | L39: ™ | M39: 0 | R39: =IF($Q39<>"P",0,mySWITCH(INT($M39),0,0,0,1,1,2,2,3,2,4,2,5,2,6,2)) -> 0 | T39: P | U39: =IF($T39<>"P",0,pcOfTargetAchieved(ROW(),$M39)) -> 0 | W39: P | X39: =IF($W39<>"P",0,pcOfAdvancedAchieved(ROW(),$M39)) -> 0 | Z39: 0 | AA39: 0 | AB39: 0 | AC39: 0 | AD39: 0 | AE39: 0 | AF39: 0 | AG39: 0 | AH39: 0
C40: Mobile/remote working policy | D40: 13o | E40: 0 | F40: ™ | G40: ™ | H40: ™ | I40: ™ | J40: ™ | K40: ™ | L40: ™ | M40: 0 | R40: =IF($Q40<>"P",0,mySWITCH(INT($M40),0,0,0,1,1,2,2,3,2,4,2,5,2,6,2)) -> 0 | T40: P | U40: =IF($T40<>"P",0,pcOfTargetAchieved(ROW(),$M40)) -> 0 | W40: P | X40: =IF($W40<>"P",0,pcOfAdvancedAchieved(ROW(),$M40)) -> 0 | Z40: 0 | AA40: 0 | AB40: 0 | AC40: 0 | AD40: 0 | AE40: 0 | AF40: 0 | AG40: 0 | AH40: 0
C41: SERVICES RESILIENCE | G41: 0 | H41: 1 | I41: 2 | J41: 3 | K41: 4 | L41: 5 | M41: ™ | O41: COMMENTS | Q41: Baseline | T41: Target | W41: Advanced | Y41: Scores | Z41: =Lookup!X$6 -> CE | AA41: =Lookup!Y$6 -> PSAP | AB41: =Lookup!Z$6 -> PSN - ITHC | AC41: =Lookup!AA$6 -> PCI-DSS | AD41: =Lookup!AB$6 -> 10 Steps | AE41: =Lookup!AC$6 -> GDPR | AF41: =Lookup!AD$6 -> HMG SPF | AG41: =Lookup!AE$6 -> ISO 27001 | AH41: =Lookup!AF$6 -> NIS - CAF | AI41: =Lookup!V6 -> totals
C42: Services Resilience | D42: 17a | E42: 0 | F42: ™ | G42: ™ | H42: ™ | I42: ™ | J42: ™ | K42: ™ | L42: ™ | M42: 0 | R42: =IF($Q42<>"P",0,mySWITCH(INT($M42),0,0,0,1,1,2,2,3,2,4,2,5,2,6,2)) -> 0 | T42: P | U42: =IF($T42<>"P",0,pcOfTargetAchieved(ROW(),$M42)) -> 0 | W42: P | X42: =IF($W42<>"P",0,pcOfAdvancedAchieved(ROW(),$M42)) -> 0 | Z42: 0 | AA42: 0 | AB42: 0 | AC42: 0 | AD42: 0 | AE42: 0 | AF42: 0 | AG42: 0 | AH42: 0
C43: ACCESS CONTROL | G43: 0 | H43: 1 | I43: 2 | J43: 3 | K43: 4 | L43: 5 | M43: ™ | O43: COMMENTS | Q43: Baseline | T43: Target | W43: Advanced | Y43: Scores | Z43: =Lookup!X$6 -> CE | AA43: =Lookup!Y$6 -> PSAP | AB43: =Lookup!Z$6 -> PSN - ITHC | AC43: =Lookup!AA$6 -> PCI-DSS | AD43: =Lookup!AB$6 -> 10 Steps | AE43: =Lookup!AC$6 -> GDPR | AF43: =Lookup!AD$6 -> HMG SPF | AG43: =Lookup!AE$6 -> ISO 27001 | AH43: =Lookup!AF$6 -> NIS - CAF | AI43: =Lookup!V6 -> totals
C44: Account management | D44: 3a | E44: 0 | F44: ™ | G44: ™ | H44: ™ | I44: ™ | J44: ™ | K44: ™ | L44: ™ | M44: 0 | Q44: P | R44: =IF($Q44<>"P",0,mySWITCH(INT($M44),0,0,0,1,1,2,2,3,2,4,2,5,2,6,2)) -> 0 | T44: P | U44: =IF($T44<>"P",0,pcOfTargetAchieved(ROW(),$M44)) -> 0 | X44: =IF($W44<>"P",0,pcOfAdvancedAchieved(ROW(),$M44)) -> 0 | Z44: 0 | AA44: 0 | AB44: 0 | AC44: 0 | AD44: 0 | AE44: 0 | AF44: 0 | AG44: 0 | AH44: 0
B45: =INDEX(Lookup!$B$9:$B$100,MATCH(CELL("contents",$C45),Lookup!$E$9:$E$100,0)) -> 2 | C45: Identity authentication | D45: 3b | E45: 0 | F45: ™ | G45: ™ | H45: ™ | I45: ™ | J45: ™ | K45: ™ | L45: ™ | M45: 0 | Q45: P | R45: =IF($Q45<>"P",0,mySWITCH(INT($M45),0,0,0,1,1,2,2,3,2,4,2,5,2,6,2)) -> 0 | T45: P | U45: =IF($T45<>"P",0,pcOfTargetAchieved(ROW(),$M45)) -> 0 | W45: P | X45: =IF($W45<>"P",0,pcOfAdvancedAchieved(ROW(),$M45)) -> 0 | Z45: 0 | AA45: 0 | AB45: 0 | AC45: 0 | AD45: 0 | AE45: 0 | AF45: 0 | AG45: 0 | AH45: 0
B46: =INDEX(Lookup!$B$9:$B$100,MATCH(CELL("contents",$C46),Lookup!$E$9:$E$100,0)) -> 2 | C46: Privilege management | D46: 3e | E46: 0 | F46: ™ | G46: ™ | H46: ™ | I46: ™ | J46: ™ | K46: ™ | L46: ™ | M46: 0 | Q46: P | R46: =IF($Q46<>"P",0,mySWITCH(INT($M46),0,0,0,1,1,2,2,3,2,4,2,5,2,6,2)) -> 0 | T46: P | U46: =IF($T46<>"P",0,pcOfTargetAchieved(ROW(),$M46)) -> 0 | W46: P | X46: =IF($W46<>"P",0,pcOfAdvancedAchieved(ROW(),$M46)) -> 0 | Z46: 0 | AA46: 0 | AB46: 0 | AC46: 0 | AD46: 0 | AE46: 0 | AF46: 0 | AG46: 0 | AH46: 0
B47: =INDEX(Lookup!$B$9:$B$100,MATCH(CELL("contents",$C47),Lookup!$E$9:$E$100,0)) -> 2 | C47: Administrator account management | D47: 3f | E47: 0 | F47: ™ | G47: ™ | H47: ™ | I47: ™ | J47: ™ | K47: ™ | L47: ™ | M47: 0 | Q47: P | R47: =IF($Q47<>"P",0,mySWITCH(INT($M47),0,0,0,1,1,2,2,3,2,4,2,5,2,6,2)) -> 0 | T47: P | U47: =IF($T47<>"P",0,pcOfTargetAchieved(ROW(),$M47)) -> 0 | W47: P | X47: =IF($W47<>"P",0,pcOfAdvancedAchieved(ROW(),$M47)) -> 0 | Z47: 0 | AA47: 0 | AB47: 0 | AC47: 0 | AD47: 0 | AE47: 0 | AF47: 0 | AG47: 0 | AH47: 0
C48: MEDIA MANAGEMENT | G48: 0 | H48: 1 | I48: 2 | J48: 3 | K48: 4 | L48: 5 | M48: ™ | O48: COMMENTS | Q48: Baseline | T48: Target | W48: Advanced | Y48: Scores | Z48: =Lookup!X$6 -> CE | AA48: =Lookup!Y$6 -> PSAP | AB48: =Lookup!Z$6 -> PSN - ITHC | AC48: =Lookup!AA$6 -> PCI-DSS | AD48: =Lookup!AB$6 -> 10 Steps | AE48: =Lookup!AC$6 -> GDPR | AF48: =Lookup!AD$6 -> HMG SPF | AG48: =Lookup!AE$6 -> ISO 27001 | AH48: =Lookup!AF$6 -> NIS - CAF | AI48: =Lookup!V6 -> totals
C49: Storage media management | D49: 14a | E49: 0 | F49: ™ | G49: ™ | H49: ™ | I49: ™ | J49: ™ | K49: ™ | L49: ™ | M49: 0 | R49: =IF($Q49<>"P",0,mySWITCH(INT($M49),0,0,0,1,1,2,2,3,2,4,2,5,2,6,2)) -> 0 | T49: P | U49: =IF($T49<>"P",0,pcOfTargetAchieved(ROW(),$M49)) -> 0 | W49: P | X49: =IF($W49<>"P",0,pcOfAdvancedAchieved(ROW(),$M49)) -> 0 | Z49: 0 | AA49: 0 | AB49: 0 | AC49: 0 | AD49: 0 | AE49: 0 | AF49: 0 | AG49: 0 | AH49: 0
B50: =INDEX(Lookup!$B$9:$B$100,MATCH(CELL("contents",$C50),Lookup!$E$9:$E$100,0)) -> 2 | C50: Mobile media/devices | D50: 14b | E50: 0 | F50: ™ | G50: ™ | H50: ™ | I50: ™ | J50: ™ | K50: ™ | L50: ™ | M50: 0 | R50: =IF($Q50<>"P",0,mySWITCH(INT($M50),0,0,0,1,1,2,2,3,2,4,2,5,2,6,2)) -> 0 | T50: P | U50: =IF($T50<>"P",0,pcOfTargetAchieved(ROW(),$M50)) -> 0 | W50: P | X50: =IF($W50<>"P",0,pcOfAdvancedAchieved(ROW(),$M50)) -> 0 | Z50: 0 | AA50: 0 | AB50: 0 | AC50: 0 | AD50: 0 | AE50: 0 | AF50: 0 | AG50: 0 | AH50: 0
B51: =INDEX(Lookup!$B$9:$B$100,MATCH(CELL("contents",$C51),Lookup!$E$9:$E$100,0)) -> 2 | C51: Cryptography | D51: 14c | E51: 0 | F51: ™ | G51: ™ | H51: ™ | I51: ™ | J51: ™ | K51: ™ | L51: ™ | M51: 0 | R51: =IF($Q51<>"P",0,mySWITCH(INT($M51),0,0,0,1,1,2,2,3,2,4,2,5,2,6,2)) -> 0 | T51: P | U51: =IF($T51<>"P",0,pcOfTargetAchieved(ROW(),$M51)) -> 0 | W51: P | X51: =IF($W51<>"P",0,pcOfAdvancedAchieved(ROW(),$M51)) -> 0 | Z51: 0 | AA51: 0 | AB51: 0 | AC51: 0 | AD51: 0 | AE51: 0 | AF51: 0 | AG51: 0 | AH51: 0
B52: =INDEX(Lookup!$B$9:$B$100,MATCH(CELL("contents",$C52),Lookup!$E$9:$E$100,0)) -> 2 | C52: Remote wipe capability | D52: 14d | E52: 0 | F52: ™ | G52: ™ | H52: ™ | I52: ™ | J52: ™ | K52: ™ | L52: ™ | M52: 0 | R52: =IF($Q52<>"P",0,mySWITCH(INT($M52),0,0,0,1,1,2,2,3,2,4,2,5,2,6,2)) -> 0 | T52: P | U52: =IF($T52<>"P",0,pcOfTargetAchieved(ROW(),$M52)) -> 0 | X52: =IF($W52<>"P",0,pcOfAdvancedAchieved(ROW(),$M52)) -> 0 | Z52: 0 | AA52: 0 | AB52: 0 | AC52: 0 | AD52: 0 | AE52: 0 | AF52: 0 | AG52: 0 | AH52: 0
C53: ENVIRONMENTAL SECURITY | G53: 0 | H53: 1 | I53: 2 | J53: 3 | K53: 4 | L53: 5 | M53: ™ | O53: COMMENTS | Q53: Baseline | T53: Target | W53: Advanced | Y53: Scores | Z53: =Lookup!X$6 -> CE | AA53: =Lookup!Y$6 -> PSAP | AB53: =Lookup!Z$6 -> PSN - ITHC | AC53: =Lookup!AA$6 -> PCI-DSS | AD53: =Lookup!AB$6 -> 10 Steps | AE53: =Lookup!AC$6 -> GDPR | AF53: =Lookup!AD$6 -> HMG SPF | AG53: =Lookup!AE$6 -> ISO 27001 | AH53: =Lookup!AF$6 -> NIS - CAF | AI53: =Lookup!V6 -> totals
C54: Equipment location | D54: 15a | E54: 0 | F54: ™ | G54: ™ | H54: ™ | I54: ™ | J54: ™ | K54: ™ | L54: ™ | M54: 0 | R54: =IF($Q54<>"P",0,mySWITCH(INT($M54),0,0,0,1,1,2,2,3,2,4,2,5,2,6,2)) -> 0 | U54: =IF($T54<>"P",0,pcOfTargetAchieved(ROW(),$M54)) -> 0 | W54: P | X54: =IF($W54<>"P",0,pcOfAdvancedAchieved(ROW(),$M54)) -> 0 | Z54: 0 | AA54: 0 | AB54: 0 | AC54: 0 | AD54: 0 | AE54: 0 | AF54: 0 | AG54: 0 | AH54: 0
B55: =INDEX(Lookup!$B$9:$B$100,MATCH(CELL("contents",$C55),Lookup!$E$9:$E$100,0)) -> 2 | C55: Power resilience | D55: 15b | E55: 0 | F55: ™ | G55: ™ | H55: ™ | I55: ™ | J55: ™ | K55: ™ | L55: ™ | M55: 0 | R55: =IF($Q55<>"P",0,mySWITCH(INT($M55),0,0,0,1,1,2,2,3,2,4,2,5,2,6,2)) -> 0 | U55: =IF($T55<>"P",0,pcOfTargetAchieved(ROW(),$M55)) -> 0 | W55: P | X55: =IF($W55<>"P",0,pcOfAdvancedAchieved(ROW(),$M55)) -> 0 | Z55: 0 | AA55: 0 | AB55: 0 | AC55: 0 | AD55: 0 | AE55: 0 | AF55: 0 | AG55: 0 | AH55: 0
C56: PHYSICAL/BUILDING SECURITY | G56: 0 | H56: 1 | I56: 2 | J56: 3 | K56: 4 | L56: 5 | M56: ™ | O56: COMMENTS | Q56: Baseline | T56: Target | W56: Advanced | Y56: Scores | Z56: =Lookup!X$6 -> CE | AA56: =Lookup!Y$6 -> PSAP | AB56: =Lookup!Z$6 -> PSN - ITHC | AC56: =Lookup!AA$6 -> PCI-DSS | AD56: =Lookup!AB$6 -> 10 Steps | AE56: =Lookup!AC$6 -> GDPR | AF56: =Lookup!AD$6 -> HMG SPF | AG56: =Lookup!AE$6 -> ISO 27001 | AH56: =Lookup!AF$6 -> NIS - CAF | AI56: =Lookup!V6 -> totals
C57: Access control | D57: 5a | E57: 0 | F57: ™ | G57: ™ | H57: ™ | I57: ™ | J57: ™ | K57: ™ | L57: ™ | M57: 0 | R57: =IF($Q57<>"P",0,mySWITCH(INT($M57),0,0,0,1,1,2,2,3,2,4,2,5,2,6,2)) -> 0 | T57: P | U57: =IF($T57<>"P",0,pcOfTargetAchieved(ROW(),$M57)) -> 0 | W57: P | X57: =IF($W57<>"P",0,pcOfAdvancedAchieved(ROW(),$M57)) -> 0 | Z57: 0 | AA57: 0 | AB57: 0 | AC57: 0 | AD57: 0 | AE57: 0 | AF57: 0 | AG57: 0 | AH57: 0
B58: =INDEX(Lookup!$B$9:$B$100,MATCH(CELL("contents",$C58),Lookup!$E$9:$E$100,0)) -> 2 | C58: Internal security | D58: 5b | E58: 0 | F58: ™ | G58: ™ | H58: ™ | I58: ™ | J58: ™ | K58: ™ | L58: ™ | M58: 0 | R58: =IF($Q58<>"P",0,mySWITCH(INT($M58),0,0,0,1,1,2,2,3,2,4,2,5,2,6,2)) -> 0 | T58: P | U58: =IF($T58<>"P",0,pcOfTargetAchieved(ROW(),$M58)) -> 0 | W58: P | X58: =IF($W58<>"P",0,pcOfAdvancedAchieved(ROW(),$M58)) -> 0 | Z58: 0 | AA58: 0 | AB58: 0 | AC58: 0 | AD58: 0 | AE58: 0 | AF58: 0 | AG58: 0 | AH58: 0
C59: SYSTEM MANAGEMENT | G59: 0 | H59: 1 | I59: 2 | J59: 3 | K59: 4 | L59: 5 | M59: ™ | O59: COMMENTS | Q59: Baseline | T59: Target | W59: Advanced | Y59: Scores | Z59: =Lookup!X$6 -> CE | AA59: =Lookup!Y$6 -> PSAP | AB59: =Lookup!Z$6 -> PSN - ITHC | AC59: =Lookup!AA$6 -> PCI-DSS | AD59: =Lookup!AB$6 -> 10 Steps | AE59: =Lookup!AC$6 -> GDPR | AF59: =Lookup!AD$6 -> HMG SPF | AG59: =Lookup!AE$6 -> ISO 27001 | AH59: =Lookup!AF$6 -> NIS - CAF | AI59: =Lookup!V6 -> totals
C60: Secure configuration | D60: 6c | E60: 0 | F60: ™ | G60: ™ | H60: ™ | I60: ™ | J60: ™ | K60: ™ | L60: ™ | M60: 0 | Q60: P | R60: =IF($Q60<>"P",0,mySWITCH(INT($M60),0,0,0,1,1,2,2,3,2,4,2,5,2,6,2)) -> 0 | T60: P | U60: =IF($T60<>"P",0,pcOfTargetAchieved(ROW(),$M60)) -> 0 | W60: P | X60: =IF($W60<>"P",0,pcOfAdvancedAchieved(ROW(),$M60)) -> 0 | Z60: 0 | AA60: 0 | AB60: 0 | AC60: 0 | AD60: 0 | AE60: 0 | AF60: 0 | AG60: 0 | AH60: 0
B61: =INDEX(Lookup!$B$9:$B$100,MATCH(CELL("contents",$C61),Lookup!$E$9:$E$100,0)) -> 2 | C61: Secure design/development | D61: 6d | E61: 0 | F61: ™ | G61: ™ | H61: ™ | I61: ™ | J61: ™ | K61: ™ | L61: ™ | M61: 0 | R61: =IF($Q61<>"P",0,mySWITCH(INT($M61),0,0,0,1,1,2,2,3,2,4,2,5,2,6,2)) -> 0 | T61: P | U61: =IF($T61<>"P",0,pcOfTargetAchieved(ROW(),$M61)) -> 0 | W61: P | X61: =IF($W61<>"P",0,pcOfAdvancedAchieved(ROW(),$M61)) -> 0 | Z61: 0 | AA61: 0 | AB61: 0 | AC61: 0 | AD61: 0 | AE61: 0 | AF61: 0 | AG61: 0 | AH61: 0 | AI61: 0
B62: =INDEX(Lookup!$B$9:$B$100,MATCH(CELL("contents",$C62),Lookup!$E$9:$E$100,0)) -> 2 | C62: Change control procedures | D62: 6e | E62: 0 | F62: ™ | G62: ™ | H62: ™ | I62: ™ | J62: ™ | K62: ™ | L62: ™ | M62: 0 | R62: =IF($Q62<>"P",0,mySWITCH(INT($M62),0,0,0,1,1,2,2,3,2,4,2,5,2,6,2)) -> 0 | T62: P | U62: =IF($T62<>"P",0,pcOfTargetAchieved(ROW(),$M62)) -> 0 | W62: P | X62: =IF($W62<>"P",0,pcOfAdvancedAchieved(ROW(),$M62)) -> 0 | Z62: 0 | AA62: 0 | AB62: 0 | AC62: 0 | AD62: 0 | AE62: 0 | AF62: 0 | AG62: 0 | AH62: 0
B63: =INDEX(Lookup!$B$9:$B$100,MATCH(CELL("contents",$C63),Lookup!$E$9:$E$100,0)) -> 2 | C63: System Testing | D63: 6f | E63: 0 | F63: ™ | G63: ™ | H63: ™ | I63: ™ | J63: ™ | K63: ™ | L63: ™ | M63: 0 | R63: =IF($Q63<>"P",0,mySWITCH(INT($M63),0,0,0,1,1,2,2,3,2,4,2,5,2,6,2)) -> 0 | T63: P | U63: =IF($T63<>"P",0,pcOfTargetAchieved(ROW(),$M63)) -> 0 | W63: P | X63: =IF($W63<>"P",0,pcOfAdvancedAchieved(ROW(),$M63)) -> 0 | Z63: 0 | AA63: 0 | AB63: 0 | AC63: 0 | AD63: 0 | AE63: 0 | AF63: 0 | AG63: 0 | AH63: 0
C64: OPERATIONAL SECURITY | G64: 0 | H64: 1 | I64: 2 | J64: 3 | K64: 4 | L64: 5 | M64: ™ | O64: COMMENTS | Q64: Baseline | T64: Target | W64: Advanced | Z64: =Lookup!X$6 -> CE | AA64: =Lookup!Y$6 -> PSAP | AB64: =Lookup!Z$6 -> PSN - ITHC | AC64: =Lookup!AA$6 -> PCI-DSS | AD64: =Lookup!AB$6 -> 10 Steps | AE64: =Lookup!AC$6 -> GDPR | AF64: =Lookup!AD$6 -> HMG SPF | AG64: =Lookup!AE$6 -> ISO 27001 | AH64: =Lookup!AF$6 -> NIS - CAF | AI64: =Lookup!V6 -> totals
C65: Malware policies & protection | D65: 7a | E65: 0 | F65: ™ | G65: ™ | H65: ™ | I65: ™ | J65: ™ | K65: ™ | L65: ™ | M65: 0 | Q65: P | R65: =IF($Q65<>"P",0,mySWITCH(INT($M65),0,0,0,1,1,2,2,3,2,4,2,5,2,6,2)) -> 0 | T65: P | U65: =IF($T65<>"P",0,pcOfTargetAchieved(ROW(),$M65)) -> 0 | X65: =IF($W65<>"P",0,pcOfAdvancedAchieved(ROW(),$M65)) -> 0 | Z65: 0 | AA65: 0 | AB65: 0 | AC65: 0 | AD65: 0 | AE65: 0 | AF65: 0 | AG65: 0 | AH65: 0
B66: =INDEX(Lookup!$B$9:$B$100,MATCH(CELL("contents",$C66),Lookup!$E$9:$E$100,0)) -> 2 | C66: Email security | D66: 7e | E66: 0 | F66: ™ | G66: ™ | H66: ™ | I66: ™ | J66: ™ | K66: ™ | L66: ™ | M66: 0 | Q66: P | R66: =IF($Q66<>"P",0,mySWITCH(INT($M66),0,0,0,1,1,2,2,3,2,4,2,5,2,6,2)) -> 0 | T66: P | U66: =IF($T66<>"P",0,pcOfTargetAchieved(ROW(),$M66)) -> 0 | X66: =IF($W66<>"P",0,pcOfAdvancedAchieved(ROW(),$M66)) -> 0 | Z66: 0 | AA66: 0 | AB66: 0 | AC66: 0 | AD66: 0 | AE66: 0 | AF66: 0 | AG66: 0 | AH66: 0
B67: =INDEX(Lookup!$B$9:$B$100,MATCH(CELL("contents",$C67),Lookup!$E$9:$E$100,0)) -> 2 | C67: Application security | D67: 7f | E67: 0 | F67: ™ | G67: ™ | H67: ™ | I67: ™ | J67: ™ | K67: ™ | L67: ™ | M67: 0 | Q67: P | R67: =IF($Q67<>"P",0,mySWITCH(INT($M67),0,0,0,1,1,2,2,3,2,4,2,5,2,6,2)) -> 0 | T67: P | U67: =IF($T67<>"P",0,pcOfTargetAchieved(ROW(),$M67)) -> 0 | X67: =IF($W67<>"P",0,pcOfAdvancedAchieved(ROW(),$M67)) -> 0 | Z67: 0 | AA67: 0 | AB67: 0 | AC67: 0 | AD67: 0 | AE67: 0 | AF67: 0 | AG67: 0 | AH67: 0
B68: =INDEX(Lookup!$B$9:$B$100,MATCH(CELL("contents",$C68),Lookup!$E$9:$E$100,0)) -> 2 | C68: Vulnerability management & scanning | D68: 7h | E68: 0 | F68: ™ | G68: ™ | H68: ™ | I68: ™ | J68: ™ | K68: ™ | L68: ™ | M68: 0 | Q68: P | R68: =IF($Q68<>"P",0,mySWITCH(INT($M68),0,0,0,1,1,2,2,3,2,4,2,5,2,6,2)) -> 0 | T68: P | U68: =IF($T68<>"P",0,pcOfTargetAchieved(ROW(),$M68)) -> 0 | W68: P | X68: =IF($W68<>"P",0,pcOfAdvancedAchieved(ROW(),$M68)) -> 0 | Z68: 0 | AA68: 0 | AB68: 0 | AC68: 0 | AD68: 0 | AE68: 0 | AF68: 0 | AG68: 0 | AH68: 0
B69: =INDEX(Lookup!$B$9:$B$100,MATCH(CELL("contents",$C69),Lookup!$E$9:$E$100,0)) -> 2 | C69: Data exfiltration monitoring | D69: 7k | E69: 0 | F69: ™ | G69: ™ | H69: ™ | I69: ™ | J69: ™ | K69: ™ | L69: ™ | M69: 0 | R69: =IF($Q69<>"P",0,mySWITCH(INT($M69),0,0,0,1,1,2,2,3,2,4,2,5,2,6,2)) -> 0 | T69: P | U69: =IF($T69<>"P",0,pcOfTargetAchieved(ROW(),$M69)) -> 0 | X69: =IF($W69<>"P",0,pcOfAdvancedAchieved(ROW(),$M69)) -> 0 | Z69: 0 | AA69: 0 | AB69: 0 | AC69: 0 | AD69: 0 | AE69: 0 | AF69: 0 | AG69: 0 | AH69: 0 | AI69: 0
B70: =INDEX(Lookup!$B$9:$B$100,MATCH(CELL("contents",$C70),Lookup!$E$9:$E$100,0)) -> 2 | C70: Software supported & updated | D70: 7l | E70: 0 | F70: ™ | G70: ™ | H70: ™ | I70: ™ | J70: ™ | K70: ™ | L70: ™ | M70: 0 | Q70: P | R70: =IF($Q70<>"P",0,mySWITCH(INT($M70),0,0,0,1,1,2,2,3,2,4,2,5,2,6,2)) -> 0 | T70: P | U70: =IF($T70<>"P",0,pcOfTargetAchieved(ROW(),$M70)) -> 0 | W70: P | X70: =IF($W70<>"P",0,pcOfAdvancedAchieved(ROW(),$M70)) -> 0 | Z70: 0 | AA70: 0 | AB70: 0 | AC70: 0 | AD70: 0 | AE70: 0 | AF70: 0 | AG70: 0 | AH70: 0
B71: =INDEX(Lookup!$B$9:$B$100,MATCH(CELL("contents",$C71),Lookup!$E$9:$E$100,0)) -> 2 | C71: Web site screening | D71: 7m | E71: 0 | F71: ™ | G71: ™ | H71: ™ | I71: ™ | J71: ™ | K71: ™ | L71: ™ | M71: 0 | Q71: P | R71: =IF($Q71<>"P",0,mySWITCH(INT($M71),0,0,0,1,1,2,2,3,2,4,2,5,2,6,2)) -> 0 | T71: P | U71: =IF($T71<>"P",0,pcOfTargetAchieved(ROW(),$M71)) -> 0 | X71: =IF($W71<>"P",0,pcOfAdvancedAchieved(ROW(),$M71)) -> 0 | Z71: 0 | AA71: 0 | AB71: 0 | AC71: 0 | AD71: 0 | AE71: 0 | AF71: 0 | AG71: 0 | AH71: 0
B72: =INDEX(Lookup!$B$9:$B$100,MATCH(CELL("contents",$C72),Lookup!$E$9:$E$100,0)) -> 2 | C72: Browser management | D72: 7n | E72: 0 | F72: ™ | G72: ™ | H72: ™ | I72: ™ | J72: ™ | K72: ™ | L72: ™ | M72: 0 | R72: =IF($Q72<>"P",0,mySWITCH(INT($M72),0,0,0,1,1,2,2,3,2,4,2,5,2,6,2)) -> 0 | T72: P | U72: =IF($T72<>"P",0,pcOfTargetAchieved(ROW(),$M72)) -> 0 | X72: =IF($W72<>"P",0,pcOfAdvancedAchieved(ROW(),$M72)) -> 0 | Z72: 0 | AA72: 0 | AB72: 0 | AC72: 0 | AD72: 0 | AE72: 0 | AF72: 0 | AG72: 0 | AH72: 0
B73: =INDEX(Lookup!$B$9:$B$100,MATCH(CELL("contents",$C73),Lookup!$E$9:$E$100,0)) -> 2 | C73: Monitor/audit user activity | D73: 7o | E73: 0 | F73: ™ | G73: ™ | H73: ™ | I73: ™ | J73: ™ | K73: ™ | L73: ™ | M73: 0 | R73: =IF($Q73<>"P",0,mySWITCH(INT($M73),0,0,0,1,1,2,2,3,2,4,2,5,2,6,2)) -> 0 | T73: P | U73: =IF($T73<>"P",0,pcOfTargetAchieved(ROW(),$M73)) -> 0 | W73: P | X73: =IF($W73<>"P",0,pcOfAdvancedAchieved(ROW(),$M73)) -> 0 | Z73: 0 | AA73: 0 | AB73: 0 | AC73: 0 | AD73: 0 | AE73: 0 | AF73: 0 | AG73: 0 | AH73: 0
B74: =INDEX(Lookup!$B$9:$B$100,MATCH(CELL("contents",$C74),Lookup!$E$9:$E$100,0)) -> 2 | C74: Disabled auto-run | D74: 7p | E74: 0 | F74: ™ | G74: ™ | H74: ™ | I74: ™ | J74: ™ | K74: ™ | L74: ™ | M74: 0 | Q74: P | R74: =IF($Q74<>"P",0,mySWITCH(INT($M74),0,0,0,1,1,2,2,3,2,4,2,5,2,6,2)) -> 0 | T74: P | U74: =IF($T74<>"P",0,pcOfTargetAchieved(ROW(),$M74)) -> 0 | X74: =IF($W74<>"P",0,pcOfAdvancedAchieved(ROW(),$M74)) -> 0 | Z74: 0 | AA74: 0 | AB74: 0 | AC74: 0 | AD74: 0 | AE74: 0 | AF74: 0 | AG74: 0 | AH74: 0
C75: NETWORK SECURITY | G75: 0 | H75: 1 | I75: 2 | J75: 3 | K75: 4 | L75: 5 | M75: ™ | O75: COMMENTS | Q75: Baseline | T75: Target | W75: Advanced | Z75: =Lookup!X$6 -> CE | AA75: =Lookup!Y$6 -> PSAP | AB75: =Lookup!Z$6 -> PSN - ITHC | AC75: =Lookup!AA$6 -> PCI-DSS | AD75: =Lookup!AB$6 -> 10 Steps | AE75: =Lookup!AC$6 -> GDPR | AF75: =Lookup!AD$6 -> HMG SPF | AG75: =Lookup!AE$6 -> ISO 27001 | AH75: =Lookup!AF$6 -> NIS - CAF | AI75: =Lookup!V6 -> totals
C76: Patch management | D76: 8a | E76: 0 | F76: ™ | G76: ™ | H76: ™ | I76: ™ | J76: ™ | K76: ™ | L76: ™ | M76: 0 | Q76: P | R76: =IF($Q76<>"P",0,mySWITCH(INT($M76),0,0,0,1,1,2,2,3,2,4,2,5,2,6,2)) -> 0 | T76: P | U76: =IF($T76<>"P",0,pcOfTargetAchieved(ROW(),$M76)) -> 0 | X76: =IF($W76<>"P",0,pcOfAdvancedAchieved(ROW(),$M76)) -> 0 | Z76: 0 | AA76: 0 | AB76: 0 | AC76: 0 | AD76: 0 | AE76: 0 | AF76: 0 | AG76: 0 | AH76: 0
C77: Device management | D77: 8b | E77: 0 | F77: ™ | G77: ™ | H77: ™ | I77: ™ | J77: ™ | K77: ™ | L77: ™ | M77: 0 | R77: =IF($Q77<>"P",0,mySWITCH(INT($M77),0,0,0,1,1,2,2,3,2,4,2,5,2,6,2)) -> 0 | T77: P | U77: =IF($T77<>"P",0,pcOfTargetAchieved(ROW(),$M77)) -> 0 | W77: P | X77: =IF($W77<>"P",0,pcOfAdvancedAchieved(ROW(),$M77)) -> 0 | Z77: 0 | AA77: 0 | AB77: 0 | AC77: 0 | AD77: 0 | AE77: 0 | AF77: 0 | AG77: 0 | AH77: 0
C78: Content screening | D78: 8c | E78: 0 | F78: ™ | G78: ™ | H78: ™ | I78: ™ | J78: ™ | K78: ™ | L78: ™ | M78: 0 | R78: =IF($Q78<>"P",0,mySWITCH(INT($M78),0,0,0,1,1,2,2,3,2,4,2,5,2,6,2)) -> 0 | T78: P | U78: =IF($T78<>"P",0,pcOfTargetAchieved(ROW(),$M78)) -> 0 | X78: =IF($W78<>"P",0,pcOfAdvancedAchieved(ROW(),$M78)) -> 0 | Z78: 0 | AA78: 0 | AB78: 0 | AC78: 0 | AD78: 0 | AE78: 0 | AF78: 0 | AG78: 0 | AH78: 0 | AI78: 0
C79: Internal segregation | D79: 8d | E79: 0 | F79: ™ | G79: ™ | H79: ™ | I79: ™ | J79: ™ | K79: ™ | L79: ™ | M79: 0 | R79: =IF($Q79<>"P",0,mySWITCH(INT($M79),0,0,0,1,1,2,2,3,2,4,2,5,2,6,2)) -> 0 | T79: P | U79: =IF($T79<>"P",0,pcOfTargetAchieved(ROW(),$M79)) -> 0 | W79: P | X79: =IF($W79<>"P",0,pcOfAdvancedAchieved(ROW(),$M79)) -> 0 | Z79: 0 | AA79: 0 | AB79: 0 | AC79: 0 | AD79: 0 | AE79: 0 | AF79: 0 | AG79: 0 | AH79: 0
C80: Wireless security | D80: 8e | E80: 0 | F80: ™ | G80: ™ | H80: ™ | I80: ™ | J80: ™ | K80: ™ | L80: ™ | M80: 0 | Q80: P | R80: =IF($Q80<>"P",0,mySWITCH(INT($M80),0,0,0,1,1,2,2,3,2,4,2,5,2,6,2)) -> 0 | T80: P | U80: =IF($T80<>"P",0,pcOfTargetAchieved(ROW(),$M80)) -> 0 | X80: =IF($W80<>"P",0,pcOfAdvancedAchieved(ROW(),$M80)) -> 0 | Z80: 0 | AA80: 0 | AB80: 0 | AC80: 0 | AD80: 0 | AE80: 0 | AF80: 0 | AG80: 0 | AH80: 0
C81: Boundary/Firewall management | D81: 8f | E81: 0 | F81: ™ | G81: ™ | H81: ™ | I81: ™ | J81: ™ | K81: ™ | L81: ™ | M81: 0 | Q81: P | R81: =IF($Q81<>"P",0,mySWITCH(INT($M81),0,0,0,1,1,2,2,3,2,4,2,5,2,6,2)) -> 0 | T81: P | U81: =IF($T81<>"P",0,pcOfTargetAchieved(ROW(),$M81)) -> 0 | W81: P | X81: =IF($W81<>"P",0,pcOfAdvancedAchieved(ROW(),$M81)) -> 0 | Z81: 0 | AA81: 0 | AB81: 0 | AC81: 0 | AD81: 0 | AE81: 0 | AF81: 0 | AG81: 0 | AH81: 0
C82: Administrator control | D82: 8g | E82: 0 | F82: ™ | G82: ™ | H82: ™ | I82: ™ | J82: ™ | K82: ™ | L82: ™ | M82: 0 | R82: =IF($Q82<>"P",0,mySWITCH(INT($M82),0,0,0,1,1,2,2,3,2,4,2,5,2,6,2)) -> 0 | T82: P | U82: =IF($T82<>"P",0,pcOfTargetAchieved(ROW(),$M82)) -> 0 | W82: P | X82: =IF($W82<>"P",0,pcOfAdvancedAchieved(ROW(),$M82)) -> 0 | Z82: 0 | AA82: 0 | AB82: 0 | AC82: 0 | AD82: 0 | AE82: 0 | AF82: 0 | AG82: 0 | AH82: 0
C83: Error message management | D83: 8h | E83: 0 | F83: ™ | G83: ™ | H83: ™ | I83: ™ | J83: ™ | K83: ™ | L83: ™ | M83: 0 | R83: =IF($Q83<>"P",0,mySWITCH(INT($M83),0,0,0,1,1,2,2,3,2,4,2,5,2,6,2)) -> 0 | T83: P | U83: =IF($T83<>"P",0,pcOfTargetAchieved(ROW(),$M83)) -> 0 | X83: =IF($W83<>"P",0,pcOfAdvancedAchieved(ROW(),$M83)) -> 0 | Z83: 0 | AA83: 0 | AB83: 0 | AC83: 0 | AD83: 0 | AE83: 0 | AF83: 0 | AG83: 0 | AH83: 0
C84: Penetration testing | D84: 8i | E84: 0 | F84: ™ | G84: ™ | H84: ™ | I84: ™ | J84: ™ | K84: ™ | L84: ™ | M84: 0 | R84: =IF($Q84<>"P",0,mySWITCH(INT($M84),0,0,0,1,1,2,2,3,2,4,2,5,2,6,2)) -> 0 | T84: P | U84: =IF($T84<>"P",0,pcOfTargetAchieved(ROW(),$M84)) -> 0 | X84: =IF($W84<>"P",0,pcOfAdvancedAchieved(ROW(),$M84)) -> 0 | Z84: 0 | AA84: 0 | AB84: 0 | AC84: 0 | AD84: 0 | AE84: 0 | AF84: 0 | AG84: 0 | AH84: 0
C85: IP & DNS management | D85: 8j | E85: 0 | F85: ™ | G85: ™ | H85: ™ | I85: ™ | J85: ™ | K85: ™ | L85: ™ | M85: 0 | Q85: P | R85: =IF($Q85<>"P",0,mySWITCH(INT($M85),0,0,0,1,1,2,2,3,2,4,2,5,2,6,2)) -> 0 | T85: P | U85: =IF($T85<>"P",0,pcOfTargetAchieved(ROW(),$M85)) -> 0 | W85: P | X85: =IF($W85<>"P",0,pcOfAdvancedAchieved(ROW(),$M85)) -> 0 | Z85: 0 | AA85: 0 | AB85: 0 | AC85: 0 | AD85: 0 | AE85: 0 | AF85: 0 | AG85: 0 | AH85: 0 | AI85: 0
A86: DETECT | C86: INCIDENT DETECTION | G86: 0 | H86: 1 | I86: 2 | J86: 3 | K86: 4 | L86: 5 | M86: ™ | O86: COMMENTS | Q86: Baseline | T86: Target | W86: Advanced | Z86: =Lookup!X$6 -> CE | AA86: =Lookup!Y$6 -> PSAP | AB86: =Lookup!Z$6 -> PSN - ITHC | AC86: =Lookup!AA$6 -> PCI-DSS | AD86: =Lookup!AB$6 -> 10 Steps | AE86: =Lookup!AC$6 -> GDPR | AF86: =Lookup!AD$6 -> HMG SPF | AG86: =Lookup!AE$6 -> ISO 27001 | AH86: =Lookup!AF$6 -> NIS - CAF | AI86: =Lookup!V6 -> totals
C87: Detection capability | D87: 16a | E87: 0 | F87: ™ | G87: ™ | H87: ™ | I87: ™ | J87: ™ | K87: ™ | L87: ™ | M87: 0 | R87: =IF($Q87<>"P",0,mySWITCH(INT($M87),0,0,0,1,1,2,2,3,2,4,2,5,2,6,2)) -> 0 | T87: P | U87: =IF($T87<>"P",0,pcOfTargetAchieved(ROW(),$M87)) -> 0 | W87: P | X87: =IF($W87<>"P",0,pcOfAdvancedAchieved(ROW(),$M87)) -> 0 | Z87: 0 | AA87: 0 | AB87: 0 | AC87: 0 | AD87: 0 | AE87: 0 | AF87: 0 | AG87: 0 | AH87: 0 | AI87: 0
C88: Security Monitoring | D88: 16b | E88: 0 | F88: ™ | G88: ™ | H88: ™ | I88: ™ | J88: ™ | K88: ™ | L88: ™ | M88: 0 | R88: =IF($Q88<>"P",0,mySWITCH(INT($M88),0,0,0,1,1,2,2,3,2,4,2,5,2,6,2)) -> 0 | T88: P | U88: =IF($T88<>"P",0,pcOfTargetAchieved(ROW(),$M88)) -> 0 | W88: P | X88: =IF($W88<>"P",0,pcOfAdvancedAchieved(ROW(),$M88)) -> 0 | Z88: 0 | AA88: 0 | AB88: 0 | AC88: 0 | AD88: 0 | AE88: 0 | AF88: 0 | AG88: 0 | AH88: 0
A89: RESPOND & RECOVER | C89: INCIDENT MANAGEMENT | G89: 0 | H89: 1 | I89: 2 | J89: 3 | K89: 4 | L89: 5 | M89: ™ | O89: COMMENTS | Q89: Baseline | T89: Target | W89: Advanced | Z89: =Lookup!X$6 -> CE | AA89: =Lookup!Y$6 -> PSAP | AB89: =Lookup!Z$6 -> PSN - ITHC | AC89: =Lookup!AA$6 -> PCI-DSS | AD89: =Lookup!AB$6 -> 10 Steps | AE89: =Lookup!AC$6 -> GDPR | AF89: =Lookup!AD$6 -> HMG SPF | AG89: =Lookup!AE$6 -> ISO 27001 | AH89: =Lookup!AF$6 -> NIS - CAF | AI89: =Lookup!V6 -> totals
C90: Incident response protocol | D90: 10b | E90: 0 | F90: ™ | G90: ™ | H90: ™ | I90: ™ | J90: ™ | K90: ™ | L90: ™ | M90: 0 | Q90: P | R90: =IF($Q90<>"P",0,mySWITCH(INT($M90),0,0,0,1,1,2,2,3,2,4,2,5,2,6,2)) -> 0 | T90: P | U90: =IF($T90<>"P",0,pcOfTargetAchieved(ROW(),$M90)) -> 0 | W90: P | X90: =IF($W90<>"P",0,pcOfAdvancedAchieved(ROW(),$M90)) -> 0 | Z90: 0 | AA90: 0 | AB90: 0 | AC90: 0 | AD90: 0 | AE90: 0 | AF90: 0 | AG90: 0 | AH90: 0
C91: Incident reporting procedure | D91: 10c | E91: 0 | F91: ™ | G91: ™ | H91: ™ | I91: ™ | J91: ™ | K91: ™ | L91: ™ | M91: 0 | Q91: P | R91: =IF($Q91<>"P",0,mySWITCH(INT($M91),0,0,0,1,1,2,2,3,2,4,2,5,2,6,2)) -> 0 | T91: P | U91: =IF($T91<>"P",0,pcOfTargetAchieved(ROW(),$M91)) -> 0 | X91: =IF($W91<>"P",0,pcOfAdvancedAchieved(ROW(),$M91)) -> 0 | Z91: 0 | AA91: 0 | AB91: 0 | AC91: 0 | AD91: 0 | AE91: 0 | AF91: 0 | AG91: 0 | AH91: 0
C92: Staff training & testing | D92: 10d | E92: 0 | F92: ™ | G92: ™ | H92: ™ | I92: ™ | J92: ™ | K92: ™ | L92: ™ | M92: 0 | R92: =IF($Q92<>"P",0,mySWITCH(INT($M92),0,0,0,1,1,2,2,3,2,4,2,5,2,6,2)) -> 0 | T92: P | U92: =IF($T92<>"P",0,pcOfTargetAchieved(ROW(),$M92)) -> 0 | X92: =IF($W92<>"P",0,pcOfAdvancedAchieved(ROW(),$M92)) -> 0 | Z92: 0 | AA92: 0 | AB92: 0 | AC92: 0 | AD92: 0 | AE92: 0 | AF92: 0 | AG92: 0 | AH92: 0 | AI92: 0
C93: Post-incident review & learning | D93: 10e | E93: 0 | F93: ™ | G93: ™ | H93: ™ | I93: ™ | J93: ™ | K93: ™ | L93: ™ | M93: 0 | Q93: P | R93: =IF($Q93<>"P",0,mySWITCH(INT($M93),0,0,0,1,1,2,2,3,2,4,2,5,2,6,2)) -> 0 | T93: P | U93: =IF($T93<>"P",0,pcOfTargetAchieved(ROW(),$M93)) -> 0 | W93: P | X93: =IF($W93<>"P",0,pcOfAdvancedAchieved(ROW(),$M93)) -> 0 | Z93: 0 | AA93: 0 | AB93: 0 | AC93: 0 | AD93: 0 | AE93: 0 | AF93: 0 | AG93: 0 | AH93: 0
C94: BUSINESS CONTINUITY | G94: 0 | H94: 1 | I94: 2 | J94: 3 | K94: 4 | L94: 5 | M94: ™ | O94: COMMENTS | Q94: Baseline | T94: Target | W94: Advanced | Z94: =Lookup!X$6 -> CE | AA94: =Lookup!Y$6 -> PSAP | AB94: =Lookup!Z$6 -> PSN - ITHC | AC94: =Lookup!AA$6 -> PCI-DSS | AD94: =Lookup!AB$6 -> 10 Steps | AE94: =Lookup!AC$6 -> GDPR | AF94: =Lookup!AD$6 -> HMG SPF | AG94: =Lookup!AE$6 -> ISO 27001 | AH94: =Lookup!AF$6 -> NIS - CAF | AI94: =Lookup!V6 -> totals
C95: Data recover capability | D95: 12a | E95: 0 | F95: ™ | G95: ™ | H95: ™ | I95: ™ | J95: ™ | K95: ™ | L95: ™ | M95: 0 | R95: =IF($Q95<>"P",0,mySWITCH(INT($M95),0,0,0,1,1,2,2,3,2,4,2,5,2,6,2)) -> 0 | T95: P | U95: =IF($T95<>"P",0,pcOfTargetAchieved(ROW(),$M95)) -> 0 | W95: P | X95: =IF($W95<>"P",0,pcOfAdvancedAchieved(ROW(),$M95)) -> 0 | Z95: 0 | AA95: 0 | AB95: 0 | AC95: 0 | AD95: 0 | AE95: 0 | AF95: 0 | AG95: 0 | AH95: 0
C96: Back up policies & procedures | D96: 12b | E96: 0 | F96: ™ | G96: ™ | H96: ™ | I96: ™ | J96: ™ | K96: ™ | L96: ™ | M96: 0 | R96: =IF($Q96<>"P",0,mySWITCH(INT($M96),0,0,0,1,1,2,2,3,2,4,2,5,2,6,2)) -> 0 | T96: P | U96: =IF($T96<>"P",0,pcOfTargetAchieved(ROW(),$M96)) -> 0 | W96: P | X96: =IF($W96<>"P",0,pcOfAdvancedAchieved(ROW(),$M96)) -> 0 | Z96: 0 | AA96: 0 | AB96: 0 | AC96: 0 | AD96: 0 | AE96: 0 | AF96: 0 | AG96: 0 | AH96: 0
C97: Disaster recovery policies & procedures | D97: 12c | E97: 0 | F97: ™ | G97: ™ | H97: ™ | I97: ™ | J97: ™ | K97: ™ | L97: ™ | M97: 0 | R97: =IF($Q97<>"P",0,mySWITCH(INT($M97),0,0,0,1,1,2,2,3,2,4,2,5,2,6,2)) -> 0 | T97: P | U97: =IF($T97<>"P",0,pcOfTargetAchieved(ROW(),$M97)) -> 0 | W97: P | X97: =IF($W97<>"P",0,pcOfAdvancedAchieved(ROW(),$M97)) -> 0 | Z97: 0 | AA97: 0 | AB97: 0 | AC97: 0 | AD97: 0 | AE97: 0 | AF97: 0 | AG97: 0 | AH97: 0
C98: BC/DR testing policies & procedures | D98: 12d | E98: 0 | F98: ™ | G98: ™ | H98: ™ | I98: ™ | J98: ™ | K98: ™ | L98: ™ | M98: 0 | R98: =IF($Q98<>"P",0,mySWITCH(INT($M98),0,0,0,1,1,2,2,3,2,4,2,5,2,6,2)) -> 0 | T98: P | U98: =IF($T98<>"P",0,pcOfTargetAchieved(ROW(),$M98)) -> 0 | W98: P | X98: =IF($W98<>"P",0,pcOfAdvancedAchieved(ROW(),$M98)) -> 0 | Z98: 0 | AA98: 0 | AB98: 0 | AC98: 0 | AD98: 0 | AE98: 0 | AF98: 0 | AG98: 0 | AH98: 0 | AI98: 0
C99: Data Loss impact assessments | D99: 12e | E99: 0 | F99: ™ | G99: ™ | H99: ™ | I99: ™ | J99: ™ | K99: ™ | L99: ™ | M99: 0 | R99: =IF($Q99<>"P",0,mySWITCH(INT($M99),0,0,0,1,1,2,2,3,2,4,2,5,2,6,2)) -> 0 | T99: P | U99: =IF($T99<>"P",0,pcOfTargetAchieved(ROW(),$M99)) -> 0 | W99: P | X99: =IF($W99<>"P",0,pcOfAdvancedAchieved(ROW(),$M99)) -> 0 | Z99: 0 | AA99: 0 | AB99: 0 | AC99: 0 | AD99: 0 | AE99: 0 | AF99: 0 | AG99: 0 | AH99: 0
C100: BC contingency plan | D100: 12f | E100: 0 | F100: ™ | G100: ™ | H100: ™ | I100: ™ | J100: ™ | K100: ™ | L100: ™ | M100: 0 | R100: =IF($Q100<>"P",0,mySWITCH(INT($M100),0,0,0,1,1,2,2,3,2,4,2,5,2,6,2)) -> 0 | T100: P | U100: =IF($T100<>"P",0,pcOfTargetAchieved(ROW(),$M100)) -> 0 | W100: P | X100: =IF($W100<>"P",0,pcOfAdvancedAchieved(ROW(),$M100)) -> 0 | Z100: 0 | AA100: 0 | AB100: 0 | AC100: 0 | AD100: 0 | AE100: 0 | AF100: 0 | AG100: 0 | AH100: 0
N101: OVERALL TOTALS

Sheet R03
C1: Report 3
C2: Report Date: | D2: 2019-06-21
C3: Assessor: | R3: RAG Status
M5: 5 | O5: NIS - CAF | R5: =myStageTotal(ROW(),COLUMN()) ->  | U5: =myStageTotal(ROW(),COLUMN()) ->  | X5: =myStageTotal(ROW(),COLUMN()) -> 
Z6: =SummaryOfMyColumn(COLUMN()) ->  | AA6: =SummaryOfMyColumn(COLUMN()) -> 
A8: MANAGE | C8: ORGANISATIONAL GOVERNANCE | F8: N/A | G8: 0 | H8: 1 | I8: 2 | J8: 3 | K8: 4 | L8: 5 | M8: Scored | O8: COMMENTS | Q8: Baseline | T8: Target | W8: Advanced | Y8: Scores | Z8: =Lookup!X$6 -> CE | AA8: =Lookup!Y$6 -> PSAP | AB8: =Lookup!Z$6 -> PSN - ITHC | AC8: =Lookup!AA$6 -> PCI-DSS | AD8: =Lookup!AB$6 -> 10 Steps | AE8: =Lookup!AC$6 -> GDPR | AF8: =Lookup!AD$6 -> HMG SPF | AG8: =Lookup!AE$6 -> ISO 27001 | AH8: =Lookup!AF$6 -> NIS - CAF | AI8: =Lookup!V6 -> totals
B9: =INDEX(Lookup!$B$9:$B$100,MATCH(CELL("contents",$C9),Lookup!$E$9:$E$100,0)) -> 1 | C9: Governance framework | D9: =Lookup!F9 -> 2a | E9: 0 | F9: ™ | G9: ™ | H9: ™ | I9: ™ | J9: ™ | K9: ™ | L9: ™ | M9: 0 | Q9: P | R9: =IF($Q9<>"P",0,mySWITCH(INT($M9),0,0,0,1,1,2,2,3,2,4,2,5,2,6,2)) -> 0 | T9: P | U9: =IF($T9<>"P",0,pcOfTargetAchieved(ROW(),$M9)) -> 0 | W9: P | X9: =IF($T9<>"P",0,pcOfTargetAchieved(ROW(),$M9)) -> 0 | Z9: 0 | AA9: 0 | AB9: 0 | AC9: 0 | AD9: 0 | AE9: 0 | AF9: 0 | AG9: 0 | AH9: 0 | AI9: 0
B10: =INDEX(Lookup!$B$9:$B$100,MATCH(CELL("contents",$C10),Lookup!$E$9:$E$100,0)) -> 1 | C10: Leadership & responsibility | D10: =Lookup!F10 -> 2b | E10: 0 | F10: ™ | G10: ™ | H10: ™ | I10: ™ | J10: ™ | K10: ™ | L10: ™ | M10: 0 | Q10: P | R10: =IF($Q10<>"P",0,mySWITCH(INT($M10),0,0,0,1,1,2,2,3,2,4,2,5,2,6,2)) -> 0 | T10: P | U10: =IF($T10<>"P",0,pcOfTargetAchieved(ROW(),$M10)) -> 0 | W10: P | X10: =IF($W10<>"P",0,pcOfAdvancedAchieved(ROW(),$M10)) -> 0 | Z10: 0 | AA10: 0 | AB10: 0 | AC10: 0 | AD10: 0 | AE10: 0 | AF10: 0 | AG10: 0 | AH10: 0 | AI10: 0
B11: =INDEX(Lookup!$B$9:$B$100,MATCH(CELL("contents",$C11),Lookup!$E$9:$E$100,0)) -> 1 | C11: Adoption of assurance standards | D11: =Lookup!F11 -> 2e | E11: 0 | F11: ™ | G11: ™ | H11: ™ | I11: ™ | J11: ™ | K11: ™ | L11: ™ | M11: 0 | Q11: P | R11: =IF($Q11<>"P",0,mySWITCH(INT($M11),0,0,0,1,1,2,2,3,2,4,2,5,2,6,2)) -> 0 | T11: P | U11: =IF($T11<>"P",0,pcOfTargetAchieved(ROW(),$M11)) -> 0 | W11: P | X11: =IF($W11<>"P",0,pcOfAdvancedAchieved(ROW(),$M11)) -> 0 | Z11: 0 | AA11: 0 | AB11: 0 | AC11: 0 | AD11: 0 | AE11: 0 | AF11: 0 | AG11: 0 | AH11: 0 | AI11: 0
B12: =INDEX(Lookup!$B$9:$B$100,MATCH(CELL("contents",$C12),Lookup!$E$9:$E$100,0)) -> 1 | C12: Information Asset Register | D12: =Lookup!F12 -> 2f | E12: 0 | F12: ™ | G12: ™ | H12: ™ | I12: ™ | J12: ™ | K12: ™ | L12: ™ | M12: 0 | Q12: P | R12: =IF($Q12<>"P",0,mySWITCH(INT($M12),0,0,0,1,1,2,2,3,2,4,2,5,2,6,2)) -> 0 | T12: P | U12: =IF($T12<>"P",0,pcOfTargetAchieved(ROW(),$M12)) -> 0 | W12: P | X12: =IF($W12<>"P",0,pcOfAdvancedAchieved(ROW(),$M12)) -> 0 | Z12: 0 | AA12: 0 | AB12: 0 | AC12: 0 | AD12: 0 | AE12: 0 | AF12: 0 | AG12: 0 | AH12: 0 | AI12: 0
B13: =INDEX(Lookup!$B$9:$B$100,MATCH(CELL("contents",$C13),Lookup!$E$9:$E$100,0)) -> 1 | C13: Audit/assurance compliance | D13: =Lookup!F13 -> 2g | E13: 0 | F13: ™ | G13: ™ | H13: ™ | I13: ™ | J13: ™ | K13: ™ | L13: ™ | M13: 0 | Q13: P | R13: =IF($Q13<>"P",0,mySWITCH(INT($M13),0,0,0,1,1,2,2,3,2,4,2,5,2,6,2)) -> 0 | T13: P | U13: =IF($T13<>"P",0,pcOfTargetAchieved(ROW(),$M13)) -> 0 | W13: P | X13: =IF($W13<>"P",0,pcOfAdvancedAchieved(ROW(),$M13)) -> 0 | Z13: 0 | AA13: 0 | AB13: 0 | AC13: 0 | AD13: 0 | AE13: 0 | AF13: 0 | AG13: 0 | AH13: 0 | AI13: 0
C14: RISK MANAGEMENT | G14: 0 | H14: 1 | I14: 2 | J14: 3 | K14: 4 | L14: 5 | O14: COMMENTS | Q14: Baseline | T14: Target | W14: Advanced | Y14: Scores | Z14: =Lookup!X$6 -> CE | AA14: =Lookup!Y$6 -> PSAP | AB14: =Lookup!Z$6 -> PSN - ITHC | AC14: =Lookup!AA$6 -> PCI-DSS | AD14: =Lookup!AB$6 -> 10 Steps | AE14: =Lookup!AC$6 -> GDPR | AF14: =Lookup!AD$6 -> HMG SPF | AG14: =Lookup!AE$6 -> ISO 27001 | AH14: =Lookup!AF$6 -> NIS - CAF | AI14: =Lookup!V6 -> totals
B15: =INDEX(Lookup!$B$9:$B$100,MATCH(CELL("contents",$C15),Lookup!$E$9:$E$100,0)) -> 1 | C15: Risk management policy & process | D15: 11a | E15: 0 | F15: ™ | G15: ™ | H15: ™ | I15: ™ | J15: ™ | K15: ™ | L15: ™ | M15: 0 | Q15: P | R15: =IF($Q15<>"P",0,mySWITCH(INT($M15),0,0,0,1,1,2,2,3,2,4,2,5,2,6,2)) -> 0 | T15: P | U15: =IF($T15<>"P",0,pcOfTargetAchieved(ROW(),$M15)) -> 0 | W15: P | X15: =IF($W15<>"P",0,pcOfAdvancedAchieved(ROW(),$M15)) -> 0 | Z15: 0 | AA15: 0 | AB15: 0 | AC15: 0 | AD15: 0 | AE15: 0 | AF15: 0 | AG15: 0 | AH15: 0 | AI15: 0
B16: =INDEX(Lookup!$B$9:$B$100,MATCH(CELL("contents",$C16),Lookup!$E$9:$E$100,0)) -> 1 | C16: Cyber / Information Risk Assessment | D16: 11b | E16: 0 | F16: ™ | G16: ™ | H16: ™ | I16: ™ | J16: ™ | K16: ™ | L16: ™ | M16: 0 | Q16: P | R16: =IF($Q16<>"P",0,mySWITCH(INT($M16),0,0,0,1,1,2,2,3,2,4,2,5,2,6,2)) -> 0 | T16: P | U16: =IF($T16<>"P",0,pcOfTargetAchieved(ROW(),$M16)) -> 0 | W16: P | X16: =IF($W16<>"P",0,pcOfAdvancedAchieved(ROW(),$M16)) -> 0 | Z16: 0 | AA16: 0 | AB16: 0 | AC16: 0 | AD16: 0 | AE16: 0 | AF16: 0 | AG16: 0 | AH16: 0 | AI16: 0
B17: =INDEX(Lookup!$B$9:$B$100,MATCH(CELL("contents",$C17),Lookup!$E$9:$E$100,0)) -> 1 | C17: Risk treatment & tolerance | D17: 11c | E17: 0 | F17: ™ | G17: ™ | H17: ™ | I17: ™ | J17: ™ | K17: ™ | L17: ™ | M17: 0 | Q17: P | R17: =IF($Q17<>"P",0,mySWITCH(INT($M17),0,0,0,1,1,2,2,3,2,4,2,5,2,6,2)) -> 0 | T17: P | U17: =IF($T17<>"P",0,pcOfTargetAchieved(ROW(),$M17)) -> 0 | W17: P | X17: =IF($W17<>"P",0,pcOfAdvancedAchieved(ROW(),$M17)) -> 0 | Z17: 0 | AA17: 0 | AB17: 0 | AC17: 0 | AD17: 0 | AE17: 0 | AF17: 0 | AG17: 0 | AH17: 0 | AI17: 0
B18: =INDEX(Lookup!$B$9:$B$100,MATCH(CELL("contents",$C18),Lookup!$E$9:$E$100,0)) -> 1 | C18: Risk governance | D18: 11d | E18: 0 | F18: ™ | G18: ™ | H18: ™ | I18: ™ | J18: ™ | K18: ™ | L18: ™ | M18: 0 | Q18: P | R18: =IF($Q18<>"P",0,mySWITCH(INT($M18),0,0,0,1,1,2,2,3,2,4,2,5,2,6,2)) -> 0 | T18: P | U18: =IF($T18<>"P",0,pcOfTargetAchieved(ROW(),$M18)) -> 0 | W18: P | X18: =IF($W18<>"P",0,pcOfAdvancedAchieved(ROW(),$M18)) -> 0 | Z18: 0 | AA18: 0 | AB18: 0 | AC18: 0 | AD18: 0 | AE18: 0 | AF18: 0 | AG18: 0 | AH18: 0 | AI18: 0
C19: SUPPLIER MANAGEMENT | G19: 0 | H19: 1 | I19: 2 | J19: 3 | K19: 4 | L19: 5 | M19: ™ | O19: COMMENTS | Q19: Baseline | T19: Target | W19: Advanced | Y19: Scores | Z19: =Lookup!X$6 -> CE | AA19: =Lookup!Y$6 -> PSAP | AB19: =Lookup!Z$6 -> PSN - ITHC | AC19: =Lookup!AA$6 -> PCI-DSS | AD19: =Lookup!AB$6 -> 10 Steps | AE19: =Lookup!AC$6 -> GDPR | AF19: =Lookup!AD$6 -> HMG SPF | AG19: =Lookup!AE$6 -> ISO 27001 | AH19: =Lookup!AF$6 -> NIS - CAF | AI19: =Lookup!V6 -> totals
B20: =INDEX(Lookup!$B$9:$B$100,MATCH(CELL("contents",$C20),Lookup!$E$9:$E$100,0)) -> 1 | C20: Supply chain security assurance & management | D20: 9a | E20: 0 | F20: ™ | G20: ™ | H20: ™ | I20: ™ | J20: ™ | K20: ™ | L20: ™ | M20: 0 | R20: =IF($Q20<>"P",0,mySWITCH(INT($M20),0,0,0,1,1,2,2,3,2,4,2,5,2,6,2)) -> 0 | T20: P | U20: =IF($T20<>"P",0,pcOfTargetAchieved(ROW(),$M20)) -> 0 | X20: =IF($W20<>"P",0,pcOfAdvancedAchieved(ROW(),$M20)) -> 0 | Z20: 0 | AA20: 0 | AB20: 0 | AC20: 0 | AD20: 0 | AE20: 0 | AF20: 0 | AG20: 0 | AH20: 0 | AI20: 0
B21: =INDEX(Lookup!$B$9:$B$100,MATCH(CELL("contents",$C21),Lookup!$E$9:$E$100,0)) -> 1 | C21: Roles & responsibilities defined | D21: 9b | E21: 0 | F21: ™ | G21: ™ | H21: ™ | I21: ™ | J21: ™ | K21: ™ | L21: ™ | M21: 0 | R21: =IF($Q21<>"P",0,mySWITCH(INT($M21),0,0,0,1,1,2,2,3,2,4,2,5,2,6,2)) -> 0 | T21: P | U21: =IF($T21<>"P",0,pcOfTargetAchieved(ROW(),$M21)) -> 0 | W21: P | X21: =IF($W21<>"P",0,pcOfAdvancedAchieved(ROW(),$M21)) -> 0 | Z21: 0 | AA21: 0 | AB21: 0 | AC21: 0 | AD21: 0 | AE21: 0 | AF21: 0 | AG21: 0 | AH21: 0 | AI21: 0
B22: =INDEX(Lookup!$B$9:$B$100,MATCH(CELL("contents",$C22),Lookup!$E$9:$E$100,0)) -> 1 | C22: Access control | D22: 9c | E22: 0 | F22: ™ | G22: ™ | H22: ™ | I22: ™ | J22: ™ | K22: ™ | L22: ™ | M22: 0 | R22: =IF($Q22<>"P",0,mySWITCH(INT($M22),0,0,0,1,1,2,2,3,2,4,2,5,2,6,2)) -> 0 | U22: =IF($T22<>"P",0,pcOfTargetAchieved(ROW(),$M22)) -> 0 | W22: P | X22: =IF($W22<>"P",0,pcOfAdvancedAchieved(ROW(),$M22)) -> 0 | Z22: 0 | AA22: 0 | AB22: 0 | AC22: 0 | AD22: 0 | AE22: 0 | AF22: 0 | AG22: 0 | AH22: 0 | AI22: 0
B23: =INDEX(Lookup!$B$9:$B$100,MATCH(CELL("contents",$C23),Lookup!$E$9:$E$100,0)) -> 1 | C23: Security in system procurements | D23: 9d | E23: 0 | F23: ™ | G23: ™ | H23: ™ | I23: ™ | J23: ™ | K23: ™ | L23: ™ | M23: 0 | R23: =IF($Q23<>"P",0,mySWITCH(INT($M23),0,0,0,1,1,2,2,3,2,4,2,5,2,6,2)) -> 0 | T23: P | U23: =IF($T23<>"P",0,pcOfTargetAchieved(ROW(),$M23)) -> 0 | W23: P | X23: =IF($W23<>"P",0,pcOfAdvancedAchieved(ROW(),$M23)) -> 0 | Z23: 0 | AA23: 0 | AB23: 0 | AC23: 0 | AD23: 0 | AE23: 0 | AF23: 0 | AG23: 0 | AH23: 0 | AI23: 0
C24: ASSET MANAGEMENT | G24: 0 | H24: 1 | I24: 2 | J24: 3 | K24: 4 | L24: 5 | M24: ™ | O24: COMMENTS | Q24: Baseline | T24: Target | W24: Advanced | Y24: Scores | Z24: =Lookup!X$6 -> CE | AA24: =Lookup!Y$6 -> PSAP | AB24: =Lookup!Z$6 -> PSN - ITHC | AC24: =Lookup!AA$6 -> PCI-DSS | AD24: =Lookup!AB$6 -> 10 Steps | AE24: =Lookup!AC$6 -> GDPR | AF24: =Lookup!AD$6 -> HMG SPF | AG24: =Lookup!AE$6 -> ISO 27001 | AH24: =Lookup!AF$6 -> NIS - CAF | AI24: =Lookup!V6 -> totals
B25: =INDEX(Lookup!$B$9:$B$100,MATCH(CELL("contents",$C25),Lookup!$E$9:$E$100,0)) -> 1 | C25: Hardware assets register & management | D25: =Lookup!$F25 -> 4a | E25: 0 | F25: ™ | G25: ™ | H25: ™ | I25: ™ | J25: ™ | K25: ™ | L25: ™ | M25: 0 | R25: =IF($Q25<>"P",0,mySWITCH(INT($M25),0,0,0,1,1,2,2,3,2,4,2,5,2,6,2)) -> 0 | T25: P | U25: =IF($T25<>"P",0,pcOfTargetAchieved(ROW(),$M25)) -> 0 | W25: P | X25: =IF($W25<>"P",0,pcOfAdvancedAchieved(ROW(),$M25)) -> 0 | Z25: 0 | AA25: 0 | AB25: 0 | AC25: 0 | AD25: 0 | AE25: 0 | AF25: 0 | AG25: 0 | AH25: 0 | AI25: 0
B26: =INDEX(Lookup!$B$9:$B$100,MATCH(CELL("contents",$C26),Lookup!$E$9:$E$100,0)) -> 1 | C26: Software assets register & management | D26: =Lookup!$F26 -> 4b | E26: 0 | F26: ™ | G26: ™ | H26: ™ | I26: ™ | J26: ™ | K26: ™ | L26: ™ | M26: 0 | Q26: P | R26: =IF($Q26<>"P",0,mySWITCH(INT($M26),0,0,0,1,1,2,2,3,2,4,2,5,2,6,2)) -> 0 | T26: P | U26: =IF($T26<>"P",0,pcOfTargetAchieved(ROW(),$M26)) -> 0 | W26: P | X26: =IF($W26<>"P",0,pcOfAdvancedAchieved(ROW(),$M26)) -> 0 | Z26: 0 | AA26: 0 | AB26: 0 | AC26: 0 | AD26: 0 | AE26: 0 | AF26: 0 | AG26: 0 | AH26: 0 | AI26: 0
B27: =INDEX(Lookup!$B$9:$B$100,MATCH(CELL("contents",$C27),Lookup!$E$9:$E$100,0)) -> 1 | C27: Infrastructure management | D27: =Lookup!$F27 -> 4c | E27: 0 | F27: ™ | G27: ™ | H27: ™ | I27: ™ | J27: ™ | K27: ™ | L27: ™ | M27: 0 | R27: =IF($Q27<>"P",0,mySWITCH(INT($M27),0,0,0,1,1,2,2,3,2,4,2,5,2,6,2)) -> 0 | T27: P | U27: =IF($T27<>"P",0,pcOfTargetAchieved(ROW(),$M27)) -> 0 | W27: P | X27: =IF($W27<>"P",0,pcOfAdvancedAchieved(ROW(),$M27)) -> 0 | Z27: 0 | AA27: 0 | AB27: 0 | AC27: 0 | AD27: 0 | AE27: 0 | AF27: 0 | AG27: 0 | AH27: 0 | AI27: 0
A28: PROTECT | C28: INFORMATION SECURITY MANAGEMENT | G28: 0 | H28: 1 | I28: 2 | J28: 3 | K28: 4 | L28: 5 | M28: ™ | O28: COMMENTS | Q28: Baseline | T28: Target | W28: Advanced | Y28: Scores | Z28: =Lookup!X$6 -> CE | AA28: =Lookup!Y$6 -> PSAP | AB28: =Lookup!Z$6 -> PSN - ITHC | AC28: =Lookup!AA$6 -> PCI-DSS | AD28: =Lookup!AB$6 -> 10 Steps | AE28: =Lookup!AC$6 -> GDPR | AF28: =Lookup!AD$6 -> HMG SPF | AG28: =Lookup!AE$6 -> ISO 27001 | AH28: =Lookup!AF$6 -> NIS - CAF | AI28: =Lookup!V6 -> totals
B29: =INDEX(Lookup!$B$9:$B$100,MATCH(CELL("contents",$C29),Lookup!$E$9:$E$100,0)) -> 2 | C29: Security policy & processes | D29: 1a | E29: 0 | F29: ™ | G29: ™ | H29: ™ | I29: ™ | J29: ™ | K29: ™ | L29: ™ | M29: 0 | R29: =IF($Q29<>"P",0,mySWITCH(INT($M29),0,0,0,1,1,2,2,3,2,4,2,5,2,6,2)) -> 0 | T29: P | U29: =IF($T29<>"P",0,pcOfTargetAchieved(ROW(),$M29)) -> 0 | W29: P | X29: =IF($W29<>"P",0,pcOfAdvancedAchieved(ROW(),$M29)) -> 0 | Z29: 0 | AA29: 0 | AB29: 0 | AC29: 0 | AD29: 0 | AE29: 0 | AF29: 0 | AG29: 0 | AH29: 0 | AI29: 0
B30: =INDEX(Lookup!$B$9:$B$100,MATCH(CELL("contents",$C30),Lookup!$E$9:$E$100,0)) -> 2 | C30: Lifecycle management | D30: 1b | E30: 0 | F30: ™ | G30: ™ | H30: ™ | I30: ™ | J30: ™ | K30: ™ | L30: ™ | M30: 0 | R30: =IF($Q30<>"P",0,mySWITCH(INT($M30),0,0,0,1,1,2,2,3,2,4,2,5,2,6,2)) -> 0 | T30: P | U30: =IF($T30<>"P",0,pcOfTargetAchieved(ROW(),$M30)) -> 0 | W30: P | X30: =IF($W30<>"P",0,pcOfAdvancedAchieved(ROW(),$M30)) -> 0 | Z30: 0 | AA30: 0 | AB30: 0 | AC30: 0 | AD30: 0 | AE30: 0 | AF30: 0 | AG30: 0 | AH30: 0 | AI30: 0
C31: Storage | D31: 1c | E31: 0 | F31: ™ | G31: ™ | H31: ™ | I31: ™ | J31: ™ | K31: ™ | L31: ™ | M31: 0 | R31: =IF($Q31<>"P",0,mySWITCH(INT($M31),0,0,0,1,1,2,2,3,2,4,2,5,2,6,2)) -> 0 | T31: P | U31: =IF($T31<>"P",0,pcOfTargetAchieved(ROW(),$M31)) -> 0 | W31: P | X31: =IF($W31<>"P",0,pcOfAdvancedAchieved(ROW(),$M31)) -> 0 | Z31: 0 | AA31: 0 | AB31: 0 | AC31: 0 | AD31: 0 | AE31: 0 | AF31: 0 | AG31: 0 | AH31: 0
C32: Information/data classification | D32: 1f | E32: 0 | F32: ™ | G32: ™ | H32: ™ | I32: ™ | J32: ™ | K32: ™ | L32: ™ | M32: 0 | R32: =IF($Q32<>"P",0,mySWITCH(INT($M32),0,0,0,1,1,2,2,3,2,4,2,5,2,6,2)) -> 0 | T32: P | U32: =IF($T32<>"P",0,pcOfTargetAchieved(ROW(),$M32)) -> 0 | W32: P | X32: =IF($W32<>"P",0,pcOfAdvancedAchieved(ROW(),$M32)) -> 0 | Z32: 0 | AA32: 0 | AB32: 0 | AC32: 0 | AD32: 0 | AE32: 0 | AF32: 0 | AG32: 0 | AH32: 0 | AI32: 0
C33: Information assets register | D33: 1g | E33: 0 | F33: ™ | G33: ™ | H33: ™ | I33: ™ | J33: ™ | K33: ™ | L33: ™ | M33: 0 | R33: =IF($Q33<>"P",0,mySWITCH(INT($M33),0,0,0,1,1,2,2,3,2,4,2,5,2,6,2)) -> 0 | T33: P | U33: =IF($T33<>"P",0,pcOfTargetAchieved(ROW(),$M33)) -> 0 | W33: P | X33: =IF($W33<>"P",0,pcOfAdvancedAchieved(ROW(),$M33)) -> 0 | Z33: 0 | AA33: 0 | AB33: 0 | AC33: 0 | AD33: 0 | AE33: 0 | AF33: 0 | AG33: 0 | AH33: 0
C34: Information/data transfer controls | D34: 1h | E34: 0 | F34: ™ | G34: ™ | H34: ™ | I34: ™ | J34: ™ | K34: ™ | L34: ™ | M34: 0 | R34: =IF($Q34<>"P",0,mySWITCH(INT($M34),0,0,0,1,1,2,2,3,2,4,2,5,2,6,2)) -> 0 | T34: P | U34: =IF($T34<>"P",0,pcOfTargetAchieved(ROW(),$M34)) -> 0 | W34: P | X34: =IF($W34<>"P",0,pcOfAdvancedAchieved(ROW(),$M34)) -> 0 | Z34: 0 | AA34: 0 | AB34: 0 | AC34: 0 | AD34: 0 | AE34: 0 | AF34: 0 | AG34: 0 | AH34: 0
C35: PEOPLE | G35: 0 | H35: 1 | I35: 2 | J35: 3 | K35: 4 | L35: 5 | M35: ™ | O35: COMMENTS | Q35: Baseline | T35: Target | W35: Advanced | Y35: Scores | Z35: =Lookup!X$6 -> CE | AA35: =Lookup!Y$6 -> PSAP | AB35: =Lookup!Z$6 -> PSN - ITHC | AC35: =Lookup!AA$6 -> PCI-DSS | AD35: =Lookup!AB$6 -> 10 Steps | AE35: =Lookup!AC$6 -> GDPR | AF35: =Lookup!AD$6 -> HMG SPF | AG35: =Lookup!AE$6 -> ISO 27001 | AH35: =Lookup!AF$6 -> NIS - CAF | AI35: =Lookup!V6 -> totals
C36: Prior to employment | D36: 13a | E36: 0 | F36: ™ | G36: ™ | H36: ™ | I36: ™ | J36: ™ | K36: ™ | L36: ™ | M36: 0 | R36: =IF($Q36<>"P",0,mySWITCH(INT($M36),0,0,0,1,1,2,2,3,2,4,2,5,2,6,2)) -> 0 | T36: P | U36: =IF($T36<>"P",0,pcOfTargetAchieved(ROW(),$M36)) -> 0 | W36: P | X36: =IF($W36<>"P",0,pcOfAdvancedAchieved(ROW(),$M36)) -> 0 | Z36: 0 | AA36: 0 | AB36: 0 | AC36: 0 | AD36: 0 | AE36: 0 | AF36: 0 | AG36: 0 | AH36: 0
B37: =INDEX(Lookup!$B$9:$B$100,MATCH(CELL("contents",$C37),Lookup!$E$9:$E$100,0)) -> 2 | C37: During employment | D37: 13d | E37: 0 | F37: ™ | G37: ™ | H37: ™ | I37: ™ | J37: ™ | K37: ™ | L37: ™ | M37: 0 | R37: =IF($Q37<>"P",0,mySWITCH(INT($M37),0,0,0,1,1,2,2,3,2,4,2,5,2,6,2)) -> 0 | T37: P | U37: =IF($T37<>"P",0,pcOfTargetAchieved(ROW(),$M37)) -> 0 | W37: P | X37: =IF($W37<>"P",0,pcOfAdvancedAchieved(ROW(),$M37)) -> 0 | Z37: 0 | AA37: 0 | AB37: 0 | AC37: 0 | AD37: 0 | AE37: 0 | AF37: 0 | AG37: 0 | AH37: 0
C38: Staff training & awareness culture | D38: 13i | E38: 0 | F38: ™ | G38: ™ | H38: ™ | I38: ™ | J38: ™ | K38: ™ | L38: ™ | M38: 0 | Q38: P | R38: =IF($Q38<>"P",0,mySWITCH(INT($M38),0,0,0,1,1,2,2,3,2,4,2,5,2,6,2)) -> 0 | T38: P | U38: =IF($T38<>"P",0,pcOfTargetAchieved(ROW(),$M38)) -> 0 | W38: P | X38: =IF($W38<>"P",0,pcOfAdvancedAchieved(ROW(),$M38)) -> 0 | Z38: 0 | AA38: 0 | AB38: 0 | AC38: 0 | AD38: 0 | AE38: 0 | AF38: 0 | AG38: 0 | AH38: 0
C39: Staff skills assessment | D39: 13j | E39: 0 | F39: ™ | G39: ™ | H39: ™ | I39: ™ | J39: ™ | K39: ™ | L39: ™ | M39: 0 | R39: =IF($Q39<>"P",0,mySWITCH(INT($M39),0,0,0,1,1,2,2,3,2,4,2,5,2,6,2)) -> 0 | T39: P | U39: =IF($T39<>"P",0,pcOfTargetAchieved(ROW(),$M39)) -> 0 | W39: P | X39: =IF($W39<>"P",0,pcOfAdvancedAchieved(ROW(),$M39)) -> 0 | Z39: 0 | AA39: 0 | AB39: 0 | AC39: 0 | AD39: 0 | AE39: 0 | AF39: 0 | AG39: 0 | AH39: 0
C40: Mobile/remote working policy | D40: 13o | E40: 0 | F40: ™ | G40: ™ | H40: ™ | I40: ™ | J40: ™ | K40: ™ | L40: ™ | M40: 0 | R40: =IF($Q40<>"P",0,mySWITCH(INT($M40),0,0,0,1,1,2,2,3,2,4,2,5,2,6,2)) -> 0 | T40: P | U40: =IF($T40<>"P",0,pcOfTargetAchieved(ROW(),$M40)) -> 0 | W40: P | X40: =IF($W40<>"P",0,pcOfAdvancedAchieved(ROW(),$M40)) -> 0 | Z40: 0 | AA40: 0 | AB40: 0 | AC40: 0 | AD40: 0 | AE40: 0 | AF40: 0 | AG40: 0 | AH40: 0
C41: SERVICES RESILIENCE | G41: 0 | H41: 1 | I41: 2 | J41: 3 | K41: 4 | L41: 5 | M41: ™ | O41: COMMENTS | Q41: Baseline | T41: Target | W41: Advanced | Y41: Scores | Z41: =Lookup!X$6 -> CE | AA41: =Lookup!Y$6 -> PSAP | AB41: =Lookup!Z$6 -> PSN - ITHC | AC41: =Lookup!AA$6 -> PCI-DSS | AD41: =Lookup!AB$6 -> 10 Steps | AE41: =Lookup!AC$6 -> GDPR | AF41: =Lookup!AD$6 -> HMG SPF | AG41: =Lookup!AE$6 -> ISO 27001 | AH41: =Lookup!AF$6 -> NIS - CAF | AI41: =Lookup!V6 -> totals
C42: Services Resilience | D42: 17a | E42: 0 | F42: ™ | G42: ™ | H42: ™ | I42: ™ | J42: ™ | K42: ™ | L42: ™ | M42: 0 | R42: =IF($Q42<>"P",0,mySWITCH(INT($M42),0,0,0,1,1,2,2,3,2,4,2,5,2,6,2)) -> 0 | T42: P | U42: =IF($T42<>"P",0,pcOfTargetAchieved(ROW(),$M42)) -> 0 | W42: P | X42: =IF($W42<>"P",0,pcOfAdvancedAchieved(ROW(),$M42)) -> 0 | Z42: 0 | AA42: 0 | AB42: 0 | AC42: 0 | AD42: 0 | AE42: 0 | AF42: 0 | AG42: 0 | AH42: 0
C43: ACCESS CONTROL | G43: 0 | H43: 1 | I43: 2 | J43: 3 | K43: 4 | L43: 5 | M43: ™ | O43: COMMENTS | Q43: Baseline | T43: Target | W43: Advanced | Y43: Scores | Z43: =Lookup!X$6 -> CE | AA43: =Lookup!Y$6 -> PSAP | AB43: =Lookup!Z$6 -> PSN - ITHC | AC43: =Lookup!AA$6 -> PCI-DSS | AD43: =Lookup!AB$6 -> 10 Steps | AE43: =Lookup!AC$6 -> GDPR | AF43: =Lookup!AD$6 -> HMG SPF | AG43: =Lookup!AE$6 -> ISO 27001 | AH43: =Lookup!AF$6 -> NIS - CAF | AI43: =Lookup!V6 -> totals
C44: Account management | D44: 3a | E44: 0 | F44: ™ | G44: ™ | H44: ™ | I44: ™ | J44: ™ | K44: ™ | L44: ™ | M44: 0 | Q44: P | R44: =IF($Q44<>"P",0,mySWITCH(INT($M44),0,0,0,1,1,2,2,3,2,4,2,5,2,6,2)) -> 0 | T44: P | U44: =IF($T44<>"P",0,pcOfTargetAchieved(ROW(),$M44)) -> 0 | X44: =IF($W44<>"P",0,pcOfAdvancedAchieved(ROW(),$M44)) -> 0 | Z44: 0 | AA44: 0 | AB44: 0 | AC44: 0 | AD44: 0 | AE44: 0 | AF44: 0 | AG44: 0 | AH44: 0
B45: =INDEX(Lookup!$B$9:$B$100,MATCH(CELL("contents",$C45),Lookup!$E$9:$E$100,0)) -> 2 | C45: Identity authentication | D45: 3b | E45: 0 | F45: ™ | G45: ™ | H45: ™ | I45: ™ | J45: ™ | K45: ™ | L45: ™ | M45: 0 | Q45: P | R45: =IF($Q45<>"P",0,mySWITCH(INT($M45),0,0,0,1,1,2,2,3,2,4,2,5,2,6,2)) -> 0 | T45: P | U45: =IF($T45<>"P",0,pcOfTargetAchieved(ROW(),$M45)) -> 0 | W45: P | X45: =IF($W45<>"P",0,pcOfAdvancedAchieved(ROW(),$M45)) -> 0 | Z45: 0 | AA45: 0 | AB45: 0 | AC45: 0 | AD45: 0 | AE45: 0 | AF45: 0 | AG45: 0 | AH45: 0
B46: =INDEX(Lookup!$B$9:$B$100,MATCH(CELL("contents",$C46),Lookup!$E$9:$E$100,0)) -> 2 | C46: Privilege management | D46: 3e | E46: 0 | F46: ™ | G46: ™ | H46: ™ | I46: ™ | J46: ™ | K46: ™ | L46: ™ | M46: 0 | Q46: P | R46: =IF($Q46<>"P",0,mySWITCH(INT($M46),0,0,0,1,1,2,2,3,2,4,2,5,2,6,2)) -> 0 | T46: P | U46: =IF($T46<>"P",0,pcOfTargetAchieved(ROW(),$M46)) -> 0 | W46: P | X46: =IF($W46<>"P",0,pcOfAdvancedAchieved(ROW(),$M46)) -> 0 | Z46: 0 | AA46: 0 | AB46: 0 | AC46: 0 | AD46: 0 | AE46: 0 | AF46: 0 | AG46: 0 | AH46: 0
B47: =INDEX(Lookup!$B$9:$B$100,MATCH(CELL("contents",$C47),Lookup!$E$9:$E$100,0)) -> 2 | C47: Administrator account management | D47: 3f | E47: 0 | F47: ™ | G47: ™ | H47: ™ | I47: ™ | J47: ™ | K47: ™ | L47: ™ | M47: 0 | Q47: P | R47: =IF($Q47<>"P",0,mySWITCH(INT($M47),0,0,0,1,1,2,2,3,2,4,2,5,2,6,2)) -> 0 | T47: P | U47: =IF($T47<>"P",0,pcOfTargetAchieved(ROW(),$M47)) -> 0 | W47: P | X47: =IF($W47<>"P",0,pcOfAdvancedAchieved(ROW(),$M47)) -> 0 | Z47: 0 | AA47: 0 | AB47: 0 | AC47: 0 | AD47: 0 | AE47: 0 | AF47: 0 | AG47: 0 | AH47: 0
C48: MEDIA MANAGEMENT | G48: 0 | H48: 1 | I48: 2 | J48: 3 | K48: 4 | L48: 5 | M48: ™ | O48: COMMENTS | Q48: Baseline | T48: Target | W48: Advanced | Y48: Scores | Z48: =Lookup!X$6 -> CE | AA48: =Lookup!Y$6 -> PSAP | AB48: =Lookup!Z$6 -> PSN - ITHC | AC48: =Lookup!AA$6 -> PCI-DSS | AD48: =Lookup!AB$6 -> 10 Steps | AE48: =Lookup!AC$6 -> GDPR | AF48: =Lookup!AD$6 -> HMG SPF | AG48: =Lookup!AE$6 -> ISO 27001 | AH48: =Lookup!AF$6 -> NIS - CAF | AI48: =Lookup!V6 -> totals
C49: Storage media management | D49: 14a | E49: 0 | F49: ™ | G49: ™ | H49: ™ | I49: ™ | J49: ™ | K49: ™ | L49: ™ | M49: 0 | R49: =IF($Q49<>"P",0,mySWITCH(INT($M49),0,0,0,1,1,2,2,3,2,4,2,5,2,6,2)) -> 0 | T49: P | U49: =IF($T49<>"P",0,pcOfTargetAchieved(ROW(),$M49)) -> 0 | W49: P | X49: =IF($W49<>"P",0,pcOfAdvancedAchieved(ROW(),$M49)) -> 0 | Z49: 0 | AA49: 0 | AB49: 0 | AC49: 0 | AD49: 0 | AE49: 0 | AF49: 0 | AG49: 0 | AH49: 0
B50: =INDEX(Lookup!$B$9:$B$100,MATCH(CELL("contents",$C50),Lookup!$E$9:$E$100,0)) -> 2 | C50: Mobile media/devices | D50: 14b | E50: 0 | F50: ™ | G50: ™ | H50: ™ | I50: ™ | J50: ™ | K50: ™ | L50: ™ | M50: 0 | R50: =IF($Q50<>"P",0,mySWITCH(INT($M50),0,0,0,1,1,2,2,3,2,4,2,5,2,6,2)) -> 0 | T50: P | U50: =IF($T50<>"P",0,pcOfTargetAchieved(ROW(),$M50)) -> 0 | W50: P | X50: =IF($W50<>"P",0,pcOfAdvancedAchieved(ROW(),$M50)) -> 0 | Z50: 0 | AA50: 0 | AB50: 0 | AC50: 0 | AD50: 0 | AE50: 0 | AF50: 0 | AG50: 0 | AH50: 0
B51: =INDEX(Lookup!$B$9:$B$100,MATCH(CELL("contents",$C51),Lookup!$E$9:$E$100,0)) -> 2 | C51: Cryptography | D51: 14c | E51: 0 | F51: ™ | G51: ™ | H51: ™ | I51: ™ | J51: ™ | K51: ™ | L51: ™ | M51: 0 | R51: =IF($Q51<>"P",0,mySWITCH(INT($M51),0,0,0,1,1,2,2,3,2,4,2,5,2,6,2)) -> 0 | T51: P | U51: =IF($T51<>"P",0,pcOfTargetAchieved(ROW(),$M51)) -> 0 | W51: P | X51: =IF($W51<>"P",0,pcOfAdvancedAchieved(ROW(),$M51)) -> 0 | Z51: 0 | AA51: 0 | AB51: 0 | AC51: 0 | AD51: 0 | AE51: 0 | AF51: 0 | AG51: 0 | AH51: 0
B52: =INDEX(Lookup!$B$9:$B$100,MATCH(CELL("contents",$C52),Lookup!$E$9:$E$100,0)) -> 2 | C52: Remote wipe capability | D52: 14d | E52: 0 | F52: ™ | G52: ™ | H52: ™ | I52: ™ | J52: ™ | K52: ™ | L52: ™ | M52: 0 | R52: =IF($Q52<>"P",0,mySWITCH(INT($M52),0,0,0,1,1,2,2,3,2,4,2,5,2,6,2)) -> 0 | T52: P | U52: =IF($T52<>"P",0,pcOfTargetAchieved(ROW(),$M52)) -> 0 | X52: =IF($W52<>"P",0,pcOfAdvancedAchieved(ROW(),$M52)) -> 0 | Z52: 0 | AA52: 0 | AB52: 0 | AC52: 0 | AD52: 0 | AE52: 0 | AF52: 0 | AG52: 0 | AH52: 0
C53: ENVIRONMENTAL SECURITY | G53: 0 | H53: 1 | I53: 2 | J53: 3 | K53: 4 | L53: 5 | M53: ™ | O53: COMMENTS | Q53: Baseline | T53: Target | W53: Advanced | Y53: Scores | Z53: =Lookup!X$6 -> CE | AA53: =Lookup!Y$6 -> PSAP | AB53: =Lookup!Z$6 -> PSN - ITHC | AC53: =Lookup!AA$6 -> PCI-DSS | AD53: =Lookup!AB$6 -> 10 Steps | AE53: =Lookup!AC$6 -> GDPR | AF53: =Lookup!AD$6 -> HMG SPF | AG53: =Lookup!AE$6 -> ISO 27001 | AH53: =Lookup!AF$6 -> NIS - CAF | AI53: =Lookup!V6 -> totals
C54: Equipment location | D54: 15a | E54: 0 | F54: ™ | G54: ™ | H54: ™ | I54: ™ | J54: ™ | K54: ™ | L54: ™ | M54: 0 | R54: =IF($Q54<>"P",0,mySWITCH(INT($M54),0,0,0,1,1,2,2,3,2,4,2,5,2,6,2)) -> 0 | U54: =IF($T54<>"P",0,pcOfTargetAchieved(ROW(),$M54)) -> 0 | W54: P | X54: =IF($W54<>"P",0,pcOfAdvancedAchieved(ROW(),$M54)) -> 0 | Z54: 0 | AA54: 0 | AB54: 0 | AC54: 0 | AD54: 0 | AE54: 0 | AF54: 0 | AG54: 0 | AH54: 0
B55: =INDEX(Lookup!$B$9:$B$100,MATCH(CELL("contents",$C55),Lookup!$E$9:$E$100,0)) -> 2 | C55: Power resilience | D55: 15b | E55: 0 | F55: ™ | G55: ™ | H55: ™ | I55: ™ | J55: ™ | K55: ™ | L55: ™ | M55: 0 | R55: =IF($Q55<>"P",0,mySWITCH(INT($M55),0,0,0,1,1,2,2,3,2,4,2,5,2,6,2)) -> 0 | U55: =IF($T55<>"P",0,pcOfTargetAchieved(ROW(),$M55)) -> 0 | W55: P | X55: =IF($W55<>"P",0,pcOfAdvancedAchieved(ROW(),$M55)) -> 0 | Z55: 0 | AA55: 0 | AB55: 0 | AC55: 0 | AD55: 0 | AE55: 0 | AF55: 0 | AG55: 0 | AH55: 0
C56: PHYSICAL/BUILDING SECURITY | G56: 0 | H56: 1 | I56: 2 | J56: 3 | K56: 4 | L56: 5 | M56: ™ | O56: COMMENTS | Q56: Baseline | T56: Target | W56: Advanced | Y56: Scores | Z56: =Lookup!X$6 -> CE | AA56: =Lookup!Y$6 -> PSAP | AB56: =Lookup!Z$6 -> PSN - ITHC | AC56: =Lookup!AA$6 -> PCI-DSS | AD56: =Lookup!AB$6 -> 10 Steps | AE56: =Lookup!AC$6 -> GDPR | AF56: =Lookup!AD$6 -> HMG SPF | AG56: =Lookup!AE$6 -> ISO 27001 | AH56: =Lookup!AF$6 -> NIS - CAF | AI56: =Lookup!V6 -> totals
C57: Access control | D57: 5a | E57: 0 | F57: ™ | G57: ™ | H57: ™ | I57: ™ | J57: ™ | K57: ™ | L57: ™ | M57: 0 | R57: =IF($Q57<>"P",0,mySWITCH(INT($M57),0,0,0,1,1,2,2,3,2,4,2,5,2,6,2)) -> 0 | T57: P | U57: =IF($T57<>"P",0,pcOfTargetAchieved(ROW(),$M57)) -> 0 | W57: P | X57: =IF($W57<>"P",0,pcOfAdvancedAchieved(ROW(),$M57)) -> 0 | Z57: 0 | AA57: 0 | AB57: 0 | AC57: 0 | AD57: 0 | AE57: 0 | AF57: 0 | AG57: 0 | AH57: 0
B58: =INDEX(Lookup!$B$9:$B$100,MATCH(CELL("contents",$C58),Lookup!$E$9:$E$100,0)) -> 2 | C58: Internal security | D58: 5b | E58: 0 | F58: ™ | G58: ™ | H58: ™ | I58: ™ | J58: ™ | K58: ™ | L58: ™ | M58: 0 | R58: =IF($Q58<>"P",0,mySWITCH(INT($M58),0,0,0,1,1,2,2,3,2,4,2,5,2,6,2)) -> 0 | T58: P | U58: =IF($T58<>"P",0,pcOfTargetAchieved(ROW(),$M58)) -> 0 | W58: P | X58: =IF($W58<>"P",0,pcOfAdvancedAchieved(ROW(),$M58)) -> 0 | Z58: 0 | AA58: 0 | AB58: 0 | AC58: 0 | AD58: 0 | AE58: 0 | AF58: 0 | AG58: 0 | AH58: 0
C59: SYSTEM MANAGEMENT | G59: 0 | H59: 1 | I59: 2 | J59: 3 | K59: 4 | L59: 5 | M59: ™ | O59: COMMENTS | Q59: Baseline | T59: Target | W59: Advanced | Y59: Scores | Z59: =Lookup!X$6 -> CE | AA59: =Lookup!Y$6 -> PSAP | AB59: =Lookup!Z$6 -> PSN - ITHC | AC59: =Lookup!AA$6 -> PCI-DSS | AD59: =Lookup!AB$6 -> 10 Steps | AE59: =Lookup!AC$6 -> GDPR | AF59: =Lookup!AD$6 -> HMG SPF | AG59: =Lookup!AE$6 -> ISO 27001 | AH59: =Lookup!AF$6 -> NIS - CAF | AI59: =Lookup!V6 -> totals
C60: Secure configuration | D60: 6c | E60: 0 | F60: ™ | G60: ™ | H60: ™ | I60: ™ | J60: ™ | K60: ™ | L60: ™ | M60: 0 | Q60: P | R60: =IF($Q60<>"P",0,mySWITCH(INT($M60),0,0,0,1,1,2,2,3,2,4,2,5,2,6,2)) -> 0 | T60: P | U60: =IF($T60<>"P",0,pcOfTargetAchieved(ROW(),$M60)) -> 0 | W60: P | X60: =IF($W60<>"P",0,pcOfAdvancedAchieved(ROW(),$M60)) -> 0 | Z60: 0 | AA60: 0 | AB60: 0 | AC60: 0 | AD60: 0 | AE60: 0 | AF60: 0 | AG60: 0 | AH60: 0
B61: =INDEX(Lookup!$B$9:$B$100,MATCH(CELL("contents",$C61),Lookup!$E$9:$E$100,0)) -> 2 | C61: Secure design/development | D61: 6d | E61: 0 | F61: ™ | G61: ™ | H61: ™ | I61: ™ | J61: ™ | K61: ™ | L61: ™ | M61: 0 | R61: =IF($Q61<>"P",0,mySWITCH(INT($M61),0,0,0,1,1,2,2,3,2,4,2,5,2,6,2)) -> 0 | T61: P | U61: =IF($T61<>"P",0,pcOfTargetAchieved(ROW(),$M61)) -> 0 | W61: P | X61: =IF($W61<>"P",0,pcOfAdvancedAchieved(ROW(),$M61)) -> 0 | Z61: 0 | AA61: 0 | AB61: 0 | AC61: 0 | AD61: 0 | AE61: 0 | AF61: 0 | AG61: 0 | AH61: 0 | AI61: 0
B62: =INDEX(Lookup!$B$9:$B$100,MATCH(CELL("contents",$C62),Lookup!$E$9:$E$100,0)) -> 2 | C62: Change control procedures | D62: 6e | E62: 0 | F62: ™ | G62: ™ | H62: ™ | I62: ™ | J62: ™ | K62: ™ | L62: ™ | M62: 0 | R62: =IF($Q62<>"P",0,mySWITCH(INT($M62),0,0,0,1,1,2,2,3,2,4,2,5,2,6,2)) -> 0 | T62: P | U62: =IF($T62<>"P",0,pcOfTargetAchieved(ROW(),$M62)) -> 0 | W62: P | X62: =IF($W62<>"P",0,pcOfAdvancedAchieved(ROW(),$M62)) -> 0 | Z62: 0 | AA62: 0 | AB62: 0 | AC62: 0 | AD62: 0 | AE62: 0 | AF62: 0 | AG62: 0 | AH62: 0
B63: =INDEX(Lookup!$B$9:$B$100,MATCH(CELL("contents",$C63),Lookup!$E$9:$E$100,0)) -> 2 | C63: System Testing | D63: 6f | E63: 0 | F63: ™ | G63: ™ | H63: ™ | I63: ™ | J63: ™ | K63: ™ | L63: ™ | M63: 0 | R63: =IF($Q63<>"P",0,mySWITCH(INT($M63),0,0,0,1,1,2,2,3,2,4,2,5,2,6,2)) -> 0 | T63: P | U63: =IF($T63<>"P",0,pcOfTargetAchieved(ROW(),$M63)) -> 0 | W63: P | X63: =IF($W63<>"P",0,pcOfAdvancedAchieved(ROW(),$M63)) -> 0 | Z63: 0 | AA63: 0 | AB63: 0 | AC63: 0 | AD63: 0 | AE63: 0 | AF63: 0 | AG63: 0 | AH63: 0
C64: OPERATIONAL SECURITY | G64: 0 | H64: 1 | I64: 2 | J64: 3 | K64: 4 | L64: 5 | M64: ™ | O64: COMMENTS | Q64: Baseline | T64: Target | W64: Advanced | Z64: =Lookup!X$6 -> CE | AA64: =Lookup!Y$6 -> PSAP | AB64: =Lookup!Z$6 -> PSN - ITHC | AC64: =Lookup!AA$6 -> PCI-DSS | AD64: =Lookup!AB$6 -> 10 Steps | AE64: =Lookup!AC$6 -> GDPR | AF64: =Lookup!AD$6 -> HMG SPF | AG64: =Lookup!AE$6 -> ISO 27001 | AH64: =Lookup!AF$6 -> NIS - CAF | AI64: =Lookup!V6 -> totals
C65: Malware policies & protection | D65: 7a | E65: 0 | F65: ™ | G65: ™ | H65: ™ | I65: ™ | J65: ™ | K65: ™ | L65: ™ | M65: 0 | Q65: P | R65: =IF($Q65<>"P",0,mySWITCH(INT($M65),0,0,0,1,1,2,2,3,2,4,2,5,2,6,2)) -> 0 | T65: P | U65: =IF($T65<>"P",0,pcOfTargetAchieved(ROW(),$M65)) -> 0 | X65: =IF($W65<>"P",0,pcOfAdvancedAchieved(ROW(),$M65)) -> 0 | Z65: 0 | AA65: 0 | AB65: 0 | AC65: 0 | AD65: 0 | AE65: 0 | AF65: 0 | AG65: 0 | AH65: 0
B66: =INDEX(Lookup!$B$9:$B$100,MATCH(CELL("contents",$C66),Lookup!$E$9:$E$100,0)) -> 2 | C66: Email security | D66: 7e | E66: 0 | F66: ™ | G66: ™ | H66: ™ | I66: ™ | J66: ™ | K66: ™ | L66: ™ | M66: 0 | Q66: P | R66: =IF($Q66<>"P",0,mySWITCH(INT($M66),0,0,0,1,1,2,2,3,2,4,2,5,2,6,2)) -> 0 | T66: P | U66: =IF($T66<>"P",0,pcOfTargetAchieved(ROW(),$M66)) -> 0 | X66: =IF($W66<>"P",0,pcOfAdvancedAchieved(ROW(),$M66)) -> 0 | Z66: 0 | AA66: 0 | AB66: 0 | AC66: 0 | AD66: 0 | AE66: 0 | AF66: 0 | AG66: 0 | AH66: 0
B67: =INDEX(Lookup!$B$9:$B$100,MATCH(CELL("contents",$C67),Lookup!$E$9:$E$100,0)) -> 2 | C67: Application security | D67: 7f | E67: 0 | F67: ™ | G67: ™ | H67: ™ | I67: ™ | J67: ™ | K67: ™ | L67: ™ | M67: 0 | Q67: P | R67: =IF($Q67<>"P",0,mySWITCH(INT($M67),0,0,0,1,1,2,2,3,2,4,2,5,2,6,2)) -> 0 | T67: P | U67: =IF($T67<>"P",0,pcOfTargetAchieved(ROW(),$M67)) -> 0 | X67: =IF($W67<>"P",0,pcOfAdvancedAchieved(ROW(),$M67)) -> 0 | Z67: 0 | AA67: 0 | AB67: 0 | AC67: 0 | AD67: 0 | AE67: 0 | AF67: 0 | AG67: 0 | AH67: 0
B68: =INDEX(Lookup!$B$9:$B$100,MATCH(CELL("contents",$C68),Lookup!$E$9:$E$100,0)) -> 2 | C68: Vulnerability management & scanning | D68: 7h | E68: 0 | F68: ™ | G68: ™ | H68: ™ | I68: ™ | J68: ™ | K68: ™ | L68: ™ | M68: 0 | Q68: P | R68: =IF($Q68<>"P",0,mySWITCH(INT($M68),0,0,0,1,1,2,2,3,2,4,2,5,2,6,2)) -> 0 | T68: P | U68: =IF($T68<>"P",0,pcOfTargetAchieved(ROW(),$M68)) -> 0 | W68: P | X68: =IF($W68<>"P",0,pcOfAdvancedAchieved(ROW(),$M68)) -> 0 | Z68: 0 | AA68: 0 | AB68: 0 | AC68: 0 | AD68: 0 | AE68: 0 | AF68: 0 | AG68: 0 | AH68: 0
B69: =INDEX(Lookup!$B$9:$B$100,MATCH(CELL("contents",$C69),Lookup!$E$9:$E$100,0)) -> 2 | C69: Data exfiltration monitoring | D69: 7k | E69: 0 | F69: ™ | G69: ™ | H69: ™ | I69: ™ | J69: ™ | K69: ™ | L69: ™ | M69: 0 | R69: =IF($Q69<>"P",0,mySWITCH(INT($M69),0,0,0,1,1,2,2,3,2,4,2,5,2,6,2)) -> 0 | T69: P | U69: =IF($T69<>"P",0,pcOfTargetAchieved(ROW(),$M69)) -> 0 | X69: =IF($W69<>"P",0,pcOfAdvancedAchieved(ROW(),$M69)) -> 0 | Z69: 0 | AA69: 0 | AB69: 0 | AC69: 0 | AD69: 0 | AE69: 0 | AF69: 0 | AG69: 0 | AH69: 0 | AI69: 0
B70: =INDEX(Lookup!$B$9:$B$100,MATCH(CELL("contents",$C70),Lookup!$E$9:$E$100,0)) -> 2 | C70: Software supported & updated | D70: 7l | E70: 0 | F70: ™ | G70: ™ | H70: ™ | I70: ™ | J70: ™ | K70: ™ | L70: ™ | M70: 0 | Q70: P | R70: =IF($Q70<>"P",0,mySWITCH(INT($M70),0,0,0,1,1,2,2,3,2,4,2,5,2,6,2)) -> 0 | T70: P | U70: =IF($T70<>"P",0,pcOfTargetAchieved(ROW(),$M70)) -> 0 | W70: P | X70: =IF($W70<>"P",0,pcOfAdvancedAchieved(ROW(),$M70)) -> 0 | Z70: 0 | AA70: 0 | AB70: 0 | AC70: 0 | AD70: 0 | AE70: 0 | AF70: 0 | AG70: 0 | AH70: 0
B71: =INDEX(Lookup!$B$9:$B$100,MATCH(CELL("contents",$C71),Lookup!$E$9:$E$100,0)) -> 2 | C71: Web site screening | D71: 7m | E71: 0 | F71: ™ | G71: ™ | H71: ™ | I71: ™ | J71: ™ | K71: ™ | L71: ™ | M71: 0 | Q71: P | R71: =IF($Q71<>"P",0,mySWITCH(INT($M71),0,0,0,1,1,2,2,3,2,4,2,5,2,6,2)) -> 0 | T71: P | U71: =IF($T71<>"P",0,pcOfTargetAchieved(ROW(),$M71)) -> 0 | X71: =IF($W71<>"P",0,pcOfAdvancedAchieved(ROW(),$M71)) -> 0 | Z71: 0 | AA71: 0 | AB71: 0 | AC71: 0 | AD71: 0 | AE71: 0 | AF71: 0 | AG71: 0 | AH71: 0
B72: =INDEX(Lookup!$B$9:$B$100,MATCH(CELL("contents",$C72),Lookup!$E$9:$E$100,0)) -> 2 | C72: Browser management | D72: 7n | E72: 0 | F72: ™ | G72: ™ | H72: ™ | I72: ™ | J72: ™ | K72: ™ | L72: ™ | M72: 0 | R72: =IF($Q72<>"P",0,mySWITCH(INT($M72),0,0,0,1,1,2,2,3,2,4,2,5,2,6,2)) -> 0 | T72: P | U72: =IF($T72<>"P",0,pcOfTargetAchieved(ROW(),$M72)) -> 0 | X72: =IF($W72<>"P",0,pcOfAdvancedAchieved(ROW(),$M72)) -> 0 | Z72: 0 | AA72: 0 | AB72: 0 | AC72: 0 | AD72: 0 | AE72: 0 | AF72: 0 | AG72: 0 | AH72: 0
B73: =INDEX(Lookup!$B$9:$B$100,MATCH(CELL("contents",$C73),Lookup!$E$9:$E$100,0)) -> 2 | C73: Monitor/audit user activity | D73: 7o | E73: 0 | F73: ™ | G73: ™ | H73: ™ | I73: ™ | J73: ™ | K73: ™ | L73: ™ | M73: 0 | R73: =IF($Q73<>"P",0,mySWITCH(INT($M73),0,0,0,1,1,2,2,3,2,4,2,5,2,6,2)) -> 0 | T73: P | U73: =IF($T73<>"P",0,pcOfTargetAchieved(ROW(),$M73)) -> 0 | W73: P | X73: =IF($W73<>"P",0,pcOfAdvancedAchieved(ROW(),$M73)) -> 0 | Z73: 0 | AA73: 0 | AB73: 0 | AC73: 0 | AD73: 0 | AE73: 0 | AF73: 0 | AG73: 0 | AH73: 0
B74: =INDEX(Lookup!$B$9:$B$100,MATCH(CELL("contents",$C74),Lookup!$E$9:$E$100,0)) -> 2 | C74: Disabled auto-run | D74: 7p | E74: 0 | F74: ™ | G74: ™ | H74: ™ | I74: ™ | J74: ™ | K74: ™ | L74: ™ | M74: 0 | Q74: P | R74: =IF($Q74<>"P",0,mySWITCH(INT($M74),0,0,0,1,1,2,2,3,2,4,2,5,2,6,2)) -> 0 | T74: P | U74: =IF($T74<>"P",0,pcOfTargetAchieved(ROW(),$M74)) -> 0 | X74: =IF($W74<>"P",0,pcOfAdvancedAchieved(ROW(),$M74)) -> 0 | Z74: 0 | AA74: 0 | AB74: 0 | AC74: 0 | AD74: 0 | AE74: 0 | AF74: 0 | AG74: 0 | AH74: 0
C75: NETWORK SECURITY | G75: 0 | H75: 1 | I75: 2 | J75: 3 | K75: 4 | L75: 5 | M75: ™ | O75: COMMENTS | Q75: Baseline | T75: Target | W75: Advanced | Z75: =Lookup!X$6 -> CE | AA75: =Lookup!Y$6 -> PSAP | AB75: =Lookup!Z$6 -> PSN - ITHC | AC75: =Lookup!AA$6 -> PCI-DSS | AD75: =Lookup!AB$6 -> 10 Steps | AE75: =Lookup!AC$6 -> GDPR | AF75: =Lookup!AD$6 -> HMG SPF | AG75: =Lookup!AE$6 -> ISO 27001 | AH75: =Lookup!AF$6 -> NIS - CAF | AI75: =Lookup!V6 -> totals
C76: Patch management | D76: 8a | E76: 0 | F76: ™ | G76: ™ | H76: ™ | I76: ™ | J76: ™ | K76: ™ | L76: ™ | M76: 0 | Q76: P | R76: =IF($Q76<>"P",0,mySWITCH(INT($M76),0,0,0,1,1,2,2,3,2,4,2,5,2,6,2)) -> 0 | T76: P | U76: =IF($T76<>"P",0,pcOfTargetAchieved(ROW(),$M76)) -> 0 | X76: =IF($W76<>"P",0,pcOfAdvancedAchieved(ROW(),$M76)) -> 0 | Z76: 0 | AA76: 0 | AB76: 0 | AC76: 0 | AD76: 0 | AE76: 0 | AF76: 0 | AG76: 0 | AH76: 0
C77: Device management | D77: 8b | E77: 0 | F77: ™ | G77: ™ | H77: ™ | I77: ™ | J77: ™ | K77: ™ | L77: ™ | M77: 0 | R77: =IF($Q77<>"P",0,mySWITCH(INT($M77),0,0,0,1,1,2,2,3,2,4,2,5,2,6,2)) -> 0 | T77: P | U77: =IF($T77<>"P",0,pcOfTargetAchieved(ROW(),$M77)) -> 0 | W77: P | X77: =IF($W77<>"P",0,pcOfAdvancedAchieved(ROW(),$M77)) -> 0 | Z77: 0 | AA77: 0 | AB77: 0 | AC77: 0 | AD77: 0 | AE77: 0 | AF77: 0 | AG77: 0 | AH77: 0
C78: Content screening | D78: 8c | E78: 0 | F78: ™ | G78: ™ | H78: ™ | I78: ™ | J78: ™ | K78: ™ | L78: ™ | M78: 0 | R78: =IF($Q78<>"P",0,mySWITCH(INT($M78),0,0,0,1,1,2,2,3,2,4,2,5,2,6,2)) -> 0 | T78: P | U78: =IF($T78<>"P",0,pcOfTargetAchieved(ROW(),$M78)) -> 0 | X78: =IF($W78<>"P",0,pcOfAdvancedAchieved(ROW(),$M78)) -> 0 | Z78: 0 | AA78: 0 | AB78: 0 | AC78: 0 | AD78: 0 | AE78: 0 | AF78: 0 | AG78: 0 | AH78: 0 | AI78: 0
C79: Internal segregation | D79: 8d | E79: 0 | F79: ™ | G79: ™ | H79: ™ | I79: ™ | J79: ™ | K79: ™ | L79: ™ | M79: 0 | R79: =IF($Q79<>"P",0,mySWITCH(INT($M79),0,0,0,1,1,2,2,3,2,4,2,5,2,6,2)) -> 0 | T79: P | U79: =IF($T79<>"P",0,pcOfTargetAchieved(ROW(),$M79)) -> 0 | W79: P | X79: =IF($W79<>"P",0,pcOfAdvancedAchieved(ROW(),$M79)) -> 0 | Z79: 0 | AA79: 0 | AB79: 0 | AC79: 0 | AD79: 0 | AE79: 0 | AF79: 0 | AG79: 0 | AH79: 0
C80: Wireless security | D80: 8e | E80: 0 | F80: ™ | G80: ™ | H80: ™ | I80: ™ | J80: ™ | K80: ™ | L80: ™ | M80: 0 | Q80: P | R80: =IF($Q80<>"P",0,mySWITCH(INT($M80),0,0,0,1,1,2,2,3,2,4,2,5,2,6,2)) -> 0 | T80: P | U80: =IF($T80<>"P",0,pcOfTargetAchieved(ROW(),$M80)) -> 0 | X80: =IF($W80<>"P",0,pcOfAdvancedAchieved(ROW(),$M80)) -> 0 | Z80: 0 | AA80: 0 | AB80: 0 | AC80: 0 | AD80: 0 | AE80: 0 | AF80: 0 | AG80: 0 | AH80: 0
C81: Boundary/Firewall management | D81: 8f | E81: 0 | F81: ™ | G81: ™ | H81: ™ | I81: ™ | J81: ™ | K81: ™ | L81: ™ | M81: 0 | Q81: P | R81: =IF($Q81<>"P",0,mySWITCH(INT($M81),0,0,0,1,1,2,2,3,2,4,2,5,2,6,2)) -> 0 | T81: P | U81: =IF($T81<>"P",0,pcOfTargetAchieved(ROW(),$M81)) -> 0 | W81: P | X81: =IF($W81<>"P",0,pcOfAdvancedAchieved(ROW(),$M81)) -> 0 | Z81: 0 | AA81: 0 | AB81: 0 | AC81: 0 | AD81: 0 | AE81: 0 | AF81: 0 | AG81: 0 | AH81: 0
C82: Administrator control | D82: 8g | E82: 0 | F82: ™ | G82: ™ | H82: ™ | I82: ™ | J82: ™ | K82: ™ | L82: ™ | M82: 0 | R82: =IF($Q82<>"P",0,mySWITCH(INT($M82),0,0,0,1,1,2,2,3,2,4,2,5,2,6,2)) -> 0 | T82: P | U82: =IF($T82<>"P",0,pcOfTargetAchieved(ROW(),$M82)) -> 0 | W82: P | X82: =IF($W82<>"P",0,pcOfAdvancedAchieved(ROW(),$M82)) -> 0 | Z82: 0 | AA82: 0 | AB82: 0 | AC82: 0 | AD82: 0 | AE82: 0 | AF82: 0 | AG82: 0 | AH82: 0
C83: Error message management | D83: 8h | E83: 0 | F83: ™ | G83: ™ | H83: ™ | I83: ™ | J83: ™ | K83: ™ | L83: ™ | M83: 0 | R83: =IF($Q83<>"P",0,mySWITCH(INT($M83),0,0,0,1,1,2,2,3,2,4,2,5,2,6,2)) -> 0 | T83: P | U83: =IF($T83<>"P",0,pcOfTargetAchieved(ROW(),$M83)) -> 0 | X83: =IF($W83<>"P",0,pcOfAdvancedAchieved(ROW(),$M83)) -> 0 | Z83: 0 | AA83: 0 | AB83: 0 | AC83: 0 | AD83: 0 | AE83: 0 | AF83: 0 | AG83: 0 | AH83: 0
C84: Penetration testing | D84: 8i | E84: 0 | F84: ™ | G84: ™ | H84: ™ | I84: ™ | J84: ™ | K84: ™ | L84: ™ | M84: 0 | R84: =IF($Q84<>"P",0,mySWITCH(INT($M84),0,0,0,1,1,2,2,3,2,4,2,5,2,6,2)) -> 0 | T84: P | U84: =IF($T84<>"P",0,pcOfTargetAchieved(ROW(),$M84)) -> 0 | X84: =IF($W84<>"P",0,pcOfAdvancedAchieved(ROW(),$M84)) -> 0 | Z84: 0 | AA84: 0 | AB84: 0 | AC84: 0 | AD84: 0 | AE84: 0 | AF84: 0 | AG84: 0 | AH84: 0
C85: IP & DNS management | D85: 8j | E85: 0 | F85: ™ | G85: ™ | H85: ™ | I85: ™ | J85: ™ | K85: ™ | L85: ™ | M85: 0 | Q85: P | R85: =IF($Q85<>"P",0,mySWITCH(INT($M85),0,0,0,1,1,2,2,3,2,4,2,5,2,6,2)) -> 0 | T85: P | U85: =IF($T85<>"P",0,pcOfTargetAchieved(ROW(),$M85)) -> 0 | W85: P | X85: =IF($W85<>"P",0,pcOfAdvancedAchieved(ROW(),$M85)) -> 0 | Z85: 0 | AA85: 0 | AB85: 0 | AC85: 0 | AD85: 0 | AE85: 0 | AF85: 0 | AG85: 0 | AH85: 0 | AI85: 0
A86: DETECT | C86: INCIDENT DETECTION | G86: 0 | H86: 1 | I86: 2 | J86: 3 | K86: 4 | L86: 5 | M86: ™ | O86: COMMENTS | Q86: Baseline | T86: Target | W86: Advanced | Z86: =Lookup!X$6 -> CE | AA86: =Lookup!Y$6 -> PSAP | AB86: =Lookup!Z$6 -> PSN - ITHC | AC86: =Lookup!AA$6 -> PCI-DSS | AD86: =Lookup!AB$6 -> 10 Steps | AE86: =Lookup!AC$6 -> GDPR | AF86: =Lookup!AD$6 -> HMG SPF | AG86: =Lookup!AE$6 -> ISO 27001 | AH86: =Lookup!AF$6 -> NIS - CAF | AI86: =Lookup!V6 -> totals
C87: Detection capability | D87: 16a | E87: 0 | F87: ™ | G87: ™ | H87: ™ | I87: ™ | J87: ™ | K87: ™ | L87: ™ | M87: 0 | R87: =IF($Q87<>"P",0,mySWITCH(INT($M87),0,0,0,1,1,2,2,3,2,4,2,5,2,6,2)) -> 0 | T87: P | U87: =IF($T87<>"P",0,pcOfTargetAchieved(ROW(),$M87)) -> 0 | W87: P | X87: =IF($W87<>"P",0,pcOfAdvancedAchieved(ROW(),$M87)) -> 0 | Z87: 0 | AA87: 0 | AB87: 0 | AC87: 0 | AD87: 0 | AE87: 0 | AF87: 0 | AG87: 0 | AH87: 0 | AI87: 0
C88: Security Monitoring | D88: 16b | E88: 0 | F88: ™ | G88: ™ | H88: ™ | I88: ™ | J88: ™ | K88: ™ | L88: ™ | M88: 0 | R88: =IF($Q88<>"P",0,mySWITCH(INT($M88),0,0,0,1,1,2,2,3,2,4,2,5,2,6,2)) -> 0 | T88: P | U88: =IF($T88<>"P",0,pcOfTargetAchieved(ROW(),$M88)) -> 0 | W88: P | X88: =IF($W88<>"P",0,pcOfAdvancedAchieved(ROW(),$M88)) -> 0 | Z88: 0 | AA88: 0 | AB88: 0 | AC88: 0 | AD88: 0 | AE88: 0 | AF88: 0 | AG88: 0 | AH88: 0
A89: RESPOND & RECOVER | C89: INCIDENT MANAGEMENT | G89: 0 | H89: 1 | I89: 2 | J89: 3 | K89: 4 | L89: 5 | M89: ™ | O89: COMMENTS | Q89: Baseline | T89: Target | W89: Advanced | Z89: =Lookup!X$6 -> CE | AA89: =Lookup!Y$6 -> PSAP | AB89: =Lookup!Z$6 -> PSN - ITHC | AC89: =Lookup!AA$6 -> PCI-DSS | AD89: =Lookup!AB$6 -> 10 Steps | AE89: =Lookup!AC$6 -> GDPR | AF89: =Lookup!AD$6 -> HMG SPF | AG89: =Lookup!AE$6 -> ISO 27001 | AH89: =Lookup!AF$6 -> NIS - CAF | AI89: =Lookup!V6 -> totals
C90: Incident response protocol | D90: 10b | E90: 0 | F90: ™ | G90: ™ | H90: ™ | I90: ™ | J90: ™ | K90: ™ | L90: ™ | M90: 0 | Q90: P | R90: =IF($Q90<>"P",0,mySWITCH(INT($M90),0,0,0,1,1,2,2,3,2,4,2,5,2,6,2)) -> 0 | T90: P | U90: =IF($T90<>"P",0,pcOfTargetAchieved(ROW(),$M90)) -> 0 | W90: P | X90: =IF($W90<>"P",0,pcOfAdvancedAchieved(ROW(),$M90)) -> 0 | Z90: 0 | AA90: 0 | AB90: 0 | AC90: 0 | AD90: 0 | AE90: 0 | AF90: 0 | AG90: 0 | AH90: 0
C91: Incident reporting procedure | D91: 10c | E91: 0 | F91: ™ | G91: ™ | H91: ™ | I91: ™ | J91: ™ | K91: ™ | L91: ™ | M91: 0 | Q91: P | R91: =IF($Q91<>"P",0,mySWITCH(INT($M91),0,0,0,1,1,2,2,3,2,4,2,5,2,6,2)) -> 0 | T91: P | U91: =IF($T91<>"P",0,pcOfTargetAchieved(ROW(),$M91)) -> 0 | X91: =IF($W91<>"P",0,pcOfAdvancedAchieved(ROW(),$M91)) -> 0 | Z91: 0 | AA91: 0 | AB91: 0 | AC91: 0 | AD91: 0 | AE91: 0 | AF91: 0 | AG91: 0 | AH91: 0
C92: Staff training & testing | D92: 10d | E92: 0 | F92: ™ | G92: ™ | H92: ™ | I92: ™ | J92: ™ | K92: ™ | L92: ™ | M92: 0 | R92: =IF($Q92<>"P",0,mySWITCH(INT($M92),0,0,0,1,1,2,2,3,2,4,2,5,2,6,2)) -> 0 | T92: P | U92: =IF($T92<>"P",0,pcOfTargetAchieved(ROW(),$M92)) -> 0 | X92: =IF($W92<>"P",0,pcOfAdvancedAchieved(ROW(),$M92)) -> 0 | Z92: 0 | AA92: 0 | AB92: 0 | AC92: 0 | AD92: 0 | AE92: 0 | AF92: 0 | AG92: 0 | AH92: 0 | AI92: 0
C93: Post-incident review & learning | D93: 10e | E93: 0 | F93: ™ | G93: ™ | H93: ™ | I93: ™ | J93: ™ | K93: ™ | L93: ™ | M93: 0 | Q93: P | R93: =IF($Q93<>"P",0,mySWITCH(INT($M93),0,0,0,1,1,2,2,3,2,4,2,5,2,6,2)) -> 0 | T93: P | U93: =IF($T93<>"P",0,pcOfTargetAchieved(ROW(),$M93)) -> 0 | W93: P | X93: =IF($W93<>"P",0,pcOfAdvancedAchieved(ROW(),$M93)) -> 0 | Z93: 0 | AA93: 0 | AB93: 0 | AC93: 0 | AD93: 0 | AE93: 0 | AF93: 0 | AG93: 0 | AH93: 0
C94: BUSINESS CONTINUITY | G94: 0 | H94: 1 | I94: 2 | J94: 3 | K94: 4 | L94: 5 | M94: ™ | O94: COMMENTS | Q94: Baseline | T94: Target | W94: Advanced | Z94: =Lookup!X$6 -> CE | AA94: =Lookup!Y$6 -> PSAP | AB94: =Lookup!Z$6 -> PSN - ITHC | AC94: =Lookup!AA$6 -> PCI-DSS | AD94: =Lookup!AB$6 -> 10 Steps | AE94: =Lookup!AC$6 -> GDPR | AF94: =Lookup!AD$6 -> HMG SPF | AG94: =Lookup!AE$6 -> ISO 27001 | AH94: =Lookup!AF$6 -> NIS - CAF | AI94: =Lookup!V6 -> totals
C95: Data recover capability | D95: 12a | E95: 0 | F95: ™ | G95: ™ | H95: ™ | I95: ™ | J95: ™ | K95: ™ | L95: ™ | M95: 0 | R95: =IF($Q95<>"P",0,mySWITCH(INT($M95),0,0,0,1,1,2,2,3,2,4,2,5,2,6,2)) -> 0 | T95: P | U95: =IF($T95<>"P",0,pcOfTargetAchieved(ROW(),$M95)) -> 0 | W95: P | X95: =IF($W95<>"P",0,pcOfAdvancedAchieved(ROW(),$M95)) -> 0 | Z95: 0 | AA95: 0 | AB95: 0 | AC95: 0 | AD95: 0 | AE95: 0 | AF95: 0 | AG95: 0 | AH95: 0
C96: Back up policies & procedures | D96: 12b | E96: 0 | F96: ™ | G96: ™ | H96: ™ | I96: ™ | J96: ™ | K96: ™ | L96: ™ | M96: 0 | R96: =IF($Q96<>"P",0,mySWITCH(INT($M96),0,0,0,1,1,2,2,3,2,4,2,5,2,6,2)) -> 0 | T96: P | U96: =IF($T96<>"P",0,pcOfTargetAchieved(ROW(),$M96)) -> 0 | W96: P | X96: =IF($W96<>"P",0,pcOfAdvancedAchieved(ROW(),$M96)) -> 0 | Z96: 0 | AA96: 0 | AB96: 0 | AC96: 0 | AD96: 0 | AE96: 0 | AF96: 0 | AG96: 0 | AH96: 0
C97: Disaster recovery policies & procedures | D97: 12c | E97: 0 | F97: ™ | G97: ™ | H97: ™ | I97: ™ | J97: ™ | K97: ™ | L97: ™ | M97: 0 | R97: =IF($Q97<>"P",0,mySWITCH(INT($M97),0,0,0,1,1,2,2,3,2,4,2,5,2,6,2)) -> 0 | T97: P | U97: =IF($T97<>"P",0,pcOfTargetAchieved(ROW(),$M97)) -> 0 | W97: P | X97: =IF($W97<>"P",0,pcOfAdvancedAchieved(ROW(),$M97)) -> 0 | Z97: 0 | AA97: 0 | AB97: 0 | AC97: 0 | AD97: 0 | AE97: 0 | AF97: 0 | AG97: 0 | AH97: 0
C98: BC/DR testing policies & procedures | D98: 12d | E98: 0 | F98: ™ | G98: ™ | H98: ™ | I98: ™ | J98: ™ | K98: ™ | L98: ™ | M98: 0 | R98: =IF($Q98<>"P",0,mySWITCH(INT($M98),0,0,0,1,1,2,2,3,2,4,2,5,2,6,2)) -> 0 | T98: P | U98: =IF($T98<>"P",0,pcOfTargetAchieved(ROW(),$M98)) -> 0 | W98: P | X98: =IF($W98<>"P",0,pcOfAdvancedAchieved(ROW(),$M98)) -> 0 | Z98: 0 | AA98: 0 | AB98: 0 | AC98: 0 | AD98: 0 | AE98: 0 | AF98: 0 | AG98: 0 | AH98: 0 | AI98: 0
C99: Data Loss impact assessments | D99: 12e | E99: 0 | F99: ™ | G99: ™ | H99: ™ | I99: ™ | J99: ™ | K99: ™ | L99: ™ | M99: 0 | R99: =IF($Q99<>"P",0,mySWITCH(INT($M99),0,0,0,1,1,2,2,3,2,4,2,5,2,6,2)) -> 0 | T99: P | U99: =IF($T99<>"P",0,pcOfTargetAchieved(ROW(),$M99)) -> 0 | W99: P | X99: =IF($W99<>"P",0,pcOfAdvancedAchieved(ROW(),$M99)) -> 0 | Z99: 0 | AA99: 0 | AB99: 0 | AC99: 0 | AD99: 0 | AE99: 0 | AF99: 0 | AG99: 0 | AH99: 0
C100: BC contingency plan | D100: 12f | E100: 0 | F100: ™ | G100: ™ | H100: ™ | I100: ™ | J100: ™ | K100: ™ | L100: ™ | M100: 0 | R100: =IF($Q100<>"P",0,mySWITCH(INT($M100),0,0,0,1,1,2,2,3,2,4,2,5,2,6,2)) -> 0 | T100: P | U100: =IF($T100<>"P",0,pcOfTargetAchieved(ROW(),$M100)) -> 0 | W100: P | X100: =IF($W100<>"P",0,pcOfAdvancedAchieved(ROW(),$M100)) -> 0 | Z100: 0 | AA100: 0 | AB100: 0 | AC100: 0 | AD100: 0 | AE100: 0 | AF100: 0 | AG100: 0 | AH100: 0
N101: OVERALL TOTALS

Sheet R04
C1: Report 4
C2: Report Date: | D2: 2019-06-26
C3: Assessor: | R3: RAG Status
M5: 5 | O5: PSN - ITHC | R5: =myStageTotal(ROW(),COLUMN()) ->  | U5: =myStageTotal(ROW(),COLUMN()) ->  | X5: =myStageTotal(ROW(),COLUMN()) -> 
Z6: =SummaryOfMyColumn(COLUMN()) ->  | AA6: =SummaryOfMyColumn(COLUMN()) ->  | AC6: =SummaryOfMyColumn(COLUMN()) ->  | AH6: =SummaryOfMyColumn(COLUMN()) -> 
A8: MANAGE | C8: ORGANISATIONAL GOVERNANCE | F8: N/A | G8: 0 | H8: 1 | I8: 2 | J8: 3 | K8: 4 | L8: 5 | M8: Scored | O8: COMMENTS | Q8: Baseline | T8: Target | W8: Advanced | Y8: Scores | Z8: =Lookup!X$6 -> CE | AA8: =Lookup!Y$6 -> PSAP | AB8: =Lookup!Z$6 -> PSN - ITHC | AC8: =Lookup!AA$6 -> PCI-DSS | AD8: =Lookup!AB$6 -> 10 Steps | AE8: =Lookup!AC$6 -> GDPR | AF8: =Lookup!AD$6 -> HMG SPF | AG8: =Lookup!AE$6 -> ISO 27001 | AH8: =Lookup!AF$6 -> NIS - CAF | AI8: =Lookup!V6 -> totals
B9: =INDEX(Lookup!$B$9:$B$100,MATCH(CELL("contents",$C9),Lookup!$E$9:$E$100,0)) -> 1 | C9: Governance framework | D9: =Lookup!F9 -> 2a | E9: 0 | F9: ™ | G9: ™ | H9: ™ | I9: ™ | J9: ™ | K9: ™ | L9: ™ | M9: 0 | Q9: P | R9: =IF($Q9<>"P",0,mySWITCH(INT($M9),0,0,0,1,1,2,2,3,2,4,2,5,2,6,2)) -> 0 | T9: P | U9: =IF($T9<>"P",0,pcOfTargetAchieved(ROW(),$M9)) -> 0 | W9: P | X9: =IF($T9<>"P",0,pcOfTargetAchieved(ROW(),$M9)) -> 0 | Z9: 0 | AA9: 0 | AB9: 0 | AC9: 0 | AD9: 0 | AE9: 0 | AF9: 0 | AG9: 0 | AH9: 0 | AI9: 0
B10: =INDEX(Lookup!$B$9:$B$100,MATCH(CELL("contents",$C10),Lookup!$E$9:$E$100,0)) -> 1 | C10: Leadership & responsibility | D10: =Lookup!F10 -> 2b | E10: 0 | F10: ™ | G10: ™ | H10: ™ | I10: ™ | J10: ™ | K10: ™ | L10: ™ | M10: 0 | Q10: P | R10: =IF($Q10<>"P",0,mySWITCH(INT($M10),0,0,0,1,1,2,2,3,2,4,2,5,2,6,2)) -> 0 | T10: P | U10: =IF($T10<>"P",0,pcOfTargetAchieved(ROW(),$M10)) -> 0 | W10: P | X10: =IF($W10<>"P",0,pcOfAdvancedAchieved(ROW(),$M10)) -> 0 | Z10: 0 | AA10: 0 | AB10: 0 | AC10: 0 | AD10: 0 | AE10: 0 | AF10: 0 | AG10: 0 | AH10: 0 | AI10: 0
B11: =INDEX(Lookup!$B$9:$B$100,MATCH(CELL("contents",$C11),Lookup!$E$9:$E$100,0)) -> 1 | C11: Adoption of assurance standards | D11: =Lookup!F11 -> 2e | E11: 0 | F11: ™ | G11: ™ | H11: ™ | I11: ™ | J11: ™ | K11: ™ | L11: ™ | M11: 0 | Q11: P | R11: =IF($Q11<>"P",0,mySWITCH(INT($M11),0,0,0,1,1,2,2,3,2,4,2,5,2,6,2)) -> 0 | T11: P | U11: =IF($T11<>"P",0,pcOfTargetAchieved(ROW(),$M11)) -> 0 | W11: P | X11: =IF($W11<>"P",0,pcOfAdvancedAchieved(ROW(),$M11)) -> 0 | Z11: 0 | AA11: 0 | AB11: 0 | AC11: 0 | AD11: 0 | AE11: 0 | AF11: 0 | AG11: 0 | AH11: 0 | AI11: 0
B12: =INDEX(Lookup!$B$9:$B$100,MATCH(CELL("contents",$C12),Lookup!$E$9:$E$100,0)) -> 1 | C12: Information Asset Register | D12: =Lookup!F12 -> 2f | E12: 0 | F12: ™ | G12: ™ | H12: ™ | I12: ™ | J12: ™ | K12: ™ | L12: ™ | M12: 0 | Q12: P | R12: =IF($Q12<>"P",0,mySWITCH(INT($M12),0,0,0,1,1,2,2,3,2,4,2,5,2,6,2)) -> 0 | T12: P | U12: =IF($T12<>"P",0,pcOfTargetAchieved(ROW(),$M12)) -> 0 | W12: P | X12: =IF($W12<>"P",0,pcOfAdvancedAchieved(ROW(),$M12)) -> 0 | Z12: 0 | AA12: 0 | AB12: 0 | AC12: 0 | AD12: 0 | AE12: 0 | AF12: 0 | AG12: 0 | AH12: 0 | AI12: 0
B13: =INDEX(Lookup!$B$9:$B$100,MATCH(CELL("contents",$C13),Lookup!$E$9:$E$100,0)) -> 1 | C13: Audit/assurance compliance | D13: =Lookup!F13 -> 2g | E13: 0 | F13: ™ | G13: ™ | H13: ™ | I13: ™ | J13: ™ | K13: ™ | L13: ™ | M13: 0 | Q13: P | R13: =IF($Q13<>"P",0,mySWITCH(INT($M13),0,0,0,1,1,2,2,3,2,4,2,5,2,6,2)) -> 0 | T13: P | U13: =IF($T13<>"P",0,pcOfTargetAchieved(ROW(),$M13)) -> 0 | W13: P | X13: =IF($W13<>"P",0,pcOfAdvancedAchieved(ROW(),$M13)) -> 0 | Z13: 0 | AA13: 0 | AB13: 0 | AC13: 0 | AD13: 0 | AE13: 0 | AF13: 0 | AG13: 0 | AH13: 0 | AI13: 0
C14: RISK MANAGEMENT | G14: 0 | H14: 1 | I14: 2 | J14: 3 | K14: 4 | L14: 5 | O14: COMMENTS | Q14: Baseline | T14: Target | W14: Advanced | Y14: Scores | Z14: =Lookup!X$6 -> CE | AA14: =Lookup!Y$6 -> PSAP | AB14: =Lookup!Z$6 -> PSN - ITHC | AC14: =Lookup!AA$6 -> PCI-DSS | AD14: =Lookup!AB$6 -> 10 Steps | AE14: =Lookup!AC$6 -> GDPR | AF14: =Lookup!AD$6 -> HMG SPF | AG14: =Lookup!AE$6 -> ISO 27001 | AH14: =Lookup!AF$6 -> NIS - CAF | AI14: =Lookup!V6 -> totals
B15: =INDEX(Lookup!$B$9:$B$100,MATCH(CELL("contents",$C15),Lookup!$E$9:$E$100,0)) -> 1 | C15: Risk management policy & process | D15: 11a | E15: 0 | F15: ™ | G15: ™ | H15: ™ | I15: ™ | J15: ™ | K15: ™ | L15: ™ | M15: 0 | Q15: P | R15: =IF($Q15<>"P",0,mySWITCH(INT($M15),0,0,0,1,1,2,2,3,2,4,2,5,2,6,2)) -> 0 | T15: P | U15: =IF($T15<>"P",0,pcOfTargetAchieved(ROW(),$M15)) -> 0 | W15: P | X15: =IF($W15<>"P",0,pcOfAdvancedAchieved(ROW(),$M15)) -> 0 | Z15: 0 | AA15: 0 | AB15: 0 | AC15: 0 | AD15: 0 | AE15: 0 | AF15: 0 | AG15: 0 | AH15: 0 | AI15: 0
B16: =INDEX(Lookup!$B$9:$B$100,MATCH(CELL("contents",$C16),Lookup!$E$9:$E$100,0)) -> 1 | C16: Cyber / Information Risk Assessment | D16: 11b | E16: 0 | F16: ™ | G16: ™ | H16: ™ | I16: ™ | J16: ™ | K16: ™ | L16: ™ | M16: 0 | Q16: P | R16: =IF($Q16<>"P",0,mySWITCH(INT($M16),0,0,0,1,1,2,2,3,2,4,2,5,2,6,2)) -> 0 | T16: P | U16: =IF($T16<>"P",0,pcOfTargetAchieved(ROW(),$M16)) -> 0 | W16: P | X16: =IF($W16<>"P",0,pcOfAdvancedAchieved(ROW(),$M16)) -> 0 | Z16: 0 | AA16: 0 | AB16: 0 | AC16: 0 | AD16: 0 | AE16: 0 | AF16: 0 | AG16: 0 | AH16: 0 | AI16: 0
B17: =INDEX(Lookup!$B$9:$B$100,MATCH(CELL("contents",$C17),Lookup!$E$9:$E$100,0)) -> 1 | C17: Risk treatment & tolerance | D17: 11c | E17: 0 | F17: ™ | G17: ™ | H17: ™ | I17: ™ | J17: ™ | K17: ™ | L17: ™ | M17: 0 | Q17: P | R17: =IF($Q17<>"P",0,mySWITCH(INT($M17),0,0,0,1,1,2,2,3,2,4,2,5,2,6,2)) -> 0 | T17: P | U17: =IF($T17<>"P",0,pcOfTargetAchieved(ROW(),$M17)) -> 0 | W17: P | X17: =IF($W17<>"P",0,pcOfAdvancedAchieved(ROW(),$M17)) -> 0 | Z17: 0 | AA17: 0 | AB17: 0 | AC17: 0 | AD17: 0 | AE17: 0 | AF17: 0 | AG17: 0 | AH17: 0 | AI17: 0
B18: =INDEX(Lookup!$B$9:$B$100,MATCH(CELL("contents",$C18),Lookup!$E$9:$E$100,0)) -> 1 | C18: Risk governance | D18: 11d | E18: 0 | F18: ™ | G18: ™ | H18: ™ | I18: ™ | J18: ™ | K18: ™ | L18: ™ | M18: 0 | Q18: P | R18: =IF($Q18<>"P",0,mySWITCH(INT($M18),0,0,0,1,1,2,2,3,2,4,2,5,2,6,2)) -> 0 | T18: P | U18: =IF($T18<>"P",0,pcOfTargetAchieved(ROW(),$M18)) -> 0 | W18: P | X18: =IF($W18<>"P",0,pcOfAdvancedAchieved(ROW(),$M18)) -> 0 | Z18: 0 | AA18: 0 | AB18: 0 | AC18: 0 | AD18: 0 | AE18: 0 | AF18: 0 | AG18: 0 | AH18: 0 | AI18: 0
C19: SUPPLIER MANAGEMENT | G19: 0 | H19: 1 | I19: 2 | J19: 3 | K19: 4 | L19: 5 | M19: ™ | O19: COMMENTS | Q19: Baseline | T19: Target | W19: Advanced | Y19: Scores | Z19: =Lookup!X$6 -> CE | AA19: =Lookup!Y$6 -> PSAP | AB19: =Lookup!Z$6 -> PSN - ITHC | AC19: =Lookup!AA$6 -> PCI-DSS | AD19: =Lookup!AB$6 -> 10 Steps | AE19: =Lookup!AC$6 -> GDPR | AF19: =Lookup!AD$6 -> HMG SPF | AG19: =Lookup!AE$6 -> ISO 27001 | AH19: =Lookup!AF$6 -> NIS - CAF | AI19: =Lookup!V6 -> totals
B20: =INDEX(Lookup!$B$9:$B$100,MATCH(CELL("contents",$C20),Lookup!$E$9:$E$100,0)) -> 1 | C20: Supply chain security assurance & management | D20: 9a | E20: 0 | F20: ™ | G20: ™ | H20: ™ | I20: ™ | J20: ™ | K20: ™ | L20: ™ | M20: 0 | R20: =IF($Q20<>"P",0,mySWITCH(INT($M20),0,0,0,1,1,2,2,3,2,4,2,5,2,6,2)) -> 0 | T20: P | U20: =IF($T20<>"P",0,pcOfTargetAchieved(ROW(),$M20)) -> 0 | X20: =IF($W20<>"P",0,pcOfAdvancedAchieved(ROW(),$M20)) -> 0 | Z20: 0 | AA20: 0 | AB20: 0 | AC20: 0 | AD20: 0 | AE20: 0 | AF20: 0 | AG20: 0 | AH20: 0 | AI20: 0
B21: =INDEX(Lookup!$B$9:$B$100,MATCH(CELL("contents",$C21),Lookup!$E$9:$E$100,0)) -> 1 | C21: Roles & responsibilities defined | D21: 9b | E21: 0 | F21: ™ | G21: ™ | H21: ™ | I21: ™ | J21: ™ | K21: ™ | L21: ™ | M21: 0 | R21: =IF($Q21<>"P",0,mySWITCH(INT($M21),0,0,0,1,1,2,2,3,2,4,2,5,2,6,2)) -> 0 | T21: P | U21: =IF($T21<>"P",0,pcOfTargetAchieved(ROW(),$M21)) -> 0 | W21: P | X21: =IF($W21<>"P",0,pcOfAdvancedAchieved(ROW(),$M21)) -> 0 | Z21: 0 | AA21: 0 | AB21: 0 | AC21: 0 | AD21: 0 | AE21: 0 | AF21: 0 | AG21: 0 | AH21: 0 | AI21: 0
B22: =INDEX(Lookup!$B$9:$B$100,MATCH(CELL("contents",$C22),Lookup!$E$9:$E$100,0)) -> 1 | C22: Access control | D22: 9c | E22: 0 | F22: ™ | G22: ™ | H22: ™ | I22: ™ | J22: ™ | K22: ™ | L22: ™ | M22: 0 | R22: =IF($Q22<>"P",0,mySWITCH(INT($M22),0,0,0,1,1,2,2,3,2,4,2,5,2,6,2)) -> 0 | U22: =IF($T22<>"P",0,pcOfTargetAchieved(ROW(),$M22)) -> 0 | W22: P | X22: =IF($W22<>"P",0,pcOfAdvancedAchieved(ROW(),$M22)) -> 0 | Z22: 0 | AA22: 0 | AB22: 0 | AC22: 0 | AD22: 0 | AE22: 0 | AF22: 0 | AG22: 0 | AH22: 0 | AI22: 0
B23: =INDEX(Lookup!$B$9:$B$100,MATCH(CELL("contents",$C23),Lookup!$E$9:$E$100,0)) -> 1 | C23: Security in system procurements | D23: 9d | E23: 0 | F23: ™ | G23: ™ | H23: ™ | I23: ™ | J23: ™ | K23: ™ | L23: ™ | M23: 0 | R23: =IF($Q23<>"P",0,mySWITCH(INT($M23),0,0,0,1,1,2,2,3,2,4,2,5,2,6,2)) -> 0 | T23: P | U23: =IF($T23<>"P",0,pcOfTargetAchieved(ROW(),$M23)) -> 0 | W23: P | X23: =IF($W23<>"P",0,pcOfAdvancedAchieved(ROW(),$M23)) -> 0 | Z23: 0 | AA23: 0 | AB23: 0 | AC23: 0 | AD23: 0 | AE23: 0 | AF23: 0 | AG23: 0 | AH23: 0 | AI23: 0
C24: ASSET MANAGEMENT | G24: 0 | H24: 1 | I24: 2 | J24: 3 | K24: 4 | L24: 5 | M24: ™ | O24: COMMENTS | Q24: Baseline | T24: Target | W24: Advanced | Y24: Scores | Z24: =Lookup!X$6 -> CE | AA24: =Lookup!Y$6 -> PSAP | AB24: =Lookup!Z$6 -> PSN - ITHC | AC24: =Lookup!AA$6 -> PCI-DSS | AD24: =Lookup!AB$6 -> 10 Steps | AE24: =Lookup!AC$6 -> GDPR | AF24: =Lookup!AD$6 -> HMG SPF | AG24: =Lookup!AE$6 -> ISO 27001 | AH24: =Lookup!AF$6 -> NIS - CAF | AI24: =Lookup!V6 -> totals
B25: =INDEX(Lookup!$B$9:$B$100,MATCH(CELL("contents",$C25),Lookup!$E$9:$E$100,0)) -> 1 | C25: Hardware assets register & management | D25: =Lookup!$F25 -> 4a | E25: 0 | F25: ™ | G25: ™ | H25: ™ | I25: ™ | J25: ™ | K25: ™ | L25: ™ | M25: 0 | R25: =IF($Q25<>"P",0,mySWITCH(INT($M25),0,0,0,1,1,2,2,3,2,4,2,5,2,6,2)) -> 0 | T25: P | U25: =IF($T25<>"P",0,pcOfTargetAchieved(ROW(),$M25)) -> 0 | W25: P | X25: =IF($W25<>"P",0,pcOfAdvancedAchieved(ROW(),$M25)) -> 0 | Z25: 0 | AA25: 0 | AB25: 0 | AC25: 0 | AD25: 0 | AE25: 0 | AF25: 0 | AG25: 0 | AH25: 0 | AI25: 0
B26: =INDEX(Lookup!$B$9:$B$100,MATCH(CELL("contents",$C26),Lookup!$E$9:$E$100,0)) -> 1 | C26: Software assets register & management | D26: =Lookup!$F26 -> 4b | E26: 0 | F26: ™ | G26: ™ | H26: ™ | I26: ™ | J26: ™ | K26: ™ | L26: ™ | M26: 0 | Q26: P | R26: =IF($Q26<>"P",0,mySWITCH(INT($M26),0,0,0,1,1,2,2,3,2,4,2,5,2,6,2)) -> 0 | T26: P | U26: =IF($T26<>"P",0,pcOfTargetAchieved(ROW(),$M26)) -> 0 | W26: P | X26: =IF($W26<>"P",0,pcOfAdvancedAchieved(ROW(),$M26)) -> 0 | Z26: 0 | AA26: 0 | AB26: 0 | AC26: 0 | AD26: 0 | AE26: 0 | AF26: 0 | AG26: 0 | AH26: 0 | AI26: 0
B27: =INDEX(Lookup!$B$9:$B$100,MATCH(CELL("contents",$C27),Lookup!$E$9:$E$100,0)) -> 1 | C27: Infrastructure management | D27: =Lookup!$F27 -> 4c | E27: 0 | F27: ™ | G27: ™ | H27: ™ | I27: ™ | J27: ™ | K27: ™ | L27: ™ | M27: 0 | R27: =IF($Q27<>"P",0,mySWITCH(INT($M27),0,0,0,1,1,2,2,3,2,4,2,5,2,6,2)) -> 0 | T27: P | U27: =IF($T27<>"P",0,pcOfTargetAchieved(ROW(),$M27)) -> 0 | W27: P | X27: =IF($W27<>"P",0,pcOfAdvancedAchieved(ROW(),$M27)) -> 0 | Z27: 0 | AA27: 0 | AB27: 0 | AC27: 0 | AD27: 0 | AE27: 0 | AF27: 0 | AG27: 0 | AH27: 0 | AI27: 0
A28: PROTECT | C28: INFORMATION SECURITY MANAGEMENT | G28: 0 | H28: 1 | I28: 2 | J28: 3 | K28: 4 | L28: 5 | M28: ™ | O28: COMMENTS | Q28: Baseline | T28: Target | W28: Advanced | Y28: Scores | Z28: =Lookup!X$6 -> CE | AA28: =Lookup!Y$6 -> PSAP | AB28: =Lookup!Z$6 -> PSN - ITHC | AC28: =Lookup!AA$6 -> PCI-DSS | AD28: =Lookup!AB$6 -> 10 Steps | AE28: =Lookup!AC$6 -> GDPR | AF28: =Lookup!AD$6 -> HMG SPF | AG28: =Lookup!AE$6 -> ISO 27001 | AH28: =Lookup!AF$6 -> NIS - CAF | AI28: =Lookup!V6 -> totals
B29: =INDEX(Lookup!$B$9:$B$100,MATCH(CELL("contents",$C29),Lookup!$E$9:$E$100,0)) -> 2 | C29: Security policy & processes | D29: 1a | E29: 0 | F29: ™ | G29: ™ | H29: ™ | I29: ™ | J29: ™ | K29: ™ | L29: ™ | M29: 0 | R29: =IF($Q29<>"P",0,mySWITCH(INT($M29),0,0,0,1,1,2,2,3,2,4,2,5,2,6,2)) -> 0 | T29: P | U29: =IF($T29<>"P",0,pcOfTargetAchieved(ROW(),$M29)) -> 0 | W29: P | X29: =IF($W29<>"P",0,pcOfAdvancedAchieved(ROW(),$M29)) -> 0 | Z29: 0 | AA29: 0 | AB29: 0 | AC29: 0 | AD29: 0 | AE29: 0 | AF29: 0 | AG29: 0 | AH29: 0 | AI29: 0
B30: =INDEX(Lookup!$B$9:$B$100,MATCH(CELL("contents",$C30),Lookup!$E$9:$E$100,0)) -> 2 | C30: Lifecycle management | D30: 1b | E30: 0 | F30: ™ | G30: ™ | H30: ™ | I30: ™ | J30: ™ | K30: ™ | L30: ™ | M30: 0 | R30: =IF($Q30<>"P",0,mySWITCH(INT($M30),0,0,0,1,1,2,2,3,2,4,2,5,2,6,2)) -> 0 | T30: P | U30: =IF($T30<>"P",0,pcOfTargetAchieved(ROW(),$M30)) -> 0 | W30: P | X30: =IF($W30<>"P",0,pcOfAdvancedAchieved(ROW(),$M30)) -> 0 | Z30: 0 | AA30: 0 | AB30: 0 | AC30: 0 | AD30: 0 | AE30: 0 | AF30: 0 | AG30: 0 | AH30: 0 | AI30: 0
C31: Storage | D31: 1c | E31: 0 | F31: ™ | G31: ™ | H31: ™ | I31: ™ | J31: ™ | K31: ™ | L31: ™ | M31: 0 | R31: =IF($Q31<>"P",0,mySWITCH(INT($M31),0,0,0,1,1,2,2,3,2,4,2,5,2,6,2)) -> 0 | T31: P | U31: =IF($T31<>"P",0,pcOfTargetAchieved(ROW(),$M31)) -> 0 | W31: P | X31: =IF($W31<>"P",0,pcOfAdvancedAchieved(ROW(),$M31)) -> 0 | Z31: 0 | AA31: 0 | AB31: 0 | AC31: 0 | AD31: 0 | AE31: 0 | AF31: 0 | AG31: 0 | AH31: 0
C32: Information/data classification | D32: 1f | E32: 0 | F32: ™ | G32: ™ | H32: ™ | I32: ™ | J32: ™ | K32: ™ | L32: ™ | M32: 0 | R32: =IF($Q32<>"P",0,mySWITCH(INT($M32),0,0,0,1,1,2,2,3,2,4,2,5,2,6,2)) -> 0 | T32: P | U32: =IF($T32<>"P",0,pcOfTargetAchieved(ROW(),$M32)) -> 0 | W32: P | X32: =IF($W32<>"P",0,pcOfAdvancedAchieved(ROW(),$M32)) -> 0 | Z32: 0 | AA32: 0 | AB32: 0 | AC32: 0 | AD32: 0 | AE32: 0 | AF32: 0 | AG32: 0 | AH32: 0 | AI32: 0
C33: Information assets register | D33: 1g | E33: 0 | F33: ™ | G33: ™ | H33: ™ | I33: ™ | J33: ™ | K33: ™ | L33: ™ | M33: 0 | R33: =IF($Q33<>"P",0,mySWITCH(INT($M33),0,0,0,1,1,2,2,3,2,4,2,5,2,6,2)) -> 0 | T33: P | U33: =IF($T33<>"P",0,pcOfTargetAchieved(ROW(),$M33)) -> 0 | W33: P | X33: =IF($W33<>"P",0,pcOfAdvancedAchieved(ROW(),$M33)) -> 0 | Z33: 0 | AA33: 0 | AB33: 0 | AC33: 0 | AD33: 0 | AE33: 0 | AF33: 0 | AG33: 0 | AH33: 0
C34: Information/data transfer controls | D34: 1h | E34: 0 | F34: ™ | G34: ™ | H34: ™ | I34: ™ | J34: ™ | K34: ™ | L34: ™ | M34: 0 | R34: =IF($Q34<>"P",0,mySWITCH(INT($M34),0,0,0,1,1,2,2,3,2,4,2,5,2,6,2)) -> 0 | T34: P | U34: =IF($T34<>"P",0,pcOfTargetAchieved(ROW(),$M34)) -> 0 | W34: P | X34: =IF($W34<>"P",0,pcOfAdvancedAchieved(ROW(),$M34)) -> 0 | Z34: 0 | AA34: 0 | AB34: 0 | AC34: 0 | AD34: 0 | AE34: 0 | AF34: 0 | AG34: 0 | AH34: 0
C35: PEOPLE | G35: 0 | H35: 1 | I35: 2 | J35: 3 | K35: 4 | L35: 5 | M35: ™ | O35: COMMENTS | Q35: Baseline | T35: Target | W35: Advanced | Y35: Scores | Z35: =Lookup!X$6 -> CE | AA35: =Lookup!Y$6 -> PSAP | AB35: =Lookup!Z$6 -> PSN - ITHC | AC35: =Lookup!AA$6 -> PCI-DSS | AD35: =Lookup!AB$6 -> 10 Steps | AE35: =Lookup!AC$6 -> GDPR | AF35: =Lookup!AD$6 -> HMG SPF | AG35: =Lookup!AE$6 -> ISO 27001 | AH35: =Lookup!AF$6 -> NIS - CAF | AI35: =Lookup!V6 -> totals
C36: Prior to employment | D36: 13a | E36: 0 | F36: ™ | G36: ™ | H36: ™ | I36: ™ | J36: ™ | K36: ™ | L36: ™ | M36: 0 | R36: =IF($Q36<>"P",0,mySWITCH(INT($M36),0,0,0,1,1,2,2,3,2,4,2,5,2,6,2)) -> 0 | T36: P | U36: =IF($T36<>"P",0,pcOfTargetAchieved(ROW(),$M36)) -> 0 | W36: P | X36: =IF($W36<>"P",0,pcOfAdvancedAchieved(ROW(),$M36)) -> 0 | Z36: 0 | AA36: 0 | AB36: 0 | AC36: 0 | AD36: 0 | AE36: 0 | AF36: 0 | AG36: 0 | AH36: 0
B37: =INDEX(Lookup!$B$9:$B$100,MATCH(CELL("contents",$C37),Lookup!$E$9:$E$100,0)) -> 2 | C37: During employment | D37: 13d | E37: 0 | F37: ™ | G37: ™ | H37: ™ | I37: ™ | J37: ™ | K37: ™ | L37: ™ | M37: 0 | R37: =IF($Q37<>"P",0,mySWITCH(INT($M37),0,0,0,1,1,2,2,3,2,4,2,5,2,6,2)) -> 0 | T37: P | U37: =IF($T37<>"P",0,pcOfTargetAchieved(ROW(),$M37)) -> 0 | W37: P | X37: =IF($W37<>"P",0,pcOfAdvancedAchieved(ROW(),$M37)) -> 0 | Z37: 0 | AA37: 0 | AB37: 0 | AC37: 0 | AD37: 0 | AE37: 0 | AF37: 0 | AG37: 0 | AH37: 0
C38: Staff training & awareness culture | D38: 13i | E38: 0 | F38: ™ | G38: ™ | H38: ™ | I38: ™ | J38: ™ | K38: ™ | L38: ™ | M38: 0 | Q38: P | R38: =IF($Q38<>"P",0,mySWITCH(INT($M38),0,0,0,1,1,2,2,3,2,4,2,5,2,6,2)) -> 0 | T38: P | U38: =IF($T38<>"P",0,pcOfTargetAchieved(ROW(),$M38)) -> 0 | W38: P | X38: =IF($W38<>"P",0,pcOfAdvancedAchieved(ROW(),$M38)) -> 0 | Z38: 0 | AA38: 0 | AB38: 0 | AC38: 0 | AD38: 0 | AE38: 0 | AF38: 0 | AG38: 0 | AH38: 0
C39: Staff skills assessment | D39: 13j | E39: 0 | F39: ™ | G39: ™ | H39: ™ | I39: ™ | J39: ™ | K39: ™ | L39: ™ | M39: 0 | R39: =IF($Q39<>"P",0,mySWITCH(INT($M39),0,0,0,1,1,2,2,3,2,4,2,5,2,6,2)) -> 0 | T39: P | U39: =IF($T39<>"P",0,pcOfTargetAchieved(ROW(),$M39)) -> 0 | W39: P | X39: =IF($W39<>"P",0,pcOfAdvancedAchieved(ROW(),$M39)) -> 0 | Z39: 0 | AA39: 0 | AB39: 0 | AC39: 0 | AD39: 0 | AE39: 0 | AF39: 0 | AG39: 0 | AH39: 0
C40: Mobile/remote working policy | D40: 13o | E40: 0 | F40: ™ | G40: ™ | H40: ™ | I40: ™ | J40: ™ | K40: ™ | L40: ™ | M40: 0 | R40: =IF($Q40<>"P",0,mySWITCH(INT($M40),0,0,0,1,1,2,2,3,2,4,2,5,2,6,2)) -> 0 | T40: P | U40: =IF($T40<>"P",0,pcOfTargetAchieved(ROW(),$M40)) -> 0 | W40: P | X40: =IF($W40<>"P",0,pcOfAdvancedAchieved(ROW(),$M40)) -> 0 | Z40: 0 | AA40: 0 | AB40: 0 | AC40: 0 | AD40: 0 | AE40: 0 | AF40: 0 | AG40: 0 | AH40: 0
C41: SERVICES RESILIENCE | G41: 0 | H41: 1 | I41: 2 | J41: 3 | K41: 4 | L41: 5 | M41: ™ | O41: COMMENTS | Q41: Baseline | T41: Target | W41: Advanced | Y41: Scores | Z41: =Lookup!X$6 -> CE | AA41: =Lookup!Y$6 -> PSAP | AB41: =Lookup!Z$6 -> PSN - ITHC | AC41: =Lookup!AA$6 -> PCI-DSS | AD41: =Lookup!AB$6 -> 10 Steps | AE41: =Lookup!AC$6 -> GDPR | AF41: =Lookup!AD$6 -> HMG SPF | AG41: =Lookup!AE$6 -> ISO 27001 | AH41: =Lookup!AF$6 -> NIS - CAF | AI41: =Lookup!V6 -> totals
C42: Services Resilience | D42: 17a | E42: 0 | F42: ™ | G42: ™ | H42: ™ | I42: ™ | J42: ™ | K42: ™ | L42: ™ | M42: 0 | R42: =IF($Q42<>"P",0,mySWITCH(INT($M42),0,0,0,1,1,2,2,3,2,4,2,5,2,6,2)) -> 0 | T42: P | U42: =IF($T42<>"P",0,pcOfTargetAchieved(ROW(),$M42)) -> 0 | W42: P | X42: =IF($W42<>"P",0,pcOfAdvancedAchieved(ROW(),$M42)) -> 0 | Z42: 0 | AA42: 0 | AB42: 0 | AC42: 0 | AD42: 0 | AE42: 0 | AF42: 0 | AG42: 0 | AH42: 0
C43: ACCESS CONTROL | G43: 0 | H43: 1 | I43: 2 | J43: 3 | K43: 4 | L43: 5 | M43: ™ | O43: COMMENTS | Q43: Baseline | T43: Target | W43: Advanced | Y43: Scores | Z43: =Lookup!X$6 -> CE | AA43: =Lookup!Y$6 -> PSAP | AB43: =Lookup!Z$6 -> PSN - ITHC | AC43: =Lookup!AA$6 -> PCI-DSS | AD43: =Lookup!AB$6 -> 10 Steps | AE43: =Lookup!AC$6 -> GDPR | AF43: =Lookup!AD$6 -> HMG SPF | AG43: =Lookup!AE$6 -> ISO 27001 | AH43: =Lookup!AF$6 -> NIS - CAF | AI43: =Lookup!V6 -> totals
C44: Account management | D44: 3a | E44: 0 | F44: ™ | G44: ™ | H44: ™ | I44: ™ | J44: ™ | K44: ™ | L44: ™ | M44: 0 | Q44: P | R44: =IF($Q44<>"P",0,mySWITCH(INT($M44),0,0,0,1,1,2,2,3,2,4,2,5,2,6,2)) -> 0 | T44: P | U44: =IF($T44<>"P",0,pcOfTargetAchieved(ROW(),$M44)) -> 0 | X44: =IF($W44<>"P",0,pcOfAdvancedAchieved(ROW(),$M44)) -> 0 | Z44: 0 | AA44: 0 | AB44: 0 | AC44: 0 | AD44: 0 | AE44: 0 | AF44: 0 | AG44: 0 | AH44: 0
B45: =INDEX(Lookup!$B$9:$B$100,MATCH(CELL("contents",$C45),Lookup!$E$9:$E$100,0)) -> 2 | C45: Identity authentication | D45: 3b | E45: 0 | F45: ™ | G45: ™ | H45: ™ | I45: ™ | J45: ™ | K45: ™ | L45: ™ | M45: 0 | Q45: P | R45: =IF($Q45<>"P",0,mySWITCH(INT($M45),0,0,0,1,1,2,2,3,2,4,2,5,2,6,2)) -> 0 | T45: P | U45: =IF($T45<>"P",0,pcOfTargetAchieved(ROW(),$M45)) -> 0 | W45: P | X45: =IF($W45<>"P",0,pcOfAdvancedAchieved(ROW(),$M45)) -> 0 | Z45: 0 | AA45: 0 | AB45: 0 | AC45: 0 | AD45: 0 | AE45: 0 | AF45: 0 | AG45: 0 | AH45: 0
B46: =INDEX(Lookup!$B$9:$B$100,MATCH(CELL("contents",$C46),Lookup!$E$9:$E$100,0)) -> 2 | C46: Privilege management | D46: 3e | E46: 0 | F46: ™ | G46: ™ | H46: ™ | I46: ™ | J46: ™ | K46: ™ | L46: ™ | M46: 0 | Q46: P | R46: =IF($Q46<>"P",0,mySWITCH(INT($M46),0,0,0,1,1,2,2,3,2,4,2,5,2,6,2)) -> 0 | T46: P | U46: =IF($T46<>"P",0,pcOfTargetAchieved(ROW(),$M46)) -> 0 | W46: P | X46: =IF($W46<>"P",0,pcOfAdvancedAchieved(ROW(),$M46)) -> 0 | Z46: 0 | AA46: 0 | AB46: 0 | AC46: 0 | AD46: 0 | AE46: 0 | AF46: 0 | AG46: 0 | AH46: 0
B47: =INDEX(Lookup!$B$9:$B$100,MATCH(CELL("contents",$C47),Lookup!$E$9:$E$100,0)) -> 2 | C47: Administrator account management | D47: 3f | E47: 0 | F47: ™ | G47: ™ | H47: ™ | I47: ™ | J47: ™ | K47: ™ | L47: ™ | M47: 0 | Q47: P | R47: =IF($Q47<>"P",0,mySWITCH(INT($M47),0,0,0,1,1,2,2,3,2,4,2,5,2,6,2)) -> 0 | T47: P | U47: =IF($T47<>"P",0,pcOfTargetAchieved(ROW(),$M47)) -> 0 | W47: P | X47: =IF($W47<>"P",0,pcOfAdvancedAchieved(ROW(),$M47)) -> 0 | Z47: 0 | AA47: 0 | AB47: 0 | AC47: 0 | AD47: 0 | AE47: 0 | AF47: 0 | AG47: 0 | AH47: 0
C48: MEDIA MANAGEMENT | G48: 0 | H48: 1 | I48: 2 | J48: 3 | K48: 4 | L48: 5 | M48: ™ | O48: COMMENTS | Q48: Baseline | T48: Target | W48: Advanced | Y48: Scores | Z48: =Lookup!X$6 -> CE | AA48: =Lookup!Y$6 -> PSAP | AB48: =Lookup!Z$6 -> PSN - ITHC | AC48: =Lookup!AA$6 -> PCI-DSS | AD48: =Lookup!AB$6 -> 10 Steps | AE48: =Lookup!AC$6 -> GDPR | AF48: =Lookup!AD$6 -> HMG SPF | AG48: =Lookup!AE$6 -> ISO 27001 | AH48: =Lookup!AF$6 -> NIS - CAF | AI48: =Lookup!V6 -> totals
C49: Storage media management | D49: 14a | E49: 0 | F49: ™ | G49: ™ | H49: ™ | I49: ™ | J49: ™ | K49: ™ | L49: ™ | M49: 0 | R49: =IF($Q49<>"P",0,mySWITCH(INT($M49),0,0,0,1,1,2,2,3,2,4,2,5,2,6,2)) -> 0 | T49: P | U49: =IF($T49<>"P",0,pcOfTargetAchieved(ROW(),$M49)) -> 0 | W49: P | X49: =IF($W49<>"P",0,pcOfAdvancedAchieved(ROW(),$M49)) -> 0 | Z49: 0 | AA49: 0 | AB49: 0 | AC49: 0 | AD49: 0 | AE49: 0 | AF49: 0 | AG49: 0 | AH49: 0
B50: =INDEX(Lookup!$B$9:$B$100,MATCH(CELL("contents",$C50),Lookup!$E$9:$E$100,0)) -> 2 | C50: Mobile media/devices | D50: 14b | E50: 0 | F50: ™ | G50: ™ | H50: ™ | I50: ™ | J50: ™ | K50: ™ | L50: ™ | M50: 0 | R50: =IF($Q50<>"P",0,mySWITCH(INT($M50),0,0,0,1,1,2,2,3,2,4,2,5,2,6,2)) -> 0 | T50: P | U50: =IF($T50<>"P",0,pcOfTargetAchieved(ROW(),$M50)) -> 0 | W50: P | X50: =IF($W50<>"P",0,pcOfAdvancedAchieved(ROW(),$M50)) -> 0 | Z50: 0 | AA50: 0 | AB50: 0 | AC50: 0 | AD50: 0 | AE50: 0 | AF50: 0 | AG50: 0 | AH50: 0
B51: =INDEX(Lookup!$B$9:$B$100,MATCH(CELL("contents",$C51),Lookup!$E$9:$E$100,0)) -> 2 | C51: Cryptography | D51: 14c | E51: 0 | F51: ™ | G51: ™ | H51: ™ | I51: ™ | J51: ™ | K51: ™ | L51: ™ | M51: 0 | R51: =IF($Q51<>"P",0,mySWITCH(INT($M51),0,0,0,1,1,2,2,3,2,4,2,5,2,6,2)) -> 0 | T51: P | U51: =IF($T51<>"P",0,pcOfTargetAchieved(ROW(),$M51)) -> 0 | W51: P | X51: =IF($W51<>"P",0,pcOfAdvancedAchieved(ROW(),$M51)) -> 0 | Z51: 0 | AA51: 0 | AB51: 0 | AC51: 0 | AD51: 0 | AE51: 0 | AF51: 0 | AG51: 0 | AH51: 0
B52: =INDEX(Lookup!$B$9:$B$100,MATCH(CELL("contents",$C52),Lookup!$E$9:$E$100,0)) -> 2 | C52: Remote wipe capability | D52: 14d | E52: 0 | F52: ™ | G52: ™ | H52: ™ | I52: ™ | J52: ™ | K52: ™ | L52: ™ | M52: 0 | R52: =IF($Q52<>"P",0,mySWITCH(INT($M52),0,0,0,1,1,2,2,3,2,4,2,5,2,6,2)) -> 0 | T52: P | U52: =IF($T52<>"P",0,pcOfTargetAchieved(ROW(),$M52)) -> 0 | X52: =IF($W52<>"P",0,pcOfAdvancedAchieved(ROW(),$M52)) -> 0 | Z52: 0 | AA52: 0 | AB52: 0 | AC52: 0 | AD52: 0 | AE52: 0 | AF52: 0 | AG52: 0 | AH52: 0
C53: ENVIRONMENTAL SECURITY | G53: 0 | H53: 1 | I53: 2 | J53: 3 | K53: 4 | L53: 5 | M53: ™ | O53: COMMENTS | Q53: Baseline | T53: Target | W53: Advanced | Y53: Scores | Z53: =Lookup!X$6 -> CE | AA53: =Lookup!Y$6 -> PSAP | AB53: =Lookup!Z$6 -> PSN - ITHC | AC53: =Lookup!AA$6 -> PCI-DSS | AD53: =Lookup!AB$6 -> 10 Steps | AE53: =Lookup!AC$6 -> GDPR | AF53: =Lookup!AD$6 -> HMG SPF | AG53: =Lookup!AE$6 -> ISO 27001 | AH53: =Lookup!AF$6 -> NIS - CAF | AI53: =Lookup!V6 -> totals
C54: Equipment location | D54: 15a | E54: 0 | F54: ™ | G54: ™ | H54: ™ | I54: ™ | J54: ™ | K54: ™ | L54: ™ | M54: 0 | R54: =IF($Q54<>"P",0,mySWITCH(INT($M54),0,0,0,1,1,2,2,3,2,4,2,5,2,6,2)) -> 0 | U54: =IF($T54<>"P",0,pcOfTargetAchieved(ROW(),$M54)) -> 0 | W54: P | X54: =IF($W54<>"P",0,pcOfAdvancedAchieved(ROW(),$M54)) -> 0 | Z54: 0 | AA54: 0 | AB54: 0 | AC54: 0 | AD54: 0 | AE54: 0 | AF54: 0 | AG54: 0 | AH54: 0
B55: =INDEX(Lookup!$B$9:$B$100,MATCH(CELL("contents",$C55),Lookup!$E$9:$E$100,0)) -> 2 | C55: Power resilience | D55: 15b | E55: 0 | F55: ™ | G55: ™ | H55: ™ | I55: ™ | J55: ™ | K55: ™ | L55: ™ | M55: 0 | R55: =IF($Q55<>"P",0,mySWITCH(INT($M55),0,0,0,1,1,2,2,3,2,4,2,5,2,6,2)) -> 0 | U55: =IF($T55<>"P",0,pcOfTargetAchieved(ROW(),$M55)) -> 0 | W55: P | X55: =IF($W55<>"P",0,pcOfAdvancedAchieved(ROW(),$M55)) -> 0 | Z55: 0 | AA55: 0 | AB55: 0 | AC55: 0 | AD55: 0 | AE55: 0 | AF55: 0 | AG55: 0 | AH55: 0
C56: PHYSICAL/BUILDING SECURITY | G56: 0 | H56: 1 | I56: 2 | J56: 3 | K56: 4 | L56: 5 | M56: ™ | O56: COMMENTS | Q56: Baseline | T56: Target | W56: Advanced | Y56: Scores | Z56: =Lookup!X$6 -> CE | AA56: =Lookup!Y$6 -> PSAP | AB56: =Lookup!Z$6 -> PSN - ITHC | AC56: =Lookup!AA$6 -> PCI-DSS | AD56: =Lookup!AB$6 -> 10 Steps | AE56: =Lookup!AC$6 -> GDPR | AF56: =Lookup!AD$6 -> HMG SPF | AG56: =Lookup!AE$6 -> ISO 27001 | AH56: =Lookup!AF$6 -> NIS - CAF | AI56: =Lookup!V6 -> totals
C57: Access control | D57: 5a | E57: 0 | F57: ™ | G57: ™ | H57: ™ | I57: ™ | J57: ™ | K57: ™ | L57: ™ | M57: 0 | R57: =IF($Q57<>"P",0,mySWITCH(INT($M57),0,0,0,1,1,2,2,3,2,4,2,5,2,6,2)) -> 0 | T57: P | U57: =IF($T57<>"P",0,pcOfTargetAchieved(ROW(),$M57)) -> 0 | W57: P | X57: =IF($W57<>"P",0,pcOfAdvancedAchieved(ROW(),$M57)) -> 0 | Z57: 0 | AA57: 0 | AB57: 0 | AC57: 0 | AD57: 0 | AE57: 0 | AF57: 0 | AG57: 0 | AH57: 0
B58: =INDEX(Lookup!$B$9:$B$100,MATCH(CELL("contents",$C58),Lookup!$E$9:$E$100,0)) -> 2 | C58: Internal security | D58: 5b | E58: 0 | F58: ™ | G58: ™ | H58: ™ | I58: ™ | J58: ™ | K58: ™ | L58: ™ | M58: 0 | R58: =IF($Q58<>"P",0,mySWITCH(INT($M58),0,0,0,1,1,2,2,3,2,4,2,5,2,6,2)) -> 0 | T58: P | U58: =IF($T58<>"P",0,pcOfTargetAchieved(ROW(),$M58)) -> 0 | W58: P | X58: =IF($W58<>"P",0,pcOfAdvancedAchieved(ROW(),$M58)) -> 0 | Z58: 0 | AA58: 0 | AB58: 0 | AC58: 0 | AD58: 0 | AE58: 0 | AF58: 0 | AG58: 0 | AH58: 0
C59: SYSTEM MANAGEMENT | G59: 0 | H59: 1 | I59: 2 | J59: 3 | K59: 4 | L59: 5 | M59: ™ | O59: COMMENTS | Q59: Baseline | T59: Target | W59: Advanced | Y59: Scores | Z59: =Lookup!X$6 -> CE | AA59: =Lookup!Y$6 -> PSAP | AB59: =Lookup!Z$6 -> PSN - ITHC | AC59: =Lookup!AA$6 -> PCI-DSS | AD59: =Lookup!AB$6 -> 10 Steps | AE59: =Lookup!AC$6 -> GDPR | AF59: =Lookup!AD$6 -> HMG SPF | AG59: =Lookup!AE$6 -> ISO 27001 | AH59: =Lookup!AF$6 -> NIS - CAF | AI59: =Lookup!V6 -> totals
C60: Secure configuration | D60: 6c | E60: 0 | F60: ™ | G60: ™ | H60: ™ | I60: ™ | J60: ™ | K60: ™ | L60: ™ | M60: 0 | Q60: P | R60: =IF($Q60<>"P",0,mySWITCH(INT($M60),0,0,0,1,1,2,2,3,2,4,2,5,2,6,2)) -> 0 | T60: P | U60: =IF($T60<>"P",0,pcOfTargetAchieved(ROW(),$M60)) -> 0 | W60: P | X60: =IF($W60<>"P",0,pcOfAdvancedAchieved(ROW(),$M60)) -> 0 | Z60: 0 | AA60: 0 | AB60: 0 | AC60: 0 | AD60: 0 | AE60: 0 | AF60: 0 | AG60: 0 | AH60: 0
B61: =INDEX(Lookup!$B$9:$B$100,MATCH(CELL("contents",$C61),Lookup!$E$9:$E$100,0)) -> 2 | C61: Secure design/development | D61: 6d | E61: 0 | F61: ™ | G61: ™ | H61: ™ | I61: ™ | J61: ™ | K61: ™ | L61: ™ | M61: 0 | R61: =IF($Q61<>"P",0,mySWITCH(INT($M61),0,0,0,1,1,2,2,3,2,4,2,5,2,6,2)) -> 0 | T61: P | U61: =IF($T61<>"P",0,pcOfTargetAchieved(ROW(),$M61)) -> 0 | W61: P | X61: =IF($W61<>"P",0,pcOfAdvancedAchieved(ROW(),$M61)) -> 0 | Z61: 0 | AA61: 0 | AB61: 0 | AC61: 0 | AD61: 0 | AE61: 0 | AF61: 0 | AG61: 0 | AH61: 0 | AI61: 0
B62: =INDEX(Lookup!$B$9:$B$100,MATCH(CELL("contents",$C62),Lookup!$E$9:$E$100,0)) -> 2 | C62: Change control procedures | D62: 6e | E62: 0 | F62: ™ | G62: ™ | H62: ™ | I62: ™ | J62: ™ | K62: ™ | L62: ™ | M62: 0 | R62: =IF($Q62<>"P",0,mySWITCH(INT($M62),0,0,0,1,1,2,2,3,2,4,2,5,2,6,2)) -> 0 | T62: P | U62: =IF($T62<>"P",0,pcOfTargetAchieved(ROW(),$M62)) -> 0 | W62: P | X62: =IF($W62<>"P",0,pcOfAdvancedAchieved(ROW(),$M62)) -> 0 | Z62: 0 | AA62: 0 | AB62: 0 | AC62: 0 | AD62: 0 | AE62: 0 | AF62: 0 | AG62: 0 | AH62: 0
B63: =INDEX(Lookup!$B$9:$B$100,MATCH(CELL("contents",$C63),Lookup!$E$9:$E$100,0)) -> 2 | C63: System Testing | D63: 6f | E63: 0 | F63: ™ | G63: ™ | H63: ™ | I63: ™ | J63: ™ | K63: ™ | L63: ™ | M63: 0 | R63: =IF($Q63<>"P",0,mySWITCH(INT($M63),0,0,0,1,1,2,2,3,2,4,2,5,2,6,2)) -> 0 | T63: P | U63: =IF($T63<>"P",0,pcOfTargetAchieved(ROW(),$M63)) -> 0 | W63: P | X63: =IF($W63<>"P",0,pcOfAdvancedAchieved(ROW(),$M63)) -> 0 | Z63: 0 | AA63: 0 | AB63: 0 | AC63: 0 | AD63: 0 | AE63: 0 | AF63: 0 | AG63: 0 | AH63: 0
C64: OPERATIONAL SECURITY | G64: 0 | H64: 1 | I64: 2 | J64: 3 | K64: 4 | L64: 5 | M64: ™ | O64: COMMENTS | Q64: Baseline | T64: Target | W64: Advanced | Z64: =Lookup!X$6 -> CE | AA64: =Lookup!Y$6 -> PSAP | AB64: =Lookup!Z$6 -> PSN - ITHC | AC64: =Lookup!AA$6 -> PCI-DSS | AD64: =Lookup!AB$6 -> 10 Steps | AE64: =Lookup!AC$6 -> GDPR | AF64: =Lookup!AD$6 -> HMG SPF | AG64: =Lookup!AE$6 -> ISO 27001 | AH64: =Lookup!AF$6 -> NIS - CAF | AI64: =Lookup!V6 -> totals
C65: Malware policies & protection | D65: 7a | E65: 0 | F65: ™ | G65: ™ | H65: ™ | I65: ™ | J65: ™ | K65: ™ | L65: ™ | M65: 0 | Q65: P | R65: =IF($Q65<>"P",0,mySWITCH(INT($M65),0,0,0,1,1,2,2,3,2,4,2,5,2,6,2)) -> 0 | T65: P | U65: =IF($T65<>"P",0,pcOfTargetAchieved(ROW(),$M65)) -> 0 | X65: =IF($W65<>"P",0,pcOfAdvancedAchieved(ROW(),$M65)) -> 0 | Z65: 0 | AA65: 0 | AB65: 0 | AC65: 0 | AD65: 0 | AE65: 0 | AF65: 0 | AG65: 0 | AH65: 0
B66: =INDEX(Lookup!$B$9:$B$100,MATCH(CELL("contents",$C66),Lookup!$E$9:$E$100,0)) -> 2 | C66: Email security | D66: 7e | E66: 0 | F66: ™ | G66: ™ | H66: ™ | I66: ™ | J66: ™ | K66: ™ | L66: ™ | M66: 0 | Q66: P | R66: =IF($Q66<>"P",0,mySWITCH(INT($M66),0,0,0,1,1,2,2,3,2,4,2,5,2,6,2)) -> 0 | T66: P | U66: =IF($T66<>"P",0,pcOfTargetAchieved(ROW(),$M66)) -> 0 | X66: =IF($W66<>"P",0,pcOfAdvancedAchieved(ROW(),$M66)) -> 0 | Z66: 0 | AA66: 0 | AB66: 0 | AC66: 0 | AD66: 0 | AE66: 0 | AF66: 0 | AG66: 0 | AH66: 0
B67: =INDEX(Lookup!$B$9:$B$100,MATCH(CELL("contents",$C67),Lookup!$E$9:$E$100,0)) -> 2 | C67: Application security | D67: 7f | E67: 0 | F67: ™ | G67: ™ | H67: ™ | I67: ™ | J67: ™ | K67: ™ | L67: ™ | M67: 0 | Q67: P | R67: =IF($Q67<>"P",0,mySWITCH(INT($M67),0,0,0,1,1,2,2,3,2,4,2,5,2,6,2)) -> 0 | T67: P | U67: =IF($T67<>"P",0,pcOfTargetAchieved(ROW(),$M67)) -> 0 | X67: =IF($W67<>"P",0,pcOfAdvancedAchieved(ROW(),$M67)) -> 0 | Z67: 0 | AA67: 0 | AB67: 0 | AC67: 0 | AD67: 0 | AE67: 0 | AF67: 0 | AG67: 0 | AH67: 0
B68: =INDEX(Lookup!$B$9:$B$100,MATCH(CELL("contents",$C68),Lookup!$E$9:$E$100,0)) -> 2 | C68: Vulnerability management & scanning | D68: 7h | E68: 0 | F68: ™ | G68: ™ | H68: ™ | I68: ™ | J68: ™ | K68: ™ | L68: ™ | M68: 0 | Q68: P | R68: =IF($Q68<>"P",0,mySWITCH(INT($M68),0,0,0,1,1,2,2,3,2,4,2,5,2,6,2)) -> 0 | T68: P | U68: =IF($T68<>"P",0,pcOfTargetAchieved(ROW(),$M68)) -> 0 | W68: P | X68: =IF($W68<>"P",0,pcOfAdvancedAchieved(ROW(),$M68)) -> 0 | Z68: 0 | AA68: 0 | AB68: 0 | AC68: 0 | AD68: 0 | AE68: 0 | AF68: 0 | AG68: 0 | AH68: 0
B69: =INDEX(Lookup!$B$9:$B$100,MATCH(CELL("contents",$C69),Lookup!$E$9:$E$100,0)) -> 2 | C69: Data exfiltration monitoring | D69: 7k | E69: 0 | F69: ™ | G69: ™ | H69: ™ | I69: ™ | J69: ™ | K69: ™ | L69: ™ | M69: 0 | R69: =IF($Q69<>"P",0,mySWITCH(INT($M69),0,0,0,1,1,2,2,3,2,4,2,5,2,6,2)) -> 0 | T69: P | U69: =IF($T69<>"P",0,pcOfTargetAchieved(ROW(),$M69)) -> 0 | X69: =IF($W69<>"P",0,pcOfAdvancedAchieved(ROW(),$M69)) -> 0 | Z69: 0 | AA69: 0 | AB69: 0 | AC69: 0 | AD69: 0 | AE69: 0 | AF69: 0 | AG69: 0 | AH69: 0 | AI69: 0
B70: =INDEX(Lookup!$B$9:$B$100,MATCH(CELL("contents",$C70),Lookup!$E$9:$E$100,0)) -> 2 | C70: Software supported & updated | D70: 7l | E70: 0 | F70: ™ | G70: ™ | H70: ™ | I70: ™ | J70: ™ | K70: ™ | L70: ™ | M70: 0 | Q70: P | R70: =IF($Q70<>"P",0,mySWITCH(INT($M70),0,0,0,1,1,2,2,3,2,4,2,5,2,6,2)) -> 0 | T70: P | U70: =IF($T70<>"P",0,pcOfTargetAchieved(ROW(),$M70)) -> 0 | W70: P | X70: =IF($W70<>"P",0,pcOfAdvancedAchieved(ROW(),$M70)) -> 0 | Z70: 0 | AA70: 0 | AB70: 0 | AC70: 0 | AD70: 0 | AE70: 0 | AF70: 0 | AG70: 0 | AH70: 0
B71: =INDEX(Lookup!$B$9:$B$100,MATCH(CELL("contents",$C71),Lookup!$E$9:$E$100,0)) -> 2 | C71: Web site screening | D71: 7m | E71: 0 | F71: ™ | G71: ™ | H71: ™ | I71: ™ | J71: ™ | K71: ™ | L71: ™ | M71: 0 | Q71: P | R71: =IF($Q71<>"P",0,mySWITCH(INT($M71),0,0,0,1,1,2,2,3,2,4,2,5,2,6,2)) -> 0 | T71: P | U71: =IF($T71<>"P",0,pcOfTargetAchieved(ROW(),$M71)) -> 0 | X71: =IF($W71<>"P",0,pcOfAdvancedAchieved(ROW(),$M71)) -> 0 | Z71: 0 | AA71: 0 | AB71: 0 | AC71: 0 | AD71: 0 | AE71: 0 | AF71: 0 | AG71: 0 | AH71: 0
B72: =INDEX(Lookup!$B$9:$B$100,MATCH(CELL("contents",$C72),Lookup!$E$9:$E$100,0)) -> 2 | C72: Browser management | D72: 7n | E72: 0 | F72: ™ | G72: ™ | H72: ™ | I72: ™ | J72: ™ | K72: ™ | L72: ™ | M72: 0 | R72: =IF($Q72<>"P",0,mySWITCH(INT($M72),0,0,0,1,1,2,2,3,2,4,2,5,2,6,2)) -> 0 | T72: P | U72: =IF($T72<>"P",0,pcOfTargetAchieved(ROW(),$M72)) -> 0 | X72: =IF($W72<>"P",0,pcOfAdvancedAchieved(ROW(),$M72)) -> 0 | Z72: 0 | AA72: 0 | AB72: 0 | AC72: 0 | AD72: 0 | AE72: 0 | AF72: 0 | AG72: 0 | AH72: 0
B73: =INDEX(Lookup!$B$9:$B$100,MATCH(CELL("contents",$C73),Lookup!$E$9:$E$100,0)) -> 2 | C73: Monitor/audit user activity | D73: 7o | E73: 0 | F73: ™ | G73: ™ | H73: ™ | I73: ™ | J73: ™ | K73: ™ | L73: ™ | M73: 0 | R73: =IF($Q73<>"P",0,mySWITCH(INT($M73),0,0,0,1,1,2,2,3,2,4,2,5,2,6,2)) -> 0 | T73: P | U73: =IF($T73<>"P",0,pcOfTargetAchieved(ROW(),$M73)) -> 0 | W73: P | X73: =IF($W73<>"P",0,pcOfAdvancedAchieved(ROW(),$M73)) -> 0 | Z73: 0 | AA73: 0 | AB73: 0 | AC73: 0 | AD73: 0 | AE73: 0 | AF73: 0 | AG73: 0 | AH73: 0
B74: =INDEX(Lookup!$B$9:$B$100,MATCH(CELL("contents",$C74),Lookup!$E$9:$E$100,0)) -> 2 | C74: Disabled auto-run | D74: 7p | E74: 0 | F74: ™ | G74: ™ | H74: ™ | I74: ™ | J74: ™ | K74: ™ | L74: ™ | M74: 0 | Q74: P | R74: =IF($Q74<>"P",0,mySWITCH(INT($M74),0,0,0,1,1,2,2,3,2,4,2,5,2,6,2)) -> 0 | T74: P | U74: =IF($T74<>"P",0,pcOfTargetAchieved(ROW(),$M74)) -> 0 | X74: =IF($W74<>"P",0,pcOfAdvancedAchieved(ROW(),$M74)) -> 0 | Z74: 0 | AA74: 0 | AB74: 0 | AC74: 0 | AD74: 0 | AE74: 0 | AF74: 0 | AG74: 0 | AH74: 0
C75: NETWORK SECURITY | G75: 0 | H75: 1 | I75: 2 | J75: 3 | K75: 4 | L75: 5 | M75: ™ | O75: COMMENTS | Q75: Baseline | T75: Target | W75: Advanced | Z75: =Lookup!X$6 -> CE | AA75: =Lookup!Y$6 -> PSAP | AB75: =Lookup!Z$6 -> PSN - ITHC | AC75: =Lookup!AA$6 -> PCI-DSS | AD75: =Lookup!AB$6 -> 10 Steps | AE75: =Lookup!AC$6 -> GDPR | AF75: =Lookup!AD$6 -> HMG SPF | AG75: =Lookup!AE$6 -> ISO 27001 | AH75: =Lookup!AF$6 -> NIS - CAF | AI75: =Lookup!V6 -> totals
C76: Patch management | D76: 8a | E76: 0 | F76: ™ | G76: ™ | H76: ™ | I76: ™ | J76: ™ | K76: ™ | L76: ™ | M76: 0 | Q76: P | R76: =IF($Q76<>"P",0,mySWITCH(INT($M76),0,0,0,1,1,2,2,3,2,4,2,5,2,6,2)) -> 0 | T76: P | U76: =IF($T76<>"P",0,pcOfTargetAchieved(ROW(),$M76)) -> 0 | X76: =IF($W76<>"P",0,pcOfAdvancedAchieved(ROW(),$M76)) -> 0 | Z76: 0 | AA76: 0 | AB76: 0 | AC76: 0 | AD76: 0 | AE76: 0 | AF76: 0 | AG76: 0 | AH76: 0
C77: Device management | D77: 8b | E77: 0 | F77: ™ | G77: ™ | H77: ™ | I77: ™ | J77: ™ | K77: ™ | L77: ™ | M77: 0 | R77: =IF($Q77<>"P",0,mySWITCH(INT($M77),0,0,0,1,1,2,2,3,2,4,2,5,2,6,2)) -> 0 | T77: P | U77: =IF($T77<>"P",0,pcOfTargetAchieved(ROW(),$M77)) -> 0 | W77: P | X77: =IF($W77<>"P",0,pcOfAdvancedAchieved(ROW(),$M77)) -> 0 | Z77: 0 | AA77: 0 | AB77: 0 | AC77: 0 | AD77: 0 | AE77: 0 | AF77: 0 | AG77: 0 | AH77: 0
C78: Content screening | D78: 8c | E78: 0 | F78: ™ | G78: ™ | H78: ™ | I78: ™ | J78: ™ | K78: ™ | L78: ™ | M78: 0 | R78: =IF($Q78<>"P",0,mySWITCH(INT($M78),0,0,0,1,1,2,2,3,2,4,2,5,2,6,2)) -> 0 | T78: P | U78: =IF($T78<>"P",0,pcOfTargetAchieved(ROW(),$M78)) -> 0 | X78: =IF($W78<>"P",0,pcOfAdvancedAchieved(ROW(),$M78)) -> 0 | Z78: 0 | AA78: 0 | AB78: 0 | AC78: 0 | AD78: 0 | AE78: 0 | AF78: 0 | AG78: 0 | AH78: 0 | AI78: 0
C79: Internal segregation | D79: 8d | E79: 0 | F79: ™ | G79: ™ | H79: ™ | I79: ™ | J79: ™ | K79: ™ | L79: ™ | M79: 0 | R79: =IF($Q79<>"P",0,mySWITCH(INT($M79),0,0,0,1,1,2,2,3,2,4,2,5,2,6,2)) -> 0 | T79: P | U79: =IF($T79<>"P",0,pcOfTargetAchieved(ROW(),$M79)) -> 0 | W79: P | X79: =IF($W79<>"P",0,pcOfAdvancedAchieved(ROW(),$M79)) -> 0 | Z79: 0 | AA79: 0 | AB79: 0 | AC79: 0 | AD79: 0 | AE79: 0 | AF79: 0 | AG79: 0 | AH79: 0
C80: Wireless security | D80: 8e | E80: 0 | F80: ™ | G80: ™ | H80: ™ | I80: ™ | J80: ™ | K80: ™ | L80: ™ | M80: 0 | Q80: P | R80: =IF($Q80<>"P",0,mySWITCH(INT($M80),0,0,0,1,1,2,2,3,2,4,2,5,2,6,2)) -> 0 | T80: P | U80: =IF($T80<>"P",0,pcOfTargetAchieved(ROW(),$M80)) -> 0 | X80: =IF($W80<>"P",0,pcOfAdvancedAchieved(ROW(),$M80)) -> 0 | Z80: 0 | AA80: 0 | AB80: 0 | AC80: 0 | AD80: 0 | AE80: 0 | AF80: 0 | AG80: 0 | AH80: 0
C81: Boundary/Firewall management | D81: 8f | E81: 0 | F81: ™ | G81: ™ | H81: ™ | I81: ™ | J81: ™ | K81: ™ | L81: ™ | M81: 0 | Q81: P | R81: =IF($Q81<>"P",0,mySWITCH(INT($M81),0,0,0,1,1,2,2,3,2,4,2,5,2,6,2)) -> 0 | T81: P | U81: =IF($T81<>"P",0,pcOfTargetAchieved(ROW(),$M81)) -> 0 | W81: P | X81: =IF($W81<>"P",0,pcOfAdvancedAchieved(ROW(),$M81)) -> 0 | Z81: 0 | AA81: 0 | AB81: 0 | AC81: 0 | AD81: 0 | AE81: 0 | AF81: 0 | AG81: 0 | AH81: 0
C82: Administrator control | D82: 8g | E82: 0 | F82: ™ | G82: ™ | H82: ™ | I82: ™ | J82: ™ | K82: ™ | L82: ™ | M82: 0 | R82: =IF($Q82<>"P",0,mySWITCH(INT($M82),0,0,0,1,1,2,2,3,2,4,2,5,2,6,2)) -> 0 | T82: P | U82: =IF($T82<>"P",0,pcOfTargetAchieved(ROW(),$M82)) -> 0 | W82: P | X82: =IF($W82<>"P",0,pcOfAdvancedAchieved(ROW(),$M82)) -> 0 | Z82: 0 | AA82: 0 | AB82: 0 | AC82: 0 | AD82: 0 | AE82: 0 | AF82: 0 | AG82: 0 | AH82: 0
C83: Error message management | D83: 8h | E83: 0 | F83: ™ | G83: ™ | H83: ™ | I83: ™ | J83: ™ | K83: ™ | L83: ™ | M83: 0 | R83: =IF($Q83<>"P",0,mySWITCH(INT($M83),0,0,0,1,1,2,2,3,2,4,2,5,2,6,2)) -> 0 | T83: P | U83: =IF($T83<>"P",0,pcOfTargetAchieved(ROW(),$M83)) -> 0 | X83: =IF($W83<>"P",0,pcOfAdvancedAchieved(ROW(),$M83)) -> 0 | Z83: 0 | AA83: 0 | AB83: 0 | AC83: 0 | AD83: 0 | AE83: 0 | AF83: 0 | AG83: 0 | AH83: 0
C84: Penetration testing | D84: 8i | E84: 0 | F84: ™ | G84: ™ | H84: ™ | I84: ™ | J84: ™ | K84: ™ | L84: ™ | M84: 0 | R84: =IF($Q84<>"P",0,mySWITCH(INT($M84),0,0,0,1,1,2,2,3,2,4,2,5,2,6,2)) -> 0 | T84: P | U84: =IF($T84<>"P",0,pcOfTargetAchieved(ROW(),$M84)) -> 0 | X84: =IF($W84<>"P",0,pcOfAdvancedAchieved(ROW(),$M84)) -> 0 | Z84: 0 | AA84: 0 | AB84: 0 | AC84: 0 | AD84: 0 | AE84: 0 | AF84: 0 | AG84: 0 | AH84: 0
C85: IP & DNS management | D85: 8j | E85: 0 | F85: ™ | G85: ™ | H85: ™ | I85: ™ | J85: ™ | K85: ™ | L85: ™ | M85: 0 | Q85: P | R85: =IF($Q85<>"P",0,mySWITCH(INT($M85),0,0,0,1,1,2,2,3,2,4,2,5,2,6,2)) -> 0 | T85: P | U85: =IF($T85<>"P",0,pcOfTargetAchieved(ROW(),$M85)) -> 0 | W85: P | X85: =IF($W85<>"P",0,pcOfAdvancedAchieved(ROW(),$M85)) -> 0 | Z85: 0 | AA85: 0 | AB85: 0 | AC85: 0 | AD85: 0 | AE85: 0 | AF85: 0 | AG85: 0 | AH85: 0 | AI85: 0
A86: DETECT | C86: INCIDENT DETECTION | G86: 0 | H86: 1 | I86: 2 | J86: 3 | K86: 4 | L86: 5 | M86: ™ | O86: COMMENTS | Q86: Baseline | T86: Target | W86: Advanced | Z86: =Lookup!X$6 -> CE | AA86: =Lookup!Y$6 -> PSAP | AB86: =Lookup!Z$6 -> PSN - ITHC | AC86: =Lookup!AA$6 -> PCI-DSS | AD86: =Lookup!AB$6 -> 10 Steps | AE86: =Lookup!AC$6 -> GDPR | AF86: =Lookup!AD$6 -> HMG SPF | AG86: =Lookup!AE$6 -> ISO 27001 | AH86: =Lookup!AF$6 -> NIS - CAF | AI86: =Lookup!V6 -> totals
C87: Detection capability | D87: 16a | E87: 0 | F87: ™ | G87: ™ | H87: ™ | I87: ™ | J87: ™ | K87: ™ | L87: ™ | M87: 0 | R87: =IF($Q87<>"P",0,mySWITCH(INT($M87),0,0,0,1,1,2,2,3,2,4,2,5,2,6,2)) -> 0 | T87: P | U87: =IF($T87<>"P",0,pcOfTargetAchieved(ROW(),$M87)) -> 0 | W87: P | X87: =IF($W87<>"P",0,pcOfAdvancedAchieved(ROW(),$M87)) -> 0 | Z87: 0 | AA87: 0 | AB87: 0 | AC87: 0 | AD87: 0 | AE87: 0 | AF87: 0 | AG87: 0 | AH87: 0 | AI87: 0
C88: Security Monitoring | D88: 16b | E88: 0 | F88: ™ | G88: ™ | H88: ™ | I88: ™ | J88: ™ | K88: ™ | L88: ™ | M88: 0 | R88: =IF($Q88<>"P",0,mySWITCH(INT($M88),0,0,0,1,1,2,2,3,2,4,2,5,2,6,2)) -> 0 | T88: P | U88: =IF($T88<>"P",0,pcOfTargetAchieved(ROW(),$M88)) -> 0 | W88: P | X88: =IF($W88<>"P",0,pcOfAdvancedAchieved(ROW(),$M88)) -> 0 | Z88: 0 | AA88: 0 | AB88: 0 | AC88: 0 | AD88: 0 | AE88: 0 | AF88: 0 | AG88: 0 | AH88: 0
A89: RESPOND & RECOVER | C89: INCIDENT MANAGEMENT | G89: 0 | H89: 1 | I89: 2 | J89: 3 | K89: 4 | L89: 5 | M89: ™ | O89: COMMENTS | Q89: Baseline | T89: Target | W89: Advanced | Z89: =Lookup!X$6 -> CE | AA89: =Lookup!Y$6 -> PSAP | AB89: =Lookup!Z$6 -> PSN - ITHC | AC89: =Lookup!AA$6 -> PCI-DSS | AD89: =Lookup!AB$6 -> 10 Steps | AE89: =Lookup!AC$6 -> GDPR | AF89: =Lookup!AD$6 -> HMG SPF | AG89: =Lookup!AE$6 -> ISO 27001 | AH89: =Lookup!AF$6 -> NIS - CAF | AI89: =Lookup!V6 -> totals
C90: Incident response protocol | D90: 10b | E90: 0 | F90: ™ | G90: ™ | H90: ™ | I90: ™ | J90: ™ | K90: ™ | L90: ™ | M90: 0 | Q90: P | R90: =IF($Q90<>"P",0,mySWITCH(INT($M90),0,0,0,1,1,2,2,3,2,4,2,5,2,6,2)) -> 0 | T90: P | U90: =IF($T90<>"P",0,pcOfTargetAchieved(ROW(),$M90)) -> 0 | W90: P | X90: =IF($W90<>"P",0,pcOfAdvancedAchieved(ROW(),$M90)) -> 0 | Z90: 0 | AA90: 0 | AB90: 0 | AC90: 0 | AD90: 0 | AE90: 0 | AF90: 0 | AG90: 0 | AH90: 0
C91: Incident reporting procedure | D91: 10c | E91: 0 | F91: ™ | G91: ™ | H91: ™ | I91: ™ | J91: ™ | K91: ™ | L91: ™ | M91: 0 | Q91: P | R91: =IF($Q91<>"P",0,mySWITCH(INT($M91),0,0,0,1,1,2,2,3,2,4,2,5,2,6,2)) -> 0 | T91: P | U91: =IF($T91<>"P",0,pcOfTargetAchieved(ROW(),$M91)) -> 0 | X91: =IF($W91<>"P",0,pcOfAdvancedAchieved(ROW(),$M91)) -> 0 | Z91: 0 | AA91: 0 | AB91: 0 | AC91: 0 | AD91: 0 | AE91: 0 | AF91: 0 | AG91: 0 | AH91: 0
C92: Staff training & testing | D92: 10d | E92: 0 | F92: ™ | G92: ™ | H92: ™ | I92: ™ | J92: ™ | K92: ™ | L92: ™ | M92: 0 | R92: =IF($Q92<>"P",0,mySWITCH(INT($M92),0,0,0,1,1,2,2,3,2,4,2,5,2,6,2)) -> 0 | T92: P | U92: =IF($T92<>"P",0,pcOfTargetAchieved(ROW(),$M92)) -> 0 | X92: =IF($W92<>"P",0,pcOfAdvancedAchieved(ROW(),$M92)) -> 0 | Z92: 0 | AA92: 0 | AB92: 0 | AC92: 0 | AD92: 0 | AE92: 0 | AF92: 0 | AG92: 0 | AH92: 0 | AI92: 0
C93: Post-incident review & learning | D93: 10e | E93: 0 | F93: ™ | G93: ™ | H93: ™ | I93: ™ | J93: ™ | K93: ™ | L93: ™ | M93: 0 | Q93: P | R93: =IF($Q93<>"P",0,mySWITCH(INT($M93),0,0,0,1,1,2,2,3,2,4,2,5,2,6,2)) -> 0 | T93: P | U93: =IF($T93<>"P",0,pcOfTargetAchieved(ROW(),$M93)) -> 0 | W93: P | X93: =IF($W93<>"P",0,pcOfAdvancedAchieved(ROW(),$M93)) -> 0 | Z93: 0 | AA93: 0 | AB93: 0 | AC93: 0 | AD93: 0 | AE93: 0 | AF93: 0 | AG93: 0 | AH93: 0
C94: BUSINESS CONTINUITY | G94: 0 | H94: 1 | I94: 2 | J94: 3 | K94: 4 | L94: 5 | M94: ™ | O94: COMMENTS | Q94: Baseline | T94: Target | W94: Advanced | Z94: =Lookup!X$6 -> CE | AA94: =Lookup!Y$6 -> PSAP | AB94: =Lookup!Z$6 -> PSN - ITHC | AC94: =Lookup!AA$6 -> PCI-DSS | AD94: =Lookup!AB$6 -> 10 Steps | AE94: =Lookup!AC$6 -> GDPR | AF94: =Lookup!AD$6 -> HMG SPF | AG94: =Lookup!AE$6 -> ISO 27001 | AH94: =Lookup!AF$6 -> NIS - CAF | AI94: =Lookup!V6 -> totals
C95: Data recover capability | D95: 12a | E95: 0 | F95: ™ | G95: ™ | H95: ™ | I95: ™ | J95: ™ | K95: ™ | L95: ™ | M95: 0 | R95: =IF($Q95<>"P",0,mySWITCH(INT($M95),0,0,0,1,1,2,2,3,2,4,2,5,2,6,2)) -> 0 | T95: P | U95: =IF($T95<>"P",0,pcOfTargetAchieved(ROW(),$M95)) -> 0 | W95: P | X95: =IF($W95<>"P",0,pcOfAdvancedAchieved(ROW(),$M95)) -> 0 | Z95: 0 | AA95: 0 | AB95: 0 | AC95: 0 | AD95: 0 | AE95: 0 | AF95: 0 | AG95: 0 | AH95: 0
C96: Back up policies & procedures | D96: 12b | E96: 0 | F96: ™ | G96: ™ | H96: ™ | I96: ™ | J96: ™ | K96: ™ | L96: ™ | M96: 0 | R96: =IF($Q96<>"P",0,mySWITCH(INT($M96),0,0,0,1,1,2,2,3,2,4,2,5,2,6,2)) -> 0 | T96: P | U96: =IF($T96<>"P",0,pcOfTargetAchieved(ROW(),$M96)) -> 0 | W96: P | X96: =IF($W96<>"P",0,pcOfAdvancedAchieved(ROW(),$M96)) -> 0 | Z96: 0 | AA96: 0 | AB96: 0 | AC96: 0 | AD96: 0 | AE96: 0 | AF96: 0 | AG96: 0 | AH96: 0
C97: Disaster recovery policies & procedures | D97: 12c | E97: 0 | F97: ™ | G97: ™ | H97: ™ | I97: ™ | J97: ™ | K97: ™ | L97: ™ | M97: 0 | R97: =IF($Q97<>"P",0,mySWITCH(INT($M97),0,0,0,1,1,2,2,3,2,4,2,5,2,6,2)) -> 0 | T97: P | U97: =IF($T97<>"P",0,pcOfTargetAchieved(ROW(),$M97)) -> 0 | W97: P | X97: =IF($W97<>"P",0,pcOfAdvancedAchieved(ROW(),$M97)) -> 0 | Z97: 0 | AA97: 0 | AB97: 0 | AC97: 0 | AD97: 0 | AE97: 0 | AF97: 0 | AG97: 0 | AH97: 0
C98: BC/DR testing policies & procedures | D98: 12d | E98: 0 | F98: ™ | G98: ™ | H98: ™ | I98: ™ | J98: ™ | K98: ™ | L98: ™ | M98: 0 | R98: =IF($Q98<>"P",0,mySWITCH(INT($M98),0,0,0,1,1,2,2,3,2,4,2,5,2,6,2)) -> 0 | T98: P | U98: =IF($T98<>"P",0,pcOfTargetAchieved(ROW(),$M98)) -> 0 | W98: P | X98: =IF($W98<>"P",0,pcOfAdvancedAchieved(ROW(),$M98)) -> 0 | Z98: 0 | AA98: 0 | AB98: 0 | AC98: 0 | AD98: 0 | AE98: 0 | AF98: 0 | AG98: 0 | AH98: 0 | AI98: 0
C99: Data Loss impact assessments | D99: 12e | E99: 0 | F99: ™ | G99: ™ | H99: ™ | I99: ™ | J99: ™ | K99: ™ | L99: ™ | M99: 0 | R99: =IF($Q99<>"P",0,mySWITCH(INT($M99),0,0,0,1,1,2,2,3,2,4,2,5,2,6,2)) -> 0 | T99: P | U99: =IF($T99<>"P",0,pcOfTargetAchieved(ROW(),$M99)) -> 0 | W99: P | X99: =IF($W99<>"P",0,pcOfAdvancedAchieved(ROW(),$M99)) -> 0 | Z99: 0 | AA99: 0 | AB99: 0 | AC99: 0 | AD99: 0 | AE99: 0 | AF99: 0 | AG99: 0 | AH99: 0
C100: BC contingency plan | D100: 12f | E100: 0 | F100: ™ | G100: ™ | H100: ™ | I100: ™ | J100: ™ | K100: ™ | L100: ™ | M100: 0 | R100: =IF($Q100<>"P",0,mySWITCH(INT($M100),0,0,0,1,1,2,2,3,2,4,2,5,2,6,2)) -> 0 | T100: P | U100: =IF($T100<>"P",0,pcOfTargetAchieved(ROW(),$M100)) -> 0 | W100: P | X100: =IF($W100<>"P",0,pcOfAdvancedAchieved(ROW(),$M100)) -> 0 | Z100: 0 | AA100: 0 | AB100: 0 | AC100: 0 | AD100: 0 | AE100: 0 | AF100: 0 | AG100: 0 | AH100: 0
N101: OVERALL TOTALS

Sheet R05
C1: Report 5
C2: Report Date: | D2: 2019-07-03
C3: Assessor: | R3: RAG Status
M5: 5 | O5: PCI-DSS | R5: =myStageTotal(ROW(),COLUMN()) ->  | U5: =myStageTotal(ROW(),COLUMN()) ->  | X5: =myStageTotal(ROW(),COLUMN()) -> 
Z6: =SummaryOfMyColumn(COLUMN()) ->  | AA6: =SummaryOfMyColumn(COLUMN()) -> 
A8: MANAGE | C8: ORGANISATIONAL GOVERNANCE | F8: N/A | G8: 0 | H8: 1 | I8: 2 | J8: 3 | K8: 4 | L8: 5 | M8: Scored | O8: COMMENTS | Q8: Baseline | T8: Target | W8: Advanced | Y8: Scores | Z8: =Lookup!X$6 -> CE | AA8: =Lookup!Y$6 -> PSAP | AB8: =Lookup!Z$6 -> PSN - ITHC | AC8: =Lookup!AA$6 -> PCI-DSS | AD8: =Lookup!AB$6 -> 10 Steps | AE8: =Lookup!AC$6 -> GDPR | AF8: =Lookup!AD$6 -> HMG SPF | AG8: =Lookup!AE$6 -> ISO 27001 | AH8: =Lookup!AF$6 -> NIS - CAF | AI8: =Lookup!V6 -> totals
B9: =INDEX(Lookup!$B$9:$B$100,MATCH(CELL("contents",$C9),Lookup!$E$9:$E$100,0)) -> 1 | C9: Governance framework | D9: =Lookup!F9 -> 2a | E9: 0 | F9: ™ | G9: ™ | H9: ™ | I9: ™ | J9: ™ | K9: ™ | L9: ™ | M9: 0 | Q9: P | R9: =IF($Q9<>"P",0,mySWITCH(INT($M9),0,0,0,1,1,2,2,3,2,4,2,5,2,6,2)) -> 0 | T9: P | U9: =IF($T9<>"P",0,pcOfTargetAchieved(ROW(),$M9)) -> 0 | W9: P | X9: =IF($T9<>"P",0,pcOfTargetAchieved(ROW(),$M9)) -> 0 | Z9: 0 | AA9: 0 | AB9: 0 | AC9: 0 | AD9: 0 | AE9: 0 | AF9: 0 | AG9: 0 | AH9: 0 | AI9: 0
B10: =INDEX(Lookup!$B$9:$B$100,MATCH(CELL("contents",$C10),Lookup!$E$9:$E$100,0)) -> 1 | C10: Leadership & responsibility | D10: =Lookup!F10 -> 2b | E10: 0 | F10: ™ | G10: ™ | H10: ™ | I10: ™ | J10: ™ | K10: ™ | L10: ™ | M10: 0 | Q10: P | R10: =IF($Q10<>"P",0,mySWITCH(INT($M10),0,0,0,1,1,2,2,3,2,4,2,5,2,6,2)) -> 0 | T10: P | U10: =IF($T10<>"P",0,pcOfTargetAchieved(ROW(),$M10)) -> 0 | W10: P | X10: =IF($W10<>"P",0,pcOfAdvancedAchieved(ROW(),$M10)) -> 0 | Z10: 0 | AA10: 0 | AB10: 0 | AC10: 0 | AD10: 0 | AE10: 0 | AF10: 0 | AG10: 0 | AH10: 0 | AI10: 0
B11: =INDEX(Lookup!$B$9:$B$100,MATCH(CELL("contents",$C11),Lookup!$E$9:$E$100,0)) -> 1 | C11: Adoption of assurance standards | D11: =Lookup!F11 -> 2e | E11: 0 | F11: ™ | G11: ™ | H11: ™ | I11: ™ | J11: ™ | K11: ™ | L11: ™ | M11: 0 | Q11: P | R11: =IF($Q11<>"P",0,mySWITCH(INT($M11),0,0,0,1,1,2,2,3,2,4,2,5,2,6,2)) -> 0 | T11: P | U11: =IF($T11<>"P",0,pcOfTargetAchieved(ROW(),$M11)) -> 0 | W11: P | X11: =IF($W11<>"P",0,pcOfAdvancedAchieved(ROW(),$M11)) -> 0 | Z11: 0 | AA11: 0 | AB11: 0 | AC11: 0 | AD11: 0 | AE11: 0 | AF11: 0 | AG11: 0 | AH11: 0 | AI11: 0
B12: =INDEX(Lookup!$B$9:$B$100,MATCH(CELL("contents",$C12),Lookup!$E$9:$E$100,0)) -> 1 | C12: Information Asset Register | D12: =Lookup!F12 -> 2f | E12: 0 | F12: ™ | G12: ™ | H12: ™ | I12: ™ | J12: ™ | K12: ™ | L12: ™ | M12: 0 | Q12: P | R12: =IF($Q12<>"P",0,mySWITCH(INT($M12),0,0,0,1,1,2,2,3,2,4,2,5,2,6,2)) -> 0 | T12: P | U12: =IF($T12<>"P",0,pcOfTargetAchieved(ROW(),$M12)) -> 0 | W12: P | X12: =IF($W12<>"P",0,pcOfAdvancedAchieved(ROW(),$M12)) -> 0 | Z12: 0 | AA12: 0 | AB12: 0 | AC12: 0 | AD12: 0 | AE12: 0 | AF12: 0 | AG12: 0 | AH12: 0 | AI12: 0
B13: =INDEX(Lookup!$B$9:$B$100,MATCH(CELL("contents",$C13),Lookup!$E$9:$E$100,0)) -> 1 | C13: Audit/assurance compliance | D13: =Lookup!F13 -> 2g | E13: 0 | F13: ™ | G13: ™ | H13: ™ | I13: ™ | J13: ™ | K13: ™ | L13: ™ | M13: 0 | Q13: P | R13: =IF($Q13<>"P",0,mySWITCH(INT($M13),0,0,0,1,1,2,2,3,2,4,2,5,2,6,2)) -> 0 | T13: P | U13: =IF($T13<>"P",0,pcOfTargetAchieved(ROW(),$M13)) -> 0 | W13: P | X13: =IF($W13<>"P",0,pcOfAdvancedAchieved(ROW(),$M13)) -> 0 | Z13: 0 | AA13: 0 | AB13: 0 | AC13: 0 | AD13: 0 | AE13: 0 | AF13: 0 | AG13: 0 | AH13: 0 | AI13: 0
C14: RISK MANAGEMENT | G14: 0 | H14: 1 | I14: 2 | J14: 3 | K14: 4 | L14: 5 | O14: COMMENTS | Q14: Baseline | T14: Target | W14: Advanced | Y14: Scores | Z14: =Lookup!X$6 -> CE | AA14: =Lookup!Y$6 -> PSAP | AB14: =Lookup!Z$6 -> PSN - ITHC | AC14: =Lookup!AA$6 -> PCI-DSS | AD14: =Lookup!AB$6 -> 10 Steps | AE14: =Lookup!AC$6 -> GDPR | AF14: =Lookup!AD$6 -> HMG SPF | AG14: =Lookup!AE$6 -> ISO 27001 | AH14: =Lookup!AF$6 -> NIS - CAF | AI14: =Lookup!V6 -> totals
B15: =INDEX(Lookup!$B$9:$B$100,MATCH(CELL("contents",$C15),Lookup!$E$9:$E$100,0)) -> 1 | C15: Risk management policy & process | D15: 11a | E15: 0 | F15: ™ | G15: ™ | H15: ™ | I15: ™ | J15: ™ | K15: ™ | L15: ™ | M15: 0 | Q15: P | R15: =IF($Q15<>"P",0,mySWITCH(INT($M15),0,0,0,1,1,2,2,3,2,4,2,5,2,6,2)) -> 0 | T15: P | U15: =IF($T15<>"P",0,pcOfTargetAchieved(ROW(),$M15)) -> 0 | W15: P | X15: =IF($W15<>"P",0,pcOfAdvancedAchieved(ROW(),$M15)) -> 0 | Z15: 0 | AA15: 0 | AB15: 0 | AC15: 0 | AD15: 0 | AE15: 0 | AF15: 0 | AG15: 0 | AH15: 0 | AI15: 0
B16: =INDEX(Lookup!$B$9:$B$100,MATCH(CELL("contents",$C16),Lookup!$E$9:$E$100,0)) -> 1 | C16: Cyber / Information Risk Assessment | D16: 11b | E16: 0 | F16: ™ | G16: ™ | H16: ™ | I16: ™ | J16: ™ | K16: ™ | L16: ™ | M16: 0 | Q16: P | R16: =IF($Q16<>"P",0,mySWITCH(INT($M16),0,0,0,1,1,2,2,3,2,4,2,5,2,6,2)) -> 0 | T16: P | U16: =IF($T16<>"P",0,pcOfTargetAchieved(ROW(),$M16)) -> 0 | W16: P | X16: =IF($W16<>"P",0,pcOfAdvancedAchieved(ROW(),$M16)) -> 0 | Z16: 0 | AA16: 0 | AB16: 0 | AC16: 0 | AD16: 0 | AE16: 0 | AF16: 0 | AG16: 0 | AH16: 0 | AI16: 0
B17: =INDEX(Lookup!$B$9:$B$100,MATCH(CELL("contents",$C17),Lookup!$E$9:$E$100,0)) -> 1 | C17: Risk treatment & tolerance | D17: 11c | E17: 0 | F17: ™ | G17: ™ | H17: ™ | I17: ™ | J17: ™ | K17: ™ | L17: ™ | M17: 0 | Q17: P | R17: =IF($Q17<>"P",0,mySWITCH(INT($M17),0,0,0,1,1,2,2,3,2,4,2,5,2,6,2)) -> 0 | T17: P | U17: =IF($T17<>"P",0,pcOfTargetAchieved(ROW(),$M17)) -> 0 | W17: P | X17: =IF($W17<>"P",0,pcOfAdvancedAchieved(ROW(),$M17)) -> 0 | Z17: 0 | AA17: 0 | AB17: 0 | AC17: 0 | AD17: 0 | AE17: 0 | AF17: 0 | AG17: 0 | AH17: 0 | AI17: 0
B18: =INDEX(Lookup!$B$9:$B$100,MATCH(CELL("contents",$C18),Lookup!$E$9:$E$100,0)) -> 1 | C18: Risk governance | D18: 11d | E18: 0 | F18: ™ | G18: ™ | H18: ™ | I18: ™ | J18: ™ | K18: ™ | L18: ™ | M18: 0 | Q18: P | R18: =IF($Q18<>"P",0,mySWITCH(INT($M18),0,0,0,1,1,2,2,3,2,4,2,5,2,6,2)) -> 0 | T18: P | U18: =IF($T18<>"P",0,pcOfTargetAchieved(ROW(),$M18)) -> 0 | W18: P | X18: =IF($W18<>"P",0,pcOfAdvancedAchieved(ROW(),$M18)) -> 0 | Z18: 0 | AA18: 0 | AB18: 0 | AC18: 0 | AD18: 0 | AE18: 0 | AF18: 0 | AG18: 0 | AH18: 0 | AI18: 0
C19: SUPPLIER MANAGEMENT | G19: 0 | H19: 1 | I19: 2 | J19: 3 | K19: 4 | L19: 5 | M19: ™ | O19: COMMENTS | Q19: Baseline | T19: Target | W19: Advanced | Y19: Scores | Z19: =Lookup!X$6 -> CE | AA19: =Lookup!Y$6 -> PSAP | AB19: =Lookup!Z$6 -> PSN - ITHC | AC19: =Lookup!AA$6 -> PCI-DSS | AD19: =Lookup!AB$6 -> 10 Steps | AE19: =Lookup!AC$6 -> GDPR | AF19: =Lookup!AD$6 -> HMG SPF | AG19: =Lookup!AE$6 -> ISO 27001 | AH19: =Lookup!AF$6 -> NIS - CAF | AI19: =Lookup!V6 -> totals
B20: =INDEX(Lookup!$B$9:$B$100,MATCH(CELL("contents",$C20),Lookup!$E$9:$E$100,0)) -> 1 | C20: Supply chain security assurance & management | D20: 9a | E20: 0 | F20: ™ | G20: ™ | H20: ™ | I20: ™ | J20: ™ | K20: ™ | L20: ™ | M20: 0 | R20: =IF($Q20<>"P",0,mySWITCH(INT($M20),0,0,0,1,1,2,2,3,2,4,2,5,2,6,2)) -> 0 | T20: P | U20: =IF($T20<>"P",0,pcOfTargetAchieved(ROW(),$M20)) -> 0 | X20: =IF($W20<>"P",0,pcOfAdvancedAchieved(ROW(),$M20)) -> 0 | Z20: 0 | AA20: 0 | AB20: 0 | AC20: 0 | AD20: 0 | AE20: 0 | AF20: 0 | AG20: 0 | AH20: 0 | AI20: 0
B21: =INDEX(Lookup!$B$9:$B$100,MATCH(CELL("contents",$C21),Lookup!$E$9:$E$100,0)) -> 1 | C21: Roles & responsibilities defined | D21: 9b | E21: 0 | F21: ™ | G21: ™ | H21: ™ | I21: ™ | J21: ™ | K21: ™ | L21: ™ | M21: 0 | R21: =IF($Q21<>"P",0,mySWITCH(INT($M21),0,0,0,1,1,2,2,3,2,4,2,5,2,6,2)) -> 0 | T21: P | U21: =IF($T21<>"P",0,pcOfTargetAchieved(ROW(),$M21)) -> 0 | W21: P | X21: =IF($W21<>"P",0,pcOfAdvancedAchieved(ROW(),$M21)) -> 0 | Z21: 0 | AA21: 0 | AB21: 0 | AC21: 0 | AD21: 0 | AE21: 0 | AF21: 0 | AG21: 0 | AH21: 0 | AI21: 0
B22: =INDEX(Lookup!$B$9:$B$100,MATCH(CELL("contents",$C22),Lookup!$E$9:$E$100,0)) -> 1 | C22: Access control | D22: 9c | E22: 0 | F22: ™ | G22: ™ | H22: ™ | I22: ™ | J22: ™ | K22: ™ | L22: ™ | M22: 0 | R22: =IF($Q22<>"P",0,mySWITCH(INT($M22),0,0,0,1,1,2,2,3,2,4,2,5,2,6,2)) -> 0 | U22: =IF($T22<>"P",0,pcOfTargetAchieved(ROW(),$M22)) -> 0 | W22: P | X22: =IF($W22<>"P",0,pcOfAdvancedAchieved(ROW(),$M22)) -> 0 | Z22: 0 | AA22: 0 | AB22: 0 | AC22: 0 | AD22: 0 | AE22: 0 | AF22: 0 | AG22: 0 | AH22: 0 | AI22: 0
B23: =INDEX(Lookup!$B$9:$B$100,MATCH(CELL("contents",$C23),Lookup!$E$9:$E$100,0)) -> 1 | C23: Security in system procurements | D23: 9d | E23: 0 | F23: ™ | G23: ™ | H23: ™ | I23: ™ | J23: ™ | K23: ™ | L23: ™ | M23: 0 | R23: =IF($Q23<>"P",0,mySWITCH(INT($M23),0,0,0,1,1,2,2,3,2,4,2,5,2,6,2)) -> 0 | T23: P | U23: =IF($T23<>"P",0,pcOfTargetAchieved(ROW(),$M23)) -> 0 | W23: P | X23: =IF($W23<>"P",0,pcOfAdvancedAchieved(ROW(),$M23)) -> 0 | Z23: 0 | AA23: 0 | AB23: 0 | AC23: 0 | AD23: 0 | AE23: 0 | AF23: 0 | AG23: 0 | AH23: 0 | AI23: 0
C24: ASSET MANAGEMENT | G24: 0 | H24: 1 | I24: 2 | J24: 3 | K24: 4 | L24: 5 | M24: ™ | O24: COMMENTS | Q24: Baseline | T24: Target | W24: Advanced | Y24: Scores | Z24: =Lookup!X$6 -> CE | AA24: =Lookup!Y$6 -> PSAP | AB24: =Lookup!Z$6 -> PSN - ITHC | AC24: =Lookup!AA$6 -> PCI-DSS | AD24: =Lookup!AB$6 -> 10 Steps | AE24: =Lookup!AC$6 -> GDPR | AF24: =Lookup!AD$6 -> HMG SPF | AG24: =Lookup!AE$6 -> ISO 27001 | AH24: =Lookup!AF$6 -> NIS - CAF | AI24: =Lookup!V6 -> totals
B25: =INDEX(Lookup!$B$9:$B$100,MATCH(CELL("contents",$C25),Lookup!$E$9:$E$100,0)) -> 1 | C25: Hardware assets register & management | D25: =Lookup!$F25 -> 4a | E25: 0 | F25: ™ | G25: ™ | H25: ™ | I25: ™ | J25: ™ | K25: ™ | L25: ™ | M25: 0 | R25: =IF($Q25<>"P",0,mySWITCH(INT($M25),0,0,0,1,1,2,2,3,2,4,2,5,2,6,2)) -> 0 | T25: P | U25: =IF($T25<>"P",0,pcOfTargetAchieved(ROW(),$M25)) -> 0 | W25: P | X25: =IF($W25<>"P",0,pcOfAdvancedAchieved(ROW(),$M25)) -> 0 | Z25: 0 | AA25: 0 | AB25: 0 | AC25: 0 | AD25: 0 | AE25: 0 | AF25: 0 | AG25: 0 | AH25: 0 | AI25: 0
B26: =INDEX(Lookup!$B$9:$B$100,MATCH(CELL("contents",$C26),Lookup!$E$9:$E$100,0)) -> 1 | C26: Software assets register & management | D26: =Lookup!$F26 -> 4b | E26: 0 | F26: ™ | G26: ™ | H26: ™ | I26: ™ | J26: ™ | K26: ™ | L26: ™ | M26: 0 | Q26: P | R26: =IF($Q26<>"P",0,mySWITCH(INT($M26),0,0,0,1,1,2,2,3,2,4,2,5,2,6,2)) -> 0 | T26: P | U26: =IF($T26<>"P",0,pcOfTargetAchieved(ROW(),$M26)) -> 0 | W26: P | X26: =IF($W26<>"P",0,pcOfAdvancedAchieved(ROW(),$M26)) -> 0 | Z26: 0 | AA26: 0 | AB26: 0 | AC26: 0 | AD26: 0 | AE26: 0 | AF26: 0 | AG26: 0 | AH26: 0 | AI26: 0
B27: =INDEX(Lookup!$B$9:$B$100,MATCH(CELL("contents",$C27),Lookup!$E$9:$E$100,0)) -> 1 | C27: Infrastructure management | D27: =Lookup!$F27 -> 4c | E27: 0 | F27: ™ | G27: ™ | H27: ™ | I27: ™ | J27: ™ | K27: ™ | L27: ™ | M27: 0 | R27: =IF($Q27<>"P",0,mySWITCH(INT($M27),0,0,0,1,1,2,2,3,2,4,2,5,2,6,2)) -> 0 | T27: P | U27: =IF($T27<>"P",0,pcOfTargetAchieved(ROW(),$M27)) -> 0 | W27: P | X27: =IF($W27<>"P",0,pcOfAdvancedAchieved(ROW(),$M27)) -> 0 | Z27: 0 | AA27: 0 | AB27: 0 | AC27: 0 | AD27: 0 | AE27: 0 | AF27: 0 | AG27: 0 | AH27: 0 | AI27: 0
A28: PROTECT | C28: INFORMATION SECURITY MANAGEMENT | G28: 0 | H28: 1 | I28: 2 | J28: 3 | K28: 4 | L28: 5 | M28: ™ | O28: COMMENTS | Q28: Baseline | T28: Target | W28: Advanced | Y28: Scores | Z28: =Lookup!X$6 -> CE | AA28: =Lookup!Y$6 -> PSAP | AB28: =Lookup!Z$6 -> PSN - ITHC | AC28: =Lookup!AA$6 -> PCI-DSS | AD28: =Lookup!AB$6 -> 10 Steps | AE28: =Lookup!AC$6 -> GDPR | AF28: =Lookup!AD$6 -> HMG SPF | AG28: =Lookup!AE$6 -> ISO 27001 | AH28: =Lookup!AF$6 -> NIS - CAF | AI28: =Lookup!V6 -> totals
B29: =INDEX(Lookup!$B$9:$B$100,MATCH(CELL("contents",$C29),Lookup!$E$9:$E$100,0)) -> 2 | C29: Security policy & processes | D29: 1a | E29: 0 | F29: ™ | G29: ™ | H29: ™ | I29: ™ | J29: ™ | K29: ™ | L29: ™ | M29: 0 | R29: =IF($Q29<>"P",0,mySWITCH(INT($M29),0,0,0,1,1,2,2,3,2,4,2,5,2,6,2)) -> 0 | T29: P | U29: =IF($T29<>"P",0,pcOfTargetAchieved(ROW(),$M29)) -> 0 | W29: P | X29: =IF($W29<>"P",0,pcOfAdvancedAchieved(ROW(),$M29)) -> 0 | Z29: 0 | AA29: 0 | AB29: 0 | AC29: 0 | AD29: 0 | AE29: 0 | AF29: 0 | AG29: 0 | AH29: 0 | AI29: 0
B30: =INDEX(Lookup!$B$9:$B$100,MATCH(CELL("contents",$C30),Lookup!$E$9:$E$100,0)) -> 2 | C30: Lifecycle management | D30: 1b | E30: 0 | F30: ™ | G30: ™ | H30: ™ | I30: ™ | J30: ™ | K30: ™ | L30: ™ | M30: 0 | R30: =IF($Q30<>"P",0,mySWITCH(INT($M30),0,0,0,1,1,2,2,3,2,4,2,5,2,6,2)) -> 0 | T30: P | U30: =IF($T30<>"P",0,pcOfTargetAchieved(ROW(),$M30)) -> 0 | W30: P | X30: =IF($W30<>"P",0,pcOfAdvancedAchieved(ROW(),$M30)) -> 0 | Z30: 0 | AA30: 0 | AB30: 0 | AC30: 0 | AD30: 0 | AE30: 0 | AF30: 0 | AG30: 0 | AH30: 0 | AI30: 0
C31: Storage | D31: 1c | E31: 0 | F31: ™ | G31: ™ | H31: ™ | I31: ™ | J31: ™ | K31: ™ | L31: ™ | M31: 0 | R31: =IF($Q31<>"P",0,mySWITCH(INT($M31),0,0,0,1,1,2,2,3,2,4,2,5,2,6,2)) -> 0 | T31: P | U31: =IF($T31<>"P",0,pcOfTargetAchieved(ROW(),$M31)) -> 0 | W31: P | X31: =IF($W31<>"P",0,pcOfAdvancedAchieved(ROW(),$M31)) -> 0 | Z31: 0 | AA31: 0 | AB31: 0 | AC31: 0 | AD31: 0 | AE31: 0 | AF31: 0 | AG31: 0 | AH31: 0
C32: Information/data classification | D32: 1f | E32: 0 | F32: ™ | G32: ™ | H32: ™ | I32: ™ | J32: ™ | K32: ™ | L32: ™ | M32: 0 | R32: =IF($Q32<>"P",0,mySWITCH(INT($M32),0,0,0,1,1,2,2,3,2,4,2,5,2,6,2)) -> 0 | T32: P | U32: =IF($T32<>"P",0,pcOfTargetAchieved(ROW(),$M32)) -> 0 | W32: P | X32: =IF($W32<>"P",0,pcOfAdvancedAchieved(ROW(),$M32)) -> 0 | Z32: 0 | AA32: 0 | AB32: 0 | AC32: 0 | AD32: 0 | AE32: 0 | AF32: 0 | AG32: 0 | AH32: 0 | AI32: 0
C33: Information assets register | D33: 1g | E33: 0 | F33: ™ | G33: ™ | H33: ™ | I33: ™ | J33: ™ | K33: ™ | L33: ™ | M33: 0 | R33: =IF($Q33<>"P",0,mySWITCH(INT($M33),0,0,0,1,1,2,2,3,2,4,2,5,2,6,2)) -> 0 | T33: P | U33: =IF($T33<>"P",0,pcOfTargetAchieved(ROW(),$M33)) -> 0 | W33: P | X33: =IF($W33<>"P",0,pcOfAdvancedAchieved(ROW(),$M33)) -> 0 | Z33: 0 | AA33: 0 | AB33: 0 | AC33: 0 | AD33: 0 | AE33: 0 | AF33: 0 | AG33: 0 | AH33: 0
C34: Information/data transfer controls | D34: 1h | E34: 0 | F34: ™ | G34: ™ | H34: ™ | I34: ™ | J34: ™ | K34: ™ | L34: ™ | M34: 0 | R34: =IF($Q34<>"P",0,mySWITCH(INT($M34),0,0,0,1,1,2,2,3,2,4,2,5,2,6,2)) -> 0 | T34: P | U34: =IF($T34<>"P",0,pcOfTargetAchieved(ROW(),$M34)) -> 0 | W34: P | X34: =IF($W34<>"P",0,pcOfAdvancedAchieved(ROW(),$M34)) -> 0 | Z34: 0 | AA34: 0 | AB34: 0 | AC34: 0 | AD34: 0 | AE34: 0 | AF34: 0 | AG34: 0 | AH34: 0
C35: PEOPLE | G35: 0 | H35: 1 | I35: 2 | J35: 3 | K35: 4 | L35: 5 | M35: ™ | O35: COMMENTS | Q35: Baseline | T35: Target | W35: Advanced | Y35: Scores | Z35: =Lookup!X$6 -> CE | AA35: =Lookup!Y$6 -> PSAP | AB35: =Lookup!Z$6 -> PSN - ITHC | AC35: =Lookup!AA$6 -> PCI-DSS | AD35: =Lookup!AB$6 -> 10 Steps | AE35: =Lookup!AC$6 -> GDPR | AF35: =Lookup!AD$6 -> HMG SPF | AG35: =Lookup!AE$6 -> ISO 27001 | AH35: =Lookup!AF$6 -> NIS - CAF | AI35: =Lookup!V6 -> totals
C36: Prior to employment | D36: 13a | E36: 0 | F36: ™ | G36: ™ | H36: ™ | I36: ™ | J36: ™ | K36: ™ | L36: ™ | M36: 0 | R36: =IF($Q36<>"P",0,mySWITCH(INT($M36),0,0,0,1,1,2,2,3,2,4,2,5,2,6,2)) -> 0 | T36: P | U36: =IF($T36<>"P",0,pcOfTargetAchieved(ROW(),$M36)) -> 0 | W36: P | X36: =IF($W36<>"P",0,pcOfAdvancedAchieved(ROW(),$M36)) -> 0 | Z36: 0 | AA36: 0 | AB36: 0 | AC36: 0 | AD36: 0 | AE36: 0 | AF36: 0 | AG36: 0 | AH36: 0
B37: =INDEX(Lookup!$B$9:$B$100,MATCH(CELL("contents",$C37),Lookup!$E$9:$E$100,0)) -> 2 | C37: During employment | D37: 13d | E37: 0 | F37: ™ | G37: ™ | H37: ™ | I37: ™ | J37: ™ | K37: ™ | L37: ™ | M37: 0 | R37: =IF($Q37<>"P",0,mySWITCH(INT($M37),0,0,0,1,1,2,2,3,2,4,2,5,2,6,2)) -> 0 | T37: P | U37: =IF($T37<>"P",0,pcOfTargetAchieved(ROW(),$M37)) -> 0 | W37: P | X37: =IF($W37<>"P",0,pcOfAdvancedAchieved(ROW(),$M37)) -> 0 | Z37: 0 | AA37: 0 | AB37: 0 | AC37: 0 | AD37: 0 | AE37: 0 | AF37: 0 | AG37: 0 | AH37: 0
C38: Staff training & awareness culture | D38: 13i | E38: 0 | F38: ™ | G38: ™ | H38: ™ | I38: ™ | J38: ™ | K38: ™ | L38: ™ | M38: 0 | Q38: P | R38: =IF($Q38<>"P",0,mySWITCH(INT($M38),0,0,0,1,1,2,2,3,2,4,2,5,2,6,2)) -> 0 | T38: P | U38: =IF($T38<>"P",0,pcOfTargetAchieved(ROW(),$M38)) -> 0 | W38: P | X38: =IF($W38<>"P",0,pcOfAdvancedAchieved(ROW(),$M38)) -> 0 | Z38: 0 | AA38: 0 | AB38: 0 | AC38: 0 | AD38: 0 | AE38: 0 | AF38: 0 | AG38: 0 | AH38: 0
C39: Staff skills assessment | D39: 13j | E39: 0 | F39: ™ | G39: ™ | H39: ™ | I39: ™ | J39: ™ | K39: ™ | L39: ™ | M39: 0 | R39: =IF($Q39<>"P",0,mySWITCH(INT($M39),0,0,0,1,1,2,2,3,2,4,2,5,2,6,2)) -> 0 | T39: P | U39: =IF($T39<>"P",0,pcOfTargetAchieved(ROW(),$M39)) -> 0 | W39: P | X39: =IF($W39<>"P",0,pcOfAdvancedAchieved(ROW(),$M39)) -> 0 | Z39: 0 | AA39: 0 | AB39: 0 | AC39: 0 | AD39: 0 | AE39: 0 | AF39: 0 | AG39: 0 | AH39: 0
C40: Mobile/remote working policy | D40: 13o | E40: 0 | F40: ™ | G40: ™ | H40: ™ | I40: ™ | J40: ™ | K40: ™ | L40: ™ | M40: 0 | R40: =IF($Q40<>"P",0,mySWITCH(INT($M40),0,0,0,1,1,2,2,3,2,4,2,5,2,6,2)) -> 0 | T40: P | U40: =IF($T40<>"P",0,pcOfTargetAchieved(ROW(),$M40)) -> 0 | W40: P | X40: =IF($W40<>"P",0,pcOfAdvancedAchieved(ROW(),$M40)) -> 0 | Z40: 0 | AA40: 0 | AB40: 0 | AC40: 0 | AD40: 0 | AE40: 0 | AF40: 0 | AG40: 0 | AH40: 0
C41: SERVICES RESILIENCE | G41: 0 | H41: 1 | I41: 2 | J41: 3 | K41: 4 | L41: 5 | M41: ™ | O41: COMMENTS | Q41: Baseline | T41: Target | W41: Advanced | Y41: Scores | Z41: =Lookup!X$6 -> CE | AA41: =Lookup!Y$6 -> PSAP | AB41: =Lookup!Z$6 -> PSN - ITHC | AC41: =Lookup!AA$6 -> PCI-DSS | AD41: =Lookup!AB$6 -> 10 Steps | AE41: =Lookup!AC$6 -> GDPR | AF41: =Lookup!AD$6 -> HMG SPF | AG41: =Lookup!AE$6 -> ISO 27001 | AH41: =Lookup!AF$6 -> NIS - CAF | AI41: =Lookup!V6 -> totals
C42: Services Resilience | D42: 17a | E42: 0 | F42: ™ | G42: ™ | H42: ™ | I42: ™ | J42: ™ | K42: ™ | L42: ™ | M42: 0 | R42: =IF($Q42<>"P",0,mySWITCH(INT($M42),0,0,0,1,1,2,2,3,2,4,2,5,2,6,2)) -> 0 | T42: P | U42: =IF($T42<>"P",0,pcOfTargetAchieved(ROW(),$M42)) -> 0 | W42: P | X42: =IF($W42<>"P",0,pcOfAdvancedAchieved(ROW(),$M42)) -> 0 | Z42: 0 | AA42: 0 | AB42: 0 | AC42: 0 | AD42: 0 | AE42: 0 | AF42: 0 | AG42: 0 | AH42: 0
C43: ACCESS CONTROL | G43: 0 | H43: 1 | I43: 2 | J43: 3 | K43: 4 | L43: 5 | M43: ™ | O43: COMMENTS | Q43: Baseline | T43: Target | W43: Advanced | Y43: Scores | Z43: =Lookup!X$6 -> CE | AA43: =Lookup!Y$6 -> PSAP | AB43: =Lookup!Z$6 -> PSN - ITHC | AC43: =Lookup!AA$6 -> PCI-DSS | AD43: =Lookup!AB$6 -> 10 Steps | AE43: =Lookup!AC$6 -> GDPR | AF43: =Lookup!AD$6 -> HMG SPF | AG43: =Lookup!AE$6 -> ISO 27001 | AH43: =Lookup!AF$6 -> NIS - CAF | AI43: =Lookup!V6 -> totals
C44: Account management | D44: 3a | E44: 0 | F44: ™ | G44: ™ | H44: ™ | I44: ™ | J44: ™ | K44: ™ | L44: ™ | M44: 0 | Q44: P | R44: =IF($Q44<>"P",0,mySWITCH(INT($M44),0,0,0,1,1,2,2,3,2,4,2,5,2,6,2)) -> 0 | T44: P | U44: =IF($T44<>"P",0,pcOfTargetAchieved(ROW(),$M44)) -> 0 | X44: =IF($W44<>"P",0,pcOfAdvancedAchieved(ROW(),$M44)) -> 0 | Z44: 0 | AA44: 0 | AB44: 0 | AC44: 0 | AD44: 0 | AE44: 0 | AF44: 0 | AG44: 0 | AH44: 0
B45: =INDEX(Lookup!$B$9:$B$100,MATCH(CELL("contents",$C45),Lookup!$E$9:$E$100,0)) -> 2 | C45: Identity authentication | D45: 3b | E45: 0 | F45: ™ | G45: ™ | H45: ™ | I45: ™ | J45: ™ | K45: ™ | L45: ™ | M45: 0 | Q45: P | R45: =IF($Q45<>"P",0,mySWITCH(INT($M45),0,0,0,1,1,2,2,3,2,4,2,5,2,6,2)) -> 0 | T45: P | U45: =IF($T45<>"P",0,pcOfTargetAchieved(ROW(),$M45)) -> 0 | W45: P | X45: =IF($W45<>"P",0,pcOfAdvancedAchieved(ROW(),$M45)) -> 0 | Z45: 0 | AA45: 0 | AB45: 0 | AC45: 0 | AD45: 0 | AE45: 0 | AF45: 0 | AG45: 0 | AH45: 0
B46: =INDEX(Lookup!$B$9:$B$100,MATCH(CELL("contents",$C46),Lookup!$E$9:$E$100,0)) -> 2 | C46: Privilege management | D46: 3e | E46: 0 | F46: ™ | G46: ™ | H46: ™ | I46: ™ | J46: ™ | K46: ™ | L46: ™ | M46: 0 | Q46: P | R46: =IF($Q46<>"P",0,mySWITCH(INT($M46),0,0,0,1,1,2,2,3,2,4,2,5,2,6,2)) -> 0 | T46: P | U46: =IF($T46<>"P",0,pcOfTargetAchieved(ROW(),$M46)) -> 0 | W46: P | X46: =IF($W46<>"P",0,pcOfAdvancedAchieved(ROW(),$M46)) -> 0 | Z46: 0 | AA46: 0 | AB46: 0 | AC46: 0 | AD46: 0 | AE46: 0 | AF46: 0 | AG46: 0 | AH46: 0
B47: =INDEX(Lookup!$B$9:$B$100,MATCH(CELL("contents",$C47),Lookup!$E$9:$E$100,0)) -> 2 | C47: Administrator account management | D47: 3f | E47: 0 | F47: ™ | G47: ™ | H47: ™ | I47: ™ | J47: ™ | K47: ™ | L47: ™ | M47: 0 | Q47: P | R47: =IF($Q47<>"P",0,mySWITCH(INT($M47),0,0,0,1,1,2,2,3,2,4,2,5,2,6,2)) -> 0 | T47: P | U47: =IF($T47<>"P",0,pcOfTargetAchieved(ROW(),$M47)) -> 0 | W47: P | X47: =IF($W47<>"P",0,pcOfAdvancedAchieved(ROW(),$M47)) -> 0 | Z47: 0 | AA47: 0 | AB47: 0 | AC47: 0 | AD47: 0 | AE47: 0 | AF47: 0 | AG47: 0 | AH47: 0
C48: MEDIA MANAGEMENT | G48: 0 | H48: 1 | I48: 2 | J48: 3 | K48: 4 | L48: 5 | M48: ™ | O48: COMMENTS | Q48: Baseline | T48: Target | W48: Advanced | Y48: Scores | Z48: =Lookup!X$6 -> CE | AA48: =Lookup!Y$6 -> PSAP | AB48: =Lookup!Z$6 -> PSN - ITHC | AC48: =Lookup!AA$6 -> PCI-DSS | AD48: =Lookup!AB$6 -> 10 Steps | AE48: =Lookup!AC$6 -> GDPR | AF48: =Lookup!AD$6 -> HMG SPF | AG48: =Lookup!AE$6 -> ISO 27001 | AH48: =Lookup!AF$6 -> NIS - CAF | AI48: =Lookup!V6 -> totals
C49: Storage media management | D49: 14a | E49: 0 | F49: ™ | G49: ™ | H49: ™ | I49: ™ | J49: ™ | K49: ™ | L49: ™ | M49: 0 | R49: =IF($Q49<>"P",0,mySWITCH(INT($M49),0,0,0,1,1,2,2,3,2,4,2,5,2,6,2)) -> 0 | T49: P | U49: =IF($T49<>"P",0,pcOfTargetAchieved(ROW(),$M49)) -> 0 | W49: P | X49: =IF($W49<>"P",0,pcOfAdvancedAchieved(ROW(),$M49)) -> 0 | Z49: 0 | AA49: 0 | AB49: 0 | AC49: 0 | AD49: 0 | AE49: 0 | AF49: 0 | AG49: 0 | AH49: 0
B50: =INDEX(Lookup!$B$9:$B$100,MATCH(CELL("contents",$C50),Lookup!$E$9:$E$100,0)) -> 2 | C50: Mobile media/devices | D50: 14b | E50: 0 | F50: ™ | G50: ™ | H50: ™ | I50: ™ | J50: ™ | K50: ™ | L50: ™ | M50: 0 | R50: =IF($Q50<>"P",0,mySWITCH(INT($M50),0,0,0,1,1,2,2,3,2,4,2,5,2,6,2)) -> 0 | T50: P | U50: =IF($T50<>"P",0,pcOfTargetAchieved(ROW(),$M50)) -> 0 | W50: P | X50: =IF($W50<>"P",0,pcOfAdvancedAchieved(ROW(),$M50)) -> 0 | Z50: 0 | AA50: 0 | AB50: 0 | AC50: 0 | AD50: 0 | AE50: 0 | AF50: 0 | AG50: 0 | AH50: 0
B51: =INDEX(Lookup!$B$9:$B$100,MATCH(CELL("contents",$C51),Lookup!$E$9:$E$100,0)) -> 2 | C51: Cryptography | D51: 14c | E51: 0 | F51: ™ | G51: ™ | H51: ™ | I51: ™ | J51: ™ | K51: ™ | L51: ™ | M51: 0 | R51: =IF($Q51<>"P",0,mySWITCH(INT($M51),0,0,0,1,1,2,2,3,2,4,2,5,2,6,2)) -> 0 | T51: P | U51: =IF($T51<>"P",0,pcOfTargetAchieved(ROW(),$M51)) -> 0 | W51: P | X51: =IF($W51<>"P",0,pcOfAdvancedAchieved(ROW(),$M51)) -> 0 | Z51: 0 | AA51: 0 | AB51: 0 | AC51: 0 | AD51: 0 | AE51: 0 | AF51: 0 | AG51: 0 | AH51: 0
B52: =INDEX(Lookup!$B$9:$B$100,MATCH(CELL("contents",$C52),Lookup!$E$9:$E$100,0)) -> 2 | C52: Remote wipe capability | D52: 14d | E52: 0 | F52: ™ | G52: ™ | H52: ™ | I52: ™ | J52: ™ | K52: ™ | L52: ™ | M52: 0 | R52: =IF($Q52<>"P",0,mySWITCH(INT($M52),0,0,0,1,1,2,2,3,2,4,2,5,2,6,2)) -> 0 | T52: P | U52: =IF($T52<>"P",0,pcOfTargetAchieved(ROW(),$M52)) -> 0 | X52: =IF($W52<>"P",0,pcOfAdvancedAchieved(ROW(),$M52)) -> 0 | Z52: 0 | AA52: 0 | AB52: 0 | AC52: 0 | AD52: 0 | AE52: 0 | AF52: 0 | AG52: 0 | AH52: 0
C53: ENVIRONMENTAL SECURITY | G53: 0 | H53: 1 | I53: 2 | J53: 3 | K53: 4 | L53: 5 | M53: ™ | O53: COMMENTS | Q53: Baseline | T53: Target | W53: Advanced | Y53: Scores | Z53: =Lookup!X$6 -> CE | AA53: =Lookup!Y$6 -> PSAP | AB53: =Lookup!Z$6 -> PSN - ITHC | AC53: =Lookup!AA$6 -> PCI-DSS | AD53: =Lookup!AB$6 -> 10 Steps | AE53: =Lookup!AC$6 -> GDPR | AF53: =Lookup!AD$6 -> HMG SPF | AG53: =Lookup!AE$6 -> ISO 27001 | AH53: =Lookup!AF$6 -> NIS - CAF | AI53: =Lookup!V6 -> totals
C54: Equipment location | D54: 15a | E54: 0 | F54: ™ | G54: ™ | H54: ™ | I54: ™ | J54: ™ | K54: ™ | L54: ™ | M54: 0 | R54: =IF($Q54<>"P",0,mySWITCH(INT($M54),0,0,0,1,1,2,2,3,2,4,2,5,2,6,2)) -> 0 | U54: =IF($T54<>"P",0,pcOfTargetAchieved(ROW(),$M54)) -> 0 | W54: P | X54: =IF($W54<>"P",0,pcOfAdvancedAchieved(ROW(),$M54)) -> 0 | Z54: 0 | AA54: 0 | AB54: 0 | AC54: 0 | AD54: 0 | AE54: 0 | AF54: 0 | AG54: 0 | AH54: 0
B55: =INDEX(Lookup!$B$9:$B$100,MATCH(CELL("contents",$C55),Lookup!$E$9:$E$100,0)) -> 2 | C55: Power resilience | D55: 15b | E55: 0 | F55: ™ | G55: ™ | H55: ™ | I55: ™ | J55: ™ | K55: ™ | L55: ™ | M55: 0 | R55: =IF($Q55<>"P",0,mySWITCH(INT($M55),0,0,0,1,1,2,2,3,2,4,2,5,2,6,2)) -> 0 | U55: =IF($T55<>"P",0,pcOfTargetAchieved(ROW(),$M55)) -> 0 | W55: P | X55: =IF($W55<>"P",0,pcOfAdvancedAchieved(ROW(),$M55)) -> 0 | Z55: 0 | AA55: 0 | AB55: 0 | AC55: 0 | AD55: 0 | AE55: 0 | AF55: 0 | AG55: 0 | AH55: 0
C56: PHYSICAL/BUILDING SECURITY | G56: 0 | H56: 1 | I56: 2 | J56: 3 | K56: 4 | L56: 5 | M56: ™ | O56: COMMENTS | Q56: Baseline | T56: Target | W56: Advanced | Y56: Scores | Z56: =Lookup!X$6 -> CE | AA56: =Lookup!Y$6 -> PSAP | AB56: =Lookup!Z$6 -> PSN - ITHC | AC56: =Lookup!AA$6 -> PCI-DSS | AD56: =Lookup!AB$6 -> 10 Steps | AE56: =Lookup!AC$6 -> GDPR | AF56: =Lookup!AD$6 -> HMG SPF | AG56: =Lookup!AE$6 -> ISO 27001 | AH56: =Lookup!AF$6 -> NIS - CAF | AI56: =Lookup!V6 -> totals
C57: Access control | D57: 5a | E57: 0 | F57: ™ | G57: ™ | H57: ™ | I57: ™ | J57: ™ | K57: ™ | L57: ™ | M57: 0 | R57: =IF($Q57<>"P",0,mySWITCH(INT($M57),0,0,0,1,1,2,2,3,2,4,2,5,2,6,2)) -> 0 | T57: P | U57: =IF($T57<>"P",0,pcOfTargetAchieved(ROW(),$M57)) -> 0 | W57: P | X57: =IF($W57<>"P",0,pcOfAdvancedAchieved(ROW(),$M57)) -> 0 | Z57: 0 | AA57: 0 | AB57: 0 | AC57: 0 | AD57: 0 | AE57: 0 | AF57: 0 | AG57: 0 | AH57: 0
B58: =INDEX(Lookup!$B$9:$B$100,MATCH(CELL("contents",$C58),Lookup!$E$9:$E$100,0)) -> 2 | C58: Internal security | D58: 5b | E58: 0 | F58: ™ | G58: ™ | H58: ™ | I58: ™ | J58: ™ | K58: ™ | L58: ™ | M58: 0 | R58: =IF($Q58<>"P",0,mySWITCH(INT($M58),0,0,0,1,1,2,2,3,2,4,2,5,2,6,2)) -> 0 | T58: P | U58: =IF($T58<>"P",0,pcOfTargetAchieved(ROW(),$M58)) -> 0 | W58: P | X58: =IF($W58<>"P",0,pcOfAdvancedAchieved(ROW(),$M58)) -> 0 | Z58: 0 | AA58: 0 | AB58: 0 | AC58: 0 | AD58: 0 | AE58: 0 | AF58: 0 | AG58: 0 | AH58: 0
C59: SYSTEM MANAGEMENT | G59: 0 | H59: 1 | I59: 2 | J59: 3 | K59: 4 | L59: 5 | M59: ™ | O59: COMMENTS | Q59: Baseline | T59: Target | W59: Advanced | Y59: Scores | Z59: =Lookup!X$6 -> CE | AA59: =Lookup!Y$6 -> PSAP | AB59: =Lookup!Z$6 -> PSN - ITHC | AC59: =Lookup!AA$6 -> PCI-DSS | AD59: =Lookup!AB$6 -> 10 Steps | AE59: =Lookup!AC$6 -> GDPR | AF59: =Lookup!AD$6 -> HMG SPF | AG59: =Lookup!AE$6 -> ISO 27001 | AH59: =Lookup!AF$6 -> NIS - CAF | AI59: =Lookup!V6 -> totals
C60: Secure configuration | D60: 6c | E60: 0 | F60: ™ | G60: ™ | H60: ™ | I60: ™ | J60: ™ | K60: ™ | L60: ™ | M60: 0 | Q60: P | R60: =IF($Q60<>"P",0,mySWITCH(INT($M60),0,0,0,1,1,2,2,3,2,4,2,5,2,6,2)) -> 0 | T60: P | U60: =IF($T60<>"P",0,pcOfTargetAchieved(ROW(),$M60)) -> 0 | W60: P | X60: =IF($W60<>"P",0,pcOfAdvancedAchieved(ROW(),$M60)) -> 0 | Z60: 0 | AA60: 0 | AB60: 0 | AC60: 0 | AD60: 0 | AE60: 0 | AF60: 0 | AG60: 0 | AH60: 0
B61: =INDEX(Lookup!$B$9:$B$100,MATCH(CELL("contents",$C61),Lookup!$E$9:$E$100,0)) -> 2 | C61: Secure design/development | D61: 6d | E61: 0 | F61: ™ | G61: ™ | H61: ™ | I61: ™ | J61: ™ | K61: ™ | L61: ™ | M61: 0 | R61: =IF($Q61<>"P",0,mySWITCH(INT($M61),0,0,0,1,1,2,2,3,2,4,2,5,2,6,2)) -> 0 | T61: P | U61: =IF($T61<>"P",0,pcOfTargetAchieved(ROW(),$M61)) -> 0 | W61: P | X61: =IF($W61<>"P",0,pcOfAdvancedAchieved(ROW(),$M61)) -> 0 | Z61: 0 | AA61: 0 | AB61: 0 | AC61: 0 | AD61: 0 | AE61: 0 | AF61: 0 | AG61: 0 | AH61: 0 | AI61: 0
B62: =INDEX(Lookup!$B$9:$B$100,MATCH(CELL("contents",$C62),Lookup!$E$9:$E$100,0)) -> 2 | C62: Change control procedures | D62: 6e | E62: 0 | F62: ™ | G62: ™ | H62: ™ | I62: ™ | J62: ™ | K62: ™ | L62: ™ | M62: 0 | R62: =IF($Q62<>"P",0,mySWITCH(INT($M62),0,0,0,1,1,2,2,3,2,4,2,5,2,6,2)) -> 0 | T62: P | U62: =IF($T62<>"P",0,pcOfTargetAchieved(ROW(),$M62)) -> 0 | W62: P | X62: =IF($W62<>"P",0,pcOfAdvancedAchieved(ROW(),$M62)) -> 0 | Z62: 0 | AA62: 0 | AB62: 0 | AC62: 0 | AD62: 0 | AE62: 0 | AF62: 0 | AG62: 0 | AH62: 0
B63: =INDEX(Lookup!$B$9:$B$100,MATCH(CELL("contents",$C63),Lookup!$E$9:$E$100,0)) -> 2 | C63: System Testing | D63: 6f | E63: 0 | F63: ™ | G63: ™ | H63: ™ | I63: ™ | J63: ™ | K63: ™ | L63: ™ | M63: 0 | R63: =IF($Q63<>"P",0,mySWITCH(INT($M63),0,0,0,1,1,2,2,3,2,4,2,5,2,6,2)) -> 0 | T63: P | U63: =IF($T63<>"P",0,pcOfTargetAchieved(ROW(),$M63)) -> 0 | W63: P | X63: =IF($W63<>"P",0,pcOfAdvancedAchieved(ROW(),$M63)) -> 0 | Z63: 0 | AA63: 0 | AB63: 0 | AC63: 0 | AD63: 0 | AE63: 0 | AF63: 0 | AG63: 0 | AH63: 0
C64: OPERATIONAL SECURITY | G64: 0 | H64: 1 | I64: 2 | J64: 3 | K64: 4 | L64: 5 | M64: ™ | O64: COMMENTS | Q64: Baseline | T64: Target | W64: Advanced | Z64: =Lookup!X$6 -> CE | AA64: =Lookup!Y$6 -> PSAP | AB64: =Lookup!Z$6 -> PSN - ITHC | AC64: =Lookup!AA$6 -> PCI-DSS | AD64: =Lookup!AB$6 -> 10 Steps | AE64: =Lookup!AC$6 -> GDPR | AF64: =Lookup!AD$6 -> HMG SPF | AG64: =Lookup!AE$6 -> ISO 27001 | AH64: =Lookup!AF$6 -> NIS - CAF | AI64: =Lookup!V6 -> totals
C65: Malware policies & protection | D65: 7a | E65: 0 | F65: ™ | G65: ™ | H65: ™ | I65: ™ | J65: ™ | K65: ™ | L65: ™ | M65: 0 | Q65: P | R65: =IF($Q65<>"P",0,mySWITCH(INT($M65),0,0,0,1,1,2,2,3,2,4,2,5,2,6,2)) -> 0 | T65: P | U65: =IF($T65<>"P",0,pcOfTargetAchieved(ROW(),$M65)) -> 0 | X65: =IF($W65<>"P",0,pcOfAdvancedAchieved(ROW(),$M65)) -> 0 | Z65: 0 | AA65: 0 | AB65: 0 | AC65: 0 | AD65: 0 | AE65: 0 | AF65: 0 | AG65: 0 | AH65: 0
B66: =INDEX(Lookup!$B$9:$B$100,MATCH(CELL("contents",$C66),Lookup!$E$9:$E$100,0)) -> 2 | C66: Email security | D66: 7e | E66: 0 | F66: ™ | G66: ™ | H66: ™ | I66: ™ | J66: ™ | K66: ™ | L66: ™ | M66: 0 | Q66: P | R66: =IF($Q66<>"P",0,mySWITCH(INT($M66),0,0,0,1,1,2,2,3,2,4,2,5,2,6,2)) -> 0 | T66: P | U66: =IF($T66<>"P",0,pcOfTargetAchieved(ROW(),$M66)) -> 0 | X66: =IF($W66<>"P",0,pcOfAdvancedAchieved(ROW(),$M66)) -> 0 | Z66: 0 | AA66: 0 | AB66: 0 | AC66: 0 | AD66: 0 | AE66: 0 | AF66: 0 | AG66: 0 | AH66: 0
B67: =INDEX(Lookup!$B$9:$B$100,MATCH(CELL("contents",$C67),Lookup!$E$9:$E$100,0)) -> 2 | C67: Application security | D67: 7f | E67: 0 | F67: ™ | G67: ™ | H67: ™ | I67: ™ | J67: ™ | K67: ™ | L67: ™ | M67: 0 | Q67: P | R67: =IF($Q67<>"P",0,mySWITCH(INT($M67),0,0,0,1,1,2,2,3,2,4,2,5,2,6,2)) -> 0 | T67: P | U67: =IF($T67<>"P",0,pcOfTargetAchieved(ROW(),$M67)) -> 0 | X67: =IF($W67<>"P",0,pcOfAdvancedAchieved(ROW(),$M67)) -> 0 | Z67: 0 | AA67: 0 | AB67: 0 | AC67: 0 | AD67: 0 | AE67: 0 | AF67: 0 | AG67: 0 | AH67: 0
B68: =INDEX(Lookup!$B$9:$B$100,MATCH(CELL("contents",$C68),Lookup!$E$9:$E$100,0)) -> 2 | C68: Vulnerability management & scanning | D68: 7h | E68: 0 | F68: ™ | G68: ™ | H68: ™ | I68: ™ | J68: ™ | K68: ™ | L68: ™ | M68: 0 | Q68: P | R68: =IF($Q68<>"P",0,mySWITCH(INT($M68),0,0,0,1,1,2,2,3,2,4,2,5,2,6,2)) -> 0 | T68: P | U68: =IF($T68<>"P",0,pcOfTargetAchieved(ROW(),$M68)) -> 0 | W68: P | X68: =IF($W68<>"P",0,pcOfAdvancedAchieved(ROW(),$M68)) -> 0 | Z68: 0 | AA68: 0 | AB68: 0 | AC68: 0 | AD68: 0 | AE68: 0 | AF68: 0 | AG68: 0 | AH68: 0
B69: =INDEX(Lookup!$B$9:$B$100,MATCH(CELL("contents",$C69),Lookup!$E$9:$E$100,0)) -> 2 | C69: Data exfiltration monitoring | D69: 7k | E69: 0 | F69: ™ | G69: ™ | H69: ™ | I69: ™ | J69: ™ | K69: ™ | L69: ™ | M69: 0 | R69: =IF($Q69<>"P",0,mySWITCH(INT($M69),0,0,0,1,1,2,2,3,2,4,2,5,2,6,2)) -> 0 | T69: P | U69: =IF($T69<>"P",0,pcOfTargetAchieved(ROW(),$M69)) -> 0 | X69: =IF($W69<>"P",0,pcOfAdvancedAchieved(ROW(),$M69)) -> 0 | Z69: 0 | AA69: 0 | AB69: 0 | AC69: 0 | AD69: 0 | AE69: 0 | AF69: 0 | AG69: 0 | AH69: 0 | AI69: 0
B70: =INDEX(Lookup!$B$9:$B$100,MATCH(CELL("contents",$C70),Lookup!$E$9:$E$100,0)) -> 2 | C70: Software supported & updated | D70: 7l | E70: 0 | F70: ™ | G70: ™ | H70: ™ | I70: ™ | J70: ™ | K70: ™ | L70: ™ | M70: 0 | Q70: P | R70: =IF($Q70<>"P",0,mySWITCH(INT($M70),0,0,0,1,1,2,2,3,2,4,2,5,2,6,2)) -> 0 | T70: P | U70: =IF($T70<>"P",0,pcOfTargetAchieved(ROW(),$M70)) -> 0 | W70: P | X70: =IF($W70<>"P",0,pcOfAdvancedAchieved(ROW(),$M70)) -> 0 | Z70: 0 | AA70: 0 | AB70: 0 | AC70: 0 | AD70: 0 | AE70: 0 | AF70: 0 | AG70: 0 | AH70: 0
B71: =INDEX(Lookup!$B$9:$B$100,MATCH(CELL("contents",$C71),Lookup!$E$9:$E$100,0)) -> 2 | C71: Web site screening | D71: 7m | E71: 0 | F71: ™ | G71: ™ | H71: ™ | I71: ™ | J71: ™ | K71: ™ | L71: ™ | M71: 0 | Q71: P | R71: =IF($Q71<>"P",0,mySWITCH(INT($M71),0,0,0,1,1,2,2,3,2,4,2,5,2,6,2)) -> 0 | T71: P | U71: =IF($T71<>"P",0,pcOfTargetAchieved(ROW(),$M71)) -> 0 | X71: =IF($W71<>"P",0,pcOfAdvancedAchieved(ROW(),$M71)) -> 0 | Z71: 0 | AA71: 0 | AB71: 0 | AC71: 0 | AD71: 0 | AE71: 0 | AF71: 0 | AG71: 0 | AH71: 0
B72: =INDEX(Lookup!$B$9:$B$100,MATCH(CELL("contents",$C72),Lookup!$E$9:$E$100,0)) -> 2 | C72: Browser management | D72: 7n | E72: 0 | F72: ™ | G72: ™ | H72: ™ | I72: ™ | J72: ™ | K72: ™ | L72: ™ | M72: 0 | R72: =IF($Q72<>"P",0,mySWITCH(INT($M72),0,0,0,1,1,2,2,3,2,4,2,5,2,6,2)) -> 0 | T72: P | U72: =IF($T72<>"P",0,pcOfTargetAchieved(ROW(),$M72)) -> 0 | X72: =IF($W72<>"P",0,pcOfAdvancedAchieved(ROW(),$M72)) -> 0 | Z72: 0 | AA72: 0 | AB72: 0 | AC72: 0 | AD72: 0 | AE72: 0 | AF72: 0 | AG72: 0 | AH72: 0
B73: =INDEX(Lookup!$B$9:$B$100,MATCH(CELL("contents",$C73),Lookup!$E$9:$E$100,0)) -> 2 | C73: Monitor/audit user activity | D73: 7o | E73: 0 | F73: ™ | G73: ™ | H73: ™ | I73: ™ | J73: ™ | K73: ™ | L73: ™ | M73: 0 | R73: =IF($Q73<>"P",0,mySWITCH(INT($M73),0,0,0,1,1,2,2,3,2,4,2,5,2,6,2)) -> 0 | T73: P | U73: =IF($T73<>"P",0,pcOfTargetAchieved(ROW(),$M73)) -> 0 | W73: P | X73: =IF($W73<>"P",0,pcOfAdvancedAchieved(ROW(),$M73)) -> 0 | Z73: 0 | AA73: 0 | AB73: 0 | AC73: 0 | AD73: 0 | AE73: 0 | AF73: 0 | AG73: 0 | AH73: 0
B74: =INDEX(Lookup!$B$9:$B$100,MATCH(CELL("contents",$C74),Lookup!$E$9:$E$100,0)) -> 2 | C74: Disabled auto-run | D74: 7p | E74: 0 | F74: ™ | G74: ™ | H74: ™ | I74: ™ | J74: ™ | K74: ™ | L74: ™ | M74: 0 | Q74: P | R74: =IF($Q74<>"P",0,mySWITCH(INT($M74),0,0,0,1,1,2,2,3,2,4,2,5,2,6,2)) -> 0 | T74: P | U74: =IF($T74<>"P",0,pcOfTargetAchieved(ROW(),$M74)) -> 0 | X74: =IF($W74<>"P",0,pcOfAdvancedAchieved(ROW(),$M74)) -> 0 | Z74: 0 | AA74: 0 | AB74: 0 | AC74: 0 | AD74: 0 | AE74: 0 | AF74: 0 | AG74: 0 | AH74: 0
C75: NETWORK SECURITY | G75: 0 | H75: 1 | I75: 2 | J75: 3 | K75: 4 | L75: 5 | M75: ™ | O75: COMMENTS | Q75: Baseline | T75: Target | W75: Advanced | Z75: =Lookup!X$6 -> CE | AA75: =Lookup!Y$6 -> PSAP | AB75: =Lookup!Z$6 -> PSN - ITHC | AC75: =Lookup!AA$6 -> PCI-DSS | AD75: =Lookup!AB$6 -> 10 Steps | AE75: =Lookup!AC$6 -> GDPR | AF75: =Lookup!AD$6 -> HMG SPF | AG75: =Lookup!AE$6 -> ISO 27001 | AH75: =Lookup!AF$6 -> NIS - CAF | AI75: =Lookup!V6 -> totals
C76: Patch management | D76: 8a | E76: 0 | F76: ™ | G76: ™ | H76: ™ | I76: ™ | J76: ™ | K76: ™ | L76: ™ | M76: 0 | Q76: P | R76: =IF($Q76<>"P",0,mySWITCH(INT($M76),0,0,0,1,1,2,2,3,2,4,2,5,2,6,2)) -> 0 | T76: P | U76: =IF($T76<>"P",0,pcOfTargetAchieved(ROW(),$M76)) -> 0 | X76: =IF($W76<>"P",0,pcOfAdvancedAchieved(ROW(),$M76)) -> 0 | Z76: 0 | AA76: 0 | AB76: 0 | AC76: 0 | AD76: 0 | AE76: 0 | AF76: 0 | AG76: 0 | AH76: 0
C77: Device management | D77: 8b | E77: 0 | F77: ™ | G77: ™ | H77: ™ | I77: ™ | J77: ™ | K77: ™ | L77: ™ | M77: 0 | R77: =IF($Q77<>"P",0,mySWITCH(INT($M77),0,0,0,1,1,2,2,3,2,4,2,5,2,6,2)) -> 0 | T77: P | U77: =IF($T77<>"P",0,pcOfTargetAchieved(ROW(),$M77)) -> 0 | W77: P | X77: =IF($W77<>"P",0,pcOfAdvancedAchieved(ROW(),$M77)) -> 0 | Z77: 0 | AA77: 0 | AB77: 0 | AC77: 0 | AD77: 0 | AE77: 0 | AF77: 0 | AG77: 0 | AH77: 0
C78: Content screening | D78: 8c | E78: 0 | F78: ™ | G78: ™ | H78: ™ | I78: ™ | J78: ™ | K78: ™ | L78: ™ | M78: 0 | R78: =IF($Q78<>"P",0,mySWITCH(INT($M78),0,0,0,1,1,2,2,3,2,4,2,5,2,6,2)) -> 0 | T78: P | U78: =IF($T78<>"P",0,pcOfTargetAchieved(ROW(),$M78)) -> 0 | X78: =IF($W78<>"P",0,pcOfAdvancedAchieved(ROW(),$M78)) -> 0 | Z78: 0 | AA78: 0 | AB78: 0 | AC78: 0 | AD78: 0 | AE78: 0 | AF78: 0 | AG78: 0 | AH78: 0 | AI78: 0
C79: Internal segregation | D79: 8d | E79: 0 | F79: ™ | G79: ™ | H79: ™ | I79: ™ | J79: ™ | K79: ™ | L79: ™ | M79: 0 | R79: =IF($Q79<>"P",0,mySWITCH(INT($M79),0,0,0,1,1,2,2,3,2,4,2,5,2,6,2)) -> 0 | T79: P | U79: =IF($T79<>"P",0,pcOfTargetAchieved(ROW(),$M79)) -> 0 | W79: P | X79: =IF($W79<>"P",0,pcOfAdvancedAchieved(ROW(),$M79)) -> 0 | Z79: 0 | AA79: 0 | AB79: 0 | AC79: 0 | AD79: 0 | AE79: 0 | AF79: 0 | AG79: 0 | AH79: 0
C80: Wireless security | D80: 8e | E80: 0 | F80: ™ | G80: ™ | H80: ™ | I80: ™ | J80: ™ | K80: ™ | L80: ™ | M80: 0 | Q80: P | R80: =IF($Q80<>"P",0,mySWITCH(INT($M80),0,0,0,1,1,2,2,3,2,4,2,5,2,6,2)) -> 0 | T80: P | U80: =IF($T80<>"P",0,pcOfTargetAchieved(ROW(),$M80)) -> 0 | X80: =IF($W80<>"P",0,pcOfAdvancedAchieved(ROW(),$M80)) -> 0 | Z80: 0 | AA80: 0 | AB80: 0 | AC80: 0 | AD80: 0 | AE80: 0 | AF80: 0 | AG80: 0 | AH80: 0
C81: Boundary/Firewall management | D81: 8f | E81: 0 | F81: ™ | G81: ™ | H81: ™ | I81: ™ | J81: ™ | K81: ™ | L81: ™ | M81: 0 | Q81: P | R81: =IF($Q81<>"P",0,mySWITCH(INT($M81),0,0,0,1,1,2,2,3,2,4,2,5,2,6,2)) -> 0 | T81: P | U81: =IF($T81<>"P",0,pcOfTargetAchieved(ROW(),$M81)) -> 0 | W81: P | X81: =IF($W81<>"P",0,pcOfAdvancedAchieved(ROW(),$M81)) -> 0 | Z81: 0 | AA81: 0 | AB81: 0 | AC81: 0 | AD81: 0 | AE81: 0 | AF81: 0 | AG81: 0 | AH81: 0
C82: Administrator control | D82: 8g | E82: 0 | F82: ™ | G82: ™ | H82: ™ | I82: ™ | J82: ™ | K82: ™ | L82: ™ | M82: 0 | R82: =IF($Q82<>"P",0,mySWITCH(INT($M82),0,0,0,1,1,2,2,3,2,4,2,5,2,6,2)) -> 0 | T82: P | U82: =IF($T82<>"P",0,pcOfTargetAchieved(ROW(),$M82)) -> 0 | W82: P | X82: =IF($W82<>"P",0,pcOfAdvancedAchieved(ROW(),$M82)) -> 0 | Z82: 0 | AA82: 0 | AB82: 0 | AC82: 0 | AD82: 0 | AE82: 0 | AF82: 0 | AG82: 0 | AH82: 0
C83: Error message management | D83: 8h | E83: 0 | F83: ™ | G83: ™ | H83: ™ | I83: ™ | J83: ™ | K83: ™ | L83: ™ | M83: 0 | R83: =IF($Q83<>"P",0,mySWITCH(INT($M83),0,0,0,1,1,2,2,3,2,4,2,5,2,6,2)) -> 0 | T83: P | U83: =IF($T83<>"P",0,pcOfTargetAchieved(ROW(),$M83)) -> 0 | X83: =IF($W83<>"P",0,pcOfAdvancedAchieved(ROW(),$M83)) -> 0 | Z83: 0 | AA83: 0 | AB83: 0 | AC83: 0 | AD83: 0 | AE83: 0 | AF83: 0 | AG83: 0 | AH83: 0
C84: Penetration testing | D84: 8i | E84: 0 | F84: ™ | G84: ™ | H84: ™ | I84: ™ | J84: ™ | K84: ™ | L84: ™ | M84: 0 | R84: =IF($Q84<>"P",0,mySWITCH(INT($M84),0,0,0,1,1,2,2,3,2,4,2,5,2,6,2)) -> 0 | T84: P | U84: =IF($T84<>"P",0,pcOfTargetAchieved(ROW(),$M84)) -> 0 | X84: =IF($W84<>"P",0,pcOfAdvancedAchieved(ROW(),$M84)) -> 0 | Z84: 0 | AA84: 0 | AB84: 0 | AC84: 0 | AD84: 0 | AE84: 0 | AF84: 0 | AG84: 0 | AH84: 0
C85: IP & DNS management | D85: 8j | E85: 0 | F85: ™ | G85: ™ | H85: ™ | I85: ™ | J85: ™ | K85: ™ | L85: ™ | M85: 0 | Q85: P | R85: =IF($Q85<>"P",0,mySWITCH(INT($M85),0,0,0,1,1,2,2,3,2,4,2,5,2,6,2)) -> 0 | T85: P | U85: =IF($T85<>"P",0,pcOfTargetAchieved(ROW(),$M85)) -> 0 | W85: P | X85: =IF($W85<>"P",0,pcOfAdvancedAchieved(ROW(),$M85)) -> 0 | Z85: 0 | AA85: 0 | AB85: 0 | AC85: 0 | AD85: 0 | AE85: 0 | AF85: 0 | AG85: 0 | AH85: 0 | AI85: 0
A86: DETECT | C86: INCIDENT DETECTION | G86: 0 | H86: 1 | I86: 2 | J86: 3 | K86: 4 | L86: 5 | M86: ™ | O86: COMMENTS | Q86: Baseline | T86: Target | W86: Advanced | Z86: =Lookup!X$6 -> CE | AA86: =Lookup!Y$6 -> PSAP | AB86: =Lookup!Z$6 -> PSN - ITHC | AC86: =Lookup!AA$6 -> PCI-DSS | AD86: =Lookup!AB$6 -> 10 Steps | AE86: =Lookup!AC$6 -> GDPR | AF86: =Lookup!AD$6 -> HMG SPF | AG86: =Lookup!AE$6 -> ISO 27001 | AH86: =Lookup!AF$6 -> NIS - CAF | AI86: =Lookup!V6 -> totals
C87: Detection capability | D87: 16a | E87: 0 | F87: ™ | G87: ™ | H87: ™ | I87: ™ | J87: ™ | K87: ™ | L87: ™ | M87: 0 | R87: =IF($Q87<>"P",0,mySWITCH(INT($M87),0,0,0,1,1,2,2,3,2,4,2,5,2,6,2)) -> 0 | T87: P | U87: =IF($T87<>"P",0,pcOfTargetAchieved(ROW(),$M87)) -> 0 | W87: P | X87: =IF($W87<>"P",0,pcOfAdvancedAchieved(ROW(),$M87)) -> 0 | Z87: 0 | AA87: 0 | AB87: 0 | AC87: 0 | AD87: 0 | AE87: 0 | AF87: 0 | AG87: 0 | AH87: 0 | AI87: 0
C88: Security Monitoring | D88: 16b | E88: 0 | F88: ™ | G88: ™ | H88: ™ | I88: ™ | J88: ™ | K88: ™ | L88: ™ | M88: 0 | R88: =IF($Q88<>"P",0,mySWITCH(INT($M88),0,0,0,1,1,2,2,3,2,4,2,5,2,6,2)) -> 0 | T88: P | U88: =IF($T88<>"P",0,pcOfTargetAchieved(ROW(),$M88)) -> 0 | W88: P | X88: =IF($W88<>"P",0,pcOfAdvancedAchieved(ROW(),$M88)) -> 0 | Z88: 0 | AA88: 0 | AB88: 0 | AC88: 0 | AD88: 0 | AE88: 0 | AF88: 0 | AG88: 0 | AH88: 0
A89: RESPOND & RECOVER | C89: INCIDENT MANAGEMENT | G89: 0 | H89: 1 | I89: 2 | J89: 3 | K89: 4 | L89: 5 | M89: ™ | O89: COMMENTS | Q89: Baseline | T89: Target | W89: Advanced | Z89: =Lookup!X$6 -> CE | AA89: =Lookup!Y$6 -> PSAP | AB89: =Lookup!Z$6 -> PSN - ITHC | AC89: =Lookup!AA$6 -> PCI-DSS | AD89: =Lookup!AB$6 -> 10 Steps | AE89: =Lookup!AC$6 -> GDPR | AF89: =Lookup!AD$6 -> HMG SPF | AG89: =Lookup!AE$6 -> ISO 27001 | AH89: =Lookup!AF$6 -> NIS - CAF | AI89: =Lookup!V6 -> totals
C90: Incident response protocol | D90: 10b | E90: 0 | F90: ™ | G90: ™ | H90: ™ | I90: ™ | J90: ™ | K90: ™ | L90: ™ | M90: 0 | Q90: P | R90: =IF($Q90<>"P",0,mySWITCH(INT($M90),0,0,0,1,1,2,2,3,2,4,2,5,2,6,2)) -> 0 | T90: P | U90: =IF($T90<>"P",0,pcOfTargetAchieved(ROW(),$M90)) -> 0 | W90: P | X90: =IF($W90<>"P",0,pcOfAdvancedAchieved(ROW(),$M90)) -> 0 | Z90: 0 | AA90: 0 | AB90: 0 | AC90: 0 | AD90: 0 | AE90: 0 | AF90: 0 | AG90: 0 | AH90: 0
C91: Incident reporting procedure | D91: 10c | E91: 0 | F91: ™ | G91: ™ | H91: ™ | I91: ™ | J91: ™ | K91: ™ | L91: ™ | M91: 0 | Q91: P | R91: =IF($Q91<>"P",0,mySWITCH(INT($M91),0,0,0,1,1,2,2,3,2,4,2,5,2,6,2)) -> 0 | T91: P | U91: =IF($T91<>"P",0,pcOfTargetAchieved(ROW(),$M91)) -> 0 | X91: =IF($W91<>"P",0,pcOfAdvancedAchieved(ROW(),$M91)) -> 0 | Z91: 0 | AA91: 0 | AB91: 0 | AC91: 0 | AD91: 0 | AE91: 0 | AF91: 0 | AG91: 0 | AH91: 0
C92: Staff training & testing | D92: 10d | E92: 0 | F92: ™ | G92: ™ | H92: ™ | I92: ™ | J92: ™ | K92: ™ | L92: ™ | M92: 0 | R92: =IF($Q92<>"P",0,mySWITCH(INT($M92),0,0,0,1,1,2,2,3,2,4,2,5,2,6,2)) -> 0 | T92: P | U92: =IF($T92<>"P",0,pcOfTargetAchieved(ROW(),$M92)) -> 0 | X92: =IF($W92<>"P",0,pcOfAdvancedAchieved(ROW(),$M92)) -> 0 | Z92: 0 | AA92: 0 | AB92: 0 | AC92: 0 | AD92: 0 | AE92: 0 | AF92: 0 | AG92: 0 | AH92: 0 | AI92: 0
C93: Post-incident review & learning | D93: 10e | E93: 0 | F93: ™ | G93: ™ | H93: ™ | I93: ™ | J93: ™ | K93: ™ | L93: ™ | M93: 0 | Q93: P | R93: =IF($Q93<>"P",0,mySWITCH(INT($M93),0,0,0,1,1,2,2,3,2,4,2,5,2,6,2)) -> 0 | T93: P | U93: =IF($T93<>"P",0,pcOfTargetAchieved(ROW(),$M93)) -> 0 | W93: P | X93: =IF($W93<>"P",0,pcOfAdvancedAchieved(ROW(),$M93)) -> 0 | Z93: 0 | AA93: 0 | AB93: 0 | AC93: 0 | AD93: 0 | AE93: 0 | AF93: 0 | AG93: 0 | AH93: 0
C94: BUSINESS CONTINUITY | G94: 0 | H94: 1 | I94: 2 | J94: 3 | K94: 4 | L94: 5 | M94: ™ | O94: COMMENTS | Q94: Baseline | T94: Target | W94: Advanced | Z94: =Lookup!X$6 -> CE | AA94: =Lookup!Y$6 -> PSAP | AB94: =Lookup!Z$6 -> PSN - ITHC | AC94: =Lookup!AA$6 -> PCI-DSS | AD94: =Lookup!AB$6 -> 10 Steps | AE94: =Lookup!AC$6 -> GDPR | AF94: =Lookup!AD$6 -> HMG SPF | AG94: =Lookup!AE$6 -> ISO 27001 | AH94: =Lookup!AF$6 -> NIS - CAF | AI94: =Lookup!V6 -> totals
C95: Data recover capability | D95: 12a | E95: 0 | F95: ™ | G95: ™ | H95: ™ | I95: ™ | J95: ™ | K95: ™ | L95: ™ | M95: 0 | R95: =IF($Q95<>"P",0,mySWITCH(INT($M95),0,0,0,1,1,2,2,3,2,4,2,5,2,6,2)) -> 0 | T95: P | U95: =IF($T95<>"P",0,pcOfTargetAchieved(ROW(),$M95)) -> 0 | W95: P | X95: =IF($W95<>"P",0,pcOfAdvancedAchieved(ROW(),$M95)) -> 0 | Z95: 0 | AA95: 0 | AB95: 0 | AC95: 0 | AD95: 0 | AE95: 0 | AF95: 0 | AG95: 0 | AH95: 0
C96: Back up policies & procedures | D96: 12b | E96: 0 | F96: ™ | G96: ™ | H96: ™ | I96: ™ | J96: ™ | K96: ™ | L96: ™ | M96: 0 | R96: =IF($Q96<>"P",0,mySWITCH(INT($M96),0,0,0,1,1,2,2,3,2,4,2,5,2,6,2)) -> 0 | T96: P | U96: =IF($T96<>"P",0,pcOfTargetAchieved(ROW(),$M96)) -> 0 | W96: P | X96: =IF($W96<>"P",0,pcOfAdvancedAchieved(ROW(),$M96)) -> 0 | Z96: 0 | AA96: 0 | AB96: 0 | AC96: 0 | AD96: 0 | AE96: 0 | AF96: 0 | AG96: 0 | AH96: 0
C97: Disaster recovery policies & procedures | D97: 12c | E97: 0 | F97: ™ | G97: ™ | H97: ™ | I97: ™ | J97: ™ | K97: ™ | L97: ™ | M97: 0 | R97: =IF($Q97<>"P",0,mySWITCH(INT($M97),0,0,0,1,1,2,2,3,2,4,2,5,2,6,2)) -> 0 | T97: P | U97: =IF($T97<>"P",0,pcOfTargetAchieved(ROW(),$M97)) -> 0 | W97: P | X97: =IF($W97<>"P",0,pcOfAdvancedAchieved(ROW(),$M97)) -> 0 | Z97: 0 | AA97: 0 | AB97: 0 | AC97: 0 | AD97: 0 | AE97: 0 | AF97: 0 | AG97: 0 | AH97: 0
C98: BC/DR testing policies & procedures | D98: 12d | E98: 0 | F98: ™ | G98: ™ | H98: ™ | I98: ™ | J98: ™ | K98: ™ | L98: ™ | M98: 0 | R98: =IF($Q98<>"P",0,mySWITCH(INT($M98),0,0,0,1,1,2,2,3,2,4,2,5,2,6,2)) -> 0 | T98: P | U98: =IF($T98<>"P",0,pcOfTargetAchieved(ROW(),$M98)) -> 0 | W98: P | X98: =IF($W98<>"P",0,pcOfAdvancedAchieved(ROW(),$M98)) -> 0 | Z98: 0 | AA98: 0 | AB98: 0 | AC98: 0 | AD98: 0 | AE98: 0 | AF98: 0 | AG98: 0 | AH98: 0 | AI98: 0
C99: Data Loss impact assessments | D99: 12e | E99: 0 | F99: ™ | G99: ™ | H99: ™ | I99: ™ | J99: ™ | K99: ™ | L99: ™ | M99: 0 | R99: =IF($Q99<>"P",0,mySWITCH(INT($M99),0,0,0,1,1,2,2,3,2,4,2,5,2,6,2)) -> 0 | T99: P | U99: =IF($T99<>"P",0,pcOfTargetAchieved(ROW(),$M99)) -> 0 | W99: P | X99: =IF($W99<>"P",0,pcOfAdvancedAchieved(ROW(),$M99)) -> 0 | Z99: 0 | AA99: 0 | AB99: 0 | AC99: 0 | AD99: 0 | AE99: 0 | AF99: 0 | AG99: 0 | AH99: 0
C100: BC contingency plan | D100: 12f | E100: 0 | F100: ™ | G100: ™ | H100: ™ | I100: ™ | J100: ™ | K100: ™ | L100: ™ | M100: 0 | R100: =IF($Q100<>"P",0,mySWITCH(INT($M100),0,0,0,1,1,2,2,3,2,4,2,5,2,6,2)) -> 0 | T100: P | U100: =IF($T100<>"P",0,pcOfTargetAchieved(ROW(),$M100)) -> 0 | W100: P | X100: =IF($W100<>"P",0,pcOfAdvancedAchieved(ROW(),$M100)) -> 0 | Z100: 0 | AA100: 0 | AB100: 0 | AC100: 0 | AD100: 0 | AE100: 0 | AF100: 0 | AG100: 0 | AH100: 0
N101: OVERALL TOTALS

Sheet R06
C1: Report 6
C2: Report Date: | D2: 2019-07-11
C3: Assessor: | R3: RAG Status
M5: 5 | O5: ISO 27001 | R5: =myStageTotal(ROW(),COLUMN()) ->  | U5: =myStageTotal(ROW(),COLUMN()) ->  | X5: =myStageTotal(ROW(),COLUMN()) -> 
Z6: =SummaryOfMyColumn(COLUMN()) ->  | AA6: =SummaryOfMyColumn(COLUMN()) -> 
A8: MANAGE | C8: ORGANISATIONAL GOVERNANCE | F8: N/A | G8: 0 | H8: 1 | I8: 2 | J8: 3 | K8: 4 | L8: 5 | M8: Scored | O8: COMMENTS | Q8: Baseline | T8: Target | W8: Advanced | Y8: Scores | Z8: =Lookup!X$6 -> CE | AA8: =Lookup!Y$6 -> PSAP | AB8: =Lookup!Z$6 -> PSN - ITHC | AC8: =Lookup!AA$6 -> PCI-DSS | AD8: =Lookup!AB$6 -> 10 Steps | AE8: =Lookup!AC$6 -> GDPR | AF8: =Lookup!AD$6 -> HMG SPF | AG8: =Lookup!AE$6 -> ISO 27001 | AH8: =Lookup!AF$6 -> NIS - CAF | AI8: =Lookup!V6 -> totals
B9: =INDEX(Lookup!$B$9:$B$100,MATCH(CELL("contents",$C9),Lookup!$E$9:$E$100,0)) -> 1 | C9: Governance framework | D9: =Lookup!F9 -> 2a | E9: 0 | F9: ™ | G9: ™ | H9: ™ | I9: ™ | J9: ™ | K9: ™ | L9: ™ | M9: 0 | Q9: P | R9: =IF($Q9<>"P",0,mySWITCH(INT($M9),0,0,0,1,1,2,2,3,2,4,2,5,2,6,2)) -> 0 | T9: P | U9: =IF($T9<>"P",0,pcOfTargetAchieved(ROW(),$M9)) -> 0 | W9: P | X9: =IF($T9<>"P",0,pcOfTargetAchieved(ROW(),$M9)) -> 0 | Z9: 0 | AA9: 0 | AB9: 0 | AC9: 0 | AD9: 0 | AE9: 0 | AF9: 0 | AG9: 0 | AH9: 0 | AI9: 0
B10: =INDEX(Lookup!$B$9:$B$100,MATCH(CELL("contents",$C10),Lookup!$E$9:$E$100,0)) -> 1 | C10: Leadership & responsibility | D10: =Lookup!F10 -> 2b | E10: 0 | F10: ™ | G10: ™ | H10: ™ | I10: ™ | J10: ™ | K10: ™ | L10: ™ | M10: 0 | Q10: P | R10: =IF($Q10<>"P",0,mySWITCH(INT($M10),0,0,0,1,1,2,2,3,2,4,2,5,2,6,2)) -> 0 | T10: P | U10: =IF($T10<>"P",0,pcOfTargetAchieved(ROW(),$M10)) -> 0 | W10: P | X10: =IF($W10<>"P",0,pcOfAdvancedAchieved(ROW(),$M10)) -> 0 | Z10: 0 | AA10: 0 | AB10: 0 | AC10: 0 | AD10: 0 | AE10: 0 | AF10: 0 | AG10: 0 | AH10: 0 | AI10: 0
B11: =INDEX(Lookup!$B$9:$B$100,MATCH(CELL("contents",$C11),Lookup!$E$9:$E$100,0)) -> 1 | C11: Adoption of assurance standards | D11: =Lookup!F11 -> 2e | E11: 0 | F11: ™ | G11: ™ | H11: ™ | I11: ™ | J11: ™ | K11: ™ | L11: ™ | M11: 0 | Q11: P | R11: =IF($Q11<>"P",0,mySWITCH(INT($M11),0,0,0,1,1,2,2,3,2,4,2,5,2,6,2)) -> 0 | T11: P | U11: =IF($T11<>"P",0,pcOfTargetAchieved(ROW(),$M11)) -> 0 | W11: P | X11: =IF($W11<>"P",0,pcOfAdvancedAchieved(ROW(),$M11)) -> 0 | Z11: 0 | AA11: 0 | AB11: 0 | AC11: 0 | AD11: 0 | AE11: 0 | AF11: 0 | AG11: 0 | AH11: 0 | AI11: 0
B12: =INDEX(Lookup!$B$9:$B$100,MATCH(CELL("contents",$C12),Lookup!$E$9:$E$100,0)) -> 1 | C12: Information Asset Register | D12: =Lookup!F12 -> 2f | E12: 0 | F12: ™ | G12: ™ | H12: ™ | I12: ™ | J12: ™ | K12: ™ | L12: ™ | M12: 0 | Q12: P | R12: =IF($Q12<>"P",0,mySWITCH(INT($M12),0,0,0,1,1,2,2,3,2,4,2,5,2,6,2)) -> 0 | T12: P | U12: =IF($T12<>"P",0,pcOfTargetAchieved(ROW(),$M12)) -> 0 | W12: P | X12: =IF($W12<>"P",0,pcOfAdvancedAchieved(ROW(),$M12)) -> 0 | Z12: 0 | AA12: 0 | AB12: 0 | AC12: 0 | AD12: 0 | AE12: 0 | AF12: 0 | AG12: 0 | AH12: 0 | AI12: 0
B13: =INDEX(Lookup!$B$9:$B$100,MATCH(CELL("contents",$C13),Lookup!$E$9:$E$100,0)) -> 1 | C13: Audit/assurance compliance | D13: =Lookup!F13 -> 2g | E13: 0 | F13: ™ | G13: ™ | H13: ™ | I13: ™ | J13: ™ | K13: ™ | L13: ™ | M13: 0 | Q13: P | R13: =IF($Q13<>"P",0,mySWITCH(INT($M13),0,0,0,1,1,2,2,3,2,4,2,5,2,6,2)) -> 0 | T13: P | U13: =IF($T13<>"P",0,pcOfTargetAchieved(ROW(),$M13)) -> 0 | W13: P | X13: =IF($W13<>"P",0,pcOfAdvancedAchieved(ROW(),$M13)) -> 0 | Z13: 0 | AA13: 0 | AB13: 0 | AC13: 0 | AD13: 0 | AE13: 0 | AF13: 0 | AG13: 0 | AH13: 0 | AI13: 0
C14: RISK MANAGEMENT | G14: 0 | H14: 1 | I14: 2 | J14: 3 | K14: 4 | L14: 5 | O14: COMMENTS | Q14: Baseline | T14: Target | W14: Advanced | Y14: Scores | Z14: =Lookup!X$6 -> CE | AA14: =Lookup!Y$6 -> PSAP | AB14: =Lookup!Z$6 -> PSN - ITHC | AC14: =Lookup!AA$6 -> PCI-DSS | AD14: =Lookup!AB$6 -> 10 Steps | AE14: =Lookup!AC$6 -> GDPR | AF14: =Lookup!AD$6 -> HMG SPF | AG14: =Lookup!AE$6 -> ISO 27001 | AH14: =Lookup!AF$6 -> NIS - CAF | AI14: =Lookup!V6 -> totals
B15: =INDEX(Lookup!$B$9:$B$100,MATCH(CELL("contents",$C15),Lookup!$E$9:$E$100,0)) -> 1 | C15: Risk management policy & process | D15: 11a | E15: 0 | F15: ™ | G15: ™ | H15: ™ | I15: ™ | J15: ™ | K15: ™ | L15: ™ | M15: 0 | Q15: P | R15: =IF($Q15<>"P",0,mySWITCH(INT($M15),0,0,0,1,1,2,2,3,2,4,2,5,2,6,2)) -> 0 | T15: P | U15: =IF($T15<>"P",0,pcOfTargetAchieved(ROW(),$M15)) -> 0 | W15: P | X15: =IF($W15<>"P",0,pcOfAdvancedAchieved(ROW(),$M15)) -> 0 | Z15: 0 | AA15: 0 | AB15: 0 | AC15: 0 | AD15: 0 | AE15: 0 | AF15: 0 | AG15: 0 | AH15: 0 | AI15: 0
B16: =INDEX(Lookup!$B$9:$B$100,MATCH(CELL("contents",$C16),Lookup!$E$9:$E$100,0)) -> 1 | C16: Cyber / Information Risk Assessment | D16: 11b | E16: 0 | F16: ™ | G16: ™ | H16: ™ | I16: ™ | J16: ™ | K16: ™ | L16: ™ | M16: 0 | Q16: P | R16: =IF($Q16<>"P",0,mySWITCH(INT($M16),0,0,0,1,1,2,2,3,2,4,2,5,2,6,2)) -> 0 | T16: P | U16: =IF($T16<>"P",0,pcOfTargetAchieved(ROW(),$M16)) -> 0 | W16: P | X16: =IF($W16<>"P",0,pcOfAdvancedAchieved(ROW(),$M16)) -> 0 | Z16: 0 | AA16: 0 | AB16: 0 | AC16: 0 | AD16: 0 | AE16: 0 | AF16: 0 | AG16: 0 | AH16: 0 | AI16: 0
B17: =INDEX(Lookup!$B$9:$B$100,MATCH(CELL("contents",$C17),Lookup!$E$9:$E$100,0)) -> 1 | C17: Risk treatment & tolerance | D17: 11c | E17: 0 | F17: ™ | G17: ™ | H17: ™ | I17: ™ | J17: ™ | K17: ™ | L17: ™ | M17: 0 | Q17: P | R17: =IF($Q17<>"P",0,mySWITCH(INT($M17),0,0,0,1,1,2,2,3,2,4,2,5,2,6,2)) -> 0 | T17: P | U17: =IF($T17<>"P",0,pcOfTargetAchieved(ROW(),$M17)) -> 0 | W17: P | X17: =IF($W17<>"P",0,pcOfAdvancedAchieved(ROW(),$M17)) -> 0 | Z17: 0 | AA17: 0 | AB17: 0 | AC17: 0 | AD17: 0 | AE17: 0 | AF17: 0 | AG17: 0 | AH17: 0 | AI17: 0
B18: =INDEX(Lookup!$B$9:$B$100,MATCH(CELL("contents",$C18),Lookup!$E$9:$E$100,0)) -> 1 | C18: Risk governance | D18: 11d | E18: 0 | F18: ™ | G18: ™ | H18: ™ | I18: ™ | J18: ™ | K18: ™ | L18: ™ | M18: 0 | Q18: P | R18: =IF($Q18<>"P",0,mySWITCH(INT($M18),0,0,0,1,1,2,2,3,2,4,2,5,2,6,2)) -> 0 | T18: P | U18: =IF($T18<>"P",0,pcOfTargetAchieved(ROW(),$M18)) -> 0 | W18: P | X18: =IF($W18<>"P",0,pcOfAdvancedAchieved(ROW(),$M18)) -> 0 | Z18: 0 | AA18: 0 | AB18: 0 | AC18: 0 | AD18: 0 | AE18: 0 | AF18: 0 | AG18: 0 | AH18: 0 | AI18: 0
C19: SUPPLIER MANAGEMENT | G19: 0 | H19: 1 | I19: 2 | J19: 3 | K19: 4 | L19: 5 | M19: ™ | O19: COMMENTS | Q19: Baseline | T19: Target | W19: Advanced | Y19: Scores | Z19: =Lookup!X$6 -> CE | AA19: =Lookup!Y$6 -> PSAP | AB19: =Lookup!Z$6 -> PSN - ITHC | AC19: =Lookup!AA$6 -> PCI-DSS | AD19: =Lookup!AB$6 -> 10 Steps | AE19: =Lookup!AC$6 -> GDPR | AF19: =Lookup!AD$6 -> HMG SPF | AG19: =Lookup!AE$6 -> ISO 27001 | AH19: =Lookup!AF$6 -> NIS - CAF | AI19: =Lookup!V6 -> totals
B20: =INDEX(Lookup!$B$9:$B$100,MATCH(CELL("contents",$C20),Lookup!$E$9:$E$100,0)) -> 1 | C20: Supply chain security assurance & management | D20: 9a | E20: 0 | F20: ™ | G20: ™ | H20: ™ | I20: ™ | J20: ™ | K20: ™ | L20: ™ | M20: 0 | R20: =IF($Q20<>"P",0,mySWITCH(INT($M20),0,0,0,1,1,2,2,3,2,4,2,5,2,6,2)) -> 0 | T20: P | U20: =IF($T20<>"P",0,pcOfTargetAchieved(ROW(),$M20)) -> 0 | X20: =IF($W20<>"P",0,pcOfAdvancedAchieved(ROW(),$M20)) -> 0 | Z20: 0 | AA20: 0 | AB20: 0 | AC20: 0 | AD20: 0 | AE20: 0 | AF20: 0 | AG20: 0 | AH20: 0 | AI20: 0
B21: =INDEX(Lookup!$B$9:$B$100,MATCH(CELL("contents",$C21),Lookup!$E$9:$E$100,0)) -> 1 | C21: Roles & responsibilities defined | D21: 9b | E21: 0 | F21: ™ | G21: ™ | H21: ™ | I21: ™ | J21: ™ | K21: ™ | L21: ™ | M21: 0 | R21: =IF($Q21<>"P",0,mySWITCH(INT($M21),0,0,0,1,1,2,2,3,2,4,2,5,2,6,2)) -> 0 | T21: P | U21: =IF($T21<>"P",0,pcOfTargetAchieved(ROW(),$M21)) -> 0 | W21: P | X21: =IF($W21<>"P",0,pcOfAdvancedAchieved(ROW(),$M21)) -> 0 | Z21: 0 | AA21: 0 | AB21: 0 | AC21: 0 | AD21: 0 | AE21: 0 | AF21: 0 | AG21: 0 | AH21: 0 | AI21: 0
B22: =INDEX(Lookup!$B$9:$B$100,MATCH(CELL("contents",$C22),Lookup!$E$9:$E$100,0)) -> 1 | C22: Access control | D22: 9c | E22: 0 | F22: ™ | G22: ™ | H22: ™ | I22: ™ | J22: ™ | K22: ™ | L22: ™ | M22: 0 | R22: =IF($Q22<>"P",0,mySWITCH(INT($M22),0,0,0,1,1,2,2,3,2,4,2,5,2,6,2)) -> 0 | U22: =IF($T22<>"P",0,pcOfTargetAchieved(ROW(),$M22)) -> 0 | W22: P | X22: =IF($W22<>"P",0,pcOfAdvancedAchieved(ROW(),$M22)) -> 0 | Z22: 0 | AA22: 0 | AB22: 0 | AC22: 0 | AD22: 0 | AE22: 0 | AF22: 0 | AG22: 0 | AH22: 0 | AI22: 0
B23: =INDEX(Lookup!$B$9:$B$100,MATCH(CELL("contents",$C23),Lookup!$E$9:$E$100,0)) -> 1 | C23: Security in system procurements | D23: 9d | E23: 0 | F23: ™ | G23: ™ | H23: ™ | I23: ™ | J23: ™ | K23: ™ | L23: ™ | M23: 0 | R23: =IF($Q23<>"P",0,mySWITCH(INT($M23),0,0,0,1,1,2,2,3,2,4,2,5,2,6,2)) -> 0 | T23: P | U23: =IF($T23<>"P",0,pcOfTargetAchieved(ROW(),$M23)) -> 0 | W23: P | X23: =IF($W23<>"P",0,pcOfAdvancedAchieved(ROW(),$M23)) -> 0 | Z23: 0 | AA23: 0 | AB23: 0 | AC23: 0 | AD23: 0 | AE23: 0 | AF23: 0 | AG23: 0 | AH23: 0 | AI23: 0
C24: ASSET MANAGEMENT | G24: 0 | H24: 1 | I24: 2 | J24: 3 | K24: 4 | L24: 5 | M24: ™ | O24: COMMENTS | Q24: Baseline | T24: Target | W24: Advanced | Y24: Scores | Z24: =Lookup!X$6 -> CE | AA24: =Lookup!Y$6 -> PSAP | AB24: =Lookup!Z$6 -> PSN - ITHC | AC24: =Lookup!AA$6 -> PCI-DSS | AD24: =Lookup!AB$6 -> 10 Steps | AE24: =Lookup!AC$6 -> GDPR | AF24: =Lookup!AD$6 -> HMG SPF | AG24: =Lookup!AE$6 -> ISO 27001 | AH24: =Lookup!AF$6 -> NIS - CAF | AI24: =Lookup!V6 -> totals
B25: =INDEX(Lookup!$B$9:$B$100,MATCH(CELL("contents",$C25),Lookup!$E$9:$E$100,0)) -> 1 | C25: Hardware assets register & management | D25: =Lookup!$F25 -> 4a | E25: 0 | F25: ™ | G25: ™ | H25: ™ | I25: ™ | J25: ™ | K25: ™ | L25: ™ | M25: 0 | R25: =IF($Q25<>"P",0,mySWITCH(INT($M25),0,0,0,1,1,2,2,3,2,4,2,5,2,6,2)) -> 0 | T25: P | U25: =IF($T25<>"P",0,pcOfTargetAchieved(ROW(),$M25)) -> 0 | W25: P | X25: =IF($W25<>"P",0,pcOfAdvancedAchieved(ROW(),$M25)) -> 0 | Z25: 0 | AA25: 0 | AB25: 0 | AC25: 0 | AD25: 0 | AE25: 0 | AF25: 0 | AG25: 0 | AH25: 0 | AI25: 0
B26: =INDEX(Lookup!$B$9:$B$100,MATCH(CELL("contents",$C26),Lookup!$E$9:$E$100,0)) -> 1 | C26: Software assets register & management | D26: =Lookup!$F26 -> 4b | E26: 0 | F26: ™ | G26: ™ | H26: ™ | I26: ™ | J26: ™ | K26: ™ | L26: ™ | M26: 0 | Q26: P | R26: =IF($Q26<>"P",0,mySWITCH(INT($M26),0,0,0,1,1,2,2,3,2,4,2,5,2,6,2)) -> 0 | T26: P | U26: =IF($T26<>"P",0,pcOfTargetAchieved(ROW(),$M26)) -> 0 | W26: P | X26: =IF($W26<>"P",0,pcOfAdvancedAchieved(ROW(),$M26)) -> 0 | Z26: 0 | AA26: 0 | AB26: 0 | AC26: 0 | AD26: 0 | AE26: 0 | AF26: 0 | AG26: 0 | AH26: 0 | AI26: 0
B27: =INDEX(Lookup!$B$9:$B$100,MATCH(CELL("contents",$C27),Lookup!$E$9:$E$100,0)) -> 1 | C27: Infrastructure management | D27: =Lookup!$F27 -> 4c | E27: 0 | F27: ™ | G27: ™ | H27: ™ | I27: ™ | J27: ™ | K27: ™ | L27: ™ | M27: 0 | R27: =IF($Q27<>"P",0,mySWITCH(INT($M27),0,0,0,1,1,2,2,3,2,4,2,5,2,6,2)) -> 0 | T27: P | U27: =IF($T27<>"P",0,pcOfTargetAchieved(ROW(),$M27)) -> 0 | W27: P | X27: =IF($W27<>"P",0,pcOfAdvancedAchieved(ROW(),$M27)) -> 0 | Z27: 0 | AA27: 0 | AB27: 0 | AC27: 0 | AD27: 0 | AE27: 0 | AF27: 0 | AG27: 0 | AH27: 0 | AI27: 0
A28: PROTECT | C28: INFORMATION SECURITY MANAGEMENT | G28: 0 | H28: 1 | I28: 2 | J28: 3 | K28: 4 | L28: 5 | M28: ™ | O28: COMMENTS | Q28: Baseline | T28: Target | W28: Advanced | Y28: Scores | Z28: =Lookup!X$6 -> CE | AA28: =Lookup!Y$6 -> PSAP | AB28: =Lookup!Z$6 -> PSN - ITHC | AC28: =Lookup!AA$6 -> PCI-DSS | AD28: =Lookup!AB$6 -> 10 Steps | AE28: =Lookup!AC$6 -> GDPR | AF28: =Lookup!AD$6 -> HMG SPF | AG28: =Lookup!AE$6 -> ISO 27001 | AH28: =Lookup!AF$6 -> NIS - CAF | AI28: =Lookup!V6 -> totals
B29: =INDEX(Lookup!$B$9:$B$100,MATCH(CELL("contents",$C29),Lookup!$E$9:$E$100,0)) -> 2 | C29: Security policy & processes | D29: 1a | E29: 0 | F29: ™ | G29: ™ | H29: ™ | I29: ™ | J29: ™ | K29: ™ | L29: ™ | M29: 0 | R29: =IF($Q29<>"P",0,mySWITCH(INT($M29),0,0,0,1,1,2,2,3,2,4,2,5,2,6,2)) -> 0 | T29: P | U29: =IF($T29<>"P",0,pcOfTargetAchieved(ROW(),$M29)) -> 0 | W29: P | X29: =IF($W29<>"P",0,pcOfAdvancedAchieved(ROW(),$M29)) -> 0 | Z29: 0 | AA29: 0 | AB29: 0 | AC29: 0 | AD29: 0 | AE29: 0 | AF29: 0 | AG29: 0 | AH29: 0 | AI29: 0
B30: =INDEX(Lookup!$B$9:$B$100,MATCH(CELL("contents",$C30),Lookup!$E$9:$E$100,0)) -> 2 | C30: Lifecycle management | D30: 1b | E30: 0 | F30: ™ | G30: ™ | H30: ™ | I30: ™ | J30: ™ | K30: ™ | L30: ™ | M30: 0 | R30: =IF($Q30<>"P",0,mySWITCH(INT($M30),0,0,0,1,1,2,2,3,2,4,2,5,2,6,2)) -> 0 | T30: P | U30: =IF($T30<>"P",0,pcOfTargetAchieved(ROW(),$M30)) -> 0 | W30: P | X30: =IF($W30<>"P",0,pcOfAdvancedAchieved(ROW(),$M30)) -> 0 | Z30: 0 | AA30: 0 | AB30: 0 | AC30: 0 | AD30: 0 | AE30: 0 | AF30: 0 | AG30: 0 | AH30: 0 | AI30: 0
C31: Storage | D31: 1c | E31: 0 | F31: ™ | G31: ™ | H31: ™ | I31: ™ | J31: ™ | K31: ™ | L31: ™ | M31: 0 | R31: =IF($Q31<>"P",0,mySWITCH(INT($M31),0,0,0,1,1,2,2,3,2,4,2,5,2,6,2)) -> 0 | T31: P | U31: =IF($T31<>"P",0,pcOfTargetAchieved(ROW(),$M31)) -> 0 | W31: P | X31: =IF($W31<>"P",0,pcOfAdvancedAchieved(ROW(),$M31)) -> 0 | Z31: 0 | AA31: 0 | AB31: 0 | AC31: 0 | AD31: 0 | AE31: 0 | AF31: 0 | AG31: 0 | AH31: 0
C32: Information/data classification | D32: 1f | E32: 0 | F32: ™ | G32: ™ | H32: ™ | I32: ™ | J32: ™ | K32: ™ | L32: ™ | M32: 0 | R32: =IF($Q32<>"P",0,mySWITCH(INT($M32),0,0,0,1,1,2,2,3,2,4,2,5,2,6,2)) -> 0 | T32: P | U32: =IF($T32<>"P",0,pcOfTargetAchieved(ROW(),$M32)) -> 0 | W32: P | X32: =IF($W32<>"P",0,pcOfAdvancedAchieved(ROW(),$M32)) -> 0 | Z32: 0 | AA32: 0 | AB32: 0 | AC32: 0 | AD32: 0 | AE32: 0 | AF32: 0 | AG32: 0 | AH32: 0 | AI32: 0
C33: Information assets register | D33: 1g | E33: 0 | F33: ™ | G33: ™ | H33: ™ | I33: ™ | J33: ™ | K33: ™ | L33: ™ | M33: 0 | R33: =IF($Q33<>"P",0,mySWITCH(INT($M33),0,0,0,1,1,2,2,3,2,4,2,5,2,6,2)) -> 0 | T33: P | U33: =IF($T33<>"P",0,pcOfTargetAchieved(ROW(),$M33)) -> 0 | W33: P | X33: =IF($W33<>"P",0,pcOfAdvancedAchieved(ROW(),$M33)) -> 0 | Z33: 0 | AA33: 0 | AB33: 0 | AC33: 0 | AD33: 0 | AE33: 0 | AF33: 0 | AG33: 0 | AH33: 0
C34: Information/data transfer controls | D34: 1h | E34: 0 | F34: ™ | G34: ™ | H34: ™ | I34: ™ | J34: ™ | K34: ™ | L34: ™ | M34: 0 | R34: =IF($Q34<>"P",0,mySWITCH(INT($M34),0,0,0,1,1,2,2,3,2,4,2,5,2,6,2)) -> 0 | T34: P | U34: =IF($T34<>"P",0,pcOfTargetAchieved(ROW(),$M34)) -> 0 | W34: P | X34: =IF($W34<>"P",0,pcOfAdvancedAchieved(ROW(),$M34)) -> 0 | Z34: 0 | AA34: 0 | AB34: 0 | AC34: 0 | AD34: 0 | AE34: 0 | AF34: 0 | AG34: 0 | AH34: 0
C35: PEOPLE | G35: 0 | H35: 1 | I35: 2 | J35: 3 | K35: 4 | L35: 5 | M35: ™ | O35: COMMENTS | Q35: Baseline | T35: Target | W35: Advanced | Y35: Scores | Z35: =Lookup!X$6 -> CE | AA35: =Lookup!Y$6 -> PSAP | AB35: =Lookup!Z$6 -> PSN - ITHC | AC35: =Lookup!AA$6 -> PCI-DSS | AD35: =Lookup!AB$6 -> 10 Steps | AE35: =Lookup!AC$6 -> GDPR | AF35: =Lookup!AD$6 -> HMG SPF | AG35: =Lookup!AE$6 -> ISO 27001 | AH35: =Lookup!AF$6 -> NIS - CAF | AI35: =Lookup!V6 -> totals
C36: Prior to employment | D36: 13a | E36: 0 | F36: ™ | G36: ™ | H36: ™ | I36: ™ | J36: ™ | K36: ™ | L36: ™ | M36: 0 | R36: =IF($Q36<>"P",0,mySWITCH(INT($M36),0,0,0,1,1,2,2,3,2,4,2,5,2,6,2)) -> 0 | T36: P | U36: =IF($T36<>"P",0,pcOfTargetAchieved(ROW(),$M36)) -> 0 | W36: P | X36: =IF($W36<>"P",0,pcOfAdvancedAchieved(ROW(),$M36)) -> 0 | Z36: 0 | AA36: 0 | AB36: 0 | AC36: 0 | AD36: 0 | AE36: 0 | AF36: 0 | AG36: 0 | AH36: 0
B37: =INDEX(Lookup!$B$9:$B$100,MATCH(CELL("contents",$C37),Lookup!$E$9:$E$100,0)) -> 2 | C37: During employment | D37: 13d | E37: 0 | F37: ™ | G37: ™ | H37: ™ | I37: ™ | J37: ™ | K37: ™ | L37: ™ | M37: 0 | R37: =IF($Q37<>"P",0,mySWITCH(INT($M37),0,0,0,1,1,2,2,3,2,4,2,5,2,6,2)) -> 0 | T37: P | U37: =IF($T37<>"P",0,pcOfTargetAchieved(ROW(),$M37)) -> 0 | W37: P | X37: =IF($W37<>"P",0,pcOfAdvancedAchieved(ROW(),$M37)) -> 0 | Z37: 0 | AA37: 0 | AB37: 0 | AC37: 0 | AD37: 0 | AE37: 0 | AF37: 0 | AG37: 0 | AH37: 0
C38: Staff training & awareness culture | D38: 13i | E38: 0 | F38: ™ | G38: ™ | H38: ™ | I38: ™ | J38: ™ | K38: ™ | L38: ™ | M38: 0 | Q38: P | R38: =IF($Q38<>"P",0,mySWITCH(INT($M38),0,0,0,1,1,2,2,3,2,4,2,5,2,6,2)) -> 0 | T38: P | U38: =IF($T38<>"P",0,pcOfTargetAchieved(ROW(),$M38)) -> 0 | W38: P | X38: =IF($W38<>"P",0,pcOfAdvancedAchieved(ROW(),$M38)) -> 0 | Z38: 0 | AA38: 0 | AB38: 0 | AC38: 0 | AD38: 0 | AE38: 0 | AF38: 0 | AG38: 0 | AH38: 0
C39: Staff skills assessment | D39: 13j | E39: 0 | F39: ™ | G39: ™ | H39: ™ | I39: ™ | J39: ™ | K39: ™ | L39: ™ | M39: 0 | R39: =IF($Q39<>"P",0,mySWITCH(INT($M39),0,0,0,1,1,2,2,3,2,4,2,5,2,6,2)) -> 0 | T39: P | U39: =IF($T39<>"P",0,pcOfTargetAchieved(ROW(),$M39)) -> 0 | W39: P | X39: =IF($W39<>"P",0,pcOfAdvancedAchieved(ROW(),$M39)) -> 0 | Z39: 0 | AA39: 0 | AB39: 0 | AC39: 0 | AD39: 0 | AE39: 0 | AF39: 0 | AG39: 0 | AH39: 0
C40: Mobile/remote working policy | D40: 13o | E40: 0 | F40: ™ | G40: ™ | H40: ™ | I40: ™ | J40: ™ | K40: ™ | L40: ™ | M40: 0 | R40: =IF($Q40<>"P",0,mySWITCH(INT($M40),0,0,0,1,1,2,2,3,2,4,2,5,2,6,2)) -> 0 | T40: P | U40: =IF($T40<>"P",0,pcOfTargetAchieved(ROW(),$M40)) -> 0 | W40: P | X40: =IF($W40<>"P",0,pcOfAdvancedAchieved(ROW(),$M40)) -> 0 | Z40: 0 | AA40: 0 | AB40: 0 | AC40: 0 | AD40: 0 | AE40: 0 | AF40: 0 | AG40: 0 | AH40: 0
C41: SERVICES RESILIENCE | G41: 0 | H41: 1 | I41: 2 | J41: 3 | K41: 4 | L41: 5 | M41: ™ | O41: COMMENTS | Q41: Baseline | T41: Target | W41: Advanced | Y41: Scores | Z41: =Lookup!X$6 -> CE | AA41: =Lookup!Y$6 -> PSAP | AB41: =Lookup!Z$6 -> PSN - ITHC | AC41: =Lookup!AA$6 -> PCI-DSS | AD41: =Lookup!AB$6 -> 10 Steps | AE41: =Lookup!AC$6 -> GDPR | AF41: =Lookup!AD$6 -> HMG SPF | AG41: =Lookup!AE$6 -> ISO 27001 | AH41: =Lookup!AF$6 -> NIS - CAF | AI41: =Lookup!V6 -> totals
C42: Services Resilience | D42: 17a | E42: 0 | F42: ™ | G42: ™ | H42: ™ | I42: ™ | J42: ™ | K42: ™ | L42: ™ | M42: 0 | R42: =IF($Q42<>"P",0,mySWITCH(INT($M42),0,0,0,1,1,2,2,3,2,4,2,5,2,6,2)) -> 0 | T42: P | U42: =IF($T42<>"P",0,pcOfTargetAchieved(ROW(),$M42)) -> 0 | W42: P | X42: =IF($W42<>"P",0,pcOfAdvancedAchieved(ROW(),$M42)) -> 0 | Z42: 0 | AA42: 0 | AB42: 0 | AC42: 0 | AD42: 0 | AE42: 0 | AF42: 0 | AG42: 0 | AH42: 0
C43: ACCESS CONTROL | G43: 0 | H43: 1 | I43: 2 | J43: 3 | K43: 4 | L43: 5 | M43: ™ | O43: COMMENTS | Q43: Baseline | T43: Target | W43: Advanced | Y43: Scores | Z43: =Lookup!X$6 -> CE | AA43: =Lookup!Y$6 -> PSAP | AB43: =Lookup!Z$6 -> PSN - ITHC | AC43: =Lookup!AA$6 -> PCI-DSS | AD43: =Lookup!AB$6 -> 10 Steps | AE43: =Lookup!AC$6 -> GDPR | AF43: =Lookup!AD$6 -> HMG SPF | AG43: =Lookup!AE$6 -> ISO 27001 | AH43: =Lookup!AF$6 -> NIS - CAF | AI43: =Lookup!V6 -> totals
C44: Account management | D44: 3a | E44: 0 | F44: ™ | G44: ™ | H44: ™ | I44: ™ | J44: ™ | K44: ™ | L44: ™ | M44: 0 | Q44: P | R44: =IF($Q44<>"P",0,mySWITCH(INT($M44),0,0,0,1,1,2,2,3,2,4,2,5,2,6,2)) -> 0 | T44: P | U44: =IF($T44<>"P",0,pcOfTargetAchieved(ROW(),$M44)) -> 0 | X44: =IF($W44<>"P",0,pcOfAdvancedAchieved(ROW(),$M44)) -> 0 | Z44: 0 | AA44: 0 | AB44: 0 | AC44: 0 | AD44: 0 | AE44: 0 | AF44: 0 | AG44: 0 | AH44: 0
B45: =INDEX(Lookup!$B$9:$B$100,MATCH(CELL("contents",$C45),Lookup!$E$9:$E$100,0)) -> 2 | C45: Identity authentication | D45: 3b | E45: 0 | F45: ™ | G45: ™ | H45: ™ | I45: ™ | J45: ™ | K45: ™ | L45: ™ | M45: 0 | Q45: P | R45: =IF($Q45<>"P",0,mySWITCH(INT($M45),0,0,0,1,1,2,2,3,2,4,2,5,2,6,2)) -> 0 | T45: P | U45: =IF($T45<>"P",0,pcOfTargetAchieved(ROW(),$M45)) -> 0 | W45: P | X45: =IF($W45<>"P",0,pcOfAdvancedAchieved(ROW(),$M45)) -> 0 | Z45: 0 | AA45: 0 | AB45: 0 | AC45: 0 | AD45: 0 | AE45: 0 | AF45: 0 | AG45: 0 | AH45: 0
B46: =INDEX(Lookup!$B$9:$B$100,MATCH(CELL("contents",$C46),Lookup!$E$9:$E$100,0)) -> 2 | C46: Privilege management | D46: 3e | E46: 0 | F46: ™ | G46: ™ | H46: ™ | I46: ™ | J46: ™ | K46: ™ | L46: ™ | M46: 0 | Q46: P | R46: =IF($Q46<>"P",0,mySWITCH(INT($M46),0,0,0,1,1,2,2,3,2,4,2,5,2,6,2)) -> 0 | T46: P | U46: =IF($T46<>"P",0,pcOfTargetAchieved(ROW(),$M46)) -> 0 | W46: P | X46: =IF($W46<>"P",0,pcOfAdvancedAchieved(ROW(),$M46)) -> 0 | Z46: 0 | AA46: 0 | AB46: 0 | AC46: 0 | AD46: 0 | AE46: 0 | AF46: 0 | AG46: 0 | AH46: 0
B47: =INDEX(Lookup!$B$9:$B$100,MATCH(CELL("contents",$C47),Lookup!$E$9:$E$100,0)) -> 2 | C47: Administrator account management | D47: 3f | E47: 0 | F47: ™ | G47: ™ | H47: ™ | I47: ™ | J47: ™ | K47: ™ | L47: ™ | M47: 0 | Q47: P | R47: =IF($Q47<>"P",0,mySWITCH(INT($M47),0,0,0,1,1,2,2,3,2,4,2,5,2,6,2)) -> 0 | T47: P | U47: =IF($T47<>"P",0,pcOfTargetAchieved(ROW(),$M47)) -> 0 | W47: P | X47: =IF($W47<>"P",0,pcOfAdvancedAchieved(ROW(),$M47)) -> 0 | Z47: 0 | AA47: 0 | AB47: 0 | AC47: 0 | AD47: 0 | AE47: 0 | AF47: 0 | AG47: 0 | AH47: 0
C48: MEDIA MANAGEMENT | G48: 0 | H48: 1 | I48: 2 | J48: 3 | K48: 4 | L48: 5 | M48: ™ | O48: COMMENTS | Q48: Baseline | T48: Target | W48: Advanced | Y48: Scores | Z48: =Lookup!X$6 -> CE | AA48: =Lookup!Y$6 -> PSAP | AB48: =Lookup!Z$6 -> PSN - ITHC | AC48: =Lookup!AA$6 -> PCI-DSS | AD48: =Lookup!AB$6 -> 10 Steps | AE48: =Lookup!AC$6 -> GDPR | AF48: =Lookup!AD$6 -> HMG SPF | AG48: =Lookup!AE$6 -> ISO 27001 | AH48: =Lookup!AF$6 -> NIS - CAF | AI48: =Lookup!V6 -> totals
C49: Storage media management | D49: 14a | E49: 0 | F49: ™ | G49: ™ | H49: ™ | I49: ™ | J49: ™ | K49: ™ | L49: ™ | M49: 0 | R49: =IF($Q49<>"P",0,mySWITCH(INT($M49),0,0,0,1,1,2,2,3,2,4,2,5,2,6,2)) -> 0 | T49: P | U49: =IF($T49<>"P",0,pcOfTargetAchieved(ROW(),$M49)) -> 0 | W49: P | X49: =IF($W49<>"P",0,pcOfAdvancedAchieved(ROW(),$M49)) -> 0 | Z49: 0 | AA49: 0 | AB49: 0 | AC49: 0 | AD49: 0 | AE49: 0 | AF49: 0 | AG49: 0 | AH49: 0
B50: =INDEX(Lookup!$B$9:$B$100,MATCH(CELL("contents",$C50),Lookup!$E$9:$E$100,0)) -> 2 | C50: Mobile media/devices | D50: 14b | E50: 0 | F50: ™ | G50: ™ | H50: ™ | I50: ™ | J50: ™ | K50: ™ | L50: ™ | M50: 0 | R50: =IF($Q50<>"P",0,mySWITCH(INT($M50),0,0,0,1,1,2,2,3,2,4,2,5,2,6,2)) -> 0 | T50: P | U50: =IF($T50<>"P",0,pcOfTargetAchieved(ROW(),$M50)) -> 0 | W50: P | X50: =IF($W50<>"P",0,pcOfAdvancedAchieved(ROW(),$M50)) -> 0 | Z50: 0 | AA50: 0 | AB50: 0 | AC50: 0 | AD50: 0 | AE50: 0 | AF50: 0 | AG50: 0 | AH50: 0
B51: =INDEX(Lookup!$B$9:$B$100,MATCH(CELL("contents",$C51),Lookup!$E$9:$E$100,0)) -> 2 | C51: Cryptography | D51: 14c | E51: 0 | F51: ™ | G51: ™ | H51: ™ | I51: ™ | J51: ™ | K51: ™ | L51: ™ | M51: 0 | R51: =IF($Q51<>"P",0,mySWITCH(INT($M51),0,0,0,1,1,2,2,3,2,4,2,5,2,6,2)) -> 0 | T51: P | U51: =IF($T51<>"P",0,pcOfTargetAchieved(ROW(),$M51)) -> 0 | W51: P | X51: =IF($W51<>"P",0,pcOfAdvancedAchieved(ROW(),$M51)) -> 0 | Z51: 0 | AA51: 0 | AB51: 0 | AC51: 0 | AD51: 0 | AE51: 0 | AF51: 0 | AG51: 0 | AH51: 0
B52: =INDEX(Lookup!$B$9:$B$100,MATCH(CELL("contents",$C52),Lookup!$E$9:$E$100,0)) -> 2 | C52: Remote wipe capability | D52: 14d | E52: 0 | F52: ™ | G52: ™ | H52: ™ | I52: ™ | J52: ™ | K52: ™ | L52: ™ | M52: 0 | R52: =IF($Q52<>"P",0,mySWITCH(INT($M52),0,0,0,1,1,2,2,3,2,4,2,5,2,6,2)) -> 0 | T52: P | U52: =IF($T52<>"P",0,pcOfTargetAchieved(ROW(),$M52)) -> 0 | X52: =IF($W52<>"P",0,pcOfAdvancedAchieved(ROW(),$M52)) -> 0 | Z52: 0 | AA52: 0 | AB52: 0 | AC52: 0 | AD52: 0 | AE52: 0 | AF52: 0 | AG52: 0 | AH52: 0
C53: ENVIRONMENTAL SECURITY | G53: 0 | H53: 1 | I53: 2 | J53: 3 | K53: 4 | L53: 5 | M53: ™ | O53: COMMENTS | Q53: Baseline | T53: Target | W53: Advanced | Y53: Scores | Z53: =Lookup!X$6 -> CE | AA53: =Lookup!Y$6 -> PSAP | AB53: =Lookup!Z$6 -> PSN - ITHC | AC53: =Lookup!AA$6 -> PCI-DSS | AD53: =Lookup!AB$6 -> 10 Steps | AE53: =Lookup!AC$6 -> GDPR | AF53: =Lookup!AD$6 -> HMG SPF | AG53: =Lookup!AE$6 -> ISO 27001 | AH53: =Lookup!AF$6 -> NIS - CAF | AI53: =Lookup!V6 -> totals
C54: Equipment location | D54: 15a | E54: 0 | F54: ™ | G54: ™ | H54: ™ | I54: ™ | J54: ™ | K54: ™ | L54: ™ | M54: 0 | R54: =IF($Q54<>"P",0,mySWITCH(INT($M54),0,0,0,1,1,2,2,3,2,4,2,5,2,6,2)) -> 0 | U54: =IF($T54<>"P",0,pcOfTargetAchieved(ROW(),$M54)) -> 0 | W54: P | X54: =IF($W54<>"P",0,pcOfAdvancedAchieved(ROW(),$M54)) -> 0 | Z54: 0 | AA54: 0 | AB54: 0 | AC54: 0 | AD54: 0 | AE54: 0 | AF54: 0 | AG54: 0 | AH54: 0
B55: =INDEX(Lookup!$B$9:$B$100,MATCH(CELL("contents",$C55),Lookup!$E$9:$E$100,0)) -> 2 | C55: Power resilience | D55: 15b | E55: 0 | F55: ™ | G55: ™ | H55: ™ | I55: ™ | J55: ™ | K55: ™ | L55: ™ | M55: 0 | R55: =IF($Q55<>"P",0,mySWITCH(INT($M55),0,0,0,1,1,2,2,3,2,4,2,5,2,6,2)) -> 0 | U55: =IF($T55<>"P",0,pcOfTargetAchieved(ROW(),$M55)) -> 0 | W55: P | X55: =IF($W55<>"P",0,pcOfAdvancedAchieved(ROW(),$M55)) -> 0 | Z55: 0 | AA55: 0 | AB55: 0 | AC55: 0 | AD55: 0 | AE55: 0 | AF55: 0 | AG55: 0 | AH55: 0
C56: PHYSICAL/BUILDING SECURITY | G56: 0 | H56: 1 | I56: 2 | J56: 3 | K56: 4 | L56: 5 | M56: ™ | O56: COMMENTS | Q56: Baseline | T56: Target | W56: Advanced | Y56: Scores | Z56: =Lookup!X$6 -> CE | AA56: =Lookup!Y$6 -> PSAP | AB56: =Lookup!Z$6 -> PSN - ITHC | AC56: =Lookup!AA$6 -> PCI-DSS | AD56: =Lookup!AB$6 -> 10 Steps | AE56: =Lookup!AC$6 -> GDPR | AF56: =Lookup!AD$6 -> HMG SPF | AG56: =Lookup!AE$6 -> ISO 27001 | AH56: =Lookup!AF$6 -> NIS - CAF | AI56: =Lookup!V6 -> totals
C57: Access control | D57: 5a | E57: 0 | F57: ™ | G57: ™ | H57: ™ | I57: ™ | J57: ™ | K57: ™ | L57: ™ | M57: 0 | R57: =IF($Q57<>"P",0,mySWITCH(INT($M57),0,0,0,1,1,2,2,3,2,4,2,5,2,6,2)) -> 0 | T57: P | U57: =IF($T57<>"P",0,pcOfTargetAchieved(ROW(),$M57)) -> 0 | W57: P | X57: =IF($W57<>"P",0,pcOfAdvancedAchieved(ROW(),$M57)) -> 0 | Z57: 0 | AA57: 0 | AB57: 0 | AC57: 0 | AD57: 0 | AE57: 0 | AF57: 0 | AG57: 0 | AH57: 0
B58: =INDEX(Lookup!$B$9:$B$100,MATCH(CELL("contents",$C58),Lookup!$E$9:$E$100,0)) -> 2 | C58: Internal security | D58: 5b | E58: 0 | F58: ™ | G58: ™ | H58: ™ | I58: ™ | J58: ™ | K58: ™ | L58: ™ | M58: 0 | R58: =IF($Q58<>"P",0,mySWITCH(INT($M58),0,0,0,1,1,2,2,3,2,4,2,5,2,6,2)) -> 0 | T58: P | U58: =IF($T58<>"P",0,pcOfTargetAchieved(ROW(),$M58)) -> 0 | W58: P | X58: =IF($W58<>"P",0,pcOfAdvancedAchieved(ROW(),$M58)) -> 0 | Z58: 0 | AA58: 0 | AB58: 0 | AC58: 0 | AD58: 0 | AE58: 0 | AF58: 0 | AG58: 0 | AH58: 0
C59: SYSTEM MANAGEMENT | G59: 0 | H59: 1 | I59: 2 | J59: 3 | K59: 4 | L59: 5 | M59: ™ | O59: COMMENTS | Q59: Baseline | T59: Target | W59: Advanced | Y59: Scores | Z59: =Lookup!X$6 -> CE | AA59: =Lookup!Y$6 -> PSAP | AB59: =Lookup!Z$6 -> PSN - ITHC | AC59: =Lookup!AA$6 -> PCI-DSS | AD59: =Lookup!AB$6 -> 10 Steps | AE59: =Lookup!AC$6 -> GDPR | AF59: =Lookup!AD$6 -> HMG SPF | AG59: =Lookup!AE$6 -> ISO 27001 | AH59: =Lookup!AF$6 -> NIS - CAF | AI59: =Lookup!V6 -> totals
C60: Secure configuration | D60: 6c | E60: 0 | F60: ™ | G60: ™ | H60: ™ | I60: ™ | J60: ™ | K60: ™ | L60: ™ | M60: 0 | Q60: P | R60: =IF($Q60<>"P",0,mySWITCH(INT($M60),0,0,0,1,1,2,2,3,2,4,2,5,2,6,2)) -> 0 | T60: P | U60: =IF($T60<>"P",0,pcOfTargetAchieved(ROW(),$M60)) -> 0 | W60: P | X60: =IF($W60<>"P",0,pcOfAdvancedAchieved(ROW(),$M60)) -> 0 | Z60: 0 | AA60: 0 | AB60: 0 | AC60: 0 | AD60: 0 | AE60: 0 | AF60: 0 | AG60: 0 | AH60: 0
B61: =INDEX(Lookup!$B$9:$B$100,MATCH(CELL("contents",$C61),Lookup!$E$9:$E$100,0)) -> 2 | C61: Secure design/development | D61: 6d | E61: 0 | F61: ™ | G61: ™ | H61: ™ | I61: ™ | J61: ™ | K61: ™ | L61: ™ | M61: 0 | R61: =IF($Q61<>"P",0,mySWITCH(INT($M61),0,0,0,1,1,2,2,3,2,4,2,5,2,6,2)) -> 0 | T61: P | U61: =IF($T61<>"P",0,pcOfTargetAchieved(ROW(),$M61)) -> 0 | W61: P | X61: =IF($W61<>"P",0,pcOfAdvancedAchieved(ROW(),$M61)) -> 0 | Z61: 0 | AA61: 0 | AB61: 0 | AC61: 0 | AD61: 0 | AE61: 0 | AF61: 0 | AG61: 0 | AH61: 0 | AI61: 0
B62: =INDEX(Lookup!$B$9:$B$100,MATCH(CELL("contents",$C62),Lookup!$E$9:$E$100,0)) -> 2 | C62: Change control procedures | D62: 6e | E62: 0 | F62: ™ | G62: ™ | H62: ™ | I62: ™ | J62: ™ | K62: ™ | L62: ™ | M62: 0 | R62: =IF($Q62<>"P",0,mySWITCH(INT($M62),0,0,0,1,1,2,2,3,2,4,2,5,2,6,2)) -> 0 | T62: P | U62: =IF($T62<>"P",0,pcOfTargetAchieved(ROW(),$M62)) -> 0 | W62: P | X62: =IF($W62<>"P",0,pcOfAdvancedAchieved(ROW(),$M62)) -> 0 | Z62: 0 | AA62: 0 | AB62: 0 | AC62: 0 | AD62: 0 | AE62: 0 | AF62: 0 | AG62: 0 | AH62: 0
B63: =INDEX(Lookup!$B$9:$B$100,MATCH(CELL("contents",$C63),Lookup!$E$9:$E$100,0)) -> 2 | C63: System Testing | D63: 6f | E63: 0 | F63: ™ | G63: ™ | H63: ™ | I63: ™ | J63: ™ | K63: ™ | L63: ™ | M63: 0 | R63: =IF($Q63<>"P",0,mySWITCH(INT($M63),0,0,0,1,1,2,2,3,2,4,2,5,2,6,2)) -> 0 | T63: P | U63: =IF($T63<>"P",0,pcOfTargetAchieved(ROW(),$M63)) -> 0 | W63: P | X63: =IF($W63<>"P",0,pcOfAdvancedAchieved(ROW(),$M63)) -> 0 | Z63: 0 | AA63: 0 | AB63: 0 | AC63: 0 | AD63: 0 | AE63: 0 | AF63: 0 | AG63: 0 | AH63: 0
C64: OPERATIONAL SECURITY | G64: 0 | H64: 1 | I64: 2 | J64: 3 | K64: 4 | L64: 5 | M64: ™ | O64: COMMENTS | Q64: Baseline | T64: Target | W64: Advanced | Z64: =Lookup!X$6 -> CE | AA64: =Lookup!Y$6 -> PSAP | AB64: =Lookup!Z$6 -> PSN - ITHC | AC64: =Lookup!AA$6 -> PCI-DSS | AD64: =Lookup!AB$6 -> 10 Steps | AE64: =Lookup!AC$6 -> GDPR | AF64: =Lookup!AD$6 -> HMG SPF | AG64: =Lookup!AE$6 -> ISO 27001 | AH64: =Lookup!AF$6 -> NIS - CAF | AI64: =Lookup!V6 -> totals
C65: Malware policies & protection | D65: 7a | E65: 0 | F65: ™ | G65: ™ | H65: ™ | I65: ™ | J65: ™ | K65: ™ | L65: ™ | M65: 0 | Q65: P | R65: =IF($Q65<>"P",0,mySWITCH(INT($M65),0,0,0,1,1,2,2,3,2,4,2,5,2,6,2)) -> 0 | T65: P | U65: =IF($T65<>"P",0,pcOfTargetAchieved(ROW(),$M65)) -> 0 | X65: =IF($W65<>"P",0,pcOfAdvancedAchieved(ROW(),$M65)) -> 0 | Z65: 0 | AA65: 0 | AB65: 0 | AC65: 0 | AD65: 0 | AE65: 0 | AF65: 0 | AG65: 0 | AH65: 0
B66: =INDEX(Lookup!$B$9:$B$100,MATCH(CELL("contents",$C66),Lookup!$E$9:$E$100,0)) -> 2 | C66: Email security | D66: 7e | E66: 0 | F66: ™ | G66: ™ | H66: ™ | I66: ™ | J66: ™ | K66: ™ | L66: ™ | M66: 0 | Q66: P | R66: =IF($Q66<>"P",0,mySWITCH(INT($M66),0,0,0,1,1,2,2,3,2,4,2,5,2,6,2)) -> 0 | T66: P | U66: =IF($T66<>"P",0,pcOfTargetAchieved(ROW(),$M66)) -> 0 | X66: =IF($W66<>"P",0,pcOfAdvancedAchieved(ROW(),$M66)) -> 0 | Z66: 0 | AA66: 0 | AB66: 0 | AC66: 0 | AD66: 0 | AE66: 0 | AF66: 0 | AG66: 0 | AH66: 0
B67: =INDEX(Lookup!$B$9:$B$100,MATCH(CELL("contents",$C67),Lookup!$E$9:$E$100,0)) -> 2 | C67: Application security | D67: 7f | E67: 0 | F67: ™ | G67: ™ | H67: ™ | I67: ™ | J67: ™ | K67: ™ | L67: ™ | M67: 0 | Q67: P | R67: =IF($Q67<>"P",0,mySWITCH(INT($M67),0,0,0,1,1,2,2,3,2,4,2,5,2,6,2)) -> 0 | T67: P | U67: =IF($T67<>"P",0,pcOfTargetAchieved(ROW(),$M67)) -> 0 | X67: =IF($W67<>"P",0,pcOfAdvancedAchieved(ROW(),$M67)) -> 0 | Z67: 0 | AA67: 0 | AB67: 0 | AC67: 0 | AD67: 0 | AE67: 0 | AF67: 0 | AG67: 0 | AH67: 0
B68: =INDEX(Lookup!$B$9:$B$100,MATCH(CELL("contents",$C68),Lookup!$E$9:$E$100,0)) -> 2 | C68: Vulnerability management & scanning | D68: 7h | E68: 0 | F68: ™ | G68: ™ | H68: ™ | I68: ™ | J68: ™ | K68: ™ | L68: ™ | M68: 0 | Q68: P | R68: =IF($Q68<>"P",0,mySWITCH(INT($M68),0,0,0,1,1,2,2,3,2,4,2,5,2,6,2)) -> 0 | T68: P | U68: =IF($T68<>"P",0,pcOfTargetAchieved(ROW(),$M68)) -> 0 | W68: P | X68: =IF($W68<>"P",0,pcOfAdvancedAchieved(ROW(),$M68)) -> 0 | Z68: 0 | AA68: 0 | AB68: 0 | AC68: 0 | AD68: 0 | AE68: 0 | AF68: 0 | AG68: 0 | AH68: 0
B69: =INDEX(Lookup!$B$9:$B$100,MATCH(CELL("contents",$C69),Lookup!$E$9:$E$100,0)) -> 2 | C69: Data exfiltration monitoring | D69: 7k | E69: 0 | F69: ™ | G69: ™ | H69: ™ | I69: ™ | J69: ™ | K69: ™ | L69: ™ | M69: 0 | R69: =IF($Q69<>"P",0,mySWITCH(INT($M69),0,0,0,1,1,2,2,3,2,4,2,5,2,6,2)) -> 0 | T69: P | U69: =IF($T69<>"P",0,pcOfTargetAchieved(ROW(),$M69)) -> 0 | X69: =IF($W69<>"P",0,pcOfAdvancedAchieved(ROW(),$M69)) -> 0 | Z69: 0 | AA69: 0 | AB69: 0 | AC69: 0 | AD69: 0 | AE69: 0 | AF69: 0 | AG69: 0 | AH69: 0 | AI69: 0
B70: =INDEX(Lookup!$B$9:$B$100,MATCH(CELL("contents",$C70),Lookup!$E$9:$E$100,0)) -> 2 | C70: Software supported & updated | D70: 7l | E70: 0 | F70: ™ | G70: ™ | H70: ™ | I70: ™ | J70: ™ | K70: ™ | L70: ™ | M70: 0 | Q70: P | R70: =IF($Q70<>"P",0,mySWITCH(INT($M70),0,0,0,1,1,2,2,3,2,4,2,5,2,6,2)) -> 0 | T70: P | U70: =IF($T70<>"P",0,pcOfTargetAchieved(ROW(),$M70)) -> 0 | W70: P | X70: =IF($W70<>"P",0,pcOfAdvancedAchieved(ROW(),$M70)) -> 0 | Z70: 0 | AA70: 0 | AB70: 0 | AC70: 0 | AD70: 0 | AE70: 0 | AF70: 0 | AG70: 0 | AH70: 0
B71: =INDEX(Lookup!$B$9:$B$100,MATCH(CELL("contents",$C71),Lookup!$E$9:$E$100,0)) -> 2 | C71: Web site screening | D71: 7m | E71: 0 | F71: ™ | G71: ™ | H71: ™ | I71: ™ | J71: ™ | K71: ™ | L71: ™ | M71: 0 | Q71: P | R71: =IF($Q71<>"P",0,mySWITCH(INT($M71),0,0,0,1,1,2,2,3,2,4,2,5,2,6,2)) -> 0 | T71: P | U71: =IF($T71<>"P",0,pcOfTargetAchieved(ROW(),$M71)) -> 0 | X71: =IF($W71<>"P",0,pcOfAdvancedAchieved(ROW(),$M71)) -> 0 | Z71: 0 | AA71: 0 | AB71: 0 | AC71: 0 | AD71: 0 | AE71: 0 | AF71: 0 | AG71: 0 | AH71: 0
B72: =INDEX(Lookup!$B$9:$B$100,MATCH(CELL("contents",$C72),Lookup!$E$9:$E$100,0)) -> 2 | C72: Browser management | D72: 7n | E72: 0 | F72: ™ | G72: ™ | H72: ™ | I72: ™ | J72: ™ | K72: ™ | L72: ™ | M72: 0 | R72: =IF($Q72<>"P",0,mySWITCH(INT($M72),0,0,0,1,1,2,2,3,2,4,2,5,2,6,2)) -> 0 | T72: P | U72: =IF($T72<>"P",0,pcOfTargetAchieved(ROW(),$M72)) -> 0 | X72: =IF($W72<>"P",0,pcOfAdvancedAchieved(ROW(),$M72)) -> 0 | Z72: 0 | AA72: 0 | AB72: 0 | AC72: 0 | AD72: 0 | AE72: 0 | AF72: 0 | AG72: 0 | AH72: 0
B73: =INDEX(Lookup!$B$9:$B$100,MATCH(CELL("contents",$C73),Lookup!$E$9:$E$100,0)) -> 2 | C73: Monitor/audit user activity | D73: 7o | E73: 0 | F73: ™ | G73: ™ | H73: ™ | I73: ™ | J73: ™ | K73: ™ | L73: ™ | M73: 0 | R73: =IF($Q73<>"P",0,mySWITCH(INT($M73),0,0,0,1,1,2,2,3,2,4,2,5,2,6,2)) -> 0 | T73: P | U73: =IF($T73<>"P",0,pcOfTargetAchieved(ROW(),$M73)) -> 0 | W73: P | X73: =IF($W73<>"P",0,pcOfAdvancedAchieved(ROW(),$M73)) -> 0 | Z73: 0 | AA73: 0 | AB73: 0 | AC73: 0 | AD73: 0 | AE73: 0 | AF73: 0 | AG73: 0 | AH73: 0
B74: =INDEX(Lookup!$B$9:$B$100,MATCH(CELL("contents",$C74),Lookup!$E$9:$E$100,0)) -> 2 | C74: Disabled auto-run | D74: 7p | E74: 0 | F74: ™ | G74: ™ | H74: ™ | I74: ™ | J74: ™ | K74: ™ | L74: ™ | M74: 0 | Q74: P | R74: =IF($Q74<>"P",0,mySWITCH(INT($M74),0,0,0,1,1,2,2,3,2,4,2,5,2,6,2)) -> 0 | T74: P | U74: =IF($T74<>"P",0,pcOfTargetAchieved(ROW(),$M74)) -> 0 | X74: =IF($W74<>"P",0,pcOfAdvancedAchieved(ROW(),$M74)) -> 0 | Z74: 0 | AA74: 0 | AB74: 0 | AC74: 0 | AD74: 0 | AE74: 0 | AF74: 0 | AG74: 0 | AH74: 0
C75: NETWORK SECURITY | G75: 0 | H75: 1 | I75: 2 | J75: 3 | K75: 4 | L75: 5 | M75: ™ | O75: COMMENTS | Q75: Baseline | T75: Target | W75: Advanced | Z75: =Lookup!X$6 -> CE | AA75: =Lookup!Y$6 -> PSAP | AB75: =Lookup!Z$6 -> PSN - ITHC | AC75: =Lookup!AA$6 -> PCI-DSS | AD75: =Lookup!AB$6 -> 10 Steps | AE75: =Lookup!AC$6 -> GDPR | AF75: =Lookup!AD$6 -> HMG SPF | AG75: =Lookup!AE$6 -> ISO 27001 | AH75: =Lookup!AF$6 -> NIS - CAF | AI75: =Lookup!V6 -> totals
C76: Patch management | D76: 8a | E76: 0 | F76: ™ | G76: ™ | H76: ™ | I76: ™ | J76: ™ | K76: ™ | L76: ™ | M76: 0 | Q76: P | R76: =IF($Q76<>"P",0,mySWITCH(INT($M76),0,0,0,1,1,2,2,3,2,4,2,5,2,6,2)) -> 0 | T76: P | U76: =IF($T76<>"P",0,pcOfTargetAchieved(ROW(),$M76)) -> 0 | X76: =IF($W76<>"P",0,pcOfAdvancedAchieved(ROW(),$M76)) -> 0 | Z76: 0 | AA76: 0 | AB76: 0 | AC76: 0 | AD76: 0 | AE76: 0 | AF76: 0 | AG76: 0 | AH76: 0
C77: Device management | D77: 8b | E77: 0 | F77: ™ | G77: ™ | H77: ™ | I77: ™ | J77: ™ | K77: ™ | L77: ™ | M77: 0 | R77: =IF($Q77<>"P",0,mySWITCH(INT($M77),0,0,0,1,1,2,2,3,2,4,2,5,2,6,2)) -> 0 | T77: P | U77: =IF($T77<>"P",0,pcOfTargetAchieved(ROW(),$M77)) -> 0 | W77: P | X77: =IF($W77<>"P",0,pcOfAdvancedAchieved(ROW(),$M77)) -> 0 | Z77: 0 | AA77: 0 | AB77: 0 | AC77: 0 | AD77: 0 | AE77: 0 | AF77: 0 | AG77: 0 | AH77: 0
C78: Content screening | D78: 8c | E78: 0 | F78: ™ | G78: ™ | H78: ™ | I78: ™ | J78: ™ | K78: ™ | L78: ™ | M78: 0 | R78: =IF($Q78<>"P",0,mySWITCH(INT($M78),0,0,0,1,1,2,2,3,2,4,2,5,2,6,2)) -> 0 | T78: P | U78: =IF($T78<>"P",0,pcOfTargetAchieved(ROW(),$M78)) -> 0 | X78: =IF($W78<>"P",0,pcOfAdvancedAchieved(ROW(),$M78)) -> 0 | Z78: 0 | AA78: 0 | AB78: 0 | AC78: 0 | AD78: 0 | AE78: 0 | AF78: 0 | AG78: 0 | AH78: 0 | AI78: 0
C79: Internal segregation | D79: 8d | E79: 0 | F79: ™ | G79: ™ | H79: ™ | I79: ™ | J79: ™ | K79: ™ | L79: ™ | M79: 0 | R79: =IF($Q79<>"P",0,mySWITCH(INT($M79),0,0,0,1,1,2,2,3,2,4,2,5,2,6,2)) -> 0 | T79: P | U79: =IF($T79<>"P",0,pcOfTargetAchieved(ROW(),$M79)) -> 0 | W79: P | X79: =IF($W79<>"P",0,pcOfAdvancedAchieved(ROW(),$M79)) -> 0 | Z79: 0 | AA79: 0 | AB79: 0 | AC79: 0 | AD79: 0 | AE79: 0 | AF79: 0 | AG79: 0 | AH79: 0
C80: Wireless security | D80: 8e | E80: 0 | F80: ™ | G80: ™ | H80: ™ | I80: ™ | J80: ™ | K80: ™ | L80: ™ | M80: 0 | Q80: P | R80: =IF($Q80<>"P",0,mySWITCH(INT($M80),0,0,0,1,1,2,2,3,2,4,2,5,2,6,2)) -> 0 | T80: P | U80: =IF($T80<>"P",0,pcOfTargetAchieved(ROW(),$M80)) -> 0 | X80: =IF($W80<>"P",0,pcOfAdvancedAchieved(ROW(),$M80)) -> 0 | Z80: 0 | AA80: 0 | AB80: 0 | AC80: 0 | AD80: 0 | AE80: 0 | AF80: 0 | AG80: 0 | AH80: 0
C81: Boundary/Firewall management | D81: 8f | E81: 0 | F81: ™ | G81: ™ | H81: ™ | I81: ™ | J81: ™ | K81: ™ | L81: ™ | M81: 0 | Q81: P | R81: =IF($Q81<>"P",0,mySWITCH(INT($M81),0,0,0,1,1,2,2,3,2,4,2,5,2,6,2)) -> 0 | T81: P | U81: =IF($T81<>"P",0,pcOfTargetAchieved(ROW(),$M81)) -> 0 | W81: P | X81: =IF($W81<>"P",0,pcOfAdvancedAchieved(ROW(),$M81)) -> 0 | Z81: 0 | AA81: 0 | AB81: 0 | AC81: 0 | AD81: 0 | AE81: 0 | AF81: 0 | AG81: 0 | AH81: 0
C82: Administrator control | D82: 8g | E82: 0 | F82: ™ | G82: ™ | H82: ™ | I82: ™ | J82: ™ | K82: ™ | L82: ™ | M82: 0 | R82: =IF($Q82<>"P",0,mySWITCH(INT($M82),0,0,0,1,1,2,2,3,2,4,2,5,2,6,2)) -> 0 | T82: P | U82: =IF($T82<>"P",0,pcOfTargetAchieved(ROW(),$M82)) -> 0 | W82: P | X82: =IF($W82<>"P",0,pcOfAdvancedAchieved(ROW(),$M82)) -> 0 | Z82: 0 | AA82: 0 | AB82: 0 | AC82: 0 | AD82: 0 | AE82: 0 | AF82: 0 | AG82: 0 | AH82: 0
C83: Error message management | D83: 8h | E83: 0 | F83: ™ | G83: ™ | H83: ™ | I83: ™ | J83: ™ | K83: ™ | L83: ™ | M83: 0 | R83: =IF($Q83<>"P",0,mySWITCH(INT($M83),0,0,0,1,1,2,2,3,2,4,2,5,2,6,2)) -> 0 | T83: P | U83: =IF($T83<>"P",0,pcOfTargetAchieved(ROW(),$M83)) -> 0 | X83: =IF($W83<>"P",0,pcOfAdvancedAchieved(ROW(),$M83)) -> 0 | Z83: 0 | AA83: 0 | AB83: 0 | AC83: 0 | AD83: 0 | AE83: 0 | AF83: 0 | AG83: 0 | AH83: 0
C84: Penetration testing | D84: 8i | E84: 0 | F84: ™ | G84: ™ | H84: ™ | I84: ™ | J84: ™ | K84: ™ | L84: ™ | M84: 0 | R84: =IF($Q84<>"P",0,mySWITCH(INT($M84),0,0,0,1,1,2,2,3,2,4,2,5,2,6,2)) -> 0 | T84: P | U84: =IF($T84<>"P",0,pcOfTargetAchieved(ROW(),$M84)) -> 0 | X84: =IF($W84<>"P",0,pcOfAdvancedAchieved(ROW(),$M84)) -> 0 | Z84: 0 | AA84: 0 | AB84: 0 | AC84: 0 | AD84: 0 | AE84: 0 | AF84: 0 | AG84: 0 | AH84: 0
C85: IP & DNS management | D85: 8j | E85: 0 | F85: ™ | G85: ™ | H85: ™ | I85: ™ | J85: ™ | K85: ™ | L85: ™ | M85: 0 | Q85: P | R85: =IF($Q85<>"P",0,mySWITCH(INT($M85),0,0,0,1,1,2,2,3,2,4,2,5,2,6,2)) -> 0 | T85: P | U85: =IF($T85<>"P",0,pcOfTargetAchieved(ROW(),$M85)) -> 0 | W85: P | X85: =IF($W85<>"P",0,pcOfAdvancedAchieved(ROW(),$M85)) -> 0 | Z85: 0 | AA85: 0 | AB85: 0 | AC85: 0 | AD85: 0 | AE85: 0 | AF85: 0 | AG85: 0 | AH85: 0 | AI85: 0
A86: DETECT | C86: INCIDENT DETECTION | G86: 0 | H86: 1 | I86: 2 | J86: 3 | K86: 4 | L86: 5 | M86: ™ | O86: COMMENTS | Q86: Baseline | T86: Target | W86: Advanced | Z86: =Lookup!X$6 -> CE | AA86: =Lookup!Y$6 -> PSAP | AB86: =Lookup!Z$6 -> PSN - ITHC | AC86: =Lookup!AA$6 -> PCI-DSS | AD86: =Lookup!AB$6 -> 10 Steps | AE86: =Lookup!AC$6 -> GDPR | AF86: =Lookup!AD$6 -> HMG SPF | AG86: =Lookup!AE$6 -> ISO 27001 | AH86: =Lookup!AF$6 -> NIS - CAF | AI86: =Lookup!V6 -> totals
C87: Detection capability | D87: 16a | E87: 0 | F87: ™ | G87: ™ | H87: ™ | I87: ™ | J87: ™ | K87: ™ | L87: ™ | M87: 0 | R87: =IF($Q87<>"P",0,mySWITCH(INT($M87),0,0,0,1,1,2,2,3,2,4,2,5,2,6,2)) -> 0 | T87: P | U87: =IF($T87<>"P",0,pcOfTargetAchieved(ROW(),$M87)) -> 0 | W87: P | X87: =IF($W87<>"P",0,pcOfAdvancedAchieved(ROW(),$M87)) -> 0 | Z87: 0 | AA87: 0 | AB87: 0 | AC87: 0 | AD87: 0 | AE87: 0 | AF87: 0 | AG87: 0 | AH87: 0 | AI87: 0
C88: Security Monitoring | D88: 16b | E88: 0 | F88: ™ | G88: ™ | H88: ™ | I88: ™ | J88: ™ | K88: ™ | L88: ™ | M88: 0 | R88: =IF($Q88<>"P",0,mySWITCH(INT($M88),0,0,0,1,1,2,2,3,2,4,2,5,2,6,2)) -> 0 | T88: P | U88: =IF($T88<>"P",0,pcOfTargetAchieved(ROW(),$M88)) -> 0 | W88: P | X88: =IF($W88<>"P",0,pcOfAdvancedAchieved(ROW(),$M88)) -> 0 | Z88: 0 | AA88: 0 | AB88: 0 | AC88: 0 | AD88: 0 | AE88: 0 | AF88: 0 | AG88: 0 | AH88: 0
A89: RESPOND & RECOVER | C89: INCIDENT MANAGEMENT | G89: 0 | H89: 1 | I89: 2 | J89: 3 | K89: 4 | L89: 5 | M89: ™ | O89: COMMENTS | Q89: Baseline | T89: Target | W89: Advanced | Z89: =Lookup!X$6 -> CE | AA89: =Lookup!Y$6 -> PSAP | AB89: =Lookup!Z$6 -> PSN - ITHC | AC89: =Lookup!AA$6 -> PCI-DSS | AD89: =Lookup!AB$6 -> 10 Steps | AE89: =Lookup!AC$6 -> GDPR | AF89: =Lookup!AD$6 -> HMG SPF | AG89: =Lookup!AE$6 -> ISO 27001 | AH89: =Lookup!AF$6 -> NIS - CAF | AI89: =Lookup!V6 -> totals
C90: Incident response protocol | D90: 10b | E90: 0 | F90: ™ | G90: ™ | H90: ™ | I90: ™ | J90: ™ | K90: ™ | L90: ™ | M90: 0 | Q90: P | R90: =IF($Q90<>"P",0,mySWITCH(INT($M90),0,0,0,1,1,2,2,3,2,4,2,5,2,6,2)) -> 0 | T90: P | U90: =IF($T90<>"P",0,pcOfTargetAchieved(ROW(),$M90)) -> 0 | W90: P | X90: =IF($W90<>"P",0,pcOfAdvancedAchieved(ROW(),$M90)) -> 0 | Z90: 0 | AA90: 0 | AB90: 0 | AC90: 0 | AD90: 0 | AE90: 0 | AF90: 0 | AG90: 0 | AH90: 0
C91: Incident reporting procedure | D91: 10c | E91: 0 | F91: ™ | G91: ™ | H91: ™ | I91: ™ | J91: ™ | K91: ™ | L91: ™ | M91: 0 | Q91: P | R91: =IF($Q91<>"P",0,mySWITCH(INT($M91),0,0,0,1,1,2,2,3,2,4,2,5,2,6,2)) -> 0 | T91: P | U91: =IF($T91<>"P",0,pcOfTargetAchieved(ROW(),$M91)) -> 0 | X91: =IF($W91<>"P",0,pcOfAdvancedAchieved(ROW(),$M91)) -> 0 | Z91: 0 | AA91: 0 | AB91: 0 | AC91: 0 | AD91: 0 | AE91: 0 | AF91: 0 | AG91: 0 | AH91: 0
C92: Staff training & testing | D92: 10d | E92: 0 | F92: ™ | G92: ™ | H92: ™ | I92: ™ | J92: ™ | K92: ™ | L92: ™ | M92: 0 | R92: =IF($Q92<>"P",0,mySWITCH(INT($M92),0,0,0,1,1,2,2,3,2,4,2,5,2,6,2)) -> 0 | T92: P | U92: =IF($T92<>"P",0,pcOfTargetAchieved(ROW(),$M92)) -> 0 | X92: =IF($W92<>"P",0,pcOfAdvancedAchieved(ROW(),$M92)) -> 0 | Z92: 0 | AA92: 0 | AB92: 0 | AC92: 0 | AD92: 0 | AE92: 0 | AF92: 0 | AG92: 0 | AH92: 0 | AI92: 0
C93: Post-incident review & learning | D93: 10e | E93: 0 | F93: ™ | G93: ™ | H93: ™ | I93: ™ | J93: ™ | K93: ™ | L93: ™ | M93: 0 | Q93: P | R93: =IF($Q93<>"P",0,mySWITCH(INT($M93),0,0,0,1,1,2,2,3,2,4,2,5,2,6,2)) -> 0 | T93: P | U93: =IF($T93<>"P",0,pcOfTargetAchieved(ROW(),$M93)) -> 0 | W93: P | X93: =IF($W93<>"P",0,pcOfAdvancedAchieved(ROW(),$M93)) -> 0 | Z93: 0 | AA93: 0 | AB93: 0 | AC93: 0 | AD93: 0 | AE93: 0 | AF93: 0 | AG93: 0 | AH93: 0
C94: BUSINESS CONTINUITY | G94: 0 | H94: 1 | I94: 2 | J94: 3 | K94: 4 | L94: 5 | M94: ™ | O94: COMMENTS | Q94: Baseline | T94: Target | W94: Advanced | Z94: =Lookup!X$6 -> CE | AA94: =Lookup!Y$6 -> PSAP | AB94: =Lookup!Z$6 -> PSN - ITHC | AC94: =Lookup!AA$6 -> PCI-DSS | AD94: =Lookup!AB$6 -> 10 Steps | AE94: =Lookup!AC$6 -> GDPR | AF94: =Lookup!AD$6 -> HMG SPF | AG94: =Lookup!AE$6 -> ISO 27001 | AH94: =Lookup!AF$6 -> NIS - CAF | AI94: =Lookup!V6 -> totals
C95: Data recover capability | D95: 12a | E95: 0 | F95: ™ | G95: ™ | H95: ™ | I95: ™ | J95: ™ | K95: ™ | L95: ™ | M95: 0 | R95: =IF($Q95<>"P",0,mySWITCH(INT($M95),0,0,0,1,1,2,2,3,2,4,2,5,2,6,2)) -> 0 | T95: P | U95: =IF($T95<>"P",0,pcOfTargetAchieved(ROW(),$M95)) -> 0 | W95: P | X95: =IF($W95<>"P",0,pcOfAdvancedAchieved(ROW(),$M95)) -> 0 | Z95: 0 | AA95: 0 | AB95: 0 | AC95: 0 | AD95: 0 | AE95: 0 | AF95: 0 | AG95: 0 | AH95: 0
C96: Back up policies & procedures | D96: 12b | E96: 0 | F96: ™ | G96: ™ | H96: ™ | I96: ™ | J96: ™ | K96: ™ | L96: ™ | M96: 0 | R96: =IF($Q96<>"P",0,mySWITCH(INT($M96),0,0,0,1,1,2,2,3,2,4,2,5,2,6,2)) -> 0 | T96: P | U96: =IF($T96<>"P",0,pcOfTargetAchieved(ROW(),$M96)) -> 0 | W96: P | X96: =IF($W96<>"P",0,pcOfAdvancedAchieved(ROW(),$M96)) -> 0 | Z96: 0 | AA96: 0 | AB96: 0 | AC96: 0 | AD96: 0 | AE96: 0 | AF96: 0 | AG96: 0 | AH96: 0
C97: Disaster recovery policies & procedures | D97: 12c | E97: 0 | F97: ™ | G97: ™ | H97: ™ | I97: ™ | J97: ™ | K97: ™ | L97: ™ | M97: 0 | R97: =IF($Q97<>"P",0,mySWITCH(INT($M97),0,0,0,1,1,2,2,3,2,4,2,5,2,6,2)) -> 0 | T97: P | U97: =IF($T97<>"P",0,pcOfTargetAchieved(ROW(),$M97)) -> 0 | W97: P | X97: =IF($W97<>"P",0,pcOfAdvancedAchieved(ROW(),$M97)) -> 0 | Z97: 0 | AA97: 0 | AB97: 0 | AC97: 0 | AD97: 0 | AE97: 0 | AF97: 0 | AG97: 0 | AH97: 0
C98: BC/DR testing policies & procedures | D98: 12d | E98: 0 | F98: ™ | G98: ™ | H98: ™ | I98: ™ | J98: ™ | K98: ™ | L98: ™ | M98: 0 | R98: =IF($Q98<>"P",0,mySWITCH(INT($M98),0,0,0,1,1,2,2,3,2,4,2,5,2,6,2)) -> 0 | T98: P | U98: =IF($T98<>"P",0,pcOfTargetAchieved(ROW(),$M98)) -> 0 | W98: P | X98: =IF($W98<>"P",0,pcOfAdvancedAchieved(ROW(),$M98)) -> 0 | Z98: 0 | AA98: 0 | AB98: 0 | AC98: 0 | AD98: 0 | AE98: 0 | AF98: 0 | AG98: 0 | AH98: 0 | AI98: 0
C99: Data Loss impact assessments | D99: 12e | E99: 0 | F99: ™ | G99: ™ | H99: ™ | I99: ™ | J99: ™ | K99: ™ | L99: ™ | M99: 0 | R99: =IF($Q99<>"P",0,mySWITCH(INT($M99),0,0,0,1,1,2,2,3,2,4,2,5,2,6,2)) -> 0 | T99: P | U99: =IF($T99<>"P",0,pcOfTargetAchieved(ROW(),$M99)) -> 0 | W99: P | X99: =IF($W99<>"P",0,pcOfAdvancedAchieved(ROW(),$M99)) -> 0 | Z99: 0 | AA99: 0 | AB99: 0 | AC99: 0 | AD99: 0 | AE99: 0 | AF99: 0 | AG99: 0 | AH99: 0
C100: BC contingency plan | D100: 12f | E100: 0 | F100: ™ | G100: ™ | H100: ™ | I100: ™ | J100: ™ | K100: ™ | L100: ™ | M100: 0 | R100: =IF($Q100<>"P",0,mySWITCH(INT($M100),0,0,0,1,1,2,2,3,2,4,2,5,2,6,2)) -> 0 | T100: P | U100: =IF($T100<>"P",0,pcOfTargetAchieved(ROW(),$M100)) -> 0 | W100: P | X100: =IF($W100<>"P",0,pcOfAdvancedAchieved(ROW(),$M100)) -> 0 | Z100: 0 | AA100: 0 | AB100: 0 | AC100: 0 | AD100: 0 | AE100: 0 | AF100: 0 | AG100: 0 | AH100: 0
N101: OVERALL TOTALS

Sheet Lookup (hidden)
D1: Lookup | J1: R02 | X1: PRESETS
J3: CE | K3: 10 Steps | L3: GDPR
A6: FRAMEWORK | B6: Order | D6: Categories | E6: Sub-Categories | F6: Options » | G6: 1 | H6: 2 | I6: 3 | J6: 4 | K6: 5 | L6: Weightings » | M6: =standardName(COLUMN()) ->  | N6: =standardName(COLUMN()) ->  | O6: =standardName(COLUMN()) ->  | V6: totals | X6: =INDEX(STANDARDLOOKUP,COLUMN()-23,1) -> CE | Y6: =INDEX(STANDARDLOOKUP,COLUMN()-23,1) -> PSAP | Z6: PSN - ITHC | AA6: PCI-DSS | AB6: 10 Steps | AC6: GDPR | AD6: HMG SPF | AE6: ISO 27001 | AF6: NIS - CAF
D8: ORGANISATIONAL GOVERNANCE | E8: =COUNTIF($D:$D,CELL("contents",$D8))-1 -> 5 | L8: Total Points Available » | M8: =standardComplianceLevel(COLUMN(),$D8) ->  | N8: =standardComplianceLevel(COLUMN(),$D8) ->  | P8: 0.71
A9: =INDEX('Base-Lookup'!$H$2:$H$18,MATCH($D9,'Base-Lookup'!$G$2:$G$18,0)) -> MANAGE | B9: =INDEX('Base-Lookup'!$E$2:$E$18,MATCH($D9,'Base-Lookup'!$G$2:$G$18,0)) -> 1 | C9: =INDEX('Base-Lookup'!$F$2:$F$18,MATCH($D9,'Base-Lookup'!$G$2:$G$18,0)) -> 1 | D9: ORGANISATIONAL GOVERNANCE | E9: Governance framework | F9: 2a | G9: Few control categories in place with no corrective actions implemented | H9: minimal categories practices/controls in place. | I9: most control categories in place, documentation and evidence incomplete | J9: all control categories in place, documentation and evidence almost complete | K9: Best practices adopted across all categories and can be demonstrated on audit with documentation | M9: 0 | N9: =MATCH(INDIRECT(ADDRESS(ROW(),5)),#REF!,0) ->  | O9: 0 | P9: 0.2 | Q9: 0.3333333333 | R9: 0.5 | S9: 0.5 | T9: 0 | U9: 0.1666666667 | V9: 0 | X9: 0 | Y9: 4 | Z9: 1 | AA9: 2 | AB9: 0 | AC9: 0 | AD9: 1 | AE9: 1 | AF9: 1
A10: =INDEX('Base-Lookup'!$H$2:$H$18,MATCH($D10,'Base-Lookup'!$G$2:$G$18,0)) -> MANAGE | B10: =INDEX('Base-Lookup'!$E$2:$E$18,MATCH($D10,'Base-Lookup'!$G$2:$G$18,0)) -> 1 | C10: =INDEX('Base-Lookup'!$F$2:$F$18,MATCH($D10,'Base-Lookup'!$G$2:$G$18,0)) -> 1 | D10: ORGANISATIONAL GOVERNANCE | E10: Leadership & responsibility | F10: 2b | G10: Few control categories in place with no corrective actions implemented | H10: minimal categories practices/controls in place. | I10: most control categories in place, documentation and evidence incomplete | J10: all control categories in place, documentation and evidence almost complete | K10: Best practices adopted across all categories and can be demonstrated on audit with documentation | M10: 0 | N10: 0 | O10: 0 | P10: 0.2 | Q10: 0 | R10: 0 | S10: 0.5 | T10: 0 | U10: 0.1666666667 | V10: 0 | X10: 2 | Y10: 2 | Z10: 0 | AA10: 0 | AB10: 0 | AC10: 0 | AD10: 1 | AE10: 4 | AF10: 0
A11: =INDEX('Base-Lookup'!$H$2:$H$18,MATCH($D11,'Base-Lookup'!$G$2:$G$18,0)) -> MANAGE | B11: =INDEX('Base-Lookup'!$E$2:$E$18,MATCH($D11,'Base-Lookup'!$G$2:$G$18,0)) -> 1 | C11: =INDEX('Base-Lookup'!$F$2:$F$18,MATCH($D11,'Base-Lookup'!$G$2:$G$18,0)) -> 1 | D11: ORGANISATIONAL GOVERNANCE | E11: Adoption of assurance standards | F11: 2e | G11: Few control categories in place with no corrective actions implemented | H11: minimal categories practices/controls in place. | I11: most control categories in place, documentation and evidence incomplete | J11: all control categories in place, documentation and evidence almost complete | K11: Best practices adopted across all categories and can be demonstrated on audit with documentation | M11: 0 | N11: 0 | O11: 0 | P11: 0 | Q11: 0.3333333333 | R11: 0 | S11: 0 | T11: 0 | U11: 0.1666666667 | V11: 0 | X11: 0 | Y11: 0 | Z11: 1 | AA11: 0 | AB11: 1 | AC11: 4 | AD11: 1 | AE11: 4 | AF11: 2
A12: =INDEX('Base-Lookup'!$H$2:$H$18,MATCH($D12,'Base-Lookup'!$G$2:$G$18,0)) -> MANAGE | B12: =INDEX('Base-Lookup'!$E$2:$E$18,MATCH($D12,'Base-Lookup'!$G$2:$G$18,0)) -> 1 | C12: =INDEX('Base-Lookup'!$F$2:$F$18,MATCH($D12,'Base-Lookup'!$G$2:$G$18,0)) -> 1 | D12: ORGANISATIONAL GOVERNANCE | E12: Information Asset Register | F12: 2f | G12: Few control categories in place with no corrective actions implemented | H12: minimal categories practices/controls in place. | I12: most control categories in place, documentation and evidence incomplete | J12: all control categories in place, documentation and evidence almost complete | K12: Best practices adopted across all categories and can be demonstrated on audit with documentation | M12: 0 | N12: 0 | O12: 0 | P12: 0 | Q12: 0 | R12: 0.5 | S12: 0 | T12: 0.5 | U12: 0 | V12: 0 | X12: 0 | Y12: 2 | Z12: 1 | AA12: 0 | AB12: 0 | AC12: 0 | AD12: 0 | AE12: 0 | AF12: 0
A13: =INDEX('Base-Lookup'!$H$2:$H$18,MATCH($D13,'Base-Lookup'!$G$2:$G$18,0)) -> MANAGE | B13: =INDEX('Base-Lookup'!$E$2:$E$18,MATCH($D13,'Base-Lookup'!$G$2:$G$18,0)) -> 1 | C13: =INDEX('Base-Lookup'!$F$2:$F$18,MATCH($D13,'Base-Lookup'!$G$2:$G$18,0)) -> 1 | D13: ORGANISATIONAL GOVERNANCE | E13: Audit/assurance compliance | F13: 2g | G13: Few control categories in place with no corrective actions implemented | H13: minimal categories practices/controls in place. | I13: most control categories in place, documentation and evidence incomplete | J13: all control categories in place, documentation and evidence almost complete | K13: Best practices adopted across all categories and can be demonstrated on audit with documentation | M13: 0 | N13: 1 | O13: 0 | P13: 0.2 | Q13: 0 | R13: 0 | S13: 0 | T13: 0.5 | U13: 0.1666666667 | V13: 0 | X13: 1 | Y13: 0 | Z13: 0 | AA13: 0 | AB13: 4 | AC13: 0 | AD13: 0 | AE13: 3 | AF13: 2
D14: RISK MANAGEMENT | E14: =COUNTIF($D:$D,CELL("contents",$D14))-1 -> 4 | L14: Total Points Available » | M14: =standardComplianceLevel(COLUMN(),$D14) ->  | N14: =standardComplianceLevel(COLUMN(),$D14) ->  | P14: 4 | Q14: 4 | R14: 5 | S14: 5 | U14: 1
A15: =INDEX('Base-Lookup'!$H$2:$H$18,MATCH($D9,'Base-Lookup'!$G$2:$G$18,0)) -> MANAGE | B15: =INDEX('Base-Lookup'!$E$2:$E$18,MATCH($D15,'Base-Lookup'!$G$2:$G$18,0)) -> 1 | C15: =INDEX('Base-Lookup'!$F$2:$F$18,MATCH($D15,'Base-Lookup'!$G$2:$G$18,0)) -> 2 | D15: RISK MANAGEMENT | E15: Risk management policy & process | F15: 11a | G15: Few control categories in place with no corrective actions implemented | H15: minimal categories practices/controls in place. | I15: most control categories in place, documentation and evidence incomplete | J15: all control categories in place, documentation and evidence almost complete | K15: Best practices adopted across all categories and can be demonstrated on audit with documentation | M15: 0 | N15: 0 | O15: 0 | P15: 0.125 | Q15: 0.125 | R15: 0.125 | S15: 0.125 | T15: 0.2 | U15: 0.125 | V15: 0 | X15: 0 | Y15: 3 | Z15: 3 | AA15: 4 | AB15: 0 | AC15: 1 | AD15: 4 | AE15: 4 | AF15: 1
A16: =INDEX('Base-Lookup'!$H$2:$H$18,MATCH($D10,'Base-Lookup'!$G$2:$G$18,0)) -> MANAGE | B16: =INDEX('Base-Lookup'!$E$2:$E$18,MATCH($D16,'Base-Lookup'!$G$2:$G$18,0)) -> 1 | C16: =INDEX('Base-Lookup'!$F$2:$F$18,MATCH($D16,'Base-Lookup'!$G$2:$G$18,0)) -> 2 | D16: RISK MANAGEMENT | E16: Cyber / Information Risk Assessment | F16: 11b | G16: Few control categories in place with no corrective actions implemented | H16: minimal categories practices/controls in place. | I16: most control categories in place, documentation and evidence incomplete | J16: all control categories in place, documentation and evidence almost complete | K16: Best practices adopted across all categories and can be demonstrated on audit with documentation | M16: 0 | N16: 1 | O16: 1 | P16: 0.125 | Q16: 0.125 | R16: 0.125 | S16: 0.125 | T16: 0.2 | U16: 0.125 | V16: 0 | X16: 3 | Y16: 1 | Z16: 0 | AA16: 3 | AB16: 2 | AC16: 4 | AD16: 0 | AE16: 2 | AF16: 2
A17: =INDEX('Base-Lookup'!$H$2:$H$18,MATCH($D11,'Base-Lookup'!$G$2:$G$18,0)) -> MANAGE | B17: =INDEX('Base-Lookup'!$E$2:$E$18,MATCH($D17,'Base-Lookup'!$G$2:$G$18,0)) -> 1 | C17: =INDEX('Base-Lookup'!$F$2:$F$18,MATCH($D17,'Base-Lookup'!$G$2:$G$18,0)) -> 2 | D17: RISK MANAGEMENT | E17: Risk treatment & tolerance | F17: 11c | G17: Few control categories in place with no corrective actions implemented | H17: minimal categories practices/controls in place. | I17: most control categories in place, documentation and evidence incomplete | J17: all control categories in place, documentation and evidence almost complete | K17: Best practices adopted across all categories and can be demonstrated on audit with documentation | M17: 0 | N17: 0 | O17: 0 | P17: 0.125 | Q17: 0.125 | R17: 0.125 | S17: 0.125 | T17: 0.2 | U17: 0.125 | V17: 0 | X17: 4 | Y17: 3 | Z17: 3 | AA17: 3 | AB17: 1 | AC17: 2 | AD17: 1 | AE17: 0 | AF17: 0
A18: =INDEX('Base-Lookup'!$H$2:$H$18,MATCH($D12,'Base-Lookup'!$G$2:$G$18,0)) -> MANAGE | B18: =INDEX('Base-Lookup'!$E$2:$E$18,MATCH($D18,'Base-Lookup'!$G$2:$G$18,0)) -> 1 | C18: =INDEX('Base-Lookup'!$F$2:$F$18,MATCH($D18,'Base-Lookup'!$G$2:$G$18,0)) -> 2 | D18: RISK MANAGEMENT | E18: Risk governance | F18: 11d | G18: Few control categories in place with no corrective actions implemented | H18: minimal categories practices/controls in place. | I18: most control categories in place, documentation and evidence incomplete | J18: all control categories in place, documentation and evidence almost complete | K18: Best practices adopted across all categories and can be demonstrated on audit with documentation | M18: 0 | N18: 0 | O18: 0 | P18: 0.125 | Q18: 0.125 | R18: 0.125 | S18: 0.125 | T18: 0.2 | U18: 0.125 | V18: 0 | X18: 1 | Y18: 3 | Z18: 3 | AA18: 0 | AB18: 4 | AC18: 1 | AD18: 4 | AE18: 0 | AF18: 3
D19: SUPPLIER MANAGEMENT | E19: =COUNTIF($D:$D,CELL("contents",$D19))-1 -> 4 | L19: Total Points Available » | M19: =standardComplianceLevel(COLUMN(),$D19) ->  | N19: =standardComplianceLevel(COLUMN(),$D19) ->  | P19: 0.25
A20: =INDEX('Base-Lookup'!$H$2:$H$18,MATCH($D9,'Base-Lookup'!$G$2:$G$18,0)) -> MANAGE | B20: =INDEX('Base-Lookup'!$E$2:$E$18,MATCH($D20,'Base-Lookup'!$G$2:$G$18,0)) -> 1 | C20: =INDEX('Base-Lookup'!$F$2:$F$18,MATCH($D20,'Base-Lookup'!$G$2:$G$18,0)) -> 3 | D20: SUPPLIER MANAGEMENT | E20: Supply chain security assurance & management | F20: 9a | G20: Few control categories in place with no corrective actions implemented | H20: minimal categories practices/controls in place. | I20: most control categories in place, documentation and evidence incomplete | J20: all control categories in place, documentation and evidence almost complete | K20: Best practices adopted across all categories and can be demonstrated on audit with documentation | M20: 0 | N20: 1 | O20: 0 | P20: 1 | Q20: 0 | R20: 1 | S20: 0.5 | T20: 0.5 | U20: 0.3333333333 | V20: 0 | X20: 0 | Y20: 1 | Z20: 2 | AA20: 1 | AB20: 0 | AC20: 3 | AD20: 0 | AE20: 0 | AF20: 0
A21: =INDEX('Base-Lookup'!$H$2:$H$18,MATCH($D10,'Base-Lookup'!$G$2:$G$18,0)) -> MANAGE | B21: =INDEX('Base-Lookup'!$E$2:$E$18,MATCH($D21,'Base-Lookup'!$G$2:$G$18,0)) -> 1 | C21: =INDEX('Base-Lookup'!$F$2:$F$18,MATCH($D21,'Base-Lookup'!$G$2:$G$18,0)) -> 3 | D21: SUPPLIER MANAGEMENT | E21: Roles & responsibilities defined | F21: 9b | G21: Few control categories in place with no corrective actions implemented | H21: minimal categories practices/controls in place. | I21: most control categories in place, documentation and evidence incomplete | J21: all control categories in place, documentation and evidence almost complete | K21: Best practices adopted across all categories and can be demonstrated on audit with documentation | M21: 0 | N21: 0 | O21: 0 | P21: 0 | Q21: 0 | R21: 0 | S21: 0.5 | T21: 0 | U21: 0.3333333333 | V21: 0 | X21: 0 | Y21: 0 | Z21: 3 | AA21: 0 | AB21: 4 | AC21: 0 | AD21: 0 | AE21: 3 | AF21: 0
A22: =INDEX('Base-Lookup'!$H$2:$H$18,MATCH($D11,'Base-Lookup'!$G$2:$G$18,0)) -> MANAGE | B22: =INDEX('Base-Lookup'!$E$2:$E$18,MATCH($D22,'Base-Lookup'!$G$2:$G$18,0)) -> 1 | C22: =INDEX('Base-Lookup'!$F$2:$F$18,MATCH($D22,'Base-Lookup'!$G$2:$G$18,0)) -> 3 | D22: SUPPLIER MANAGEMENT | E22: Access control | F22: 9c | G22: Few control categories in place with no corrective actions implemented | H22: minimal categories practices/controls in place. | I22: most control categories in place, documentation and evidence incomplete | J22: all control categories in place, documentation and evidence almost complete | K22: Best practices adopted across all categories and can be demonstrated on audit with documentation | M22: 0 | N22: 0 | O22: 0 | P22: 0 | Q22: 0 | R22: 0 | S22: 0 | T22: 0 | U22: 0.3333333333 | V22: 0 | X22: 0 | Y22: 2 | Z22: 0 | AA22: 3 | AB22: 0 | AC22: 0 | AD22: 1 | AE22: 1 | AF22: 1
A23: =INDEX('Base-Lookup'!$H$2:$H$18,MATCH($D12,'Base-Lookup'!$G$2:$G$18,0)) -> MANAGE | B23: =INDEX('Base-Lookup'!$E$2:$E$18,MATCH($D23,'Base-Lookup'!$G$2:$G$18,0)) -> 1 | C23: =INDEX('Base-Lookup'!$F$2:$F$18,MATCH($D23,'Base-Lookup'!$G$2:$G$18,0)) -> 3 | D23: SUPPLIER MANAGEMENT | E23: Security in system procurements | F23: 9d | G23: Few control categories in place with no corrective actions implemented | H23: minimal categories practices/controls in place. | I23: most control categories in place, documentation and evidence incomplete | J23: all control categories in place, documentation and evidence almost complete | K23: Best practices adopted across all categories and can be demonstrated on audit with documentation | M23: 0 | N23: 0 | O23: 0 | P23: 0 | Q23: 0 | R23: 0 | S23: 0 | T23: 0.5 | U23: 0 | V23: 0 | X23: 0 | Y23: 4 | Z23: 0 | AA23: 0 | AB23: 0 | AC23: 3 | AD23: 1 | AE23: 0 | AF23: 4
D24: ASSET MANAGEMENT | E24: =COUNTIF($D:$D,CELL("contents",$D24))-1 -> 3 | L24: Total Points Available » | M24: =standardComplianceLevel(COLUMN(),$D24) ->  | N24: =standardComplianceLevel(COLUMN(),$D24) ->  | P24: 0.33 | T24: 3 | U24: 6
A25: =INDEX('Base-Lookup'!$H$2:$H$18,MATCH($D9,'Base-Lookup'!$G$2:$G$18,0)) -> MANAGE | B25: =INDEX('Base-Lookup'!$E$2:$E$18,MATCH($D25,'Base-Lookup'!$G$2:$G$18,0)) -> 1 | C25: =INDEX('Base-Lookup'!$F$2:$F$18,MATCH($D25,'Base-Lookup'!$G$2:$G$18,0)) -> 4 | D25: ASSET MANAGEMENT | E25: Hardware assets register & management | F25: 4a | G25: Few control categories in place with no corrective actions implemented | H25: minimal categories practices/controls in place. | I25: most control categories in place, documentation and evidence incomplete | J25: all control categories in place, documentation and evidence almost complete | K25: Best practices adopted across all categories and can be demonstrated on audit with documentation | M25: 0 | N25: 0 | O25: 1 | P25: 0 | Q25: 0.5 | R25: 1 | S25: 0.5 | T25: 0.3333333333 | U25: 0.3333333333 | V25: 0 | X25: 0 | Y25: 1 | Z25: 0 | AA25: 3 | AB25: 1 | AC25: 1 | AD25: 0 | AE25: 0 | AF25: 2
A26: =INDEX('Base-Lookup'!$H$2:$H$18,MATCH($D10,'Base-Lookup'!$G$2:$G$18,0)) -> MANAGE | B26: =INDEX('Base-Lookup'!$E$2:$E$18,MATCH($D26,'Base-Lookup'!$G$2:$G$18,0)) -> 1 | C26: =INDEX('Base-Lookup'!$F$2:$F$18,MATCH($D26,'Base-Lookup'!$G$2:$G$18,0)) -> 4 | D26: ASSET MANAGEMENT | E26: Software assets register & management | F26: 4b | G26: Few control categories in place with no corrective actions implemented | H26: minimal categories practices/controls in place. | I26: most control categories in place, documentation and evidence incomplete | J26: all control categories in place, documentation and evidence almost complete | K26: Best practices adopted across all categories and can be demonstrated on audit with documentation | M26: 1 | N26: 0 | O26: 0 | P26: 1 | Q26: 0.5 | R26: 0 | S26: 0.5 | T26: 0.3333333333 | U26: 0.3333333333 | V26: 0 | X26: 0 | Y26: 0 | Z26: 0 | AA26: 0 | AB26: 2 | AC26: 0 | AD26: 0 | AE26: 3 | AF26: 1
A27: =INDEX('Base-Lookup'!$H$2:$H$18,MATCH($D11,'Base-Lookup'!$G$2:$G$18,0)) -> MANAGE | B27: =INDEX('Base-Lookup'!$E$2:$E$18,MATCH($D27,'Base-Lookup'!$G$2:$G$18,0)) -> 1 | C27: =INDEX('Base-Lookup'!$F$2:$F$18,MATCH($D27,'Base-Lookup'!$G$2:$G$18,0)) -> 4 | D27: ASSET MANAGEMENT | E27: Infrastructure management | F27: 4c | G27: Few control categories in place with no corrective actions implemented | H27: minimal categories practices/controls in place. | I27: most control categories in place, documentation and evidence incomplete | J27: all control categories in place, documentation and evidence almost complete | K27: Best practices adopted across all categories and can be demonstrated on audit with documentation | M27: 0 | N27: 0 | O27: 0 | P27: 0 | Q27: 0 | R27: 0 | S27: 0 | T27: 0.3333333333 | U27: 0.3333333333 | V27: 0 | X27: 2 | Y27: 0 | Z27: 0 | AA27: 1 | AB27: 1 | AC27: 2 | AD27: 0 | AE27: 2 | AF27: 0
D28: INFORMATION SECURITY MANAGEMENT | E28: =COUNTIF($D:$D,CELL("contents",$D28))-1 -> 6 | L28: Total Points Available » | M28: =standardComplianceLevel(COLUMN(),$D28) ->  | N28: =standardComplianceLevel(COLUMN(),$D28) ->  | R28: 5 | U28: 6
A29: =INDEX('Base-Lookup'!$H$2:$H$18,MATCH($D14,'Base-Lookup'!$G$2:$G$18,0)) -> MANAGE | B29: =INDEX('Base-Lookup'!$E$2:$E$18,MATCH($D29,'Base-Lookup'!$G$2:$G$18,0)) -> 2 | C29: =INDEX('Base-Lookup'!$F$2:$F$18,MATCH($D29,'Base-Lookup'!$G$2:$G$18,0)) -> 1 | D29: INFORMATION SECURITY MANAGEMENT | E29: Security policy & processes | F29: 1a | G29: Few control categories in place with no corrective actions implemented | H29: minimal categories practices/controls in place. | I29: most control categories in place, documentation and evidence incomplete | J29: all control categories in place, documentation and evidence almost complete | K29: Best practices adopted across all categories and can be demonstrated on audit with documentation | M29: 0 | N29: 0.5 | O29: 0.1666666667 | P29: 0 | Q29: 0 | R29: 0.125 | S29: 0.1666666667 | T29: 0.1666666667 | U29: 0.125 | V29: 0 | X29: 4 | Y29: 0 | Z29: 3 | AA29: 0 | AB29: 1 | AC29: 0 | AD29: 2 | AE29: 3 | AF29: 0
A30: =INDEX('Base-Lookup'!$H$2:$H$18,MATCH($D15,'Base-Lookup'!$G$2:$G$18,0)) -> MANAGE | B30: =INDEX('Base-Lookup'!$E$2:$E$18,MATCH($D30,'Base-Lookup'!$G$2:$G$18,0)) -> 2 | C30: =INDEX('Base-Lookup'!$F$2:$F$18,MATCH($D30,'Base-Lookup'!$G$2:$G$18,0)) -> 1 | D30: INFORMATION SECURITY MANAGEMENT | E30: Lifecycle management | F30: 1b | G30: Few control categories in place with no corrective actions implemented | H30: minimal categories practices/controls in place. | I30: most control categories in place, documentation and evidence incomplete | J30: all control categories in place, documentation and evidence almost complete | K30: Best practices adopted across all categories and can be demonstrated on audit with documentation | M30: 0 | N30: 0 | O30: 0.1666666667 | P30: 0 | Q30: 0.5 | R30: 0.125 | S30: 0.1666666667 | T30: 0.1666666667 | U30: 0.125 | V30: 0 | X30: 0 | Y30: 1 | Z30: 0 | AA30: 2 | AB30: 4 | AC30: 0 | AD30: 3 | AE30: 0 | AF30: 4
A31: =INDEX('Base-Lookup'!$H$2:$H$18,MATCH($D16,'Base-Lookup'!$G$2:$G$18,0)) -> MANAGE | B31: =INDEX('Base-Lookup'!$E$2:$E$18,MATCH($D31,'Base-Lookup'!$G$2:$G$18,0)) -> 2 | C31: =INDEX('Base-Lookup'!$F$2:$F$18,MATCH($D31,'Base-Lookup'!$G$2:$G$18,0)) -> 1 | D31: INFORMATION SECURITY MANAGEMENT | E31: Storage | F31: 1c | G31: Few control categories in place with no corrective actions implemented | H31: minimal categories practices/controls in place. | I31: most control categories in place, documentation and evidence incomplete | J31: all control categories in place, documentation and evidence almost complete | K31: Best practices adopted across all categories and can be demonstrated on audit with documentation | M31: 0 | N31: 0 | O31: 0.1666666667 | P31: 0 | Q31: 0 | R31: 0.125 | S31: 0.1666666667 | T31: 0.1666666667 | U31: 0.125 | V31: 0 | X31: 4 | Y31: 2 | Z31: 2 | AA31: 0 | AB31: 0 | AC31: 4 | AD31: 2 | AE31: 3 | AF31: 0
A32: =INDEX('Base-Lookup'!$H$2:$H$18,MATCH($D17,'Base-Lookup'!$G$2:$G$18,0)) -> MANAGE | B32: =INDEX('Base-Lookup'!$E$2:$E$18,MATCH($D32,'Base-Lookup'!$G$2:$G$18,0)) -> 2 | C32: =INDEX('Base-Lookup'!$F$2:$F$18,MATCH($D32,'Base-Lookup'!$G$2:$G$18,0)) -> 1 | D32: INFORMATION SECURITY MANAGEMENT | E32: Information/data classification | F32: 1f | G32: Few control categories in place with no corrective actions implemented | H32: minimal categories practices/controls in place. | I32: most control categories in place, documentation and evidence incomplete | J32: all control categories in place, documentation and evidence almost complete | K32: Best practices adopted across all categories and can be demonstrated on audit with documentation | M32: 0 | N32: 0 | O32: 0 | P32: 0 | Q32: 0 | R32: 0.125 | S32: 0.1666666667 | T32: 0.1666666667 | U32: 0.125 | V32: 0 | X32: 0 | Y32: 0 | Z32: 1 | AA32: 0 | AB32: 0 | AC32: 0 | AD32: 0 | AE32: 4 | AF32: 2
A33: =INDEX('Base-Lookup'!$H$2:$H$18,MATCH($D18,'Base-Lookup'!$G$2:$G$18,0)) -> MANAGE | B33: =INDEX('Base-Lookup'!$E$2:$E$18,MATCH($D33,'Base-Lookup'!$G$2:$G$18,0)) -> 2 | C33: =INDEX('Base-Lookup'!$F$2:$F$18,MATCH($D33,'Base-Lookup'!$G$2:$G$18,0)) -> 1 | D33: INFORMATION SECURITY MANAGEMENT | E33: Information assets register | F33: 1g | G33: Few control categories in place with no corrective actions implemented | H33: minimal categories practices/controls in place. | I33: most control categories in place, documentation and evidence incomplete | J33: all control categories in place, documentation and evidence almost complete | K33: Best practices adopted across all categories and can be demonstrated on audit with documentation | M33: 0 | N33: 0 | O33: 0 | P33: 0 | Q33: 0 | R33: 0.125 | S33: 0.1666666667 | T33: 0.1666666667 | U33: 0.125 | V33: 0 | X33: 0 | Y33: 1 | Z33: 1 | AA33: 3 | AB33: 0 | AC33: 2 | AD33: 0 | AE33: 0 | AF33: 0
A34: =INDEX('Base-Lookup'!$H$2:$H$18,MATCH($D19,'Base-Lookup'!$G$2:$G$18,0)) -> MANAGE | B34: =INDEX('Base-Lookup'!$E$2:$E$18,MATCH($D34,'Base-Lookup'!$G$2:$G$18,0)) -> 2 | C34: =INDEX('Base-Lookup'!$F$2:$F$18,MATCH($D34,'Base-Lookup'!$G$2:$G$18,0)) -> 1 | D34: INFORMATION SECURITY MANAGEMENT | E34: Information/data transfer controls | F34: 1h | G34: Few control categories in place with no corrective actions implemented | H34: minimal categories practices/controls in place. | I34: most control categories in place, documentation and evidence incomplete | J34: all control categories in place, documentation and evidence almost complete | K34: Best practices adopted across all categories and can be demonstrated on audit with documentation | M34: 0 | N34: 0.5 | O34: 0.1666666667 | P34: 0 | Q34: 0.5 | R34: 0.125 | S34: 0.1666666667 | T34: 0.1666666667 | U34: 0.125 | V34: 0 | X34: 0 | Y34: 0 | Z34: 3 | AA34: 3 | AB34: 0 | AC34: 0 | AD34: 4 | AE34: 2 | AF34: 1
D35: PEOPLE | E35: =COUNTIF($D:$D,CELL("contents",$D35))-1 -> 5 | L35: Total Points Available » | M35: =standardComplianceLevel(COLUMN(),$D35) ->  | N35: =standardComplianceLevel(COLUMN(),$D35) ->  | P35: 0.31
A36: =INDEX('Base-Lookup'!$H$2:$H$18,MATCH($D21,'Base-Lookup'!$G$2:$G$18,0)) -> MANAGE | B36: =INDEX('Base-Lookup'!$E$2:$E$18,MATCH($D36,'Base-Lookup'!$G$2:$G$18,0)) -> 2 | C36: =INDEX('Base-Lookup'!$F$2:$F$18,MATCH($D36,'Base-Lookup'!$G$2:$G$18,0)) -> 2 | D36: PEOPLE | E36: Prior to employment | F36: 13a | G36: Few control categories in place with no corrective actions implemented | H36: minimal categories practices/controls in place. | I36: most control categories in place, documentation and evidence incomplete | J36: all control categories in place, documentation and evidence almost complete | K36: Best practices adopted across all categories and can be demonstrated on audit with documentation | M36: 0 | N36: 0 | O36: 0 | P36: 0 | Q36: 0 | R36: 0 | S36: 0 | T36: 0.1 | U36: 0 | V36: 0 | X36: 3 | Y36: 0 | Z36: 0 | AA36: 4 | AB36: 1 | AC36: 3 | AD36: 1 | AE36: 0 | AF36: 4
A37: =INDEX('Base-Lookup'!$H$2:$H$18,MATCH($D22,'Base-Lookup'!$G$2:$G$18,0)) -> MANAGE | B37: =INDEX('Base-Lookup'!$E$2:$E$18,MATCH($D37,'Base-Lookup'!$G$2:$G$18,0)) -> 2 | C37: =INDEX('Base-Lookup'!$F$2:$F$18,MATCH($D37,'Base-Lookup'!$G$2:$G$18,0)) -> 2 | D37: PEOPLE | E37: During employment | F37: 13d | G37: Few control categories in place with no corrective actions implemented | H37: minimal categories practices/controls in place. | I37: most control categories in place, documentation and evidence incomplete | J37: all control categories in place, documentation and evidence almost complete | K37: Best practices adopted across all categories and can be demonstrated on audit with documentation | M37: 0 | N37: 0 | O37: 0 | P37: 0 | Q37: 0 | R37: 0 | S37: 0 | T37: 0.1 | U37: 0 | V37: 0 | X37: 0 | Y37: 3 | Z37: 4 | AA37: 0 | AB37: 2 | AC37: 4 | AD37: 0 | AE37: 0 | AF37: 1
A38: =INDEX('Base-Lookup'!$H$2:$H$18,MATCH($D23,'Base-Lookup'!$G$2:$G$18,0)) -> MANAGE | B38: =INDEX('Base-Lookup'!$E$2:$E$18,MATCH($D38,'Base-Lookup'!$G$2:$G$18,0)) -> 2 | C38: =INDEX('Base-Lookup'!$F$2:$F$18,MATCH($D38,'Base-Lookup'!$G$2:$G$18,0)) -> 2 | D38: PEOPLE | E38: Staff training & awareness culture | F38: 13i | G38: Few control categories in place with no corrective actions implemented | H38: minimal categories practices/controls in place. | I38: most control categories in place, documentation and evidence incomplete | J38: all control categories in place, documentation and evidence almost complete | K38: Best practices adopted across all categories and can be demonstrated on audit with documentation | M38: 0 | N38: 0 | O38: 0.5 | P38: 0.25 | Q38: 0.2 | R38: 1 | S38: 1 | T38: 0.1 | U38: 0.125 | V38: 0 | X38: 0 | Y38: 0 | Z38: 0 | AA38: 4 | AB38: 0 | AC38: 2 | AD38: 4 | AE38: 0 | AF38: 0
